{"text_format":"1","workbook":"xlsx","n_sheets":6,"sheets":["申込手順","入力シート","申込","プログラム女子","入力規則","申込選手一覧（個人）"],"not_rendered":{"charts":0,"images":0,"macros":1,"external_links":0,"defined_names":0,"comments":0,"pivot_tables":0},"unopened":[],"bounds":{"document_bytes":16777216,"sheet_cells":100000,"rows_first":2000,"rows_last":500,"rows_between":2000,"halvings":0,"cell_chars":16384,"cell_head_chars":4096},"cells_cut":0,"cells_raw":0,"read":"whole","date_system":"1900"}

{"sheet":"申込手順","index":0,"n_rows":23,"n_cols":7,"rows_kept":23,"cut":false,"hidden":false,"merged":[[16,1,17,11],[18,1,19,11],[20,0,21,0],[20,1,21,11],[22,0,23,0],[22,1,23,11],[14,0,15,0],[14,1,15,11],[0,0,1,0],[0,1,1,3],[0,6,1,11],[2,1,3,11],[4,0,5,0],[4,1,5,11],[6,0,6,8],[7,0,7,8],[9,0,9,10],[10,0,10,8],[13,0,13,10]]}
["①","入力シートに必要事項を記入し",null,null,null,null,"をクリックしてください。　郵送用の申込用紙が印刷されます。"]
[]
[null,"※用紙は「B5」でお願いします。　(団体はB5　1枚　　個人は2名でB5　1枚　に印刷されます）"]
[]
["②","印刷された、申込用紙に「公印」を押して、期日までに所定の申込先に郵送してください。（こちらが正式申込となります）"]
[]
["　　　　男子　〒532-0031　大阪市淀川区加島1-52-81 ℡ 06-6302-1035"]
["大阪市立　東淀工業高等学校　　　梅垣　穂高　先生"]
[]
["　　　　女子　〒583-0037　藤井寺市津堂3-516　　　 ℡ 072-939-7750"]
["大阪府立　藤井寺高等学校　　　　瀬川　綾子　先生"]
[]
["　　　　申込締切日：平成 30 年 10 月 17 日（水）正午　※郵送・メール共"]
["　　　"]
["③","入力済みのファイルを　ファイル＞名前を付けて保存＞で　"]
[]
[null,"　　　ファイル名を　「　学校番号（数字３桁）＋（学校名）＋性別（男子：M　女子：F）　」に変更して保存してください。"]
[]
[null,"　　　　　　　　例）八尾高校（学校番号434）男子　＝　434（八尾）M"]
[]
["④","③で保存したファイルをメールに添付して　mail@highschool.osakajudo.info　　に送信してください"]
[]
["⑤","申込メールを受理した旨の、確認メールが数日中に返信されます"]

{"sheet":"入力シート","index":1,"n_rows":796,"n_cols":179,"rows_kept":796,"cut":false,"hidden":false,"merged":[[795,22,796,27],[793,2,794,15],[788,44,788,48],[789,24,791,37],[792,2,792,65],[789,8,791,21],[789,59,791,61],[795,51,796,65],[795,28,796,28],[795,29,796,33],[789,54,791,57],[785,6,787,26],[789,38,791,40],[784,6,784,37],[785,2,787,5],[782,13,783,20],[782,21,783,24],[793,38,794,65],[789,63,791,65],[789,58,791,58],[785,51,787,62],[785,38,787,48],[788,54,788,65],[788,2,788,5],[789,49,791,53],[789,41,791,43],[789,44,791,48],[784,51,784,65],[788,6,788,7],[788,8,788,21],[790,22,791,23],[782,25,783,65],[795,2,796,15],[795,16,796,16],[789,62,791,62],[789,22,789,23],[789,2,791,5],[793,22,794,27],[793,28,794,28],[789,6,789,7],[793,16,794,16],[793,17,794,21],[770,28,771,28],[770,29,771,33],[770,17,771,21],[770,22,771,27],[767,22,768,23],[762,63,764,65],[761,6,761,37],[795,17,796,21],[770,2,771,15],[770,16,771,16],[769,2,769,65],[795,34,796,37],[795,48,796,50],[793,34,794,37],[790,6,791,7],[782,2,783,5],[782,6,783,12],[784,2,784,5],[795,38,796,47],[788,38,788,40],[788,41,788,43],[793,29,794,33],[772,17,773,21],[747,16,748,16],[765,49,765,53],[765,38,765,40],[765,41,765,43],[765,2,765,5],[747,2,748,15],[749,2,750,15],[749,16,750,16],[746,2,746,65],[747,38,748,65],[749,38,750,47],[753,28,754,28],[749,17,750,21],[8,66,10,68],[44,2,44,5],[784,38,784,50],[776,28,777,28],[772,2,773,15],[772,16,773,16],[765,22,765,23],[759,6,760,12],[759,21,760,24],[749,28,750,28],[761,2,761,5],[780,0,781,65],[776,37,777,37],[766,63,768,65],[766,59,768,61],[765,6,765,7],[765,8,765,21],[767,6,768,7],[753,29,754,36],[753,37,754,37],[749,29,750,33],[747,34,748,37],[765,54,765,65],[765,44,765,48],[747,17,748,21],[762,6,764,26],[762,27,764,37],[747,22,748,27],[747,28,748,28],[743,62,745,62],[766,2,768,5],[766,6,766,7],[766,8,768,21],[766,44,768,48],[766,22,766,23],[766,38,768,40],[766,41,768,43],[766,24,768,37],[747,29,748,33],[743,59,745,61],[749,22,750,27],[757,0,758,65],[759,2,760,5],[762,2,764,5],[749,48,750,50],[749,34,750,37],[759,25,760,65],[749,51,750,65],[759,13,760,20],[743,54,745,57],[788,49,788,53],[785,49,787,50],[785,63,787,65],[765,24,765,37],[770,38,771,65],[772,28,773,28],[772,29,773,33],[772,34,773,37],[770,34,771,37],[772,48,773,50],[761,38,761,50],[762,49,764,50],[762,51,764,62],[766,49,768,53],[766,62,768,62],[766,54,768,57],[766,58,768,58],[772,51,773,65],[772,38,773,47],[772,22,773,27],[776,29,777,36],[785,27,787,37],[788,24,788,37],[788,22,788,23],[762,38,764,48],[761,51,761,65],[715,2,715,5],[719,41,719,43],[716,38,718,48],[724,2,725,15],[724,34,725,37],[723,2,723,65],[719,8,719,21],[719,22,719,23],[719,6,719,7],[719,49,719,53],[719,24,719,37],[716,2,718,5],[716,51,718,62],[720,49,722,53],[721,6,722,7],[721,22,722,23],[719,44,719,48],[719,2,719,5],[720,22,720,23],[720,6,720,7],[715,51,715,65],[716,63,718,65],[715,6,715,37],[715,38,715,50],[716,6,718,26],[719,38,719,40],[720,38,722,40],[720,41,722,43],[720,59,722,61],[720,54,722,57],[716,49,718,50],[726,48,727,50],[738,51,738,65],[739,51,741,62],[739,63,741,65],[724,22,725,27],[724,28,725,28],[738,38,738,50],[724,38,725,65],[724,29,725,33],[743,63,745,65],[736,25,737,65],[742,38,742,40],[734,0,735,65],[742,22,742,23],[742,8,742,21],[743,2,745,5],[742,2,742,5],[739,6,741,26],[738,6,738,37],[743,58,745,58],[742,41,742,43],[743,41,745,43],[744,22,745,23],[743,22,743,23],[742,49,742,53],[739,27,741,37],[743,49,745,53],[743,44,745,48],[736,6,737,12],[726,38,727,47],[743,38,745,40],[742,44,742,48],[692,2,692,5],[692,6,692,37],[696,8,696,21],[696,22,696,23],[738,2,738,5],[739,2,741,5],[724,17,725,21],[726,17,727,21],[726,34,727,37],[726,28,727,28],[730,29,731,36],[720,2,722,5],[726,29,727,33],[736,13,737,20],[736,21,737,24],[736,2,737,5],[724,16,725,16],[726,16,727,16],[730,28,731,28],[726,2,727,15],[720,24,722,37],[701,16,702,16],[707,29,708,36],[707,37,708,37],[701,29,702,33],[720,8,722,21],[726,22,727,27],[730,37,731,37],[713,25,714,65],[716,27,718,37],[719,54,719,65],[720,63,722,65],[739,38,741,48],[720,44,722,48],[744,6,745,7],[742,24,742,37],[742,6,742,7],[743,8,745,21],[743,6,743,7],[743,24,745,37],[742,54,742,65],[720,58,722,58],[726,51,727,65],[720,62,722,62],[739,49,741,50],[696,6,696,7],[698,22,699,23],[693,2,695,5],[713,2,714,5],[713,6,714,12],[713,13,714,20],[713,21,714,24],[711,0,712,65],[703,2,704,15],[703,22,704,27],[703,51,704,65],[703,38,704,47],[693,63,695,65],[693,51,695,62],[693,38,695,48],[697,58,699,58],[701,38,702,65],[700,2,700,65],[703,34,704,37],[703,17,704,21],[707,28,708,28],[703,28,704,28],[703,16,704,16],[703,29,704,33],[697,2,699,5],[697,6,697,7],[703,48,704,50],[701,22,702,27],[701,17,702,21],[701,28,702,28],[701,2,702,15],[701,34,702,37],[690,25,691,65],[684,28,685,28],[674,59,676,61],[674,49,676,53],[697,8,699,21],[697,44,699,48],[697,49,699,53],[696,41,696,43],[696,44,696,48],[697,24,699,37],[697,41,699,43],[697,38,699,40],[680,28,681,28],[680,29,681,33],[680,22,681,27],[678,38,679,65],[680,34,681,37],[680,38,681,47],[678,34,679,37],[696,49,696,53],[693,49,695,50],[693,27,695,37],[696,38,696,40],[684,37,685,37],[696,24,696,37],[690,21,691,24],[692,38,692,50],[680,51,681,65],[678,17,679,21],[693,6,695,26],[678,22,679,27],[678,29,679,33],[678,28,679,28],[696,54,696,65],[697,54,699,57],[697,62,699,62],[692,51,692,65],[697,63,699,65],[697,59,699,61],[669,51,669,65],[688,0,689,65],[690,13,691,20],[680,2,681,15],[690,2,691,5],[680,48,681,50],[680,16,681,16],[690,6,691,12],[684,29,685,36],[678,16,679,16],[669,38,669,50],[677,2,677,65],[678,2,679,15],[670,49,672,50],[674,2,676,5],[674,6,674,7],[674,8,676,21],[674,22,674,23],[674,24,676,37],[674,38,676,40],[680,17,681,21],[696,2,696,5],[698,6,699,7],[697,22,697,23],[674,54,676,57],[667,13,668,20],[667,21,668,24],[674,63,676,65],[661,28,662,28],[674,41,676,43],[673,44,673,48],[651,58,653,58],[651,44,653,48],[657,51,658,65],[674,62,676,62],[674,58,676,58],[675,6,676,7],[675,22,676,23],[674,44,676,48],[657,48,658,50],[670,51,672,62],[673,49,673,53],[673,41,673,43],[657,16,658,16],[661,29,662,36],[669,6,669,37],[670,6,672,26],[657,2,658,15],[657,22,658,27],[657,28,658,28],[657,29,658,33],[657,17,658,21],[667,2,668,5],[655,17,656,21],[655,22,656,27],[651,8,653,21],[673,24,673,37],[673,2,673,5],[673,6,673,7],[673,8,673,21],[667,6,668,12],[655,34,656,37],[661,37,662,37],[655,29,656,33],[673,22,673,23],[670,27,672,37],[667,25,668,65],[655,28,656,28],[657,34,658,37],[670,38,672,48],[651,63,653,65],[651,62,653,62],[655,16,656,16],[651,22,651,23],[651,24,653,37],[654,2,654,65],[655,38,656,65],[669,2,669,5],[670,2,672,5],[673,54,673,65],[670,63,672,65],[673,38,673,40],[652,22,653,23],[657,38,658,47],[665,0,666,65],[650,38,650,40],[650,41,650,43],[650,54,650,65],[651,41,653,43],[651,54,653,57],[651,49,653,53],[651,59,653,61],[650,49,650,53],[650,44,650,48],[651,38,653,40],[655,2,656,15],[650,22,650,23],[650,24,650,37],[650,8,650,21],[644,25,645,65],[642,0,643,65],[647,27,649,37],[651,2,653,5],[651,6,651,7],[652,6,653,7],[650,2,650,5],[650,6,650,7],[647,51,649,62],[646,38,646,50],[646,51,646,65],[647,63,649,65],[646,2,646,5],[647,2,649,5],[647,6,649,26],[647,49,649,50],[644,2,645,5],[644,6,645,12],[644,13,645,20],[644,21,645,24],[646,6,646,37],[647,38,649,48],[627,49,627,53],[638,37,639,37],[638,29,639,36],[634,16,635,16],[634,34,635,37],[634,2,635,15],[628,8,630,21],[632,28,633,28],[628,24,630,37],[628,22,628,23],[629,22,630,23],[628,38,630,40],[634,29,635,33],[634,17,635,21],[634,22,635,27],[634,28,635,28],[638,28,639,28],[627,6,627,7],[634,51,635,65],[634,38,635,47],[634,48,635,50],[628,59,630,61],[628,58,630,58],[628,54,630,57],[628,44,630,48],[628,49,630,53],[601,49,603,50],[601,63,603,65],[604,49,604,53],[601,51,603,62],[609,17,610,21],[605,62,607,62],[601,38,603,48],[605,59,607,61],[627,8,627,21],[627,22,627,23],[627,24,627,37],[632,34,633,37],[631,2,631,65],[632,38,633,65],[608,2,608,65],[621,2,622,5],[623,51,623,65],[632,2,633,15],[632,17,633,21],[628,2,630,5],[628,6,628,7],[621,6,622,12],[623,6,623,37],[611,2,612,15],[624,2,626,5],[623,2,623,5],[621,13,622,20],[624,38,626,48],[627,41,627,43],[632,29,633,33],[628,41,630,43],[629,6,630,7],[609,28,610,28],[609,22,610,27],[609,34,610,37],[588,16,589,16],[588,17,589,21],[604,2,604,5],[604,6,604,7],[621,25,622,65],[628,62,630,62],[628,63,630,65],[632,16,633,16],[632,22,633,27],[627,2,627,5],[605,6,605,7],[605,8,607,21],[627,54,627,65],[627,44,627,48],[627,38,627,40],[624,49,626,50],[621,21,622,24],[624,51,626,62],[606,6,607,7],[619,0,620,65],[611,51,612,65],[611,48,612,50],[611,22,612,27],[611,34,612,37],[611,28,612,28],[611,29,612,33],[611,38,612,47],[611,17,612,21],[624,6,626,26],[600,6,600,37],[596,0,597,65],[600,51,600,65],[592,29,593,36],[582,38,584,40],[586,34,587,37],[598,2,599,5],[624,27,626,37],[623,38,623,50],[624,63,626,65],[605,22,605,23],[605,44,607,48],[605,41,607,43],[605,58,607,58],[600,38,600,50],[586,17,587,21],[615,29,616,36],[615,37,616,37],[615,28,616,28],[601,6,603,26],[601,27,603,37],[606,22,607,23],[609,29,610,33],[605,24,607,37],[611,16,612,16],[609,38,610,65],[605,63,607,65],[609,2,610,15],[605,54,607,57],[605,49,607,53],[605,38,607,40],[609,16,610,16],[569,28,570,28],[575,25,576,65],[578,2,580,5],[578,6,580,26],[581,2,581,5],[582,2,584,5],[569,29,570,36],[564,2,565,15],[564,38,565,47],[604,8,604,21],[601,2,603,5],[605,2,607,5],[592,28,593,28],[604,54,604,65],[598,6,599,12],[598,13,599,20],[598,21,599,24],[604,38,604,40],[604,41,604,43],[604,22,604,23],[598,25,599,65],[592,37,593,37],[582,63,584,65],[581,24,581,37],[581,8,581,21],[581,22,581,23],[588,2,589,15],[588,22,589,27],[588,29,589,33],[588,34,589,37],[583,6,584,7],[583,22,584,23],[564,22,565,27],[586,38,587,65],[582,24,584,37],[588,28,589,28],[582,62,584,62],[586,28,587,28],[585,2,585,65],[582,59,584,61],[582,41,584,43],[558,54,560,57],[558,62,560,62],[600,2,600,5],[604,44,604,48],[604,24,604,37],[581,44,581,48],[562,28,563,28],[562,16,563,16],[564,34,565,37],[562,17,563,21],[562,22,563,27],[564,29,565,33],[564,16,565,16],[586,16,587,16],[586,22,587,27],[575,2,576,5],[575,6,576,12],[575,13,576,20],[575,21,576,24],[577,6,577,37],[582,22,582,23],[586,29,587,33],[586,2,587,15],[588,51,589,65],[588,38,589,47],[582,54,584,57],[582,44,584,48],[582,49,584,53],[588,48,589,50],[582,58,584,58],[581,6,581,7],[578,27,580,37],[581,54,581,65],[578,51,580,62],[578,49,580,50],[578,38,580,48],[581,49,581,53],[578,63,580,65],[581,38,581,40],[581,41,581,43],[582,6,582,7],[582,8,584,21],[564,48,565,50],[569,37,570,37],[564,17,565,21],[564,28,565,28],[577,2,577,5],[442,2,442,5],[465,2,465,5],[465,6,465,7],[461,6,461,37],[442,8,442,21],[439,6,441,26],[558,38,560,40],[470,17,471,21],[472,16,473,16],[466,2,468,5],[577,51,577,65],[577,38,577,50],[557,49,557,53],[564,51,565,65],[573,0,574,65],[439,38,441,48],[561,2,561,65],[562,2,563,15],[558,41,560,43],[562,38,563,65],[562,29,563,33],[562,34,563,37],[558,49,560,53],[459,6,460,12],[558,59,560,61],[558,63,560,65],[558,44,560,48],[416,38,418,48],[438,38,438,50],[426,38,427,47],[420,41,422,43],[420,49,422,53],[424,38,425,65],[420,63,422,65],[416,51,418,62],[420,58,422,58],[558,24,560,37],[558,2,560,5],[559,6,560,7],[559,22,560,23],[558,8,560,21],[558,22,558,23],[557,2,557,5],[558,6,558,7],[426,48,427,50],[439,51,441,62],[439,49,441,50],[439,63,441,65],[424,16,425,16],[439,27,441,37],[438,6,438,37],[459,13,460,20],[457,0,458,65],[462,27,464,37],[420,6,420,7],[426,28,427,28],[438,51,438,65],[557,44,557,48],[558,58,560,58],[495,17,496,21],[493,2,494,15],[426,2,427,15],[426,16,427,16],[430,28,431,28],[472,29,473,33],[482,2,483,5],[482,6,483,12],[472,17,473,21],[482,25,483,65],[484,38,484,50],[472,51,473,65],[462,2,464,5],[462,6,464,26],[469,2,469,65],[466,38,468,40],[466,44,468,48],[465,24,465,37],[465,44,465,48],[459,21,460,24],[438,2,438,5],[439,2,441,5],[476,28,477,28],[459,2,460,5],[449,16,450,16],[449,17,450,21],[426,17,427,21],[426,29,427,33],[434,0,435,65],[430,29,431,36],[426,34,427,37],[465,49,465,53],[557,38,557,40],[472,28,473,28],[557,54,557,65],[466,63,468,65],[476,37,477,37],[485,51,487,62],[484,6,484,37],[466,6,466,7],[466,8,468,21],[430,37,431,37],[557,41,557,43],[443,63,445,65],[557,6,557,7],[557,8,557,21],[423,2,423,65],[421,22,422,23],[420,22,420,23],[447,34,448,37],[449,22,450,27],[484,2,484,5],[472,2,473,15],[462,51,464,62],[462,38,464,48],[461,51,461,65],[462,49,464,50],[465,8,465,21],[485,27,487,37],[466,54,468,57],[466,24,468,37],[466,41,468,43],[470,29,471,33],[470,38,471,65],[420,24,422,37],[420,8,422,21],[420,54,422,57],[436,2,437,5],[449,2,450,15],[447,17,448,21],[449,28,450,28],[461,38,461,50],[436,6,437,12],[424,34,425,37],[424,28,425,28],[424,29,425,33],[466,62,468,62],[472,34,473,37],[466,49,468,53],[470,2,471,15],[470,16,471,16],[467,6,468,7],[420,2,422,5],[453,29,454,36],[453,37,454,37],[459,25,460,65],[465,38,465,40],[465,54,465,65],[449,51,450,65],[449,34,450,37],[453,28,454,28],[442,38,442,40],[443,38,445,40],[424,17,425,21],[436,13,437,20],[436,21,437,24],[424,2,425,15],[413,21,414,24],[403,51,404,65],[416,2,418,5],[424,22,425,27],[415,2,415,5],[419,2,419,5],[416,6,418,26],[421,6,422,7],[419,8,419,21],[419,22,419,23],[557,22,557,23],[436,25,437,65],[449,38,450,47],[419,54,419,65],[420,38,422,40],[420,44,422,48],[472,22,473,27],[419,41,419,43],[419,44,419,48],[476,29,477,36],[447,16,448,16],[443,8,445,21],[447,38,448,65],[426,22,427,27],[444,22,445,23],[426,51,427,65],[447,22,448,27],[442,41,442,43],[447,29,448,33],[419,24,419,37],[419,6,419,7],[557,24,557,37],[397,6,397,7],[398,6,399,7],[392,2,392,5],[378,28,379,28],[374,58,376,58],[392,51,392,65],[380,51,381,65],[374,62,376,62],[374,59,376,61],[403,48,404,50],[403,28,404,28],[403,2,404,15],[413,25,414,65],[419,49,419,53],[407,28,408,28],[407,29,408,36],[419,38,419,40],[416,49,418,50],[407,37,408,37],[411,0,412,65],[415,51,415,65],[400,2,400,65],[401,2,402,15],[401,16,402,16],[401,28,402,28],[403,22,404,27],[401,29,402,33],[403,34,404,37],[403,38,404,47],[416,27,418,37],[378,29,379,33],[403,17,404,21],[413,6,414,12],[403,16,404,16],[397,41,399,43],[401,38,402,65],[397,38,399,40],[401,34,402,37],[355,29,356,33],[373,54,373,65],[373,49,373,53],[369,6,369,37],[357,51,358,65],[373,22,373,23],[384,29,385,36],[373,41,373,43],[392,38,392,50],[373,24,373,37],[373,44,373,48],[373,38,373,40],[374,49,376,53],[373,6,373,7],[373,8,373,21],[367,6,368,12],[397,24,399,37],[396,24,396,37],[390,21,391,24],[370,51,372,62],[380,16,381,16],[378,2,379,15],[369,2,369,5],[401,17,402,21],[396,44,396,48],[416,63,418,65],[374,63,376,65],[380,34,381,37],[374,38,376,40],[374,41,376,43],[415,38,415,50],[374,8,376,21],[378,38,379,65],[393,63,395,65],[378,34,379,37],[393,51,395,62],[401,22,402,27],[393,2,395,5],[355,16,356,16],[46,62,49,62],[351,24,353,37],[350,44,350,48],[351,59,353,61],[351,58,353,58],[354,2,354,65],[355,2,356,15],[380,48,381,50],[357,22,358,27],[357,28,358,28],[403,29,404,33],[393,6,395,26],[415,6,415,37],[390,13,391,20],[390,6,391,12],[390,25,391,65],[397,63,399,65],[413,2,414,5],[28,62,31,62],[28,63,31,65],[357,17,358,21],[351,22,351,23],[355,28,356,28],[120,22,121,23],[28,59,31,61],[28,54,31,57],[28,58,31,58],[50,58,53,58],[163,22,163,23],[135,6,135,7],[136,6,137,7],[135,8,137,21],[355,22,356,27],[351,6,351,7],[139,24,141,37],[139,8,141,21],[139,6,139,7],[28,8,28,21],[42,2,43,10],[42,14,43,49],[45,54,45,65],[46,59,49,61],[46,58,49,58],[83,6,83,7],[80,6,81,7],[79,6,79,7],[72,6,73,7],[98,8,98,21],[114,49,117,53],[108,22,109,23],[50,2,53,5],[367,21,368,24],[370,27,372,37],[166,58,169,58],[78,63,81,65],[370,2,372,5],[118,63,121,65],[78,59,81,61],[94,63,97,65],[98,63,101,65],[98,62,101,62],[98,59,101,61],[94,62,97,62],[66,59,69,61],[134,62,137,62],[178,62,181,62],[170,59,173,61],[166,62,169,62],[114,62,117,62],[122,62,125,62],[130,62,133,62]],"merged_total":2115,"flags":["merged_cut"]}
[null,null,null,null,null,null,null,null,null,null,null,null,null,null,null,null,null,null,null,null,null,null,null,null,null,null,null,null,null,null,null,null,null,null,null,null,null,null,null,null,null,null,null,null,null,null,null,null,null,null,null,null,null,null,null,null,null,null,null,null,null,null,null,null,null,null,null,null,null,null,null,null,null,null,null,null,null,null,null,null,null,null,null,null,null,null,null,null,null,null,null,null,null,null,null,null,null,null,null,null,null,null,null,null,null,null,null,null,null,null,null,null,null,null,null,null,null,null,null,null,null,null,null,null,null,null,null,null,null,null,null,null,null,null,null,null,null,null,null,null,null,null,null,null,null,null,null,null,null,null,null,null,null,null,null,null,null,null,null,null,null,null,null,null,null,null,"学年","段位","西暦","月","日","個人戦年度","ランク","男子階級","入賞","女子階級","登録番号","校名","校名略"]
[null,null,"女子団体",null,null,null,null,null,null,null,null,{"$f":"VLOOKUP(C9,$FU$3:$FW$251,3)","v":{"$error":"#N/A"}},null,null,null,null,null,null,null,null,null,null,null,null,null,null,null,null,null,null,null,null,null,null,null,null,null,null,null,null,null,null,null,null,null,null,null,null,null,null,null,null,null,null,null,"必須入力"]
[null,null,null,null,null,null,null,null,null,null,null,null,null,null,null,null,null,null,null,null,null,null,null,null,null,null,null,null,null,null,null,null,null,null,null,null,null,null,null,null,null,null,null,null,null,null,null,null,null,null,null,null,null,null,null,"リストから選択",null,null,null,null,null,null,null,null,null,null,null,null,null,null,null,null,null,null,null,null,null,null,null,null,null,null,null,null,null,null,null,null,null,null,null,null,null,null,null,null,null,null,null,null,null,null,null,null,null,null,null,null,null,null,null,null,null,null,null,null,null,null,null,null,null,null,null,null,null,null,null,null,null,null,null,null,null,null,null,null,null,null,null,null,null,null,null,null,null,null,null,null,null,null,null,null,null,null,null,null,null,null,null,null,null,null,null,null,null,null,1,"無",1996,1,1,25,"A",60,1,48,301,"旭","　 旭　 "]
[null,null,null,null,null,null,null,null,null,null,null,null,null,null,null,null,null,null,null,null,null,null,null,null,null,null,null,null,null,null,null,null,null,null,null,null,null,null,null,null,null,null,null,null,null,null,null,null,null,null,null,null,null,null,null,"直接入力",null,null,null,null,null,null,null,null,null,null,null,null,null,null,null,null,null,null,null,null,null,null,null,null,null,null,null,null,null,null,null,null,null,null,null,null,null,null,null,null,null,null,null,null,null,null,null,null,null,null,null,null,null,null,null,null,null,null,null,null,null,null,null,null,null,null,null,null,null,null,null,null,null,null,null,null,null,null,null,null,null,null,null,null,null,null,null,null,null,null,null,null,null,null,null,null,null,null,null,null,null,null,null,null,null,null,null,null,null,null,2,"初",1997,2,2,26,"B",66,2,52,302,"枚方なぎさ","枚方なぎ"]
[null,null,{"$f":"ROUND(COUNTA(C47:F190)/2,0)","v":0},null,null,null,{"$f":"COUNTA(C9:BN11)","v":4},null,null,null,null,null,null,null,null,null,null,null,null,null,null,null,null,null,null,null,null,null,null,null,null,null,null,null,null,null,null,null,null,null,null,null,null,null,null,null,null,null,null,null,null,null,null,null,null,null,null,null,null,null,null,null,null,null,null,null,null,null,null,null,null,null,null,null,null,null,null,null,null,null,null,null,null,null,null,null,null,null,null,null,null,null,null,null,null,null,null,null,null,null,null,null,null,null,null,null,null,null,null,null,null,null,null,null,null,null,null,null,null,null,null,null,null,null,null,null,null,null,null,null,null,null,null,null,null,null,null,null,null,null,null,null,null,null,null,null,null,null,null,null,null,null,null,null,null,null,null,null,null,null,null,null,null,null,null,null,3,"弐",1998,3,3,27,"C",73,3,57,303,"大手前","大 手 前"]
[null,null,"※抽選番号",null,null,null,null,null,null,null,null,null,null,null,null,"第４１回　全国高等学校柔道選手権大会大阪府予選会",null,null,null,null,null,null,null,null,null,null,null,null,null,null,null,null,null,null,null,null,null,null,null,null,null,null,null,null,null,null,null,null,null,null,null,null,null,null,null,null,null,null,null,null,null,null,null,null,null,null,null,null,null,null,null,null,null,null,null,null,null,null,null,null,null,null,null,null,null,null,null,null,null,null,null,null,null,null,null,null,null,null,null,null,null,null,null,null,null,null,null,null,null,null,null,null,null,null,null,null,null,null,null,null,null,null,null,null,null,null,null,null,null,null,null,null,null,null,null,null,null,null,null,null,null,null,null,null,null,null,null,null,null,null,null,null,null,null,null,null,null,null,null,null,null,null,null,null,null,null,4,"参",1999,4,4,28,"D",81,null,63,304,"勝山","勝　　山"]
[null,null,null,null,null,null,null,null,null,null,null,null,null,null,null,null,null,null,null,null,null,null,null,null,null,null,null,null,null,null,null,null,null,null,null,null,null,null,null,null,null,null,null,null,null,null,null,null,null,null,null,null,null,null,null,null,null,null,null,null,null,null,null,null,null,null,null,null,null,null,null,null,null,null,null,null,null,null,null,null,null,null,null,null,null,null,null,null,null,null,null,null,null,null,null,null,null,null,null,null,null,null,null,null,null,null,null,null,null,null,null,null,null,null,null,null,null,null,null,null,null,null,null,null,null,null,null,null,null,null,null,null,null,null,null,null,null,null,null,null,null,null,null,null,null,null,null,null,null,null,null,null,null,null,null,null,null,null,null,null,null,null,null,null,null,null,null,null,2000,5,5,29,null,90,null,70,305,"門真なみはや","門真なみ"]
[null,null,"学校番号",null,null,null,"学　　　　校　　　　名",null,null,null,null,null,null,null,null,null,null,null,null,null,null,null,null,null,null,null,null,null,null,null,null,null,null,null,null,"監督名",null,null,null,null,null,null,null,null,null,null,null,null,null,null,"校長名",null,null,null,null,null,null,null,null,null,null,null,null,null,null,null,null,null,null,null,null,null,null,null,null,null,null,null,null,null,null,null,null,null,null,null,null,null,null,null,null,null,null,null,null,null,null,null,null,null,null,null,null,null,null,null,null,null,null,null,null,null,null,null,null,null,null,null,null,null,null,null,null,null,null,null,null,null,null,null,null,null,null,null,null,null,null,null,null,null,null,null,null,null,null,null,null,null,null,null,null,null,null,null,null,null,null,null,null,null,null,null,null,null,null,null,null,null,2001,6,6,30,null,100,null,78,306,"門真西","門 真 西"]
[null,null,null,null,null,null,{"$f":"VLOOKUP(C9,$FU$3:$FW$251,2)","v":{"$error":"#N/A"}},null,null,null,null,null,null,null,null,null,null,null,null,null,null,null,null,null,null,"高等学校",null,null,null,null,null,null,null,null,null,null,null,null,null,null,null,null,null,null,null,null,null,"印",null,null,null,null,null,null,null,null,null,null,null,null,null,null,"印",null,null,null,null,null,null,null,null,null,null,null,null,null,null,null,null,null,null,null,null,null,null,null,null,null,null,null,null,null,null,null,null,null,null,null,null,null,null,null,null,null,null,null,null,null,null,null,null,null,null,null,null,null,null,null,null,null,null,null,null,null,null,null,null,null,null,null,null,null,null,null,null,null,null,null,null,null,null,null,null,null,null,null,null,null,null,null,null,null,null,null,null,null,null,null,null,null,null,null,null,null,null,null,null,null,2002,7,7,31,null,"+100",null,"+78",308,"香里丘","香 里 丘"]
[null,null,null,null,null,null,null,null,null,null,null,null,null,null,null,null,null,null,null,null,null,null,null,null,null,null,null,null,null,null,null,null,null,null,null,null,null,null,null,null,null,null,null,null,null,null,null,null,null,null,null,null,null,null,null,null,null,null,null,null,null,null,null,null,null,null,null,null,null,null,null,null,null,null,null,null,null,null,null,null,null,null,null,null,null,null,null,null,null,null,null,null,null,null,null,null,null,null,null,null,null,null,null,null,null,null,null,null,null,null,null,null,null,null,null,null,null,null,null,null,null,null,null,null,null,null,null,null,null,null,null,null,null,null,null,null,null,null,null,null,null,null,null,null,null,null,null,null,null,null,null,null,null,null,null,null,null,null,null,null,null,null,null,null,null,null,null,null,2003,8,8,32,null,55,null,44,309,"高津","高　　津"]
[null,null,null,null,null,null,null,null,null,null,null,null,null,null,null,null,null,null,null,null,null,null,null,null,null,null,null,null,null,null,null,null,null,null,null,null,null,null,null,null,null,null,null,null,null,null,null,null,null,null,null,null,null,null,null,null,null,null,null,null,null,null,null,null,null,null,null,null,null,null,null,null,null,null,null,null,null,null,null,null,null,null,null,null,null,null,null,null,null,null,null,null,null,null,null,null,null,null,null,null,null,null,null,null,null,null,null,null,null,null,null,null,null,null,null,null,null,null,null,null,null,null,null,null,null,null,null,null,null,null,null,null,null,null,null,null,null,null,null,null,null,null,null,null,null,null,null,null,null,null,null,null,null,null,null,null,null,null,null,null,null,null,null,null,null,null,null,null,2004,9,9,33,null,null,null,null,310,"四條畷","四 條 畷"]
[null,null,null,null,null,null,"選手名",null,null,null,null,null,null,null,null,null,null,null,null,null,null,null,null,null,null,null,null,null,null,null,null,null,null,null,null,null,null,null,"学年",null,null,"段位",null,null,"体重（kg）",null,null,null,null,"身長（cm）",null,null,null,null,"生年月日（西暦）",null,null,null,null,null,null,null,null,null,null,null,null,null,null,null,null,null,null,null,null,null,null,null,null,null,null,null,null,null,null,null,null,null,null,null,null,null,null,null,null,null,null,null,null,null,null,null,null,null,null,null,null,null,null,null,null,null,null,null,null,null,null,null,null,null,null,null,null,null,null,null,null,null,null,null,null,null,null,null,null,null,null,null,null,null,null,null,null,null,null,null,null,null,null,null,null,null,null,null,null,null,null,null,null,null,null,null,null,null,null,null,null,null,2005,10,10,34,null,null,null,null,311,"清水谷","清 水 谷"]
[null,null,"先鋒",null,null,null,"ふりがな",null,null,null,null,null,null,null,null,null,null,null,null,null,null,null,null,null,null,null,null,null,null,null,null,null,null,null,null,null,null,null,null,null,null,null,null,null,null,null,null,null,null,null,null,null,null,null,null,null,null,null,"・",null,null,null,"・",null,null,null,null,null,null,null,null,null,null,null,null,null,null,null,null,null,null,null,null,null,null,null,null,null,null,null,null,null,null,null,null,null,null,null,null,null,null,null,null,null,null,null,null,null,null,null,null,null,null,null,null,null,null,null,null,null,null,null,null,null,null,null,null,null,null,null,null,null,null,null,null,null,null,null,null,null,null,null,null,null,null,null,null,null,null,null,null,null,null,null,null,null,null,null,null,null,null,null,null,null,null,null,null,null,2006,11,11,35,null,null,null,null,312,"緑風冠","緑 風 冠"]
[null,null,null,null,null,null,"（姓）",null,null,null,null,null,null,null,null,null,null,null,null,null,null,null,"（名）",null,null,null,null,null,null,null,null,null,null,null,null,null,null,null,null,null,null,null,null,null,null,null,null,null,null,null,null,null,null,null,null,null,null,null,null,null,null,null,null,null,null,null,null,null,null,null,null,null,null,null,null,null,null,null,null,null,null,null,null,null,null,null,null,null,null,null,null,null,null,null,null,null,null,null,null,null,null,null,null,null,null,null,null,null,null,null,null,null,null,null,null,null,null,null,null,null,null,null,null,null,null,null,null,null,null,null,null,null,null,null,null,null,null,null,null,null,null,null,null,null,null,null,null,null,null,null,null,null,null,null,null,null,null,null,null,null,null,null,null,null,null,null,null,null,2007,12,12,36,null,null,null,null,313,"かわち野","かわち野"]
[null,null,null,null,null,null,null,null,null,null,null,null,null,null,null,null,null,null,null,null,null,null,null,null,null,null,null,null,null,null,null,null,null,null,null,null,null,null,null,null,null,null,null,null,null,null,null,null,null,null,null,null,null,null,null,null,null,null,null,null,null,null,null,null,null,null,null,null,null,null,null,null,null,null,null,null,null,null,null,null,null,null,null,null,null,null,null,null,null,null,null,null,null,null,null,null,null,null,null,null,null,null,null,null,null,null,null,null,null,null,null,null,null,null,null,null,null,null,null,null,null,null,null,null,null,null,null,null,null,null,null,null,null,null,null,null,null,null,null,null,null,null,null,null,null,null,null,null,null,null,null,null,null,null,null,null,null,null,null,null,null,null,null,null,null,null,null,null,2008,null,13,37,null,null,null,null,314,"長尾","長　　尾"]
[null,null,null,null,null,null,null,null,null,null,null,null,null,null,null,null,null,null,null,null,null,null,null,null,null,null,null,null,null,null,null,null,null,null,null,null,null,null,null,null,null,null,null,null,null,null,null,null,null,null,null,null,null,null,null,null,null,null,null,null,null,null,null,null,null,null,null,null,null,null,null,null,null,null,null,null,null,null,null,null,null,null,null,null,null,null,null,null,null,null,null,null,null,null,null,null,null,null,null,null,null,null,null,null,null,null,null,null,null,null,null,null,null,null,null,null,null,null,null,null,null,null,null,null,null,null,null,null,null,null,null,null,null,null,null,null,null,null,null,null,null,null,null,null,null,null,null,null,null,null,null,null,null,null,null,null,null,null,null,null,null,null,null,null,null,null,null,null,2009,null,14,38,null,null,null,null,315,"西寝屋川","西寝屋川"]
[null,null,"中堅",null,null,null,"ふりがな",null,null,null,null,null,null,null,null,null,null,null,null,null,null,null,null,null,null,null,null,null,null,null,null,null,null,null,null,null,null,null,null,null,null,null,null,null,null,null,null,null,null,null,null,null,null,null,null,null,null,null,"・",null,null,null,"・",null,null,null,null,null,null,null,null,null,null,null,null,null,null,null,null,null,null,null,null,null,null,null,null,null,null,null,null,null,null,null,null,null,null,null,null,null,null,null,null,null,null,null,null,null,null,null,null,null,null,null,null,null,null,null,null,null,null,null,null,null,null,null,null,null,null,null,null,null,null,null,null,null,null,null,null,null,null,null,null,null,null,null,null,null,null,null,null,null,null,null,null,null,null,null,null,null,null,null,null,null,null,null,null,null,2010,null,15,39,null,null,null,null,316,"寝屋川","寝 屋 川"]
[null,null,null,null,null,null,"（姓）",null,null,null,null,null,null,null,null,null,null,null,null,null,null,null,"（名）",null,null,null,null,null,null,null,null,null,null,null,null,null,null,null,null,null,null,null,null,null,null,null,null,null,null,null,null,null,null,null,null,null,null,null,null,null,null,null,null,null,null,null,null,null,null,null,null,null,null,null,null,null,null,null,null,null,null,null,null,null,null,null,null,null,null,null,null,null,null,null,null,null,null,null,null,null,null,null,null,null,null,null,null,null,null,null,null,null,null,null,null,null,null,null,null,null,null,null,null,null,null,null,null,null,null,null,null,null,null,null,null,null,null,null,null,null,null,null,null,null,null,null,null,null,null,null,null,null,null,null,null,null,null,null,null,null,null,null,null,null,null,null,null,null,2011,null,16,40,null,null,null,null,317,"北かわち皐が丘","北かわち"]
[null,null,null,null,null,null,null,null,null,null,null,null,null,null,null,null,null,null,null,null,null,null,null,null,null,null,null,null,null,null,null,null,null,null,null,null,null,null,null,null,null,null,null,null,null,null,null,null,null,null,null,null,null,null,null,null,null,null,null,null,null,null,null,null,null,null,null,null,null,null,null,null,null,null,null,null,null,null,null,null,null,null,null,null,null,null,null,null,null,null,null,null,null,null,null,null,null,null,null,null,null,null,null,null,null,null,null,null,null,null,null,null,null,null,null,null,null,null,null,null,null,null,null,null,null,null,null,null,null,null,null,null,null,null,null,null,null,null,null,null,null,null,null,null,null,null,null,null,null,null,null,null,null,null,null,null,null,null,null,null,null,null,null,null,null,null,null,null,2012,null,17,41,null,null,null,null,318,"枚方","枚　　方"]
[null,null,null,null,null,null,null,null,null,null,null,null,null,null,null,null,null,null,null,null,null,null,null,null,null,null,null,null,null,null,null,null,null,null,null,null,null,null,null,null,null,null,null,null,null,null,null,null,null,null,null,null,null,null,null,null,null,null,null,null,null,null,null,null,null,null,null,null,null,null,null,null,null,null,null,null,null,null,null,null,null,null,null,null,null,null,null,null,null,null,null,null,null,null,null,null,null,null,null,null,null,null,null,null,null,null,null,null,null,null,null,null,null,null,null,null,null,null,null,null,null,null,null,null,null,null,null,null,null,null,null,null,null,null,null,null,null,null,null,null,null,null,null,null,null,null,null,null,null,null,null,null,null,null,null,null,null,null,null,null,null,null,null,null,null,null,null,null,2013,null,18,42,null,null,null,null,319,"牧野","牧　　野"]
[null,null,"大将",null,null,null,"ふりがな",null,null,null,null,null,null,null,null,null,null,null,null,null,null,null,null,null,null,null,null,null,null,null,null,null,null,null,null,null,null,null,null,null,null,null,null,null,null,null,null,null,null,null,null,null,null,null,null,null,null,null,"・",null,null,null,"・",null,null,null,null,null,null,null,null,null,null,null,null,null,null,null,null,null,null,null,null,null,null,null,null,null,null,null,null,null,null,null,null,null,null,null,null,null,null,null,null,null,null,null,null,null,null,null,null,null,null,null,null,null,null,null,null,null,null,null,null,null,null,null,null,null,null,null,null,null,null,null,null,null,null,null,null,null,null,null,null,null,null,null,null,null,null,null,null,null,null,null,null,null,null,null,null,null,null,null,null,null,null,null,null,null,2014,null,19,43,null,null,null,null,320,"茨田","茨　　田"]
[null,null,null,null,null,null,"（姓）",null,null,null,null,null,null,null,null,null,null,null,null,null,null,null,"（名）",null,null,null,null,null,null,null,null,null,null,null,null,null,null,null,null,null,null,null,null,null,null,null,null,null,null,null,null,null,null,null,null,null,null,null,null,null,null,null,null,null,null,null,null,null,null,null,null,null,null,null,null,null,null,null,null,null,null,null,null,null,null,null,null,null,null,null,null,null,null,null,null,null,null,null,null,null,null,null,null,null,null,null,null,null,null,null,null,null,null,null,null,null,null,null,null,null,null,null,null,null,null,null,null,null,null,null,null,null,null,null,null,null,null,null,null,null,null,null,null,null,null,null,null,null,null,null,null,null,null,null,null,null,null,null,null,null,null,null,null,null,null,null,null,null,2015,null,20,44,null,null,null,null,322,"芦間","芦　　間"]
[null,null,null,null,null,null,null,null,null,null,null,null,null,null,null,null,null,null,null,null,null,null,null,null,null,null,null,null,null,null,null,null,null,null,null,null,null,null,null,null,null,null,null,null,null,null,null,null,null,null,null,null,null,null,null,null,null,null,null,null,null,null,null,null,null,null,null,null,null,null,null,null,null,null,null,null,null,null,null,null,null,null,null,null,null,null,null,null,null,null,null,null,null,null,null,null,null,null,null,null,null,null,null,null,null,null,null,null,null,null,null,null,null,null,null,null,null,null,null,null,null,null,null,null,null,null,null,null,null,null,null,null,null,null,null,null,null,null,null,null,null,null,null,null,null,null,null,null,null,null,null,null,null,null,null,null,null,null,null,null,null,null,null,null,null,null,null,null,2016,null,21,45,null,null,null,null,323,"守口東","守 口 東"]
[null,null,null,null,null,null,null,null,null,null,null,null,null,null,null,null,null,null,null,null,null,null,null,null,null,null,null,null,null,null,null,null,null,null,null,null,null,null,null,null,null,null,null,null,null,null,null,null,null,null,null,null,null,null,null,null,null,null,null,null,null,null,null,null,null,null,null,null,null,null,null,null,null,null,null,null,null,null,null,null,null,null,null,null,null,null,null,null,null,null,null,null,null,null,null,null,null,null,null,null,null,null,null,null,null,null,null,null,null,null,null,null,null,null,null,null,null,null,null,null,null,null,null,null,null,null,null,null,null,null,null,null,null,null,null,null,null,null,null,null,null,null,null,null,null,null,null,null,null,null,null,null,null,null,null,null,null,null,null,null,null,null,null,null,null,null,null,null,2017,null,22,46,null,null,null,null,324,"夕陽丘","夕 陽 丘"]
[null,null,"補欠",null,null,null,"ふりがな",null,null,null,null,null,null,null,null,null,null,null,null,null,null,null,null,null,null,null,null,null,null,null,null,null,null,null,null,null,null,null,null,null,null,null,null,null,null,null,null,null,null,null,null,null,null,null,null,null,null,null,"・",null,null,null,"・",null,null,null,null,null,null,null,null,null,null,null,null,null,null,null,null,null,null,null,null,null,null,null,null,null,null,null,null,null,null,null,null,null,null,null,null,null,null,null,null,null,null,null,null,null,null,null,null,null,null,null,null,null,null,null,null,null,null,null,null,null,null,null,null,null,null,null,null,null,null,null,null,null,null,null,null,null,null,null,null,null,null,null,null,null,null,null,null,null,null,null,null,null,null,null,null,null,null,null,null,null,null,null,null,null,2018,null,23,47,null,null,null,null,325,"城東工科","城東工科"]
[null,null,null,null,null,null,"（姓）",null,null,null,null,null,null,null,null,null,null,null,null,null,null,null,"（名）",null,null,null,null,null,null,null,null,null,null,null,null,null,null,null,null,null,null,null,null,null,null,null,null,null,null,null,null,null,null,null,null,null,null,null,null,null,null,null,null,null,null,null,null,null,null,null,null,null,null,null,null,null,null,null,null,null,null,null,null,null,null,null,null,null,null,null,null,null,null,null,null,null,null,null,null,null,null,null,null,null,null,null,null,null,null,null,null,null,null,null,null,null,null,null,null,null,null,null,null,null,null,null,null,null,null,null,null,null,null,null,null,null,null,null,null,null,null,null,null,null,null,null,null,null,null,null,null,null,null,null,null,null,null,null,null,null,null,null,null,null,null,null,null,null,2019,null,24,48,null,null,null,null,326,"成城","成　　城"]
[null,null,null,null,null,null,null,null,null,null,null,null,null,null,null,null,null,null,null,null,null,null,null,null,null,null,null,null,null,null,null,null,null,null,null,null,null,null,null,null,null,null,null,null,null,null,null,null,null,null,null,null,null,null,null,null,null,null,null,null,null,null,null,null,null,null,null,null,null,null,null,null,null,null,null,null,null,null,null,null,null,null,null,null,null,null,null,null,null,null,null,null,null,null,null,null,null,null,null,null,null,null,null,null,null,null,null,null,null,null,null,null,null,null,null,null,null,null,null,null,null,null,null,null,null,null,null,null,null,null,null,null,null,null,null,null,null,null,null,null,null,null,null,null,null,null,null,null,null,null,null,null,null,null,null,null,null,null,null,null,null,null,null,null,null,null,null,null,2020,null,25,49,null,null,null,null,327,"淀川工科","淀川工科"]
[null,null,null,null,null,null,null,null,null,null,null,null,null,null,null,null,null,null,null,null,null,null,null,null,null,null,null,null,null,null,null,null,null,null,null,null,null,null,null,null,null,null,null,null,null,null,null,null,null,null,null,null,null,null,null,null,null,null,null,null,null,null,null,null,null,null,null,null,null,null,null,null,null,null,null,null,null,null,null,null,null,null,null,null,null,null,null,null,null,null,null,null,null,null,null,null,null,null,null,null,null,null,null,null,null,null,null,null,null,null,null,null,null,null,null,null,null,null,null,null,null,null,null,null,null,null,null,null,null,null,null,null,null,null,null,null,null,null,null,null,null,null,null,null,null,null,null,null,null,null,null,null,null,null,null,null,null,null,null,null,null,null,null,null,null,null,null,null,null,null,26,50,null,null,null,null,329,"扇町総合","扇町総合"]
[null,null,"補欠",null,null,null,"ふりがな",null,null,null,null,null,null,null,null,null,null,null,null,null,null,null,null,null,null,null,null,null,null,null,null,null,null,null,null,null,null,null,null,null,null,null,null,null,null,null,null,null,null,null,null,null,null,null,null,null,null,null,"・",null,null,null,"・",null,null,null,null,null,null,null,null,null,null,null,null,null,null,null,null,null,null,null,null,null,null,null,null,null,null,null,null,null,null,null,null,null,null,null,null,null,null,null,null,null,null,null,null,null,null,null,null,null,null,null,null,null,null,null,null,null,null,null,null,null,null,null,null,null,null,null,null,null,null,null,null,null,null,null,null,null,null,null,null,null,null,null,null,null,null,null,null,null,null,null,null,null,null,null,null,null,null,null,null,null,null,null,null,null,null,null,27,51,null,null,null,null,330,"大阪市立","大阪市立"]
[null,null,null,null,null,null,"（姓）",null,null,null,null,null,null,null,null,null,null,null,null,null,null,null,"（名）",null,null,null,null,null,null,null,null,null,null,null,null,null,null,null,null,null,null,null,null,null,null,null,null,null,null,null,null,null,null,null,null,null,null,null,null,null,null,null,null,null,null,null,null,null,null,null,null,null,null,null,null,null,null,null,null,null,null,null,null,null,null,null,null,null,null,null,null,null,null,null,null,null,null,null,null,null,null,null,null,null,null,null,null,null,null,null,null,null,null,null,null,null,null,null,null,null,null,null,null,null,null,null,null,null,null,null,null,null,null,null,null,null,null,null,null,null,null,null,null,null,null,null,null,null,null,null,null,null,null,null,null,null,null,null,null,null,null,null,null,null,null,null,null,null,null,null,28,52,null,null,null,null,331,"桜宮","桜　　宮"]
[null,null,null,null,null,null,null,null,null,null,null,null,null,null,null,null,null,null,null,null,null,null,null,null,null,null,null,null,null,null,null,null,null,null,null,null,null,null,null,null,null,null,null,null,null,null,null,null,null,null,null,null,null,null,null,null,null,null,null,null,null,null,null,null,null,null,null,null,null,null,null,null,null,null,null,null,null,null,null,null,null,null,null,null,null,null,null,null,null,null,null,null,null,null,null,null,null,null,null,null,null,null,null,null,null,null,null,null,null,null,null,null,null,null,null,null,null,null,null,null,null,null,null,null,null,null,null,null,null,null,null,null,null,null,null,null,null,null,null,null,null,null,null,null,null,null,null,null,null,null,null,null,null,null,null,null,null,null,null,null,null,null,null,null,null,null,null,null,null,null,29,53,null,null,null,null,332,"汎愛","汎　　愛"]
[null,null,null,null,null,null,null,null,null,null,null,null,null,null,null,null,null,null,null,null,null,null,null,null,null,null,null,null,null,null,null,null,null,null,null,null,null,null,null,null,null,null,null,null,null,null,null,null,null,null,null,null,null,null,null,null,null,null,null,null,null,null,null,null,null,null,null,null,null,null,null,null,null,null,null,null,null,null,null,null,null,null,null,null,null,null,null,null,null,null,null,null,null,null,null,null,null,null,null,null,null,null,null,null,null,null,null,null,null,null,null,null,null,null,null,null,null,null,null,null,null,null,null,null,null,null,null,null,null,null,null,null,null,null,null,null,null,null,null,null,null,null,null,null,null,null,null,null,null,null,null,null,null,null,null,null,null,null,null,null,null,null,null,null,null,null,null,null,null,null,30,54,null,null,null,null,333,"東","　 東　 "]
[null,null,null,null,null,null,null,null,null,null,null,null,null,null,null,null,null,null,null,null,null,null,null,null,null,null,null,null,null,null,null,null,null,null,null,null,null,null,null,null,null,null,null,null,null,null,null,null,null,null,null,null,null,null,null,null,null,null,null,null,null,null,null,null,null,null,null,null,null,null,null,null,null,null,null,null,null,null,null,null,null,null,null,null,null,null,null,null,null,null,null,null,null,null,null,null,null,null,null,null,null,null,null,null,null,null,null,null,null,null,null,null,null,null,null,null,null,null,null,null,null,null,null,null,null,null,null,null,null,null,null,null,null,null,null,null,null,null,null,null,null,null,null,null,null,null,null,null,null,null,null,null,null,null,null,null,null,null,null,null,null,null,null,null,null,null,null,null,null,null,31,55,null,null,null,null,334,"南","　 南　 "]
[null,null,null,null,null,null,null,null,null,null,null,null,null,null,null,null,null,null,null,null,null,null,null,null,null,null,null,null,null,null,null,null,null,null,null,null,null,null,null,null,null,null,null,null,null,null,null,null,null,null,null,null,null,null,null,null,null,null,null,null,null,null,null,null,null,null,null,null,null,null,null,null,null,null,null,null,null,null,null,null,null,null,null,null,null,null,null,null,null,null,null,null,null,null,null,null,null,null,null,null,null,null,null,null,null,null,null,null,null,null,null,null,null,null,null,null,null,null,null,null,null,null,null,null,null,null,null,null,null,null,null,null,null,null,null,null,null,null,null,null,null,null,null,null,null,null,null,null,null,null,null,null,null,null,null,null,null,null,null,null,null,null,null,null,null,null,null,null,null,null,null,null,null,null,null,null,335,"生野工業","生野工業"]
[null,null,null,null,null,null,null,null,null,null,null,null,null,null,null,null,null,null,null,null,null,null,null,null,null,null,null,null,null,null,null,null,null,null,null,null,null,null,null,null,null,null,null,null,null,null,null,null,null,null,null,null,null,null,null,null,null,null,null,null,null,null,null,null,null,null,null,null,null,null,null,null,null,null,null,null,null,null,null,null,null,null,null,null,null,null,null,null,null,null,null,null,null,null,null,null,null,null,null,null,null,null,null,null,null,null,null,null,null,null,null,null,null,null,null,null,null,null,null,null,null,null,null,null,null,null,null,null,null,null,null,null,null,null,null,null,null,null,null,null,null,null,null,null,null,null,null,null,null,null,null,null,null,null,null,null,null,null,null,null,null,null,null,null,null,null,null,null,null,null,null,null,null,null,null,null,336,"都島工業","都島工業"]
[null,null,null,null,null,null,null,null,null,null,null,null,null,null,null,null,null,null,null,null,null,null,null,null,null,null,null,null,null,null,null,null,null,null,null,null,null,null,null,null,null,null,null,null,null,null,null,null,null,null,null,null,null,null,null,null,null,null,null,null,null,null,null,null,null,null,null,null,null,null,null,null,null,null,null,null,null,null,null,null,null,null,null,null,null,null,null,null,null,null,null,null,null,null,null,null,null,null,null,null,null,null,null,null,null,null,null,null,null,null,null,null,null,null,null,null,null,null,null,null,null,null,null,null,null,null,null,null,null,null,null,null,null,null,null,null,null,null,null,null,null,null,null,null,null,null,null,null,null,null,null,null,null,null,null,null,null,null,null,null,null,null,null,null,null,null,null,null,null,null,null,null,null,null,null,null,338,"常翔学園","常翔学園"]
[null,null,null,null,null,null,null,null,null,null,null,null,null,null,null,null,null,null,null,null,null,null,null,null,null,null,null,null,null,null,null,null,null,null,null,null,null,null,null,null,null,null,null,null,null,null,null,null,null,null,null,null,null,null,null,null,null,null,null,null,null,null,null,null,null,null,null,null,null,null,null,null,null,null,null,null,null,null,null,null,null,null,null,null,null,null,null,null,null,null,null,null,null,null,null,null,null,null,null,null,null,null,null,null,null,null,null,null,null,null,null,null,null,null,null,null,null,null,null,null,null,null,null,null,null,null,null,null,null,null,null,null,null,null,null,null,null,null,null,null,null,null,null,null,null,null,null,null,null,null,null,null,null,null,null,null,null,null,null,null,null,null,null,null,null,null,null,null,null,null,null,null,null,null,null,null,339,"大阪産業大学附属","大産大附"]
[null,null,null,null,null,null,null,null,null,null,null,null,null,null,null,null,null,null,null,null,null,null,null,null,null,null,null,null,null,null,null,null,null,null,null,null,null,null,null,null,null,null,null,null,null,null,null,null,null,null,null,null,null,null,null,null,null,null,null,null,null,null,null,null,null,null,null,null,null,null,null,null,null,null,null,null,null,null,null,null,null,null,null,null,null,null,null,null,null,null,null,null,null,null,null,null,null,null,null,null,null,null,null,null,null,null,null,null,null,null,null,null,null,null,null,null,null,null,null,null,null,null,null,null,null,null,null,null,null,null,null,null,null,null,null,null,null,null,null,null,null,null,null,null,null,null,null,null,null,null,null,null,null,null,null,null,null,null,null,null,null,null,null,null,null,null,null,null,null,null,null,null,null,null,null,null,340,"追手門大手前","追手門大"]
[null,null,null,null,null,null,null,null,null,null,null,null,null,null,null,null,null,null,null,null,null,null,null,null,null,null,null,null,null,null,null,null,null,null,null,null,null,null,null,null,null,null,null,null,null,null,null,null,null,null,null,null,null,null,null,null,null,null,null,null,null,null,null,null,null,null,null,null,null,null,null,null,null,null,null,null,null,null,null,null,null,null,null,null,null,null,null,null,null,null,null,null,null,null,null,null,null,null,null,null,null,null,null,null,null,null,null,null,null,null,null,null,null,null,null,null,null,null,null,null,null,null,null,null,null,null,null,null,null,null,null,null,null,null,null,null,null,null,null,null,null,null,null,null,null,null,null,null,null,null,null,null,null,null,null,null,null,null,null,null,null,null,null,null,null,null,null,null,null,null,null,null,null,null,null,null,341,"常翔啓光学園","常翔啓光"]
[null,null,null,null,null,null,null,null,null,null,null,null,null,null,null,null,null,null,null,null,null,null,null,null,null,null,null,null,null,null,null,null,null,null,null,null,null,null,null,null,null,null,null,null,null,null,null,null,null,null,null,null,null,null,null,null,null,null,null,null,null,null,null,null,null,null,null,null,null,null,null,null,null,null,null,null,null,null,null,null,null,null,null,null,null,null,null,null,null,null,null,null,null,null,null,null,null,null,null,null,null,null,null,null,null,null,null,null,null,null,null,null,null,null,null,null,null,null,null,null,null,null,null,null,null,null,null,null,null,null,null,null,null,null,null,null,null,null,null,null,null,null,null,null,null,null,null,null,null,null,null,null,null,null,null,null,null,null,null,null,null,null,null,null,null,null,null,null,null,null,null,null,null,null,null,null,342,"大阪偕星学園","大阪偕星"]
[null,null,null,null,null,null,null,null,null,null,null,null,null,null,null,null,null,null,null,null,null,null,null,null,null,null,null,null,null,null,null,null,null,null,null,null,null,null,null,null,null,null,null,null,null,null,null,null,null,null,null,null,null,null,null,null,null,null,null,null,null,null,null,null,null,null,null,null,null,null,null,null,null,null,null,null,null,null,null,null,null,null,null,null,null,null,null,null,null,null,null,null,null,null,null,null,null,null,null,null,null,null,null,null,null,null,null,null,null,null,null,null,null,null,null,null,null,null,null,null,null,null,null,null,null,null,null,null,null,null,null,null,null,null,null,null,null,null,null,null,null,null,null,null,null,null,null,null,null,null,null,null,null,null,null,null,null,null,null,null,null,null,null,null,null,null,null,null,null,null,null,null,null,null,null,null,343,"太成学院大学","太成学院"]
[null,null,null,null,null,null,null,null,null,null,null,null,null,null,null,null,null,null,null,null,null,null,null,null,null,null,null,null,null,null,null,null,null,null,null,null,null,null,null,null,null,null,null,null,null,null,null,null,null,null,null,null,null,null,null,null,null,null,null,null,null,null,null,null,null,null,null,null,null,null,null,null,null,null,null,null,null,null,null,null,null,null,null,null,null,null,null,null,null,null,null,null,null,null,null,null,null,null,null,null,null,null,null,null,null,null,null,null,null,null,null,null,null,null,null,null,null,null,null,null,null,null,null,null,null,null,null,null,null,null,null,null,null,null,null,null,null,null,null,null,null,null,null,null,null,null,null,null,null,null,null,null,null,null,null,null,null,null,null,null,null,null,null,null,null,null,null,null,null,null,null,null,null,null,null,null,344,"電通大","電 通 大"]
[null,null,"女子個人",null,null,null,null,null,null,null,null,null,null,null,"第４１回全国高等学校柔道選手権大会大阪府予選会（一次予選）",null,null,null,null,null,null,null,null,null,null,null,null,null,null,null,null,null,null,null,null,null,null,null,null,null,null,null,null,null,null,null,null,null,null,null,null,null,null,null,null,null,null,null,null,null,null,null,null,null,null,null,null,null,null,null,null,null,null,null,null,null,null,null,null,null,null,null,null,null,null,null,null,null,null,null,null,null,null,null,null,null,null,null,null,null,null,null,null,null,null,null,null,null,null,null,null,null,null,null,null,null,null,null,null,null,null,null,null,null,null,null,null,null,null,null,null,null,null,null,null,null,null,null,null,null,null,null,null,null,null,null,null,null,null,null,null,null,null,null,null,null,null,null,null,null,null,null,null,null,null,null,null,null,null,null,null,null,null,null,null,null,345,"同志社香里","同志社香"]
[null,null,null,null,null,null,null,null,null,null,null,null,null,null,null,null,null,null,null,null,null,null,null,null,null,null,null,null,null,null,null,null,null,null,null,null,null,null,null,null,null,null,null,null,null,null,null,null,null,null,null,null,null,null,null,null,null,null,null,null,null,null,null,null,null,null,null,null,null,null,null,null,null,null,null,null,null,null,null,null,null,null,null,null,null,null,null,null,null,null,null,null,null,null,null,null,null,null,null,null,null,null,null,null,null,null,null,null,null,null,null,null,null,null,null,null,null,null,null,null,null,null,null,null,null,null,null,null,null,null,null,null,null,null,null,null,null,null,null,null,null,null,null,null,null,null,null,null,null,null,null,null,null,null,null,null,null,null,null,null,null,null,null,null,null,null,null,null,null,null,null,null,null,null,null,null,346,"開明","開　　明"]
[null,null,null,null,null,null,null,null,null,null,null,null,null,null,null,null,null,null,null,null,null,null,null,null,null,null,null,null,null,null,null,null,null,null,null,null,null,null,null,null,null,null,null,null,null,null,null,null,null,null,null,null,null,null,null,null,null,null,null,null,null,null,null,null,null,null,null,null,null,null,null,null,null,null,null,null,null,null,null,null,null,null,null,null,null,null,null,null,null,null,null,null,null,null,null,null,null,null,null,null,null,null,null,null,null,null,null,null,null,null,null,null,null,null,null,null,null,null,null,null,null,null,null,null,null,null,null,null,null,null,null,null,null,null,null,null,null,null,null,null,null,null,null,null,null,null,null,null,null,null,null,null,null,null,null,null,null,null,null,null,null,null,null,null,null,null,null,null,null,null,null,null,null,null,null,null,347,"東海大学付属仰星","東海仰星"]
[null,null,"階級",null,null,null,"選手名",null,null,null,null,null,null,null,null,null,null,null,null,null,null,null,null,null,null,null,null,null,null,null,null,null,null,null,null,null,null,null,"学年",null,null,"段位",null,null,"体重（kg）",null,null,null,null,"身長（cm）",null,null,null,null,"生年月日（西暦）",null,null,null,null,null,null,null,null,null,null,null,null,null,null,null,null,null,null,null,null,null,null,null,null,null,null,null,null,null,null,null,null,null,null,null,null,null,null,null,null,null,null,null,null,null,null,null,null,null,null,null,null,null,null,null,null,null,null,null,null,null,null,null,null,null,null,null,null,null,null,null,null,null,null,null,null,null,null,null,null,null,null,null,null,null,null,null,null,null,null,null,null,null,null,null,null,null,null,null,null,null,null,null,null,null,null,null,null,null,null,null,null,null,null,null,null,null,null,null,null,null,348,"泉尾","泉　　尾"]
[null,null,null,null,null,null,"ふりがな",null,null,null,null,null,null,null,null,null,null,null,null,null,null,null,null,null,null,null,null,null,null,null,null,null,null,null,null,null,null,null,null,null,null,null,null,null,null,null,null,null,null,null,null,null,null,null,null,null,null,null,"・",null,null,null,"・",null,null,null,null,null,null,null,null,null,null,null,null,null,null,null,null,null,null,null,null,null,null,null,null,null,null,null,null,null,null,null,null,null,null,null,null,null,null,null,null,null,null,null,null,null,null,null,null,null,null,null,null,null,null,null,null,null,null,null,null,null,null,null,null,null,null,null,null,null,null,null,null,null,null,null,null,null,null,null,null,null,null,null,null,null,null,null,null,null,null,null,null,null,null,null,null,null,null,null,null,null,null,null,null,null,null,null,null,null,null,null,null,null,349,"和泉","和　　泉"]
[null,null,null,null,null,null,"（姓）",null,null,null,null,null,null,null,null,null,null,null,null,null,null,null,"（名）",null,null,null,null,null,null,null,null,null,null,null,null,null,null,null,null,null,null,null,null,null,null,null,null,null,null,null,null,null,null,null,null,null,null,null,null,null,null,null,null,null,null,null,null,null,null,null,null,null,null,null,null,null,null,null,null,null,null,null,null,null,null,null,null,null,null,null,null,null,null,null,null,null,null,null,null,null,null,null,null,null,null,null,null,null,null,null,null,null,null,null,null,null,null,null,null,null,null,null,null,null,null,null,null,null,null,null,null,null,null,null,null,null,null,null,null,null,null,null,null,null,null,null,null,null,null,null,null,null,null,null,null,null,null,null,null,null,null,null,null,null,null,null,null,null,null,null,null,null,null,null,null,null,350,"泉大津","泉 大 津"]
[null,null,null,null,null,null,null,null,null,null,null,null,null,null,null,null,null,null,null,null,null,null,null,null,null,null,null,null,null,null,null,null,null,null,null,null,null,null,null,null,null,null,null,null,null,null,null,null,null,null,null,null,null,null,null,null,null,null,null,null,null,null,null,null,null,null,null,null,null,null,null,null,null,null,null,null,null,null,null,null,null,null,null,null,null,null,null,null,null,null,null,null,null,null,null,null,null,null,null,null,null,null,null,null,null,null,null,null,null,null,null,null,null,null,null,null,null,null,null,null,null,null,null,null,null,null,null,null,null,null,null,null,null,null,null,null,null,null,null,null,null,null,null,null,null,null,null,null,null,null,null,null,null,null,null,null,null,null,null,null,null,null,null,null,null,null,null,null,null,null,null,null,null,null,null,null,351,"泉鳥取","泉 鳥 取"]
[null,null,null,null,null,null,null,null,null,null,null,null,null,null,null,null,null,null,null,null,null,null,null,null,null,null,null,null,null,null,null,null,null,null,null,null,null,null,null,null,null,null,null,null,null,null,null,null,null,null,null,null,null,null,null,null,null,null,null,null,null,null,null,null,null,null,null,null,null,null,null,null,null,null,null,null,null,null,null,null,null,null,null,null,null,null,null,null,null,null,null,null,null,null,null,null,null,null,null,null,null,null,null,null,null,null,null,null,null,null,null,null,null,null,null,null,null,null,null,null,null,null,null,null,null,null,null,null,null,null,null,null,null,null,null,null,null,null,null,null,null,null,null,null,null,null,null,null,null,null,null,null,null,null,null,null,null,null,null,null,null,null,null,null,null,null,null,null,null,null,null,null,null,null,null,null,352,"市岡","市　　岡"]
[null,null,null,null,null,null,"ふりがな",null,null,null,null,null,null,null,null,null,null,null,null,null,null,null,null,null,null,null,null,null,null,null,null,null,null,null,null,null,null,null,null,null,null,null,null,null,null,null,null,null,null,null,null,null,null,null,null,null,null,null,"・",null,null,null,"・",null,null,null,null,null,null,null,null,null,null,null,null,null,null,null,null,null,null,null,null,null,null,null,null,null,null,null,null,null,null,null,null,null,null,null,null,null,null,null,null,null,null,null,null,null,null,null,null,null,null,null,null,null,null,null,null,null,null,null,null,null,null,null,null,null,null,null,null,null,null,null,null,null,null,null,null,null,null,null,null,null,null,null,null,null,null,null,null,null,null,null,null,null,null,null,null,null,null,null,null,null,null,null,null,null,null,null,null,null,null,null,null,null,353,"今宮","今　　宮"]
[null,null,null,null,null,null,"（姓）",null,null,null,null,null,null,null,null,null,null,null,null,null,null,null,"（名）",null,null,null,null,null,null,null,null,null,null,null,null,null,null,null,null,null,null,null,null,null,null,null,null,null,null,null,null,null,null,null,null,null,null,null,null,null,null,null,null,null,null,null,null,null,null,null,null,null,null,null,null,null,null,null,null,null,null,null,null,null,null,null,null,null,null,null,null,null,null,null,null,null,null,null,null,null,null,null,null,null,null,null,null,null,null,null,null,null,null,null,null,null,null,null,null,null,null,null,null,null,null,null,null,null,null,null,null,null,null,null,null,null,null,null,null,null,null,null,null,null,null,null,null,null,null,null,null,null,null,null,null,null,null,null,null,null,null,null,null,null,null,null,null,null,null,null,null,null,null,null,null,null,354,"鳳","　 鳳　 "]
[null,null,null,null,null,null,null,null,null,null,null,null,null,null,null,null,null,null,null,null,null,null,null,null,null,null,null,null,null,null,null,null,null,null,null,null,null,null,null,null,null,null,null,null,null,null,null,null,null,null,null,null,null,null,null,null,null,null,null,null,null,null,null,null,null,null,null,null,null,null,null,null,null,null,null,null,null,null,null,null,null,null,null,null,null,null,null,null,null,null,null,null,null,null,null,null,null,null,null,null,null,null,null,null,null,null,null,null,null,null,null,null,null,null,null,null,null,null,null,null,null,null,null,null,null,null,null,null,null,null,null,null,null,null,null,null,null,null,null,null,null,null,null,null,null,null,null,null,null,null,null,null,null,null,null,null,null,null,null,null,null,null,null,null,null,null,null,null,null,null,null,null,null,null,null,null,355,"貝塚","貝　　塚"]
[null,null,null,null,null,null,null,null,null,null,null,null,null,null,null,null,null,null,null,null,null,null,null,null,null,null,null,null,null,null,null,null,null,null,null,null,null,null,null,null,null,null,null,null,null,null,null,null,null,null,null,null,null,null,null,null,null,null,null,null,null,null,null,null,null,null,null,null,null,null,null,null,null,null,null,null,null,null,null,null,null,null,null,null,null,null,null,null,null,null,null,null,null,null,null,null,null,null,null,null,null,null,null,null,null,null,null,null,null,null,null,null,null,null,null,null,null,null,null,null,null,null,null,null,null,null,null,null,null,null,null,null,null,null,null,null,null,null,null,null,null,null,null,null,null,null,null,null,null,null,null,null,null,null,null,null,null,null,null,null,null,null,null,null,null,null,null,null,null,null,null,null,null,null,null,null,356,"貝塚南","貝 塚 南"]
[null,null,null,null,null,null,"ふりがな",null,null,null,null,null,null,null,null,null,null,null,null,null,null,null,null,null,null,null,null,null,null,null,null,null,null,null,null,null,null,null,null,null,null,null,null,null,null,null,null,null,null,null,null,null,null,null,null,null,null,null,"・",null,null,null,"・",null,null,null,null,null,null,null,null,null,null,null,null,null,null,null,null,null,null,null,null,null,null,null,null,null,null,null,null,null,null,null,null,null,null,null,null,null,null,null,null,null,null,null,null,null,null,null,null,null,null,null,null,null,null,null,null,null,null,null,null,null,null,null,null,null,null,null,null,null,null,null,null,null,null,null,null,null,null,null,null,null,null,null,null,null,null,null,null,null,null,null,null,null,null,null,null,null,null,null,null,null,null,null,null,null,null,null,null,null,null,null,null,null,357,"金岡","金　　岡"]
[null,null,null,null,null,null,"（姓）",null,null,null,null,null,null,null,null,null,null,null,null,null,null,null,"（名）",null,null,null,null,null,null,null,null,null,null,null,null,null,null,null,null,null,null,null,null,null,null,null,null,null,null,null,null,null,null,null,null,null,null,null,null,null,null,null,null,null,null,null,null,null,null,null,null,null,null,null,null,null,null,null,null,null,null,null,null,null,null,null,null,null,null,null,null,null,null,null,null,null,null,null,null,null,null,null,null,null,null,null,null,null,null,null,null,null,null,null,null,null,null,null,null,null,null,null,null,null,null,null,null,null,null,null,null,null,null,null,null,null,null,null,null,null,null,null,null,null,null,null,null,null,null,null,null,null,null,null,null,null,null,null,null,null,null,null,null,null,null,null,null,null,null,null,null,null,null,null,null,null,358,"岸和田","岸 和 田"]
[null,null,null,null,null,null,null,null,null,null,null,null,null,null,null,null,null,null,null,null,null,null,null,null,null,null,null,null,null,null,null,null,null,null,null,null,null,null,null,null,null,null,null,null,null,null,null,null,null,null,null,null,null,null,null,null,null,null,null,null,null,null,null,null,null,null,null,null,null,null,null,null,null,null,null,null,null,null,null,null,null,null,null,null,null,null,null,null,null,null,null,null,null,null,null,null,null,null,null,null,null,null,null,null,null,null,null,null,null,null,null,null,null,null,null,null,null,null,null,null,null,null,null,null,null,null,null,null,null,null,null,null,null,null,null,null,null,null,null,null,null,null,null,null,null,null,null,null,null,null,null,null,null,null,null,null,null,null,null,null,null,null,null,null,null,null,null,null,null,null,null,null,null,null,null,null,359,"港南造形","港南造形"]
[null,null,null,null,null,null,null,null,null,null,null,null,null,null,null,null,null,null,null,null,null,null,null,null,null,null,null,null,null,null,null,null,null,null,null,null,null,null,null,null,null,null,null,null,null,null,null,null,null,null,null,null,null,null,null,null,null,null,null,null,null,null,null,null,null,null,null,null,null,null,null,null,null,null,null,null,null,null,null,null,null,null,null,null,null,null,null,null,null,null,null,null,null,null,null,null,null,null,null,null,null,null,null,null,null,null,null,null,null,null,null,null,null,null,null,null,null,null,null,null,null,null,null,null,null,null,null,null,null,null,null,null,null,null,null,null,null,null,null,null,null,null,null,null,null,null,null,null,null,null,null,null,null,null,null,null,null,null,null,null,null,null,null,null,null,null,null,null,null,null,null,null,null,null,null,null,360,"久米田","久 米 田"]
[null,null,null,null,null,null,"ふりがな",null,null,null,null,null,null,null,null,null,null,null,null,null,null,null,null,null,null,null,null,null,null,null,null,null,null,null,null,null,null,null,null,null,null,null,null,null,null,null,null,null,null,null,null,null,null,null,null,null,null,null,"・",null,null,null,"・",null,null,null,null,null,null,null,null,null,null,null,null,null,null,null,null,null,null,null,null,null,null,null,null,null,null,null,null,null,null,null,null,null,null,null,null,null,null,null,null,null,null,null,null,null,null,null,null,null,null,null,null,null,null,null,null,null,null,null,null,null,null,null,null,null,null,null,null,null,null,null,null,null,null,null,null,null,null,null,null,null,null,null,null,null,null,null,null,null,null,null,null,null,null,null,null,null,null,null,null,null,null,null,null,null,null,null,null,null,null,null,null,null,361,"堺上","堺　　上"]
[null,null,null,null,null,null,"（姓）",null,null,null,null,null,null,null,null,null,null,null,null,null,null,null,"（名）",null,null,null,null,null,null,null,null,null,null,null,null,null,null,null,null,null,null,null,null,null,null,null,null,null,null,null,null,null,null,null,null,null,null,null,null,null,null,null,null,null,null,null,null,null,null,null,null,null,null,null,null,null,null,null,null,null,null,null,null,null,null,null,null,null,null,null,null,null,null,null,null,null,null,null,null,null,null,null,null,null,null,null,null,null,null,null,null,null,null,null,null,null,null,null,null,null,null,null,null,null,null,null,null,null,null,null,null,null,null,null,null,null,null,null,null,null,null,null,null,null,null,null,null,null,null,null,null,null,null,null,null,null,null,null,null,null,null,null,null,null,null,null,null,null,null,null,null,null,null,null,null,null,362,"堺西","堺　　西"]
[null,null,null,null,null,null,null,null,null,null,null,null,null,null,null,null,null,null,null,null,null,null,null,null,null,null,null,null,null,null,null,null,null,null,null,null,null,null,null,null,null,null,null,null,null,null,null,null,null,null,null,null,null,null,null,null,null,null,null,null,null,null,null,null,null,null,null,null,null,null,null,null,null,null,null,null,null,null,null,null,null,null,null,null,null,null,null,null,null,null,null,null,null,null,null,null,null,null,null,null,null,null,null,null,null,null,null,null,null,null,null,null,null,null,null,null,null,null,null,null,null,null,null,null,null,null,null,null,null,null,null,null,null,null,null,null,null,null,null,null,null,null,null,null,null,null,null,null,null,null,null,null,null,null,null,null,null,null,null,null,null,null,null,null,null,null,null,null,null,null,null,null,null,null,null,null,363,"堺東","堺　　東"]
[null,null,null,null,null,null,null,null,null,null,null,null,null,null,null,null,null,null,null,null,null,null,null,null,null,null,null,null,null,null,null,null,null,null,null,null,null,null,null,null,null,null,null,null,null,null,null,null,null,null,null,null,null,null,null,null,null,null,null,null,null,null,null,null,null,null,null,null,null,null,null,null,null,null,null,null,null,null,null,null,null,null,null,null,null,null,null,null,null,null,null,null,null,null,null,null,null,null,null,null,null,null,null,null,null,null,null,null,null,null,null,null,null,null,null,null,null,null,null,null,null,null,null,null,null,null,null,null,null,null,null,null,null,null,null,null,null,null,null,null,null,null,null,null,null,null,null,null,null,null,null,null,null,null,null,null,null,null,null,null,null,null,null,null,null,null,null,null,null,null,null,null,null,null,null,null,364,"佐野","佐　　野"]
[null,null,null,null,null,null,"ふりがな",null,null,null,null,null,null,null,null,null,null,null,null,null,null,null,null,null,null,null,null,null,null,null,null,null,null,null,null,null,null,null,null,null,null,null,null,null,null,null,null,null,null,null,null,null,null,null,null,null,null,null,"・",null,null,null,"・",null,null,null,null,null,null,null,null,null,null,null,null,null,null,null,null,null,null,null,null,null,null,null,null,null,null,null,null,null,null,null,null,null,null,null,null,null,null,null,null,null,null,null,null,null,null,null,null,null,null,null,null,null,null,null,null,null,null,null,null,null,null,null,null,null,null,null,null,null,null,null,null,null,null,null,null,null,null,null,null,null,null,null,null,null,null,null,null,null,null,null,null,null,null,null,null,null,null,null,null,null,null,null,null,null,null,null,null,null,null,null,null,null,365,"狭山","狭　　山"]
[null,null,null,null,null,null,"（姓）",null,null,null,null,null,null,null,null,null,null,null,null,null,null,null,"（名）",null,null,null,null,null,null,null,null,null,null,null,null,null,null,null,null,null,null,null,null,null,null,null,null,null,null,null,null,null,null,null,null,null,null,null,null,null,null,null,null,null,null,null,null,null,null,null,null,null,null,null,null,null,null,null,null,null,null,null,null,null,null,null,null,null,null,null,null,null,null,null,null,null,null,null,null,null,null,null,null,null,null,null,null,null,null,null,null,null,null,null,null,null,null,null,null,null,null,null,null,null,null,null,null,null,null,null,null,null,null,null,null,null,null,null,null,null,null,null,null,null,null,null,null,null,null,null,null,null,null,null,null,null,null,null,null,null,null,null,null,null,null,null,null,null,null,null,null,null,null,null,null,null,366,"信太","信　　太"]
[null,null,null,null,null,null,null,null,null,null,null,null,null,null,null,null,null,null,null,null,null,null,null,null,null,null,null,null,null,null,null,null,null,null,null,null,null,null,null,null,null,null,null,null,null,null,null,null,null,null,null,null,null,null,null,null,null,null,null,null,null,null,null,null,null,null,null,null,null,null,null,null,null,null,null,null,null,null,null,null,null,null,null,null,null,null,null,null,null,null,null,null,null,null,null,null,null,null,null,null,null,null,null,null,null,null,null,null,null,null,null,null,null,null,null,null,null,null,null,null,null,null,null,null,null,null,null,null,null,null,null,null,null,null,null,null,null,null,null,null,null,null,null,null,null,null,null,null,null,null,null,null,null,null,null,null,null,null,null,null,null,null,null,null,null,null,null,null,null,null,null,null,null,null,null,null,367,"咲洲","咲　　洲"]
[null,null,null,null,null,null,null,null,null,null,null,null,null,null,null,null,null,null,null,null,null,null,null,null,null,null,null,null,null,null,null,null,null,null,null,null,null,null,null,null,null,null,null,null,null,null,null,null,null,null,null,null,null,null,null,null,null,null,null,null,null,null,null,null,null,null,null,null,null,null,null,null,null,null,null,null,null,null,null,null,null,null,null,null,null,null,null,null,null,null,null,null,null,null,null,null,null,null,null,null,null,null,null,null,null,null,null,null,null,null,null,null,null,null,null,null,null,null,null,null,null,null,null,null,null,null,null,null,null,null,null,null,null,null,null,null,null,null,null,null,null,null,null,null,null,null,null,null,null,null,null,null,null,null,null,null,null,null,null,null,null,null,null,null,null,null,null,null,null,null,null,null,null,null,null,null,368,"りんくう翔南","りんくう"]
[null,null,null,null,null,null,"ふりがな",null,null,null,null,null,null,null,null,null,null,null,null,null,null,null,null,null,null,null,null,null,null,null,null,null,null,null,null,null,null,null,null,null,null,null,null,null,null,null,null,null,null,null,null,null,null,null,null,null,null,null,"・",null,null,null,"・",null,null,null,null,null,null,null,null,null,null,null,null,null,null,null,null,null,null,null,null,null,null,null,null,null,null,null,null,null,null,null,null,null,null,null,null,null,null,null,null,null,null,null,null,null,null,null,null,null,null,null,null,null,null,null,null,null,null,null,null,null,null,null,null,null,null,null,null,null,null,null,null,null,null,null,null,null,null,null,null,null,null,null,null,null,null,null,null,null,null,null,null,null,null,null,null,null,null,null,null,null,null,null,null,null,null,null,null,null,null,null,null,null,369,"泉北","泉　　北"]
[null,null,null,null,null,null,"（姓）",null,null,null,null,null,null,null,null,null,null,null,null,null,null,null,"（名）",null,null,null,null,null,null,null,null,null,null,null,null,null,null,null,null,null,null,null,null,null,null,null,null,null,null,null,null,null,null,null,null,null,null,null,null,null,null,null,null,null,null,null,null,null,null,null,null,null,null,null,null,null,null,null,null,null,null,null,null,null,null,null,null,null,null,null,null,null,null,null,null,null,null,null,null,null,null,null,null,null,null,null,null,null,null,null,null,null,null,null,null,null,null,null,null,null,null,null,null,null,null,null,null,null,null,null,null,null,null,null,null,null,null,null,null,null,null,null,null,null,null,null,null,null,null,null,null,null,null,null,null,null,null,null,null,null,null,null,null,null,null,null,null,null,null,null,null,null,null,null,null,null,370,"泉陽","泉　　陽"]
[null,null,null,null,null,null,null,null,null,null,null,null,null,null,null,null,null,null,null,null,null,null,null,null,null,null,null,null,null,null,null,null,null,null,null,null,null,null,null,null,null,null,null,null,null,null,null,null,null,null,null,null,null,null,null,null,null,null,null,null,null,null,null,null,null,null,null,null,null,null,null,null,null,null,null,null,null,null,null,null,null,null,null,null,null,null,null,null,null,null,null,null,null,null,null,null,null,null,null,null,null,null,null,null,null,null,null,null,null,null,null,null,null,null,null,null,null,null,null,null,null,null,null,null,null,null,null,null,null,null,null,null,null,null,null,null,null,null,null,null,null,null,null,null,null,null,null,null,null,null,null,null,null,null,null,null,null,null,null,null,null,null,null,null,null,null,null,null,null,null,null,null,null,null,null,null,371,"大正","大　　正"]
[null,null,null,null,null,null,null,null,null,null,null,null,null,null,null,null,null,null,null,null,null,null,null,null,null,null,null,null,null,null,null,null,null,null,null,null,null,null,null,null,null,null,null,null,null,null,null,null,null,null,null,null,null,null,null,null,null,null,null,null,null,null,null,null,null,null,null,null,null,null,null,null,null,null,null,null,null,null,null,null,null,null,null,null,null,null,null,null,null,null,null,null,null,null,null,null,null,null,null,null,null,null,null,null,null,null,null,null,null,null,null,null,null,null,null,null,null,null,null,null,null,null,null,null,null,null,null,null,null,null,null,null,null,null,null,null,null,null,null,null,null,null,null,null,null,null,null,null,null,null,null,null,null,null,null,null,null,null,null,null,null,null,null,null,null,null,null,null,null,null,null,null,null,null,null,null,372,"高石","高　　石"]
[null,null,null,null,null,null,"ふりがな",null,null,null,null,null,null,null,null,null,null,null,null,null,null,null,null,null,null,null,null,null,null,null,null,null,null,null,null,null,null,null,null,null,null,null,null,null,null,null,null,null,null,null,null,null,null,null,null,null,null,null,"・",null,null,null,"・",null,null,null,null,null,null,null,null,null,null,null,null,null,null,null,null,null,null,null,null,null,null,null,null,null,null,null,null,null,null,null,null,null,null,null,null,null,null,null,null,null,null,null,null,null,null,null,null,null,null,null,null,null,null,null,null,null,null,null,null,null,null,null,null,null,null,null,null,null,null,null,null,null,null,null,null,null,null,null,null,null,null,null,null,null,null,null,null,null,null,null,null,null,null,null,null,null,null,null,null,null,null,null,null,null,null,null,null,null,null,null,null,null,373,"登美丘","登 美 丘"]
[null,null,null,null,null,null,"（姓）",null,null,null,null,null,null,null,null,null,null,null,null,null,null,null,"（名）",null,null,null,null,null,null,null,null,null,null,null,null,null,null,null,null,null,null,null,null,null,null,null,null,null,null,null,null,null,null,null,null,null,null,null,null,null,null,null,null,null,null,null,null,null,null,null,null,null,null,null,null,null,null,null,null,null,null,null,null,null,null,null,null,null,null,null,null,null,null,null,null,null,null,null,null,null,null,null,null,null,null,null,null,null,null,null,null,null,null,null,null,null,null,null,null,null,null,null,null,null,null,null,null,null,null,null,null,null,null,null,null,null,null,null,null,null,null,null,null,null,null,null,null,null,null,null,null,null,null,null,null,null,null,null,null,null,null,null,null,null,null,null,null,null,null,null,null,null,null,null,null,null,374,"西成","西　　成"]
[null,null,null,null,null,null,null,null,null,null,null,null,null,null,null,null,null,null,null,null,null,null,null,null,null,null,null,null,null,null,null,null,null,null,null,null,null,null,null,null,null,null,null,null,null,null,null,null,null,null,null,null,null,null,null,null,null,null,null,null,null,null,null,null,null,null,null,null,null,null,null,null,null,null,null,null,null,null,null,null,null,null,null,null,null,null,null,null,null,null,null,null,null,null,null,null,null,null,null,null,null,null,null,null,null,null,null,null,null,null,null,null,null,null,null,null,null,null,null,null,null,null,null,null,null,null,null,null,null,null,null,null,null,null,null,null,null,null,null,null,null,null,null,null,null,null,null,null,null,null,null,null,null,null,null,null,null,null,null,null,null,null,null,null,null,null,null,null,null,null,null,null,null,null,null,null,376,"伯太","伯　　太"]
[null,null,null,null,null,null,null,null,null,null,null,null,null,null,null,null,null,null,null,null,null,null,null,null,null,null,null,null,null,null,null,null,null,null,null,null,null,null,null,null,null,null,null,null,null,null,null,null,null,null,null,null,null,null,null,null,null,null,null,null,null,null,null,null,null,null,null,null,null,null,null,null,null,null,null,null,null,null,null,null,null,null,null,null,null,null,null,null,null,null,null,null,null,null,null,null,null,null,null,null,null,null,null,null,null,null,null,null,null,null,null,null,null,null,null,null,null,null,null,null,null,null,null,null,null,null,null,null,null,null,null,null,null,null,null,null,null,null,null,null,null,null,null,null,null,null,null,null,null,null,null,null,null,null,null,null,null,null,null,null,null,null,null,null,null,null,null,null,null,null,null,null,null,null,null,null,377,"阪南大学","阪南大学"]
[null,null,null,null,null,null,"ふりがな",null,null,null,null,null,null,null,null,null,null,null,null,null,null,null,null,null,null,null,null,null,null,null,null,null,null,null,null,null,null,null,null,null,null,null,null,null,null,null,null,null,null,null,null,null,null,null,null,null,null,null,"・",null,null,null,"・",null,null,null,null,null,null,null,null,null,null,null,null,null,null,null,null,null,null,null,null,null,null,null,null,null,null,null,null,null,null,null,null,null,null,null,null,null,null,null,null,null,null,null,null,null,null,null,null,null,null,null,null,null,null,null,null,null,null,null,null,null,null,null,null,null,null,null,null,null,null,null,null,null,null,null,null,null,null,null,null,null,null,null,null,null,null,null,null,null,null,null,null,null,null,null,null,null,null,null,null,null,null,null,null,null,null,null,null,null,null,null,null,null,378,"東百舌鳥","東百舌鳥"]
[null,null,null,null,null,null,"（姓）",null,null,null,null,null,null,null,null,null,null,null,null,null,null,null,"（名）",null,null,null,null,null,null,null,null,null,null,null,null,null,null,null,null,null,null,null,null,null,null,null,null,null,null,null,null,null,null,null,null,null,null,null,null,null,null,null,null,null,null,null,null,null,null,null,null,null,null,null,null,null,null,null,null,null,null,null,null,null,null,null,null,null,null,null,null,null,null,null,null,null,null,null,null,null,null,null,null,null,null,null,null,null,null,null,null,null,null,null,null,null,null,null,null,null,null,null,null,null,null,null,null,null,null,null,null,null,null,null,null,null,null,null,null,null,null,null,null,null,null,null,null,null,null,null,null,null,null,null,null,null,null,null,null,null,null,null,null,null,null,null,null,null,null,null,null,null,null,null,null,null,379,"福泉","福　　泉"]
[null,null,null,null,null,null,null,null,null,null,null,null,null,null,null,null,null,null,null,null,null,null,null,null,null,null,null,null,null,null,null,null,null,null,null,null,null,null,null,null,null,null,null,null,null,null,null,null,null,null,null,null,null,null,null,null,null,null,null,null,null,null,null,null,null,null,null,null,null,null,null,null,null,null,null,null,null,null,null,null,null,null,null,null,null,null,null,null,null,null,null,null,null,null,null,null,null,null,null,null,null,null,null,null,null,null,null,null,null,null,null,null,null,null,null,null,null,null,null,null,null,null,null,null,null,null,null,null,null,null,null,null,null,null,null,null,null,null,null,null,null,null,null,null,null,null,null,null,null,null,null,null,null,null,null,null,null,null,null,null,null,null,null,null,null,null,null,null,null,null,null,null,null,null,null,null,380,"成美","成　　美"]
[null,null,null,null,null,null,null,null,null,null,null,null,null,null,null,null,null,null,null,null,null,null,null,null,null,null,null,null,null,null,null,null,null,null,null,null,null,null,null,null,null,null,null,null,null,null,null,null,null,null,null,null,null,null,null,null,null,null,null,null,null,null,null,null,null,null,null,null,null,null,null,null,null,null,null,null,null,null,null,null,null,null,null,null,null,null,null,null,null,null,null,null,null,null,null,null,null,null,null,null,null,null,null,null,null,null,null,null,null,null,null,null,null,null,null,null,null,null,null,null,null,null,null,null,null,null,null,null,null,null,null,null,null,null,null,null,null,null,null,null,null,null,null,null,null,null,null,null,null,null,null,null,null,null,null,null,null,null,null,null,null,null,null,null,null,null,null,null,null,null,null,null,null,null,null,null,381,"三国丘","三 国 丘"]
[null,null,null,null,null,null,"ふりがな",null,null,null,null,null,null,null,null,null,null,null,null,null,null,null,null,null,null,null,null,null,null,null,null,null,null,null,null,null,null,null,null,null,null,null,null,null,null,null,null,null,null,null,null,null,null,null,null,null,null,null,"・",null,null,null,"・",null,null,null,null,null,null,null,null,null,null,null,null,null,null,null,null,null,null,null,null,null,null,null,null,null,null,null,null,null,null,null,null,null,null,null,null,null,null,null,null,null,null,null,null,null,null,null,null,null,null,null,null,null,null,null,null,null,null,null,null,null,null,null,null,null,null,null,null,null,null,null,null,null,null,null,null,null,null,null,null,null,null,null,null,null,null,null,null,null,null,null,null,null,null,null,null,null,null,null,null,null,null,null,null,null,null,null,null,null,null,null,null,null,382,"岬","　 岬　 "]
[null,null,null,null,null,null,"（姓）",null,null,null,null,null,null,null,null,null,null,null,null,null,null,null,"（名）",null,null,null,null,null,null,null,null,null,null,null,null,null,null,null,null,null,null,null,null,null,null,null,null,null,null,null,null,null,null,null,null,null,null,null,null,null,null,null,null,null,null,null,null,null,null,null,null,null,null,null,null,null,null,null,null,null,null,null,null,null,null,null,null,null,null,null,null,null,null,null,null,null,null,null,null,null,null,null,null,null,null,null,null,null,null,null,null,null,null,null,null,null,null,null,null,null,null,null,null,null,null,null,null,null,null,null,null,null,null,null,null,null,null,null,null,null,null,null,null,null,null,null,null,null,null,null,null,null,null,null,null,null,null,null,null,null,null,null,null,null,null,null,null,null,null,null,null,null,null,null,null,null,383,"港","   港　 "]
[null,null,null,null,null,null,null,null,null,null,null,null,null,null,null,null,null,null,null,null,null,null,null,null,null,null,null,null,null,null,null,null,null,null,null,null,null,null,null,null,null,null,null,null,null,null,null,null,null,null,null,null,null,null,null,null,null,null,null,null,null,null,null,null,null,null,null,null,null,null,null,null,null,null,null,null,null,null,null,null,null,null,null,null,null,null,null,null,null,null,null,null,null,null,null,null,null,null,null,null,null,null,null,null,null,null,null,null,null,null,null,null,null,null,null,null,null,null,null,null,null,null,null,null,null,null,null,null,null,null,null,null,null,null,null,null,null,null,null,null,null,null,null,null,null,null,null,null,null,null,null,null,null,null,null,null,null,null,null,null,null,null,null,null,null,null,null,null,null,null,null,null,null,null,null,null,384,"センター附属","センター"]
[null,null,null,null,null,null,null,null,null,null,null,null,null,null,null,null,null,null,null,null,null,null,null,null,null,null,null,null,null,null,null,null,null,null,null,null,null,null,null,null,null,null,null,null,null,null,null,null,null,null,null,null,null,null,null,null,null,null,null,null,null,null,null,null,null,null,null,null,null,null,null,null,null,null,null,null,null,null,null,null,null,null,null,null,null,null,null,null,null,null,null,null,null,null,null,null,null,null,null,null,null,null,null,null,null,null,null,null,null,null,null,null,null,null,null,null,null,null,null,null,null,null,null,null,null,null,null,null,null,null,null,null,null,null,null,null,null,null,null,null,null,null,null,null,null,null,null,null,null,null,null,null,null,null,null,null,null,null,null,null,null,null,null,null,null,null,null,null,null,null,null,null,null,null,null,null,386,"和泉総合","和泉総合"]
[null,null,null,null,null,null,"ふりがな",null,null,null,null,null,null,null,null,null,null,null,null,null,null,null,null,null,null,null,null,null,null,null,null,null,null,null,null,null,null,null,null,null,null,null,null,null,null,null,null,null,null,null,null,null,null,null,null,null,null,null,"・",null,null,null,"・",null,null,null,null,null,null,null,null,null,null,null,null,null,null,null,null,null,null,null,null,null,null,null,null,null,null,null,null,null,null,null,null,null,null,null,null,null,null,null,null,null,null,null,null,null,null,null,null,null,null,null,null,null,null,null,null,null,null,null,null,null,null,null,null,null,null,null,null,null,null,null,null,null,null,null,null,null,null,null,null,null,null,null,null,null,null,null,null,null,null,null,null,null,null,null,null,null,null,null,null,null,null,null,null,null,null,null,null,null,null,null,null,null,387,"今宮工科","今宮工科"]
[null,null,null,null,null,null,"（姓）",null,null,null,null,null,null,null,null,null,null,null,null,null,null,null,"（名）",null,null,null,null,null,null,null,null,null,null,null,null,null,null,null,null,null,null,null,null,null,null,null,null,null,null,null,null,null,null,null,null,null,null,null,null,null,null,null,null,null,null,null,null,null,null,null,null,null,null,null,null,null,null,null,null,null,null,null,null,null,null,null,null,null,null,null,null,null,null,null,null,null,null,null,null,null,null,null,null,null,null,null,null,null,null,null,null,null,null,null,null,null,null,null,null,null,null,null,null,null,null,null,null,null,null,null,null,null,null,null,null,null,null,null,null,null,null,null,null,null,null,null,null,null,null,null,null,null,null,null,null,null,null,null,null,null,null,null,null,null,null,null,null,null,null,null,null,null,null,null,null,null,388,"堺工科","堺 工 科"]
[null,null,null,null,null,null,null,null,null,null,null,null,null,null,null,null,null,null,null,null,null,null,null,null,null,null,null,null,null,null,null,null,null,null,null,null,null,null,null,null,null,null,null,null,null,null,null,null,null,null,null,null,null,null,null,null,null,null,null,null,null,null,null,null,null,null,null,null,null,null,null,null,null,null,null,null,null,null,null,null,null,null,null,null,null,null,null,null,null,null,null,null,null,null,null,null,null,null,null,null,null,null,null,null,null,null,null,null,null,null,null,null,null,null,null,null,null,null,null,null,null,null,null,null,null,null,null,null,null,null,null,null,null,null,null,null,null,null,null,null,null,null,null,null,null,null,null,null,null,null,null,null,null,null,null,null,null,null,null,null,null,null,null,null,null,null,null,null,null,null,null,null,null,null,null,null,389,"佐野工科","佐野工科"]
[null,null,null,null,null,null,null,null,null,null,null,null,null,null,null,null,null,null,null,null,null,null,null,null,null,null,null,null,null,null,null,null,null,null,null,null,null,null,null,null,null,null,null,null,null,null,null,null,null,null,null,null,null,null,null,null,null,null,null,null,null,null,null,null,null,null,null,null,null,null,null,null,null,null,null,null,null,null,null,null,null,null,null,null,null,null,null,null,null,null,null,null,null,null,null,null,null,null,null,null,null,null,null,null,null,null,null,null,null,null,null,null,null,null,null,null,null,null,null,null,null,null,null,null,null,null,null,null,null,null,null,null,null,null,null,null,null,null,null,null,null,null,null,null,null,null,null,null,null,null,null,null,null,null,null,null,null,null,null,null,null,null,null,null,null,null,null,null,null,null,null,null,null,null,null,null,390,"西野田工科","西野田工"]
[null,null,null,null,null,null,"ふりがな",null,null,null,null,null,null,null,null,null,null,null,null,null,null,null,null,null,null,null,null,null,null,null,null,null,null,null,null,null,null,null,null,null,null,null,null,null,null,null,null,null,null,null,null,null,null,null,null,null,null,null,"・",null,null,null,"・",null,null,null,null,null,null,null,null,null,null,null,null,null,null,null,null,null,null,null,null,null,null,null,null,null,null,null,null,null,null,null,null,null,null,null,null,null,null,null,null,null,null,null,null,null,null,null,null,null,null,null,null,null,null,null,null,null,null,null,null,null,null,null,null,null,null,null,null,null,null,null,null,null,null,null,null,null,null,null,null,null,null,null,null,null,null,null,null,null,null,null,null,null,null,null,null,null,null,null,null,null,null,null,null,null,null,null,null,null,null,null,null,null,391,"日根野","日 根 野"]
[null,null,null,null,null,null,"（姓）",null,null,null,null,null,null,null,null,null,null,null,null,null,null,null,"（名）",null,null,null,null,null,null,null,null,null,null,null,null,null,null,null,null,null,null,null,null,null,null,null,null,null,null,null,null,null,null,null,null,null,null,null,null,null,null,null,null,null,null,null,null,null,null,null,null,null,null,null,null,null,null,null,null,null,null,null,null,null,null,null,null,null,null,null,null,null,null,null,null,null,null,null,null,null,null,null,null,null,null,null,null,null,null,null,null,null,null,null,null,null,null,null,null,null,null,null,null,null,null,null,null,null,null,null,null,null,null,null,null,null,null,null,null,null,null,null,null,null,null,null,null,null,null,null,null,null,null,null,null,null,null,null,null,null,null,null,null,null,null,null,null,null,null,null,null,null,null,null,null,null,394,"泉尾工業","泉尾工業"]
[null,null,null,null,null,null,null,null,null,null,null,null,null,null,null,null,null,null,null,null,null,null,null,null,null,null,null,null,null,null,null,null,null,null,null,null,null,null,null,null,null,null,null,null,null,null,null,null,null,null,null,null,null,null,null,null,null,null,null,null,null,null,null,null,null,null,null,null,null,null,null,null,null,null,null,null,null,null,null,null,null,null,null,null,null,null,null,null,null,null,null,null,null,null,null,null,null,null,null,null,null,null,null,null,null,null,null,null,null,null,null,null,null,null,null,null,null,null,null,null,null,null,null,null,null,null,null,null,null,null,null,null,null,null,null,null,null,null,null,null,null,null,null,null,null,null,null,null,null,null,null,null,null,null,null,null,null,null,null,null,null,null,null,null,null,null,null,null,null,null,null,null,null,null,null,null,395,"岸和田市立産業","岸和田産"]
[null,null,null,null,null,null,null,null,null,null,null,null,null,null,null,null,null,null,null,null,null,null,null,null,null,null,null,null,null,null,null,null,null,null,null,null,null,null,null,null,null,null,null,null,null,null,null,null,null,null,null,null,null,null,null,null,null,null,null,null,null,null,null,null,null,null,null,null,null,null,null,null,null,null,null,null,null,null,null,null,null,null,null,null,null,null,null,null,null,null,null,null,null,null,null,null,null,null,null,null,null,null,null,null,null,null,null,null,null,null,null,null,null,null,null,null,null,null,null,null,null,null,null,null,null,null,null,null,null,null,null,null,null,null,null,null,null,null,null,null,null,null,null,null,null,null,null,null,null,null,null,null,null,null,null,null,null,null,null,null,null,null,null,null,null,null,null,null,null,null,null,null,null,null,null,null,396,"咲くやこの花","咲　　花"]
[null,null,null,null,null,null,"ふりがな",null,null,null,null,null,null,null,null,null,null,null,null,null,null,null,null,null,null,null,null,null,null,null,null,null,null,null,null,null,null,null,null,null,null,null,null,null,null,null,null,null,null,null,null,null,null,null,null,null,null,null,"・",null,null,null,"・",null,null,null,null,null,null,null,null,null,null,null,null,null,null,null,null,null,null,null,null,null,null,null,null,null,null,null,null,null,null,null,null,null,null,null,null,null,null,null,null,null,null,null,null,null,null,null,null,null,null,null,null,null,null,null,null,null,null,null,null,null,null,null,null,null,null,null,null,null,null,null,null,null,null,null,null,null,null,null,null,null,null,null,null,null,null,null,null,null,null,null,null,null,null,null,null,null,null,null,null,null,null,null,null,null,null,null,null,null,null,null,null,null,397,"堺市立堺","堺市立堺"]
[null,null,null,null,null,null,"（姓）",null,null,null,null,null,null,null,null,null,null,null,null,null,null,null,"（名）",null,null,null,null,null,null,null,null,null,null,null,null,null,null,null,null,null,null,null,null,null,null,null,null,null,null,null,null,null,null,null,null,null,null,null,null,null,null,null,null,null,null,null,null,null,null,null,null,null,null,null,null,null,null,null,null,null,null,null,null,null,null,null,null,null,null,null,null,null,null,null,null,null,null,null,null,null,null,null,null,null,null,null,null,null,null,null,null,null,null,null,null,null,null,null,null,null,null,null,null,null,null,null,null,null,null,null,null,null,null,null,null,null,null,null,null,null,null,null,null,null,null,null,null,null,null,null,null,null,null,null,null,null,null,null,null,null,null,null,null,null,null,null,null,null,null,null,null,null,null,null,null,null,398,"大阪商業大学堺","商 大 堺　"]
[null,null,null,null,null,null,null,null,null,null,null,null,null,null,null,null,null,null,null,null,null,null,null,null,null,null,null,null,null,null,null,null,null,null,null,null,null,null,null,null,null,null,null,null,null,null,null,null,null,null,null,null,null,null,null,null,null,null,null,null,null,null,null,null,null,null,null,null,null,null,null,null,null,null,null,null,null,null,null,null,null,null,null,null,null,null,null,null,null,null,null,null,null,null,null,null,null,null,null,null,null,null,null,null,null,null,null,null,null,null,null,null,null,null,null,null,null,null,null,null,null,null,null,null,null,null,null,null,null,null,null,null,null,null,null,null,null,null,null,null,null,null,null,null,null,null,null,null,null,null,null,null,null,null,null,null,null,null,null,null,null,null,null,null,null,null,null,null,null,null,null,null,null,null,null,null,399,"大阪学芸","大阪学芸"]
[null,null,null,null,null,null,null,null,null,null,null,null,null,null,null,null,null,null,null,null,null,null,null,null,null,null,null,null,null,null,null,null,null,null,null,null,null,null,null,null,null,null,null,null,null,null,null,null,null,null,null,null,null,null,null,null,null,null,null,null,null,null,null,null,null,null,null,null,null,null,null,null,null,null,null,null,null,null,null,null,null,null,null,null,null,null,null,null,null,null,null,null,null,null,null,null,null,null,null,null,null,null,null,null,null,null,null,null,null,null,null,null,null,null,null,null,null,null,null,null,null,null,null,null,null,null,null,null,null,null,null,null,null,null,null,null,null,null,null,null,null,null,null,null,null,null,null,null,null,null,null,null,null,null,null,null,null,null,null,null,null,null,null,null,null,null,null,null,null,null,null,null,null,null,null,null,400,"清教学園","清教学園"]
[null,null,null,null,null,null,"ふりがな",null,null,null,null,null,null,null,null,null,null,null,null,null,null,null,null,null,null,null,null,null,null,null,null,null,null,null,null,null,null,null,null,null,null,null,null,null,null,null,null,null,null,null,null,null,null,null,null,null,null,null,"・",null,null,null,"・",null,null,null,null,null,null,null,null,null,null,null,null,null,null,null,null,null,null,null,null,null,null,null,null,null,null,null,null,null,null,null,null,null,null,null,null,null,null,null,null,null,null,null,null,null,null,null,null,null,null,null,null,null,null,null,null,null,null,null,null,null,null,null,null,null,null,null,null,null,null,null,null,null,null,null,null,null,null,null,null,null,null,null,null,null,null,null,null,null,null,null,null,null,null,null,null,null,null,null,null,null,null,null,null,null,null,null,null,null,null,null,null,null,401,"浪速","浪　　速"]
[null,null,null,null,null,null,"（姓）",null,null,null,null,null,null,null,null,null,null,null,null,null,null,null,"（名）",null,null,null,null,null,null,null,null,null,null,null,null,null,null,null,null,null,null,null,null,null,null,null,null,null,null,null,null,null,null,null,null,null,null,null,null,null,null,null,null,null,null,null,null,null,null,null,null,null,null,null,null,null,null,null,null,null,null,null,null,null,null,null,null,null,null,null,null,null,null,null,null,null,null,null,null,null,null,null,null,null,null,null,null,null,null,null,null,null,null,null,null,null,null,null,null,null,null,null,null,null,null,null,null,null,null,null,null,null,null,null,null,null,null,null,null,null,null,null,null,null,null,null,null,null,null,null,null,null,null,null,null,null,null,null,null,null,null,null,null,null,null,null,null,null,null,null,null,null,null,null,null,null,402,"初芝立命館","初芝立命"]
[null,null,null,null,null,null,null,null,null,null,null,null,null,null,null,null,null,null,null,null,null,null,null,null,null,null,null,null,null,null,null,null,null,null,null,null,null,null,null,null,null,null,null,null,null,null,null,null,null,null,null,null,null,null,null,null,null,null,null,null,null,null,null,null,null,null,null,null,null,null,null,null,null,null,null,null,null,null,null,null,null,null,null,null,null,null,null,null,null,null,null,null,null,null,null,null,null,null,null,null,null,null,null,null,null,null,null,null,null,null,null,null,null,null,null,null,null,null,null,null,null,null,null,null,null,null,null,null,null,null,null,null,null,null,null,null,null,null,null,null,null,null,null,null,null,null,null,null,null,null,null,null,null,null,null,null,null,null,null,null,null,null,null,null,null,null,null,null,null,null,null,null,null,null,null,null,403,"清風南海","清風南海"]
[null,null,null,null,null,null,null,null,null,null,null,null,null,null,null,null,null,null,null,null,null,null,null,null,null,null,null,null,null,null,null,null,null,null,null,null,null,null,null,null,null,null,null,null,null,null,null,null,null,null,null,null,null,null,null,null,null,null,null,null,null,null,null,null,null,null,null,null,null,null,null,null,null,null,null,null,null,null,null,null,null,null,null,null,null,null,null,null,null,null,null,null,null,null,null,null,null,null,null,null,null,null,null,null,null,null,null,null,null,null,null,null,null,null,null,null,null,null,null,null,null,null,null,null,null,null,null,null,null,null,null,null,null,null,null,null,null,null,null,null,null,null,null,null,null,null,null,null,null,null,null,null,null,null,null,null,null,null,null,null,null,null,null,null,null,null,null,null,null,null,null,null,null,null,null,null,404,"帝塚山泉ヶ丘","帝塚山泉"]
[null,null,null,null,null,null,"ふりがな",null,null,null,null,null,null,null,null,null,null,null,null,null,null,null,null,null,null,null,null,null,null,null,null,null,null,null,null,null,null,null,null,null,null,null,null,null,null,null,null,null,null,null,null,null,null,null,null,null,null,null,"・",null,null,null,"・",null,null,null,null,null,null,null,null,null,null,null,null,null,null,null,null,null,null,null,null,null,null,null,null,null,null,null,null,null,null,null,null,null,null,null,null,null,null,null,null,null,null,null,null,null,null,null,null,null,null,null,null,null,null,null,null,null,null,null,null,null,null,null,null,null,null,null,null,null,null,null,null,null,null,null,null,null,null,null,null,null,null,null,null,null,null,null,null,null,null,null,null,null,null,null,null,null,null,null,null,null,null,null,null,null,null,null,null,null,null,null,null,null,405,"金剛学園","金剛学園"]
[null,null,null,null,null,null,"（姓）",null,null,null,null,null,null,null,null,null,null,null,null,null,null,null,"（名）",null,null,null,null,null,null,null,null,null,null,null,null,null,null,null,null,null,null,null,null,null,null,null,null,null,null,null,null,null,null,null,null,null,null,null,null,null,null,null,null,null,null,null,null,null,null,null,null,null,null,null,null,null,null,null,null,null,null,null,null,null,null,null,null,null,null,null,null,null,null,null,null,null,null,null,null,null,null,null,null,null,null,null,null,null,null,null,null,null,null,null,null,null,null,null,null,null,null,null,null,null,null,null,null,null,null,null,null,null,null,null,null,null,null,null,null,null,null,null,null,null,null,null,null,null,null,null,null,null,null,null,null,null,null,null,null,null,null,null,null,null,null,null,null,null,null,null,null,null,null,null,null,null,406,"大体大浪商","体大浪商"]
[null,null,null,null,null,null,null,null,null,null,null,null,null,null,null,null,null,null,null,null,null,null,null,null,null,null,null,null,null,null,null,null,null,null,null,null,null,null,null,null,null,null,null,null,null,null,null,null,null,null,null,null,null,null,null,null,null,null,null,null,null,null,null,null,null,null,null,null,null,null,null,null,null,null,null,null,null,null,null,null,null,null,null,null,null,null,null,null,null,null,null,null,null,null,null,null,null,null,null,null,null,null,null,null,null,null,null,null,null,null,null,null,null,null,null,null,null,null,null,null,null,null,null,null,null,null,null,null,null,null,null,null,null,null,null,null,null,null,null,null,null,null,null,null,null,null,null,null,null,null,null,null,null,null,null,null,null,null,null,null,null,null,null,null,null,null,null,null,null,null,null,null,null,null,null,null,407,"教育大天王寺","教大天王"]
[null,null,null,null,null,null,null,null,null,null,null,null,null,null,null,null,null,null,null,null,null,null,null,null,null,null,null,null,null,null,null,null,null,null,null,null,null,null,null,null,null,null,null,null,null,null,null,null,null,null,null,null,null,null,null,null,null,null,null,null,null,null,null,null,null,null,null,null,null,null,null,null,null,null,null,null,null,null,null,null,null,null,null,null,null,null,null,null,null,null,null,null,null,null,null,null,null,null,null,null,null,null,null,null,null,null,null,null,null,null,null,null,null,null,null,null,null,null,null,null,null,null,null,null,null,null,null,null,null,null,null,null,null,null,null,null,null,null,null,null,null,null,null,null,null,null,null,null,null,null,null,null,null,null,null,null,null,null,null,null,null,null,null,null,null,null,null,null,null,null,null,null,null,null,null,null,408,"教育大附平野","教大平野"]
[null,null,null,null,null,null,"ふりがな",null,null,null,null,null,null,null,null,null,null,null,null,null,null,null,null,null,null,null,null,null,null,null,null,null,null,null,null,null,null,null,null,null,null,null,null,null,null,null,null,null,null,null,null,null,null,null,null,null,null,null,"・",null,null,null,"・",null,null,null,null,null,null,null,null,null,null,null,null,null,null,null,null,null,null,null,null,null,null,null,null,null,null,null,null,null,null,null,null,null,null,null,null,null,null,null,null,null,null,null,null,null,null,null,null,null,null,null,null,null,null,null,null,null,null,null,null,null,null,null,null,null,null,null,null,null,null,null,null,null,null,null,null,null,null,null,null,null,null,null,null,null,null,null,null,null,null,null,null,null,null,null,null,null,null,null,null,null,null,null,null,null,null,null,null,null,null,null,null,null,409,"阿倍野","阿 倍 野"]
[null,null,null,null,null,null,"（姓）",null,null,null,null,null,null,null,null,null,null,null,null,null,null,null,"（名）",null,null,null,null,null,null,null,null,null,null,null,null,null,null,null,null,null,null,null,null,null,null,null,null,null,null,null,null,null,null,null,null,null,null,null,null,null,null,null,null,null,null,null,null,null,null,null,null,null,null,null,null,null,null,null,null,null,null,null,null,null,null,null,null,null,null,null,null,null,null,null,null,null,null,null,null,null,null,null,null,null,null,null,null,null,null,null,null,null,null,null,null,null,null,null,null,null,null,null,null,null,null,null,null,null,null,null,null,null,null,null,null,null,null,null,null,null,null,null,null,null,null,null,null,null,null,null,null,null,null,null,null,null,null,null,null,null,null,null,null,null,null,null,null,null,null,null,null,null,null,null,null,null,410,"生野","生　　野"]
[null,null,null,null,null,null,null,null,null,null,null,null,null,null,null,null,null,null,null,null,null,null,null,null,null,null,null,null,null,null,null,null,null,null,null,null,null,null,null,null,null,null,null,null,null,null,null,null,null,null,null,null,null,null,null,null,null,null,null,null,null,null,null,null,null,null,null,null,null,null,null,null,null,null,null,null,null,null,null,null,null,null,null,null,null,null,null,null,null,null,null,null,null,null,null,null,null,null,null,null,null,null,null,null,null,null,null,null,null,null,null,null,null,null,null,null,null,null,null,null,null,null,null,null,null,null,null,null,null,null,null,null,null,null,null,null,null,null,null,null,null,null,null,null,null,null,null,null,null,null,null,null,null,null,null,null,null,null,null,null,null,null,null,null,null,null,null,null,null,null,null,null,null,null,null,null,411,"みどり清朋","み ど り"]
[null,null,null,null,null,null,null,null,null,null,null,null,null,null,null,null,null,null,null,null,null,null,null,null,null,null,null,null,null,null,null,null,null,null,null,null,null,null,null,null,null,null,null,null,null,null,null,null,null,null,null,null,null,null,null,null,null,null,null,null,null,null,null,null,null,null,null,null,null,null,null,null,null,null,null,null,null,null,null,null,null,null,null,null,null,null,null,null,null,null,null,null,null,null,null,null,null,null,null,null,null,null,null,null,null,null,null,null,null,null,null,null,null,null,null,null,null,null,null,null,null,null,null,null,null,null,null,null,null,null,null,null,null,null,null,null,null,null,null,null,null,null,null,null,null,null,null,null,null,null,null,null,null,null,null,null,null,null,null,null,null,null,null,null,null,null,null,null,null,null,null,null,null,null,null,null,412,"大塚","大　　塚"]
[null,null,null,null,null,null,"ふりがな",null,null,null,null,null,null,null,null,null,null,null,null,null,null,null,null,null,null,null,null,null,null,null,null,null,null,null,null,null,null,null,null,null,null,null,null,null,null,null,null,null,null,null,null,null,null,null,null,null,null,null,"・",null,null,null,"・",null,null,null,null,null,null,null,null,null,null,null,null,null,null,null,null,null,null,null,null,null,null,null,null,null,null,null,null,null,null,null,null,null,null,null,null,null,null,null,null,null,null,null,null,null,null,null,null,null,null,null,null,null,null,null,null,null,null,null,null,null,null,null,null,null,null,null,null,null,null,null,null,null,null,null,null,null,null,null,null,null,null,null,null,null,null,null,null,null,null,null,null,null,null,null,null,null,null,null,null,null,null,null,null,null,null,null,null,null,null,null,null,null,413,"柏原東","柏 原 東"]
[null,null,null,null,null,null,"（姓）",null,null,null,null,null,null,null,null,null,null,null,null,null,null,null,"（名）",null,null,null,null,null,null,null,null,null,null,null,null,null,null,null,null,null,null,null,null,null,null,null,null,null,null,null,null,null,null,null,null,null,null,null,null,null,null,null,null,null,null,null,null,null,null,null,null,null,null,null,null,null,null,null,null,null,null,null,null,null,null,null,null,null,null,null,null,null,null,null,null,null,null,null,null,null,null,null,null,null,null,null,null,null,null,null,null,null,null,null,null,null,null,null,null,null,null,null,null,null,null,null,null,null,null,null,null,null,null,null,null,null,null,null,null,null,null,null,null,null,null,null,null,null,null,null,null,null,null,null,null,null,null,null,null,null,null,null,null,null,null,null,null,null,null,null,null,null,null,null,null,null,414,"河南","河　　南"]
[null,null,null,null,null,null,null,null,null,null,null,null,null,null,null,null,null,null,null,null,null,null,null,null,null,null,null,null,null,null,null,null,null,null,null,null,null,null,null,null,null,null,null,null,null,null,null,null,null,null,null,null,null,null,null,null,null,null,null,null,null,null,null,null,null,null,null,null,null,null,null,null,null,null,null,null,null,null,null,null,null,null,null,null,null,null,null,null,null,null,null,null,null,null,null,null,null,null,null,null,null,null,null,null,null,null,null,null,null,null,null,null,null,null,null,null,null,null,null,null,null,null,null,null,null,null,null,null,null,null,null,null,null,null,null,null,null,null,null,null,null,null,null,null,null,null,null,null,null,null,null,null,null,null,null,null,null,null,null,null,null,null,null,null,null,null,null,null,null,null,null,null,null,null,null,null,416,"金剛","金　　剛"]
[null,null,null,null,null,null,null,null,null,null,null,null,null,null,null,null,null,null,null,null,null,null,null,null,null,null,null,null,null,null,null,null,null,null,null,null,null,null,null,null,null,null,null,null,null,null,null,null,null,null,null,null,null,null,null,null,null,null,null,null,null,null,null,null,null,null,null,null,null,null,null,null,null,null,null,null,null,null,null,null,null,null,null,null,null,null,null,null,null,null,null,null,null,null,null,null,null,null,null,null,null,null,null,null,null,null,null,null,null,null,null,null,null,null,null,null,null,null,null,null,null,null,null,null,null,null,null,null,null,null,null,null,null,null,null,null,null,null,null,null,null,null,null,null,null,null,null,null,null,null,null,null,null,null,null,null,null,null,null,null,null,null,null,null,null,null,null,null,null,null,null,null,null,null,null,null,417,"住吉","住　　吉"]
[null,null,null,null,null,null,"ふりがな",null,null,null,null,null,null,null,null,null,null,null,null,null,null,null,null,null,null,null,null,null,null,null,null,null,null,null,null,null,null,null,null,null,null,null,null,null,null,null,null,null,null,null,null,null,null,null,null,null,null,null,"・",null,null,null,"・",null,null,null,null,null,null,null,null,null,null,null,null,null,null,null,null,null,null,null,null,null,null,null,null,null,null,null,null,null,null,null,null,null,null,null,null,null,null,null,null,null,null,null,null,null,null,null,null,null,null,null,null,null,null,null,null,null,null,null,null,null,null,null,null,null,null,null,null,null,null,null,null,null,null,null,null,null,null,null,null,null,null,null,null,null,null,null,null,null,null,null,null,null,null,null,null,null,null,null,null,null,null,null,null,null,null,null,null,null,null,null,null,null,419,"天王寺","天 王 寺"]
[null,null,null,null,null,null,"（姓）",null,null,null,null,null,null,null,null,null,null,null,null,null,null,null,"（名）",null,null,null,null,null,null,null,null,null,null,null,null,null,null,null,null,null,null,null,null,null,null,null,null,null,null,null,null,null,null,null,null,null,null,null,null,null,null,null,null,null,null,null,null,null,null,null,null,null,null,null,null,null,null,null,null,null,null,null,null,null,null,null,null,null,null,null,null,null,null,null,null,null,null,null,null,null,null,null,null,null,null,null,null,null,null,null,null,null,null,null,null,null,null,null,null,null,null,null,null,null,null,null,null,null,null,null,null,null,null,null,null,null,null,null,null,null,null,null,null,null,null,null,null,null,null,null,null,null,null,null,null,null,null,null,null,null,null,null,null,null,null,null,null,null,null,null,null,null,null,null,null,null,420,"富田林","富 田 林"]
[null,null,null,null,null,null,null,null,null,null,null,null,null,null,null,null,null,null,null,null,null,null,null,null,null,null,null,null,null,null,null,null,null,null,null,null,null,null,null,null,null,null,null,null,null,null,null,null,null,null,null,null,null,null,null,null,null,null,null,null,null,null,null,null,null,null,null,null,null,null,null,null,null,null,null,null,null,null,null,null,null,null,null,null,null,null,null,null,null,null,null,null,null,null,null,null,null,null,null,null,null,null,null,null,null,null,null,null,null,null,null,null,null,null,null,null,null,null,null,null,null,null,null,null,null,null,null,null,null,null,null,null,null,null,null,null,null,null,null,null,null,null,null,null,null,null,null,null,null,null,null,null,null,null,null,null,null,null,null,null,null,null,null,null,null,null,null,null,null,null,null,null,null,null,null,null,421,"長野","長　　野"]
[null,null,null,null,null,null,null,null,null,null,null,null,null,null,null,null,null,null,null,null,null,null,null,null,null,null,null,null,null,null,null,null,null,null,null,null,null,null,null,null,null,null,null,null,null,null,null,null,null,null,null,null,null,null,null,null,null,null,null,null,null,null,null,null,null,null,null,null,null,null,null,null,null,null,null,null,null,null,null,null,null,null,null,null,null,null,null,null,null,null,null,null,null,null,null,null,null,null,null,null,null,null,null,null,null,null,null,null,null,null,null,null,null,null,null,null,null,null,null,null,null,null,null,null,null,null,null,null,null,null,null,null,null,null,null,null,null,null,null,null,null,null,null,null,null,null,null,null,null,null,null,null,null,null,null,null,null,null,null,null,null,null,null,null,null,null,null,null,null,null,null,null,null,null,null,null,422,"長野北","長 野 北"]
[null,null,null,null,null,null,"ふりがな",null,null,null,null,null,null,null,null,null,null,null,null,null,null,null,null,null,null,null,null,null,null,null,null,null,null,null,null,null,null,null,null,null,null,null,null,null,null,null,null,null,null,null,null,null,null,null,null,null,null,null,"・",null,null,null,"・",null,null,null,null,null,null,null,null,null,null,null,null,null,null,null,null,null,null,null,null,null,null,null,null,null,null,null,null,null,null,null,null,null,null,null,null,null,null,null,null,null,null,null,null,null,null,null,null,null,null,null,null,null,null,null,null,null,null,null,null,null,null,null,null,null,null,null,null,null,null,null,null,null,null,null,null,null,null,null,null,null,null,null,null,null,null,null,null,null,null,null,null,null,null,null,null,null,null,null,null,null,null,null,null,null,null,null,null,null,null,null,null,null,423,"長吉","長　　吉"]
[null,null,null,null,null,null,"（姓）",null,null,null,null,null,null,null,null,null,null,null,null,null,null,null,"（名）",null,null,null,null,null,null,null,null,null,null,null,null,null,null,null,null,null,null,null,null,null,null,null,null,null,null,null,null,null,null,null,null,null,null,null,null,null,null,null,null,null,null,null,null,null,null,null,null,null,null,null,null,null,null,null,null,null,null,null,null,null,null,null,null,null,null,null,null,null,null,null,null,null,null,null,null,null,null,null,null,null,null,null,null,null,null,null,null,null,null,null,null,null,null,null,null,null,null,null,null,null,null,null,null,null,null,null,null,null,null,null,null,null,null,null,null,null,null,null,null,null,null,null,null,null,null,null,null,null,null,null,null,null,null,null,null,null,null,null,null,null,null,null,null,null,null,null,null,null,null,null,null,null,425,"花園","花　　園"]
[null,null,null,null,null,null,null,null,null,null,null,null,null,null,null,null,null,null,null,null,null,null,null,null,null,null,null,null,null,null,null,null,null,null,null,null,null,null,null,null,null,null,null,null,null,null,null,null,null,null,null,null,null,null,null,null,null,null,null,null,null,null,null,null,null,null,null,null,null,null,null,null,null,null,null,null,null,null,null,null,null,null,null,null,null,null,null,null,null,null,null,null,null,null,null,null,null,null,null,null,null,null,null,null,null,null,null,null,null,null,null,null,null,null,null,null,null,null,null,null,null,null,null,null,null,null,null,null,null,null,null,null,null,null,null,null,null,null,null,null,null,null,null,null,null,null,null,null,null,null,null,null,null,null,null,null,null,null,null,null,null,null,null,null,null,null,null,null,null,null,null,null,null,null,null,null,426,"懐風館","懐 風 館"]
[null,null,null,null,null,null,null,null,null,null,null,null,null,null,null,null,null,null,null,null,null,null,null,null,null,null,null,null,null,null,null,null,null,null,null,null,null,null,null,null,null,null,null,null,null,null,null,null,null,null,null,null,null,null,null,null,null,null,null,null,null,null,null,null,null,null,null,null,null,null,null,null,null,null,null,null,null,null,null,null,null,null,null,null,null,null,null,null,null,null,null,null,null,null,null,null,null,null,null,null,null,null,null,null,null,null,null,null,null,null,null,null,null,null,null,null,null,null,null,null,null,null,null,null,null,null,null,null,null,null,null,null,null,null,null,null,null,null,null,null,null,null,null,null,null,null,null,null,null,null,null,null,null,null,null,null,null,null,null,null,null,null,null,null,null,null,null,null,null,null,null,null,null,null,null,null,427,"東住吉","東 住 吉"]
[null,null,null,null,null,null,"ふりがな",null,null,null,null,null,null,null,null,null,null,null,null,null,null,null,null,null,null,null,null,null,null,null,null,null,null,null,null,null,null,null,null,null,null,null,null,null,null,null,null,null,null,null,null,null,null,null,null,null,null,null,"・",null,null,null,"・",null,null,null,null,null,null,null,null,null,null,null,null,null,null,null,null,null,null,null,null,null,null,null,null,null,null,null,null,null,null,null,null,null,null,null,null,null,null,null,null,null,null,null,null,null,null,null,null,null,null,null,null,null,null,null,null,null,null,null,null,null,null,null,null,null,null,null,null,null,null,null,null,null,null,null,null,null,null,null,null,null,null,null,null,null,null,null,null,null,null,null,null,null,null,null,null,null,null,null,null,null,null,null,null,null,null,null,null,null,null,null,null,null,428,"平野","平　　野"]
[null,null,null,null,null,null,"（姓）",null,null,null,null,null,null,null,null,null,null,null,null,null,null,null,"（名）",null,null,null,null,null,null,null,null,null,null,null,null,null,null,null,null,null,null,null,null,null,null,null,null,null,null,null,null,null,null,null,null,null,null,null,null,null,null,null,null,null,null,null,null,null,null,null,null,null,null,null,null,null,null,null,null,null,null,null,null,null,null,null,null,null,null,null,null,null,null,null,null,null,null,null,null,null,null,null,null,null,null,null,null,null,null,null,null,null,null,null,null,null,null,null,null,null,null,null,null,null,null,null,null,null,null,null,null,null,null,null,null,null,null,null,null,null,null,null,null,null,null,null,null,null,null,null,null,null,null,null,null,null,null,null,null,null,null,null,null,null,null,null,null,null,null,null,null,null,null,null,null,null,429,"藤井寺","藤 井 寺"]
[null,null,null,null,null,null,null,null,null,null,null,null,null,null,null,null,null,null,null,null,null,null,null,null,null,null,null,null,null,null,null,null,null,null,null,null,null,null,null,null,null,null,null,null,null,null,null,null,null,null,null,null,null,null,null,null,null,null,null,null,null,null,null,null,null,null,null,null,null,null,null,null,null,null,null,null,null,null,null,null,null,null,null,null,null,null,null,null,null,null,null,null,null,null,null,null,null,null,null,null,null,null,null,null,null,null,null,null,null,null,null,null,null,null,null,null,null,null,null,null,null,null,null,null,null,null,null,null,null,null,null,null,null,null,null,null,null,null,null,null,null,null,null,null,null,null,null,null,null,null,null,null,null,null,null,null,null,null,null,null,null,null,null,null,null,null,null,null,null,null,null,null,null,null,null,null,430,"布施","布　　施"]
[null,null,null,null,null,null,null,null,null,null,null,null,null,null,null,null,null,null,null,null,null,null,null,null,null,null,null,null,null,null,null,null,null,null,null,null,null,null,null,null,null,null,null,null,null,null,null,null,null,null,null,null,null,null,null,null,null,null,null,null,null,null,null,null,null,null,null,null,null,null,null,null,null,null,null,null,null,null,null,null,null,null,null,null,null,null,null,null,null,null,null,null,null,null,null,null,null,null,null,null,null,null,null,null,null,null,null,null,null,null,null,null,null,null,null,null,null,null,null,null,null,null,null,null,null,null,null,null,null,null,null,null,null,null,null,null,null,null,null,null,null,null,null,null,null,null,null,null,null,null,null,null,null,null,null,null,null,null,null,null,null,null,null,null,null,null,null,null,null,null,null,null,null,null,null,null,431,"布施北","布 施 北"]
[null,null,null,null,null,null,"ふりがな",null,null,null,null,null,null,null,null,null,null,null,null,null,null,null,null,null,null,null,null,null,null,null,null,null,null,null,null,null,null,null,null,null,null,null,null,null,null,null,null,null,null,null,null,null,null,null,null,null,null,null,"・",null,null,null,"・",null,null,null,null,null,null,null,null,null,null,null,null,null,null,null,null,null,null,null,null,null,null,null,null,null,null,null,null,null,null,null,null,null,null,null,null,null,null,null,null,null,null,null,null,null,null,null,null,null,null,null,null,null,null,null,null,null,null,null,null,null,null,null,null,null,null,null,null,null,null,null,null,null,null,null,null,null,null,null,null,null,null,null,null,null,null,null,null,null,null,null,null,null,null,null,null,null,null,null,null,null,null,null,null,null,null,null,null,null,null,null,null,null,432,"松原","松　　原"]
[null,null,null,null,null,null,"（姓）",null,null,null,null,null,null,null,null,null,null,null,null,null,null,null,"（名）",null,null,null,null,null,null,null,null,null,null,null,null,null,null,null,null,null,null,null,null,null,null,null,null,null,null,null,null,null,null,null,null,null,null,null,null,null,null,null,null,null,null,null,null,null,null,null,null,null,null,null,null,null,null,null,null,null,null,null,null,null,null,null,null,null,null,null,null,null,null,null,null,null,null,null,null,null,null,null,null,null,null,null,null,null,null,null,null,null,null,null,null,null,null,null,null,null,null,null,null,null,null,null,null,null,null,null,null,null,null,null,null,null,null,null,null,null,null,null,null,null,null,null,null,null,null,null,null,null,null,null,null,null,null,null,null,null,null,null,null,null,null,null,null,null,null,null,null,null,null,null,null,null,433,"美原","美　　原"]
[null,null,null,null,null,null,null,null,null,null,null,null,null,null,null,null,null,null,null,null,null,null,null,null,null,null,null,null,null,null,null,null,null,null,null,null,null,null,null,null,null,null,null,null,null,null,null,null,null,null,null,null,null,null,null,null,null,null,null,null,null,null,null,null,null,null,null,null,null,null,null,null,null,null,null,null,null,null,null,null,null,null,null,null,null,null,null,null,null,null,null,null,null,null,null,null,null,null,null,null,null,null,null,null,null,null,null,null,null,null,null,null,null,null,null,null,null,null,null,null,null,null,null,null,null,null,null,null,null,null,null,null,null,null,null,null,null,null,null,null,null,null,null,null,null,null,null,null,null,null,null,null,null,null,null,null,null,null,null,null,null,null,null,null,null,null,null,null,null,null,null,null,null,null,null,null,434,"八尾","八　　尾"]
[null,null,null,null,null,null,null,null,null,null,null,null,null,null,null,null,null,null,null,null,null,null,null,null,null,null,null,null,null,null,null,null,null,null,null,null,null,null,null,null,null,null,null,null,null,null,null,null,null,null,null,null,null,null,null,null,null,null,null,null,null,null,null,null,null,null,null,null,null,null,null,null,null,null,null,null,null,null,null,null,null,null,null,null,null,null,null,null,null,null,null,null,null,null,null,null,null,null,null,null,null,null,null,null,null,null,null,null,null,null,null,null,null,null,null,null,null,null,null,null,null,null,null,null,null,null,null,null,null,null,null,null,null,null,null,null,null,null,null,null,null,null,null,null,null,null,null,null,null,null,null,null,null,null,null,null,null,null,null,null,null,null,null,null,null,null,null,null,null,null,null,null,null,null,null,null,435,"八尾北","八 尾 北"]
[null,null,null,null,null,null,"ふりがな",null,null,null,null,null,null,null,null,null,null,null,null,null,null,null,null,null,null,null,null,null,null,null,null,null,null,null,null,null,null,null,null,null,null,null,null,null,null,null,null,null,null,null,null,null,null,null,null,null,null,null,"・",null,null,null,"・",null,null,null,null,null,null,null,null,null,null,null,null,null,null,null,null,null,null,null,null,null,null,null,null,null,null,null,null,null,null,null,null,null,null,null,null,null,null,null,null,null,null,null,null,null,null,null,null,null,null,null,null,null,null,null,null,null,null,null,null,null,null,null,null,null,null,null,null,null,null,null,null,null,null,null,null,null,null,null,null,null,null,null,null,null,null,null,null,null,null,null,null,null,null,null,null,null,null,null,null,null,null,null,null,null,null,null,null,null,null,null,null,null,436,"八尾翠翔","八尾翠翔"]
[null,null,null,null,null,null,"（姓）",null,null,null,null,null,null,null,null,null,null,null,null,null,null,null,"（名）",null,null,null,null,null,null,null,null,null,null,null,null,null,null,null,null,null,null,null,null,null,null,null,null,null,null,null,null,null,null,null,null,null,null,null,null,null,null,null,null,null,null,null,null,null,null,null,null,null,null,null,null,null,null,null,null,null,null,null,null,null,null,null,null,null,null,null,null,null,null,null,null,null,null,null,null,null,null,null,null,null,null,null,null,null,null,null,null,null,null,null,null,null,null,null,null,null,null,null,null,null,null,null,null,null,null,null,null,null,null,null,null,null,null,null,null,null,null,null,null,null,null,null,null,null,null,null,null,null,null,null,null,null,null,null,null,null,null,null,null,null,null,null,null,null,null,null,null,null,null,null,null,null,438,"山本","山　　本"]
[null,null,null,null,null,null,null,null,null,null,null,null,null,null,null,null,null,null,null,null,null,null,null,null,null,null,null,null,null,null,null,null,null,null,null,null,null,null,null,null,null,null,null,null,null,null,null,null,null,null,null,null,null,null,null,null,null,null,null,null,null,null,null,null,null,null,null,null,null,null,null,null,null,null,null,null,null,null,null,null,null,null,null,null,null,null,null,null,null,null,null,null,null,null,null,null,null,null,null,null,null,null,null,null,null,null,null,null,null,null,null,null,null,null,null,null,null,null,null,null,null,null,null,null,null,null,null,null,null,null,null,null,null,null,null,null,null,null,null,null,null,null,null,null,null,null,null,null,null,null,null,null,null,null,null,null,null,null,null,null,null,null,null,null,null,null,null,null,null,null,null,null,null,null,null,null,439,"枚岡樟風","牧岡樟風"]
[null,null,null,null,null,null,null,null,null,null,null,null,null,null,null,null,null,null,null,null,null,null,null,null,null,null,null,null,null,null,null,null,null,null,null,null,null,null,null,null,null,null,null,null,null,null,null,null,null,null,null,null,null,null,null,null,null,null,null,null,null,null,null,null,null,null,null,null,null,null,null,null,null,null,null,null,null,null,null,null,null,null,null,null,null,null,null,null,null,null,null,null,null,null,null,null,null,null,null,null,null,null,null,null,null,null,null,null,null,null,null,null,null,null,null,null,null,null,null,null,null,null,null,null,null,null,null,null,null,null,null,null,null,null,null,null,null,null,null,null,null,null,null,null,null,null,null,null,null,null,null,null,null,null,null,null,null,null,null,null,null,null,null,null,null,null,null,null,null,null,null,null,null,null,null,null,440,"農芸","農　　芸"]
[null,null,null,null,null,null,"ふりがな",null,null,null,null,null,null,null,null,null,null,null,null,null,null,null,null,null,null,null,null,null,null,null,null,null,null,null,null,null,null,null,null,null,null,null,null,null,null,null,null,null,null,null,null,null,null,null,null,null,null,null,"・",null,null,null,"・",null,null,null,null,null,null,null,null,null,null,null,null,null,null,null,null,null,null,null,null,null,null,null,null,null,null,null,null,null,null,null,null,null,null,null,null,null,null,null,null,null,null,null,null,null,null,null,null,null,null,null,null,null,null,null,null,null,null,null,null,null,null,null,null,null,null,null,null,null,null,null,null,null,null,null,null,null,null,null,null,null,null,null,null,null,null,null,null,null,null,null,null,null,null,null,null,null,null,null,null,null,null,null,null,null,null,null,null,null,null,null,null,null,441,"東住吉総合","東住吉総"]
[null,null,null,null,null,null,"（姓）",null,null,null,null,null,null,null,null,null,null,null,null,null,null,null,"（名）",null,null,null,null,null,null,null,null,null,null,null,null,null,null,null,null,null,null,null,null,null,null,null,null,null,null,null,null,null,null,null,null,null,null,null,null,null,null,null,null,null,null,null,null,null,null,null,null,null,null,null,null,null,null,null,null,null,null,null,null,null,null,null,null,null,null,null,null,null,null,null,null,null,null,null,null,null,null,null,null,null,null,null,null,null,null,null,null,null,null,null,null,null,null,null,null,null,null,null,null,null,null,null,null,null,null,null,null,null,null,null,null,null,null,null,null,null,null,null,null,null,null,null,null,null,null,null,null,null,null,null,null,null,null,null,null,null,null,null,null,null,null,null,null,null,null,null,null,null,null,null,null,null,442,"藤井寺工科","藤井寺工"]
[null,null,null,null,null,null,null,null,null,null,null,null,null,null,null,null,null,null,null,null,null,null,null,null,null,null,null,null,null,null,null,null,null,null,null,null,null,null,null,null,null,null,null,null,null,null,null,null,null,null,null,null,null,null,null,null,null,null,null,null,null,null,null,null,null,null,null,null,null,null,null,null,null,null,null,null,null,null,null,null,null,null,null,null,null,null,null,null,null,null,null,null,null,null,null,null,null,null,null,null,null,null,null,null,null,null,null,null,null,null,null,null,null,null,null,null,null,null,null,null,null,null,null,null,null,null,null,null,null,null,null,null,null,null,null,null,null,null,null,null,null,null,null,null,null,null,null,null,null,null,null,null,null,null,null,null,null,null,null,null,null,null,null,null,null,null,null,null,null,null,null,null,null,null,null,null,443,"布施工科","布施工科"]
[null,null,null,null,null,null,null,null,null,null,null,null,null,null,null,null,null,null,null,null,null,null,null,null,null,null,null,null,null,null,null,null,null,null,null,null,null,null,null,null,null,null,null,null,null,null,null,null,null,null,null,null,null,null,null,null,null,null,null,null,null,null,null,null,null,null,null,null,null,null,null,null,null,null,null,null,null,null,null,null,null,null,null,null,null,null,null,null,null,null,null,null,null,null,null,null,null,null,null,null,null,null,null,null,null,null,null,null,null,null,null,null,null,null,null,null,null,null,null,null,null,null,null,null,null,null,null,null,null,null,null,null,null,null,null,null,null,null,null,null,null,null,null,null,null,null,null,null,null,null,null,null,null,null,null,null,null,null,null,null,null,null,null,null,null,null,null,null,null,null,null,null,null,null,null,null,445,"日新","日　　新"]
[null,null,null,null,null,null,"ふりがな",null,null,null,null,null,null,null,null,null,null,null,null,null,null,null,null,null,null,null,null,null,null,null,null,null,null,null,null,null,null,null,null,null,null,null,null,null,null,null,null,null,null,null,null,null,null,null,null,null,null,null,"・",null,null,null,"・",null,null,null,null,null,null,null,null,null,null,null,null,null,null,null,null,null,null,null,null,null,null,null,null,null,null,null,null,null,null,null,null,null,null,null,null,null,null,null,null,null,null,null,null,null,null,null,null,null,null,null,null,null,null,null,null,null,null,null,null,null,null,null,null,null,null,null,null,null,null,null,null,null,null,null,null,null,null,null,null,null,null,null,null,null,null,null,null,null,null,null,null,null,null,null,null,null,null,null,null,null,null,null,null,null,null,null,null,null,null,null,null,null,446,"上宮","上　　宮"]
[null,null,null,null,null,null,"（姓）",null,null,null,null,null,null,null,null,null,null,null,null,null,null,null,"（名）",null,null,null,null,null,null,null,null,null,null,null,null,null,null,null,null,null,null,null,null,null,null,null,null,null,null,null,null,null,null,null,null,null,null,null,null,null,null,null,null,null,null,null,null,null,null,null,null,null,null,null,null,null,null,null,null,null,null,null,null,null,null,null,null,null,null,null,null,null,null,null,null,null,null,null,null,null,null,null,null,null,null,null,null,null,null,null,null,null,null,null,null,null,null,null,null,null,null,null,null,null,null,null,null,null,null,null,null,null,null,null,null,null,null,null,null,null,null,null,null,null,null,null,null,null,null,null,null,null,null,null,null,null,null,null,null,null,null,null,null,null,null,null,null,null,null,null,null,null,null,null,null,null,447,"金光八尾","金光八尾"]
[null,null,null,null,null,null,null,null,null,null,null,null,null,null,null,null,null,null,null,null,null,null,null,null,null,null,null,null,null,null,null,null,null,null,null,null,null,null,null,null,null,null,null,null,null,null,null,null,null,null,null,null,null,null,null,null,null,null,null,null,null,null,null,null,null,null,null,null,null,null,null,null,null,null,null,null,null,null,null,null,null,null,null,null,null,null,null,null,null,null,null,null,null,null,null,null,null,null,null,null,null,null,null,null,null,null,null,null,null,null,null,null,null,null,null,null,null,null,null,null,null,null,null,null,null,null,null,null,null,null,null,null,null,null,null,null,null,null,null,null,null,null,null,null,null,null,null,null,null,null,null,null,null,null,null,null,null,null,null,null,null,null,null,null,null,null,null,null,null,null,null,null,null,null,null,null,448,"阪南大学","阪南大学"]
[null,null,null,null,null,null,null,null,null,null,null,null,null,null,null,null,null,null,null,null,null,null,null,null,null,null,null,null,null,null,null,null,null,null,null,null,null,null,null,null,null,null,null,null,null,null,null,null,null,null,null,null,null,null,null,null,null,null,null,null,null,null,null,null,null,null,null,null,null,null,null,null,null,null,null,null,null,null,null,null,null,null,null,null,null,null,null,null,null,null,null,null,null,null,null,null,null,null,null,null,null,null,null,null,null,null,null,null,null,null,null,null,null,null,null,null,null,null,null,null,null,null,null,null,null,null,null,null,null,null,null,null,null,null,null,null,null,null,null,null,null,null,null,null,null,null,null,null,null,null,null,null,null,null,null,null,null,null,null,null,null,null,null,null,null,null,null,null,null,null,null,null,null,null,null,null,449,"大阪商業大学","大 商 大"]
[null,null,null,null,null,null,"ふりがな",null,null,null,null,null,null,null,null,null,null,null,null,null,null,null,null,null,null,null,null,null,null,null,null,null,null,null,null,null,null,null,null,null,null,null,null,null,null,null,null,null,null,null,null,null,null,null,null,null,null,null,"・",null,null,null,"・",null,null,null,null,null,null,null,null,null,null,null,null,null,null,null,null,null,null,null,null,null,null,null,null,null,null,null,null,null,null,null,null,null,null,null,null,null,null,null,null,null,null,null,null,null,null,null,null,null,null,null,null,null,null,null,null,null,null,null,null,null,null,null,null,null,null,null,null,null,null,null,null,null,null,null,null,null,null,null,null,null,null,null,null,null,null,null,null,null,null,null,null,null,null,null,null,null,null,null,null,null,null,null,null,null,null,null,null,null,null,null,null,null,450,"東大阪大学柏原","東大柏原"]
[null,null,null,null,null,null,"（姓）",null,null,null,null,null,null,null,null,null,null,null,null,null,null,null,"（名）",null,null,null,null,null,null,null,null,null,null,null,null,null,null,null,null,null,null,null,null,null,null,null,null,null,null,null,null,null,null,null,null,null,null,null,null,null,null,null,null,null,null,null,null,null,null,null,null,null,null,null,null,null,null,null,null,null,null,null,null,null,null,null,null,null,null,null,null,null,null,null,null,null,null,null,null,null,null,null,null,null,null,null,null,null,null,null,null,null,null,null,null,null,null,null,null,null,null,null,null,null,null,null,null,null,null,null,null,null,null,null,null,null,null,null,null,null,null,null,null,null,null,null,null,null,null,null,null,null,null,null,null,null,null,null,null,null,null,null,null,null,null,null,null,null,null,null,null,null,null,null,null,null,451,"近畿大学附属","近大附属"]
[null,null,null,null,null,null,null,null,null,null,null,null,null,null,null,null,null,null,null,null,null,null,null,null,null,null,null,null,null,null,null,null,null,null,null,null,null,null,null,null,null,null,null,null,null,null,null,null,null,null,null,null,null,null,null,null,null,null,null,null,null,null,null,null,null,null,null,null,null,null,null,null,null,null,null,null,null,null,null,null,null,null,null,null,null,null,null,null,null,null,null,null,null,null,null,null,null,null,null,null,null,null,null,null,null,null,null,null,null,null,null,null,null,null,null,null,null,null,null,null,null,null,null,null,null,null,null,null,null,null,null,null,null,null,null,null,null,null,null,null,null,null,null,null,null,null,null,null,null,null,null,null,null,null,null,null,null,null,null,null,null,null,null,null,null,null,null,null,null,null,null,null,null,null,null,null,452,"興國","興　　國"]
[null,null,null,null,null,null,null,null,null,null,null,null,null,null,null,null,null,null,null,null,null,null,null,null,null,null,null,null,null,null,null,null,null,null,null,null,null,null,null,null,null,null,null,null,null,null,null,null,null,null,null,null,null,null,null,null,null,null,null,null,null,null,null,null,null,null,null,null,null,null,null,null,null,null,null,null,null,null,null,null,null,null,null,null,null,null,null,null,null,null,null,null,null,null,null,null,null,null,null,null,null,null,null,null,null,null,null,null,null,null,null,null,null,null,null,null,null,null,null,null,null,null,null,null,null,null,null,null,null,null,null,null,null,null,null,null,null,null,null,null,null,null,null,null,null,null,null,null,null,null,null,null,null,null,null,null,null,null,null,null,null,null,null,null,null,null,null,null,null,null,null,null,null,null,null,null,453,"四天王寺羽曳丘","四天羽曳"]
[null,null,null,null,null,null,"ふりがな",null,null,null,null,null,null,null,null,null,null,null,null,null,null,null,null,null,null,null,null,null,null,null,null,null,null,null,null,null,null,null,null,null,null,null,null,null,null,null,null,null,null,null,null,null,null,null,null,null,null,null,"・",null,null,null,"・",null,null,null,null,null,null,null,null,null,null,null,null,null,null,null,null,null,null,null,null,null,null,null,null,null,null,null,null,null,null,null,null,null,null,null,null,null,null,null,null,null,null,null,null,null,null,null,null,null,null,null,null,null,null,null,null,null,null,null,null,null,null,null,null,null,null,null,null,null,null,null,null,null,null,null,null,null,null,null,null,null,null,null,null,null,null,null,null,null,null,null,null,null,null,null,null,null,null,null,null,null,null,null,null,null,null,null,null,null,null,null,null,null,454,"大阪星光学院","星光学院"]
[null,null,null,null,null,null,"（姓）",null,null,null,null,null,null,null,null,null,null,null,null,null,null,null,"（名）",null,null,null,null,null,null,null,null,null,null,null,null,null,null,null,null,null,null,null,null,null,null,null,null,null,null,null,null,null,null,null,null,null,null,null,null,null,null,null,null,null,null,null,null,null,null,null,null,null,null,null,null,null,null,null,null,null,null,null,null,null,null,null,null,null,null,null,null,null,null,null,null,null,null,null,null,null,null,null,null,null,null,null,null,null,null,null,null,null,null,null,null,null,null,null,null,null,null,null,null,null,null,null,null,null,null,null,null,null,null,null,null,null,null,null,null,null,null,null,null,null,null,null,null,null,null,null,null,null,null,null,null,null,null,null,null,null,null,null,null,null,null,null,null,null,null,null,null,null,null,null,null,null,455,"清風","清　　風"]
[null,null,null,null,null,null,null,null,null,null,null,null,null,null,null,null,null,null,null,null,null,null,null,null,null,null,null,null,null,null,null,null,null,null,null,null,null,null,null,null,null,null,null,null,null,null,null,null,null,null,null,null,null,null,null,null,null,null,null,null,null,null,null,null,null,null,null,null,null,null,null,null,null,null,null,null,null,null,null,null,null,null,null,null,null,null,null,null,null,null,null,null,null,null,null,null,null,null,null,null,null,null,null,null,null,null,null,null,null,null,null,null,null,null,null,null,null,null,null,null,null,null,null,null,null,null,null,null,null,null,null,null,null,null,null,null,null,null,null,null,null,null,null,null,null,null,null,null,null,null,null,null,null,null,null,null,null,null,null,null,null,null,null,null,null,null,null,null,null,null,null,null,null,null,null,null,456,"ＰＬ学園","ＰＬ学園"]
[null,null,null,null,null,null,null,null,null,null,null,null,null,null,null,null,null,null,null,null,null,null,null,null,null,null,null,null,null,null,null,null,null,null,null,null,null,null,null,null,null,null,null,null,null,null,null,null,null,null,null,null,null,null,null,null,null,null,null,null,null,null,null,null,null,null,null,null,null,null,null,null,null,null,null,null,null,null,null,null,null,null,null,null,null,null,null,null,null,null,null,null,null,null,null,null,null,null,null,null,null,null,null,null,null,null,null,null,null,null,null,null,null,null,null,null,null,null,null,null,null,null,null,null,null,null,null,null,null,null,null,null,null,null,null,null,null,null,null,null,null,null,null,null,null,null,null,null,null,null,null,null,null,null,null,null,null,null,null,null,null,null,null,null,null,null,null,null,null,null,null,null,null,null,null,null,457,"桃山学院","桃山学院"]
[null,null,null,null,null,null,"ふりがな",null,null,null,null,null,null,null,null,null,null,null,null,null,null,null,null,null,null,null,null,null,null,null,null,null,null,null,null,null,null,null,null,null,null,null,null,null,null,null,null,null,null,null,null,null,null,null,null,null,null,null,"・",null,null,null,"・",null,null,null,null,null,null,null,null,null,null,null,null,null,null,null,null,null,null,null,null,null,null,null,null,null,null,null,null,null,null,null,null,null,null,null,null,null,null,null,null,null,null,null,null,null,null,null,null,null,null,null,null,null,null,null,null,null,null,null,null,null,null,null,null,null,null,null,null,null,null,null,null,null,null,null,null,null,null,null,null,null,null,null,null,null,null,null,null,null,null,null,null,null,null,null,null,null,null,null,null,null,null,null,null,null,null,null,null,null,null,null,null,null,458,"芥川","芥　　川"]
[null,null,null,null,null,null,"（姓）",null,null,null,null,null,null,null,null,null,null,null,null,null,null,null,"（名）",null,null,null,null,null,null,null,null,null,null,null,null,null,null,null,null,null,null,null,null,null,null,null,null,null,null,null,null,null,null,null,null,null,null,null,null,null,null,null,null,null,null,null,null,null,null,null,null,null,null,null,null,null,null,null,null,null,null,null,null,null,null,null,null,null,null,null,null,null,null,null,null,null,null,null,null,null,null,null,null,null,null,null,null,null,null,null,null,null,null,null,null,null,null,null,null,null,null,null,null,null,null,null,null,null,null,null,null,null,null,null,null,null,null,null,null,null,null,null,null,null,null,null,null,null,null,null,null,null,null,null,null,null,null,null,null,null,null,null,null,null,null,null,null,null,null,null,null,null,null,null,null,null,459,"阿武野","阿 武 野"]
[null,null,null,null,null,null,null,null,null,null,null,null,null,null,null,null,null,null,null,null,null,null,null,null,null,null,null,null,null,null,null,null,null,null,null,null,null,null,null,null,null,null,null,null,null,null,null,null,null,null,null,null,null,null,null,null,null,null,null,null,null,null,null,null,null,null,null,null,null,null,null,null,null,null,null,null,null,null,null,null,null,null,null,null,null,null,null,null,null,null,null,null,null,null,null,null,null,null,null,null,null,null,null,null,null,null,null,null,null,null,null,null,null,null,null,null,null,null,null,null,null,null,null,null,null,null,null,null,null,null,null,null,null,null,null,null,null,null,null,null,null,null,null,null,null,null,null,null,null,null,null,null,null,null,null,null,null,null,null,null,null,null,null,null,null,null,null,null,null,null,null,null,null,null,null,null,460,"池田","池　　田"]
[null,null,null,null,null,null,null,null,null,null,null,null,null,null,null,null,null,null,null,null,null,null,null,null,null,null,null,null,null,null,null,null,null,null,null,null,null,null,null,null,null,null,null,null,null,null,null,null,null,null,null,null,null,null,null,null,null,null,null,null,null,null,null,null,null,null,null,null,null,null,null,null,null,null,null,null,null,null,null,null,null,null,null,null,null,null,null,null,null,null,null,null,null,null,null,null,null,null,null,null,null,null,null,null,null,null,null,null,null,null,null,null,null,null,null,null,null,null,null,null,null,null,null,null,null,null,null,null,null,null,null,null,null,null,null,null,null,null,null,null,null,null,null,null,null,null,null,null,null,null,null,null,null,null,null,null,null,null,null,null,null,null,null,null,null,null,null,null,null,null,null,null,null,null,null,null,461,"池田北","池 田 北"]
[null,null,null,null,null,null,"ふりがな",null,null,null,null,null,null,null,null,null,null,null,null,null,null,null,null,null,null,null,null,null,null,null,null,null,null,null,null,null,null,null,null,null,null,null,null,null,null,null,null,null,null,null,null,null,null,null,null,null,null,null,"・",null,null,null,"・",null,null,null,null,null,null,null,null,null,null,null,null,null,null,null,null,null,null,null,null,null,null,null,null,null,null,null,null,null,null,null,null,null,null,null,null,null,null,null,null,null,null,null,null,null,null,null,null,null,null,null,null,null,null,null,null,null,null,null,null,null,null,null,null,null,null,null,null,null,null,null,null,null,null,null,null,null,null,null,null,null,null,null,null,null,null,null,null,null,null,null,null,null,null,null,null,null,null,null,null,null,null,null,null,null,null,null,null,null,null,null,null,null,462,"茨木","茨　　木"]
[null,null,null,null,null,null,"（姓）",null,null,null,null,null,null,null,null,null,null,null,null,null,null,null,"（名）",null,null,null,null,null,null,null,null,null,null,null,null,null,null,null,null,null,null,null,null,null,null,null,null,null,null,null,null,null,null,null,null,null,null,null,null,null,null,null,null,null,null,null,null,null,null,null,null,null,null,null,null,null,null,null,null,null,null,null,null,null,null,null,null,null,null,null,null,null,null,null,null,null,null,null,null,null,null,null,null,null,null,null,null,null,null,null,null,null,null,null,null,null,null,null,null,null,null,null,null,null,null,null,null,null,null,null,null,null,null,null,null,null,null,null,null,null,null,null,null,null,null,null,null,null,null,null,null,null,null,null,null,null,null,null,null,null,null,null,null,null,null,null,null,null,null,null,null,null,null,null,null,null,463,"茨木西","茨 木 西"]
[null,null,null,null,null,null,null,null,null,null,null,null,null,null,null,null,null,null,null,null,null,null,null,null,null,null,null,null,null,null,null,null,null,null,null,null,null,null,null,null,null,null,null,null,null,null,null,null,null,null,null,null,null,null,null,null,null,null,null,null,null,null,null,null,null,null,null,null,null,null,null,null,null,null,null,null,null,null,null,null,null,null,null,null,null,null,null,null,null,null,null,null,null,null,null,null,null,null,null,null,null,null,null,null,null,null,null,null,null,null,null,null,null,null,null,null,null,null,null,null,null,null,null,null,null,null,null,null,null,null,null,null,null,null,null,null,null,null,null,null,null,null,null,null,null,null,null,null,null,null,null,null,null,null,null,null,null,null,null,null,null,null,null,null,null,null,null,null,null,null,null,null,null,null,null,null,464,"北摂つばさ","北摂つば"]
[null,null,null,null,null,null,null,null,null,null,null,null,null,null,null,null,null,null,null,null,null,null,null,null,null,null,null,null,null,null,null,null,null,null,null,null,null,null,null,null,null,null,null,null,null,null,null,null,null,null,null,null,null,null,null,null,null,null,null,null,null,null,null,null,null,null,null,null,null,null,null,null,null,null,null,null,null,null,null,null,null,null,null,null,null,null,null,null,null,null,null,null,null,null,null,null,null,null,null,null,null,null,null,null,null,null,null,null,null,null,null,null,null,null,null,null,null,null,null,null,null,null,null,null,null,null,null,null,null,null,null,null,null,null,null,null,null,null,null,null,null,null,null,null,null,null,null,null,null,null,null,null,null,null,null,null,null,null,null,null,null,null,null,null,null,null,null,null,null,null,null,null,null,null,null,null,465,"園芸","園　　芸"]
[null,null,null,null,null,null,"ふりがな",null,null,null,null,null,null,null,null,null,null,null,null,null,null,null,null,null,null,null,null,null,null,null,null,null,null,null,null,null,null,null,null,null,null,null,null,null,null,null,null,null,null,null,null,null,null,null,null,null,null,null,"・",null,null,null,"・",null,null,null,null,null,null,null,null,null,null,null,null,null,null,null,null,null,null,null,null,null,null,null,null,null,null,null,null,null,null,null,null,null,null,null,null,null,null,null,null,null,null,null,null,null,null,null,null,null,null,null,null,null,null,null,null,null,null,null,null,null,null,null,null,null,null,null,null,null,null,null,null,null,null,null,null,null,null,null,null,null,null,null,null,null,null,null,null,null,null,null,null,null,null,null,null,null,null,null,null,null,null,null,null,null,null,null,null,null,null,null,null,null,466,"春日丘","春 日 丘"]
[null,null,null,null,null,null,"（姓）",null,null,null,null,null,null,null,null,null,null,null,null,null,null,null,"（名）",null,null,null,null,null,null,null,null,null,null,null,null,null,null,null,null,null,null,null,null,null,null,null,null,null,null,null,null,null,null,null,null,null,null,null,null,null,null,null,null,null,null,null,null,null,null,null,null,null,null,null,null,null,null,null,null,null,null,null,null,null,null,null,null,null,null,null,null,null,null,null,null,null,null,null,null,null,null,null,null,null,null,null,null,null,null,null,null,null,null,null,null,null,null,null,null,null,null,null,null,null,null,null,null,null,null,null,null,null,null,null,null,null,null,null,null,null,null,null,null,null,null,null,null,null,null,null,null,null,null,null,null,null,null,null,null,null,null,null,null,null,null,null,null,null,null,null,null,null,null,null,null,null,467,"北千里","北 千 里"]
[null,null,null,null,null,null,null,null,null,null,null,null,null,null,null,null,null,null,null,null,null,null,null,null,null,null,null,null,null,null,null,null,null,null,null,null,null,null,null,null,null,null,null,null,null,null,null,null,null,null,null,null,null,null,null,null,null,null,null,null,null,null,null,null,null,null,null,null,null,null,null,null,null,null,null,null,null,null,null,null,null,null,null,null,null,null,null,null,null,null,null,null,null,null,null,null,null,null,null,null,null,null,null,null,null,null,null,null,null,null,null,null,null,null,null,null,null,null,null,null,null,null,null,null,null,null,null,null,null,null,null,null,null,null,null,null,null,null,null,null,null,null,null,null,null,null,null,null,null,null,null,null,null,null,null,null,null,null,null,null,null,null,null,null,null,null,null,null,null,null,null,null,null,null,null,null,468,"北野","北　　野"]
[null,null,null,null,null,null,null,null,null,null,null,null,null,null,null,null,null,null,null,null,null,null,null,null,null,null,null,null,null,null,null,null,null,null,null,null,null,null,null,null,null,null,null,null,null,null,null,null,null,null,null,null,null,null,null,null,null,null,null,null,null,null,null,null,null,null,null,null,null,null,null,null,null,null,null,null,null,null,null,null,null,null,null,null,null,null,null,null,null,null,null,null,null,null,null,null,null,null,null,null,null,null,null,null,null,null,null,null,null,null,null,null,null,null,null,null,null,null,null,null,null,null,null,null,null,null,null,null,null,null,null,null,null,null,null,null,null,null,null,null,null,null,null,null,null,null,null,null,null,null,null,null,null,null,null,null,null,null,null,null,null,null,null,null,null,null,null,null,null,null,null,null,null,null,null,null,469,"柴島","柴　　島"]
[null,null,null,null,null,null,"ふりがな",null,null,null,null,null,null,null,null,null,null,null,null,null,null,null,null,null,null,null,null,null,null,null,null,null,null,null,null,null,null,null,null,null,null,null,null,null,null,null,null,null,null,null,null,null,null,null,null,null,null,null,"・",null,null,null,"・",null,null,null,null,null,null,null,null,null,null,null,null,null,null,null,null,null,null,null,null,null,null,null,null,null,null,null,null,null,null,null,null,null,null,null,null,null,null,null,null,null,null,null,null,null,null,null,null,null,null,null,null,null,null,null,null,null,null,null,null,null,null,null,null,null,null,null,null,null,null,null,null,null,null,null,null,null,null,null,null,null,null,null,null,null,null,null,null,null,null,null,null,null,null,null,null,null,null,null,null,null,null,null,null,null,null,null,null,null,null,null,null,null,470,"桜塚","桜　　塚"]
[null,null,null,null,null,null,"（姓）",null,null,null,null,null,null,null,null,null,null,null,null,null,null,null,"（名）",null,null,null,null,null,null,null,null,null,null,null,null,null,null,null,null,null,null,null,null,null,null,null,null,null,null,null,null,null,null,null,null,null,null,null,null,null,null,null,null,null,null,null,null,null,null,null,null,null,null,null,null,null,null,null,null,null,null,null,null,null,null,null,null,null,null,null,null,null,null,null,null,null,null,null,null,null,null,null,null,null,null,null,null,null,null,null,null,null,null,null,null,null,null,null,null,null,null,null,null,null,null,null,null,null,null,null,null,null,null,null,null,null,null,null,null,null,null,null,null,null,null,null,null,null,null,null,null,null,null,null,null,null,null,null,null,null,null,null,null,null,null,null,null,null,null,null,null,null,null,null,null,null,471,"渋谷","渋　　谷"]
[null,null,null,null,null,null,null,null,null,null,null,null,null,null,null,null,null,null,null,null,null,null,null,null,null,null,null,null,null,null,null,null,null,null,null,null,null,null,null,null,null,null,null,null,null,null,null,null,null,null,null,null,null,null,null,null,null,null,null,null,null,null,null,null,null,null,null,null,null,null,null,null,null,null,null,null,null,null,null,null,null,null,null,null,null,null,null,null,null,null,null,null,null,null,null,null,null,null,null,null,null,null,null,null,null,null,null,null,null,null,null,null,null,null,null,null,null,null,null,null,null,null,null,null,null,null,null,null,null,null,null,null,null,null,null,null,null,null,null,null,null,null,null,null,null,null,null,null,null,null,null,null,null,null,null,null,null,null,null,null,null,null,null,null,null,null,null,null,null,null,null,null,null,null,null,null,472,"金蘭千里","金蘭千里"]
[null,null,null,null,null,null,null,null,null,null,null,null,null,null,null,null,null,null,null,null,null,null,null,null,null,null,null,null,null,null,null,null,null,null,null,null,null,null,null,null,null,null,null,null,null,null,null,null,null,null,null,null,null,null,null,null,null,null,null,null,null,null,null,null,null,null,null,null,null,null,null,null,null,null,null,null,null,null,null,null,null,null,null,null,null,null,null,null,null,null,null,null,null,null,null,null,null,null,null,null,null,null,null,null,null,null,null,null,null,null,null,null,null,null,null,null,null,null,null,null,null,null,null,null,null,null,null,null,null,null,null,null,null,null,null,null,null,null,null,null,null,null,null,null,null,null,null,null,null,null,null,null,null,null,null,null,null,null,null,null,null,null,null,null,null,null,null,null,null,null,null,null,null,null,null,null,473,"槻の木","規 の 木"]
[null,null,null,null,null,null,"ふりがな",null,null,null,null,null,null,null,null,null,null,null,null,null,null,null,null,null,null,null,null,null,null,null,null,null,null,null,null,null,null,null,null,null,null,null,null,null,null,null,null,null,null,null,null,null,null,null,null,null,null,null,"・",null,null,null,"・",null,null,null,null,null,null,null,null,null,null,null,null,null,null,null,null,null,null,null,null,null,null,null,null,null,null,null,null,null,null,null,null,null,null,null,null,null,null,null,null,null,null,null,null,null,null,null,null,null,null,null,null,null,null,null,null,null,null,null,null,null,null,null,null,null,null,null,null,null,null,null,null,null,null,null,null,null,null,null,null,null,null,null,null,null,null,null,null,null,null,null,null,null,null,null,null,null,null,null,null,null,null,null,null,null,null,null,null,null,null,null,null,null,474,"島本","島　　本"]
[null,null,null,null,null,null,"（姓）",null,null,null,null,null,null,null,null,null,null,null,null,null,null,null,"（名）",null,null,null,null,null,null,null,null,null,null,null,null,null,null,null,null,null,null,null,null,null,null,null,null,null,null,null,null,null,null,null,null,null,null,null,null,null,null,null,null,null,null,null,null,null,null,null,null,null,null,null,null,null,null,null,null,null,null,null,null,null,null,null,null,null,null,null,null,null,null,null,null,null,null,null,null,null,null,null,null,null,null,null,null,null,null,null,null,null,null,null,null,null,null,null,null,null,null,null,null,null,null,null,null,null,null,null,null,null,null,null,null,null,null,null,null,null,null,null,null,null,null,null,null,null,null,null,null,null,null,null,null,null,null,null,null,null,null,null,null,null,null,null,null,null,null,null,null,null,null,null,null,null,476,"吹田","吹　　田"]
[null,null,null,null,null,null,null,null,null,null,null,null,null,null,null,null,null,null,null,null,null,null,null,null,null,null,null,null,null,null,null,null,null,null,null,null,null,null,null,null,null,null,null,null,null,null,null,null,null,null,null,null,null,null,null,null,null,null,null,null,null,null,null,null,null,null,null,null,null,null,null,null,null,null,null,null,null,null,null,null,null,null,null,null,null,null,null,null,null,null,null,null,null,null,null,null,null,null,null,null,null,null,null,null,null,null,null,null,null,null,null,null,null,null,null,null,null,null,null,null,null,null,null,null,null,null,null,null,null,null,null,null,null,null,null,null,null,null,null,null,null,null,null,null,null,null,null,null,null,null,null,null,null,null,null,null,null,null,null,null,null,null,null,null,null,null,null,null,null,null,null,null,null,null,null,null,477,"吹田東","吹 田 東"]
[null,null,null,null,null,null,null,null,null,null,null,null,null,null,null,null,null,null,null,null,null,null,null,null,null,null,null,null,null,null,null,null,null,null,null,null,null,null,null,null,null,null,null,null,null,null,null,null,null,null,null,null,null,null,null,null,null,null,null,null,null,null,null,null,null,null,null,null,null,null,null,null,null,null,null,null,null,null,null,null,null,null,null,null,null,null,null,null,null,null,null,null,null,null,null,null,null,null,null,null,null,null,null,null,null,null,null,null,null,null,null,null,null,null,null,null,null,null,null,null,null,null,null,null,null,null,null,null,null,null,null,null,null,null,null,null,null,null,null,null,null,null,null,null,null,null,null,null,null,null,null,null,null,null,null,null,null,null,null,null,null,null,null,null,null,null,null,null,null,null,null,null,null,null,null,null,478,"摂津","摂　　津"]
[null,null,null,null,null,null,"ふりがな",null,null,null,null,null,null,null,null,null,null,null,null,null,null,null,null,null,null,null,null,null,null,null,null,null,null,null,null,null,null,null,null,null,null,null,null,null,null,null,null,null,null,null,null,null,null,null,null,null,null,null,"・",null,null,null,"・",null,null,null,null,null,null,null,null,null,null,null,null,null,null,null,null,null,null,null,null,null,null,null,null,null,null,null,null,null,null,null,null,null,null,null,null,null,null,null,null,null,null,null,null,null,null,null,null,null,null,null,null,null,null,null,null,null,null,null,null,null,null,null,null,null,null,null,null,null,null,null,null,null,null,null,null,null,null,null,null,null,null,null,null,null,null,null,null,null,null,null,null,null,null,null,null,null,null,null,null,null,null,null,null,null,null,null,null,null,null,null,null,null,479,"千里","千　　里"]
[null,null,null,null,null,null,"（姓）",null,null,null,null,null,null,null,null,null,null,null,null,null,null,null,"（名）",null,null,null,null,null,null,null,null,null,null,null,null,null,null,null,null,null,null,null,null,null,null,null,null,null,null,null,null,null,null,null,null,null,null,null,null,null,null,null,null,null,null,null,null,null,null,null,null,null,null,null,null,null,null,null,null,null,null,null,null,null,null,null,null,null,null,null,null,null,null,null,null,null,null,null,null,null,null,null,null,null,null,null,null,null,null,null,null,null,null,null,null,null,null,null,null,null,null,null,null,null,null,null,null,null,null,null,null,null,null,null,null,null,null,null,null,null,null,null,null,null,null,null,null,null,null,null,null,null,null,null,null,null,null,null,null,null,null,null,null,null,null,null,null,null,null,null,null,null,null,null,null,null,480,"早稲田摂陵","早 稲 田"]
[null,null,null,null,null,null,null,null,null,null,null,null,null,null,null,null,null,null,null,null,null,null,null,null,null,null,null,null,null,null,null,null,null,null,null,null,null,null,null,null,null,null,null,null,null,null,null,null,null,null,null,null,null,null,null,null,null,null,null,null,null,null,null,null,null,null,null,null,null,null,null,null,null,null,null,null,null,null,null,null,null,null,null,null,null,null,null,null,null,null,null,null,null,null,null,null,null,null,null,null,null,null,null,null,null,null,null,null,null,null,null,null,null,null,null,null,null,null,null,null,null,null,null,null,null,null,null,null,null,null,null,null,null,null,null,null,null,null,null,null,null,null,null,null,null,null,null,null,null,null,null,null,null,null,null,null,null,null,null,null,null,null,null,null,null,null,null,null,null,null,null,null,null,null,null,null,481,"高槻北","高 槻 北"]
[null,null,null,null,null,null,null,null,null,null,null,null,null,null,null,null,null,null,null,null,null,null,null,null,null,null,null,null,null,null,null,null,null,null,null,null,null,null,null,null,null,null,null,null,null,null,null,null,null,null,null,null,null,null,null,null,null,null,null,null,null,null,null,null,null,null,null,null,null,null,null,null,null,null,null,null,null,null,null,null,null,null,null,null,null,null,null,null,null,null,null,null,null,null,null,null,null,null,null,null,null,null,null,null,null,null,null,null,null,null,null,null,null,null,null,null,null,null,null,null,null,null,null,null,null,null,null,null,null,null,null,null,null,null,null,null,null,null,null,null,null,null,null,null,null,null,null,null,null,null,null,null,null,null,null,null,null,null,null,null,null,null,null,null,null,null,null,null,null,null,null,null,null,null,null,null,482,"豊島","豊　　島"]
[null,null,null,null,null,null,"ふりがな",null,null,null,null,null,null,null,null,null,null,null,null,null,null,null,null,null,null,null,null,null,null,null,null,null,null,null,null,null,null,null,null,null,null,null,null,null,null,null,null,null,null,null,null,null,null,null,null,null,null,null,"・",null,null,null,"・",null,null,null,null,null,null,null,null,null,null,null,null,null,null,null,null,null,null,null,null,null,null,null,null,null,null,null,null,null,null,null,null,null,null,null,null,null,null,null,null,null,null,null,null,null,null,null,null,null,null,null,null,null,null,null,null,null,null,null,null,null,null,null,null,null,null,null,null,null,null,null,null,null,null,null,null,null,null,null,null,null,null,null,null,null,null,null,null,null,null,null,null,null,null,null,null,null,null,null,null,null,null,null,null,null,null,null,null,null,null,null,null,null,483,"豊中","豊　　中"]
[null,null,null,null,null,null,"（姓）",null,null,null,null,null,null,null,null,null,null,null,null,null,null,null,"（名）",null,null,null,null,null,null,null,null,null,null,null,null,null,null,null,null,null,null,null,null,null,null,null,null,null,null,null,null,null,null,null,null,null,null,null,null,null,null,null,null,null,null,null,null,null,null,null,null,null,null,null,null,null,null,null,null,null,null,null,null,null,null,null,null,null,null,null,null,null,null,null,null,null,null,null,null,null,null,null,null,null,null,null,null,null,null,null,null,null,null,null,null,null,null,null,null,null,null,null,null,null,null,null,null,null,null,null,null,null,null,null,null,null,null,null,null,null,null,null,null,null,null,null,null,null,null,null,null,null,null,null,null,null,null,null,null,null,null,null,null,null,null,null,null,null,null,null,null,null,null,null,null,null,485,"西淀川","西 淀 川"]
[null,null,null,null,null,null,null,null,null,null,null,null,null,null,null,null,null,null,null,null,null,null,null,null,null,null,null,null,null,null,null,null,null,null,null,null,null,null,null,null,null,null,null,null,null,null,null,null,null,null,null,null,null,null,null,null,null,null,null,null,null,null,null,null,null,null,null,null,null,null,null,null,null,null,null,null,null,null,null,null,null,null,null,null,null,null,null,null,null,null,null,null,null,null,null,null,null,null,null,null,null,null,null,null,null,null,null,null,null,null,null,null,null,null,null,null,null,null,null,null,null,null,null,null,null,null,null,null,null,null,null,null,null,null,null,null,null,null,null,null,null,null,null,null,null,null,null,null,null,null,null,null,null,null,null,null,null,null,null,null,null,null,null,null,null,null,null,null,null,null,null,null,null,null,null,null,486,"千里青雲","千里青雲"]
[null,null,null,null,null,null,null,null,null,null,null,null,null,null,null,null,null,null,null,null,null,null,null,null,null,null,null,null,null,null,null,null,null,null,null,null,null,null,null,null,null,null,null,null,null,null,null,null,null,null,null,null,null,null,null,null,null,null,null,null,null,null,null,null,null,null,null,null,null,null,null,null,null,null,null,null,null,null,null,null,null,null,null,null,null,null,null,null,null,null,null,null,null,null,null,null,null,null,null,null,null,null,null,null,null,null,null,null,null,null,null,null,null,null,null,null,null,null,null,null,null,null,null,null,null,null,null,null,null,null,null,null,null,null,null,null,null,null,null,null,null,null,null,null,null,null,null,null,null,null,null,null,null,null,null,null,null,null,null,null,null,null,null,null,null,null,null,null,null,null,null,null,null,null,null,null,487,"東淀川","東 淀 川"]
[null,null,null,null,null,null,"ふりがな",null,null,null,null,null,null,null,null,null,null,null,null,null,null,null,null,null,null,null,null,null,null,null,null,null,null,null,null,null,null,null,null,null,null,null,null,null,null,null,null,null,null,null,null,null,null,null,null,null,null,null,"・",null,null,null,"・",null,null,null,null,null,null,null,null,null,null,null,null,null,null,null,null,null,null,null,null,null,null,null,null,null,null,null,null,null,null,null,null,null,null,null,null,null,null,null,null,null,null,null,null,null,null,null,null,null,null,null,null,null,null,null,null,null,null,null,null,null,null,null,null,null,null,null,null,null,null,null,null,null,null,null,null,null,null,null,null,null,null,null,null,null,null,null,null,null,null,null,null,null,null,null,null,null,null,null,null,null,null,null,null,null,null,null,null,null,null,null,null,null,488,"福井","福　　井"]
[null,null,null,null,null,null,"（姓）",null,null,null,null,null,null,null,null,null,null,null,null,null,null,null,"（名）",null,null,null,null,null,null,null,null,null,null,null,null,null,null,null,null,null,null,null,null,null,null,null,null,null,null,null,null,null,null,null,null,null,null,null,null,null,null,null,null,null,null,null,null,null,null,null,null,null,null,null,null,null,null,null,null,null,null,null,null,null,null,null,null,null,null,null,null,null,null,null,null,null,null,null,null,null,null,null,null,null,null,null,null,null,null,null,null,null,null,null,null,null,null,null,null,null,null,null,null,null,null,null,null,null,null,null,null,null,null,null,null,null,null,null,null,null,null,null,null,null,null,null,null,null,null,null,null,null,null,null,null,null,null,null,null,null,null,null,null,null,null,null,null,null,null,null,null,null,null,null,null,null,489,"三島","三　　島"]
[null,null,null,null,null,null,null,null,null,null,null,null,null,null,null,null,null,null,null,null,null,null,null,null,null,null,null,null,null,null,null,null,null,null,null,null,null,null,null,null,null,null,null,null,null,null,null,null,null,null,null,null,null,null,null,null,null,null,null,null,null,null,null,null,null,null,null,null,null,null,null,null,null,null,null,null,null,null,null,null,null,null,null,null,null,null,null,null,null,null,null,null,null,null,null,null,null,null,null,null,null,null,null,null,null,null,null,null,null,null,null,null,null,null,null,null,null,null,null,null,null,null,null,null,null,null,null,null,null,null,null,null,null,null,null,null,null,null,null,null,null,null,null,null,null,null,null,null,null,null,null,null,null,null,null,null,null,null,null,null,null,null,null,null,null,null,null,null,null,null,null,null,null,null,null,null,490,"箕面","箕　　面"]
[null,null,null,null,null,null,null,null,null,null,null,null,null,null,null,null,null,null,null,null,null,null,null,null,null,null,null,null,null,null,null,null,null,null,null,null,null,null,null,null,null,null,null,null,null,null,null,null,null,null,null,null,null,null,null,null,null,null,null,null,null,null,null,null,null,null,null,null,null,null,null,null,null,null,null,null,null,null,null,null,null,null,null,null,null,null,null,null,null,null,null,null,null,null,null,null,null,null,null,null,null,null,null,null,null,null,null,null,null,null,null,null,null,null,null,null,null,null,null,null,null,null,null,null,null,null,null,null,null,null,null,null,null,null,null,null,null,null,null,null,null,null,null,null,null,null,null,null,null,null,null,null,null,null,null,null,null,null,null,null,null,null,null,null,null,null,null,null,null,null,null,null,null,null,null,null,491,"箕面東","箕 面 東"]
[null,null,null,null,null,null,"ふりがな",null,null,null,null,null,null,null,null,null,null,null,null,null,null,null,null,null,null,null,null,null,null,null,null,null,null,null,null,null,null,null,null,null,null,null,null,null,null,null,null,null,null,null,null,null,null,null,null,null,null,null,"・",null,null,null,"・",null,null,null,null,null,null,null,null,null,null,null,null,null,null,null,null,null,null,null,null,null,null,null,null,null,null,null,null,null,null,null,null,null,null,null,null,null,null,null,null,null,null,null,null,null,null,null,null,null,null,null,null,null,null,null,null,null,null,null,null,null,null,null,null,null,null,null,null,null,null,null,null,null,null,null,null,null,null,null,null,null,null,null,null,null,null,null,null,null,null,null,null,null,null,null,null,null,null,null,null,null,null,null,null,null,null,null,null,null,null,null,null,null,492,"茨木工科","茨木工科"]
[null,null,null,null,null,null,"（姓）",null,null,null,null,null,null,null,null,null,null,null,null,null,null,null,"（名）",null,null,null,null,null,null,null,null,null,null,null,null,null,null,null,null,null,null,null,null,null,null,null,null,null,null,null,null,null,null,null,null,null,null,null,null,null,null,null,null,null,null,null,null,null,null,null,null,null,null,null,null,null,null,null,null,null,null,null,null,null,null,null,null,null,null,null,null,null,null,null,null,null,null,null,null,null,null,null,null,null,null,null,null,null,null,null,null,null,null,null,null,null,null,null,null,null,null,null,null,null,null,null,null,null,null,null,null,null,null,null,null,null,null,null,null,null,null,null,null,null,null,null,null,null,null,null,null,null,null,null,null,null,null,null,null,null,null,null,null,null,null,null,null,null,null,null,null,null,null,null,null,null,493,"大冠","大　　冠"]
[null,null,null,null,null,null,null,null,null,null,null,null,null,null,null,null,null,null,null,null,null,null,null,null,null,null,null,null,null,null,null,null,null,null,null,null,null,null,null,null,null,null,null,null,null,null,null,null,null,null,null,null,null,null,null,null,null,null,null,null,null,null,null,null,null,null,null,null,null,null,null,null,null,null,null,null,null,null,null,null,null,null,null,null,null,null,null,null,null,null,null,null,null,null,null,null,null,null,null,null,null,null,null,null,null,null,null,null,null,null,null,null,null,null,null,null,null,null,null,null,null,null,null,null,null,null,null,null,null,null,null,null,null,null,null,null,null,null,null,null,null,null,null,null,null,null,null,null,null,null,null,null,null,null,null,null,null,null,null,null,null,null,null,null,null,null,null,null,null,null,null,null,null,null,null,null,494,"北淀","北　　淀"]
[null,null,null,null,null,null,null,null,null,null,null,null,null,null,null,null,null,null,null,null,null,null,null,null,null,null,null,null,null,null,null,null,null,null,null,null,null,null,null,null,null,null,null,null,null,null,null,null,null,null,null,null,null,null,null,null,null,null,null,null,null,null,null,null,null,null,null,null,null,null,null,null,null,null,null,null,null,null,null,null,null,null,null,null,null,null,null,null,null,null,null,null,null,null,null,null,null,null,null,null,null,null,null,null,null,null,null,null,null,null,null,null,null,null,null,null,null,null,null,null,null,null,null,null,null,null,null,null,null,null,null,null,null,null,null,null,null,null,null,null,null,null,null,null,null,null,null,null,null,null,null,null,null,null,null,null,null,null,null,null,null,null,null,null,null,null,null,null,null,null,null,null,null,null,null,null,495,"淀商業","淀　　商"]
[null,null,null,null,null,null,"ふりがな",null,null,null,null,null,null,null,null,null,null,null,null,null,null,null,null,null,null,null,null,null,null,null,null,null,null,null,null,null,null,null,null,null,null,null,null,null,null,null,null,null,null,null,null,null,null,null,null,null,null,null,"・",null,null,null,"・",null,null,null,null,null,null,null,null,null,null,null,null,null,null,null,null,null,null,null,null,null,null,null,null,null,null,null,null,null,null,null,null,null,null,null,null,null,null,null,null,null,null,null,null,null,null,null,null,null,null,null,null,null,null,null,null,null,null,null,null,null,null,null,null,null,null,null,null,null,null,null,null,null,null,null,null,null,null,null,null,null,null,null,null,null,null,null,null,null,null,null,null,null,null,null,null,null,null,null,null,null,null,null,null,null,null,null,null,null,null,null,null,null,496,"東淀工業","東淀工業"]
[null,null,null,null,null,null,"（姓）",null,null,null,null,null,null,null,null,null,null,null,null,null,null,null,"（名）",null,null,null,null,null,null,null,null,null,null,null,null,null,null,null,null,null,null,null,null,null,null,null,null,null,null,null,null,null,null,null,null,null,null,null,null,null,null,null,null,null,null,null,null,null,null,null,null,null,null,null,null,null,null,null,null,null,null,null,null,null,null,null,null,null,null,null,null,null,null,null,null,null,null,null,null,null,null,null,null,null,null,null,null,null,null,null,null,null,null,null,null,null,null,null,null,null,null,null,null,null,null,null,null,null,null,null,null,null,null,null,null,null,null,null,null,null,null,null,null,null,null,null,null,null,null,null,null,null,null,null,null,null,null,null,null,null,null,null,null,null,null,null,null,null,null,null,null,null,null,null,null,null,497,"大阪学院","大阪学院"]
[null,null,null,null,null,null,null,null,null,null,null,null,null,null,null,null,null,null,null,null,null,null,null,null,null,null,null,null,null,null,null,null,null,null,null,null,null,null,null,null,null,null,null,null,null,null,null,null,null,null,null,null,null,null,null,null,null,null,null,null,null,null,null,null,null,null,null,null,null,null,null,null,null,null,null,null,null,null,null,null,null,null,null,null,null,null,null,null,null,null,null,null,null,null,null,null,null,null,null,null,null,null,null,null,null,null,null,null,null,null,null,null,null,null,null,null,null,null,null,null,null,null,null,null,null,null,null,null,null,null,null,null,null,null,null,null,null,null,null,null,null,null,null,null,null,null,null,null,null,null,null,null,null,null,null,null,null,null,null,null,null,null,null,null,null,null,null,null,null,null,null,null,null,null,null,null,498,"大阪","大　　阪"]
[null,null,null,null,null,null,null,null,null,null,null,null,null,null,null,null,null,null,null,null,null,null,null,null,null,null,null,null,null,null,null,null,null,null,null,null,null,null,null,null,null,null,null,null,null,null,null,null,null,null,null,null,null,null,null,null,null,null,null,null,null,null,null,null,null,null,null,null,null,null,null,null,null,null,null,null,null,null,null,null,null,null,null,null,null,null,null,null,null,null,null,null,null,null,null,null,null,null,null,null,null,null,null,null,null,null,null,null,null,null,null,null,null,null,null,null,null,null,null,null,null,null,null,null,null,null,null,null,null,null,null,null,null,null,null,null,null,null,null,null,null,null,null,null,null,null,null,null,null,null,null,null,null,null,null,null,null,null,null,null,null,null,null,null,null,null,null,null,null,null,null,null,null,null,null,null,499,"大商学園","大商学園"]
[null,null,null,null,null,null,"ふりがな",null,null,null,null,null,null,null,null,null,null,null,null,null,null,null,null,null,null,null,null,null,null,null,null,null,null,null,null,null,null,null,null,null,null,null,null,null,null,null,null,null,null,null,null,null,null,null,null,null,null,null,"・",null,null,null,"・",null,null,null,null,null,null,null,null,null,null,null,null,null,null,null,null,null,null,null,null,null,null,null,null,null,null,null,null,null,null,null,null,null,null,null,null,null,null,null,null,null,null,null,null,null,null,null,null,null,null,null,null,null,null,null,null,null,null,null,null,null,null,null,null,null,null,null,null,null,null,null,null,null,null,null,null,null,null,null,null,null,null,null,null,null,null,null,null,null,null,null,null,null,null,null,null,null,null,null,null,null,null,null,null,null,null,null,null,null,null,null,null,null,500,"追手門学院","追手門学"]
[null,null,null,null,null,null,"（姓）",null,null,null,null,null,null,null,null,null,null,null,null,null,null,null,"（名）",null,null,null,null,null,null,null,null,null,null,null,null,null,null,null,null,null,null,null,null,null,null,null,null,null,null,null,null,null,null,null,null,null,null,null,null,null,null,null,null,null,null,null,null,null,null,null,null,null,null,null,null,null,null,null,null,null,null,null,null,null,null,null,null,null,null,null,null,null,null,null,null,null,null,null,null,null,null,null,null,null,null,null,null,null,null,null,null,null,null,null,null,null,null,null,null,null,null,null,null,null,null,null,null,null,null,null,null,null,null,null,null,null,null,null,null,null,null,null,null,null,null,null,null,null,null,null,null,null,null,null,null,null,null,null,null,null,null,null,null,null,null,null,null,null,null,null,null,null,null,null,null,null,501,"関西大倉","関西大倉"]
[null,null,null,null,null,null,null,null,null,null,null,null,null,null,null,null,null,null,null,null,null,null,null,null,null,null,null,null,null,null,null,null,null,null,null,null,null,null,null,null,null,null,null,null,null,null,null,null,null,null,null,null,null,null,null,null,null,null,null,null,null,null,null,null,null,null,null,null,null,null,null,null,null,null,null,null,null,null,null,null,null,null,null,null,null,null,null,null,null,null,null,null,null,null,null,null,null,null,null,null,null,null,null,null,null,null,null,null,null,null,null,null,null,null,null,null,null,null,null,null,null,null,null,null,null,null,null,null,null,null,null,null,null,null,null,null,null,null,null,null,null,null,null,null,null,null,null,null,null,null,null,null,null,null,null,null,null,null,null,null,null,null,null,null,null,null,null,null,null,null,null,null,null,null,null,null,502,"関大一","関 大 一"]
[null,null,null,null,null,null,null,null,null,null,null,null,null,null,null,null,null,null,null,null,null,null,null,null,null,null,null,null,null,null,null,null,null,null,null,null,null,null,null,null,null,null,null,null,null,null,null,null,null,null,null,null,null,null,null,null,null,null,null,null,null,null,null,null,null,null,null,null,null,null,null,null,null,null,null,null,null,null,null,null,null,null,null,null,null,null,null,null,null,null,null,null,null,null,null,null,null,null,null,null,null,null,null,null,null,null,null,null,null,null,null,null,null,null,null,null,null,null,null,null,null,null,null,null,null,null,null,null,null,null,null,null,null,null,null,null,null,null,null,null,null,null,null,null,null,null,null,null,null,null,null,null,null,null,null,null,null,null,null,null,null,null,null,null,null,null,null,null,null,null,null,null,null,null,null,null,503,"金光大阪","金光大阪"]
[null,null,null,null,null,null,null,null,null,null,null,null,null,null,null,null,null,null,null,null,null,null,null,null,null,null,null,null,null,null,null,null,null,null,null,null,null,null,null,null,null,null,null,null,null,null,null,null,null,null,null,null,null,null,null,null,null,null,null,null,null,null,null,null,null,null,null,null,null,null,null,null,null,null,null,null,null,null,null,null,null,null,null,null,null,null,null,null,null,null,null,null,null,null,null,null,null,null,null,null,null,null,null,null,null,null,null,null,null,null,null,null,null,null,null,null,null,null,null,null,null,null,null,null,null,null,null,null,null,null,null,null,null,null,null,null,null,null,null,null,null,null,null,null,null,null,null,null,null,null,null,null,null,null,null,null,null,null,null,null,null,null,null,null,null,null,null,null,null,null,null,null,null,null,null,null,504,"高槻","高　　槻"]
[null,null,null,null,null,null,null,null,null,null,null,null,null,null,null,null,null,null,null,null,null,null,null,null,null,null,null,null,null,null,null,null,null,null,null,null,null,null,null,null,null,null,null,null,null,null,null,null,null,null,null,null,null,null,null,null,null,null,null,null,null,null,null,null,null,null,null,null,null,null,null,null,null,null,null,null,null,null,null,null,null,null,null,null,null,null,null,null,null,null,null,null,null,null,null,null,null,null,null,null,null,null,null,null,null,null,null,null,null,null,null,null,null,null,null,null,null,null,null,null,null,null,null,null,null,null,null,null,null,null,null,null,null,null,null,null,null,null,null,null,null,null,null,null,null,null,null,null,null,null,null,null,null,null,null,null,null,null,null,null,null,null,null,null,null,null,null,null,null,null,null,null,null,null,null,null,505,"星翔","星　　翔"]
[null,null,null,null,null,null,null,null,null,null,null,null,null,null,null,null,null,null,null,null,null,null,null,null,null,null,null,null,null,null,null,null,null,null,null,null,null,null,null,null,null,null,null,null,null,null,null,null,null,null,null,null,null,null,null,null,null,null,null,null,null,null,null,null,null,null,null,null,null,null,null,null,null,null,null,null,null,null,null,null,null,null,null,null,null,null,null,null,null,null,null,null,null,null,null,null,null,null,null,null,null,null,null,null,null,null,null,null,null,null,null,null,null,null,null,null,null,null,null,null,null,null,null,null,null,null,null,null,null,null,null,null,null,null,null,null,null,null,null,null,null,null,null,null,null,null,null,null,null,null,null,null,null,null,null,null,null,null,null,null,null,null,null,null,null,null,null,null,null,null,null,null,null,null,null,null,506,"履正社","履 正 社"]
[null,null,null,null,null,null,null,null,null,null,null,null,null,null,null,null,null,null,null,null,null,null,null,null,null,null,null,null,null,null,null,null,null,null,null,null,null,null,null,null,null,null,null,null,null,null,null,null,null,null,null,null,null,null,null,null,null,null,null,null,null,null,null,null,null,null,null,null,null,null,null,null,null,null,null,null,null,null,null,null,null,null,null,null,null,null,null,null,null,null,null,null,null,null,null,null,null,null,null,null,null,null,null,null,null,null,null,null,null,null,null,null,null,null,null,null,null,null,null,null,null,null,null,null,null,null,null,null,null,null,null,null,null,null,null,null,null,null,null,null,null,null,null,null,null,null,null,null,null,null,null,null,null,null,null,null,null,null,null,null,null,null,null,null,null,null,null,null,null,null,null,null,null,null,null,null,507,"関大北陽","関大北陽"]
[null,null,null,null,null,null,null,null,null,null,null,null,null,null,null,null,null,null,null,null,null,null,null,null,null,null,null,null,null,null,null,null,null,null,null,null,null,null,null,null,null,null,null,null,null,null,null,null,null,null,null,null,null,null,null,null,null,null,null,null,null,null,null,null,null,null,null,null,null,null,null,null,null,null,null,null,null,null,null,null,null,null,null,null,null,null,null,null,null,null,null,null,null,null,null,null,null,null,null,null,null,null,null,null,null,null,null,null,null,null,null,null,null,null,null,null,null,null,null,null,null,null,null,null,null,null,null,null,null,null,null,null,null,null,null,null,null,null,null,null,null,null,null,null,null,null,null,null,null,null,null,null,null,null,null,null,null,null,null,null,null,null,null,null,null,null,null,null,null,null,null,null,null,null,null,null,508,"箕面学園","箕面学園"]
[null,null,null,null,null,null,null,null,null,null,null,null,null,null,null,null,null,null,null,null,null,null,null,null,null,null,null,null,null,null,null,null,null,null,null,null,null,null,null,null,null,null,null,null,null,null,null,null,null,null,null,null,null,null,null,null,null,null,null,null,null,null,null,null,null,null,null,null,null,null,null,null,null,null,null,null,null,null,null,null,null,null,null,null,null,null,null,null,null,null,null,null,null,null,null,null,null,null,null,null,null,null,null,null,null,null,null,null,null,null,null,null,null,null,null,null,null,null,null,null,null,null,null,null,null,null,null,null,null,null,null,null,null,null,null,null,null,null,null,null,null,null,null,null,null,null,null,null,null,null,null,null,null,null,null,null,null,null,null,null,null,null,null,null,null,null,null,null,null,null,null,null,null,null,null,null,509,"箕面自由学園","箕面自由"]
[null,null,null,null,null,null,null,null,null,null,null,null,null,null,null,null,null,null,null,null,null,null,null,null,null,null,null,null,null,null,null,null,null,null,null,null,null,null,null,null,null,null,null,null,null,null,null,null,null,null,null,null,null,null,null,null,null,null,null,null,null,null,null,null,null,null,null,null,null,null,null,null,null,null,null,null,null,null,null,null,null,null,null,null,null,null,null,null,null,null,null,null,null,null,null,null,null,null,null,null,null,null,null,null,null,null,null,null,null,null,null,null,null,null,null,null,null,null,null,null,null,null,null,null,null,null,null,null,null,null,null,null,null,null,null,null,null,null,null,null,null,null,null,null,null,null,null,null,null,null,null,null,null,null,null,null,null,null,null,null,null,null,null,null,null,null,null,null,null,null,null,null,null,null,null,null,519,"三国丘(定","三 国 丘"]
[null,null,null,null,null,null,null,null,null,null,null,null,null,null,null,null,null,null,null,null,null,null,null,null,null,null,null,null,null,null,null,null,null,null,null,null,null,null,null,null,null,null,null,null,null,null,null,null,null,null,null,null,null,null,null,null,null,null,null,null,null,null,null,null,null,null,null,null,null,null,null,null,null,null,null,null,null,null,null,null,null,null,null,null,null,null,null,null,null,null,null,null,null,null,null,null,null,null,null,null,null,null,null,null,null,null,null,null,null,null,null,null,null,null,null,null,null,null,null,null,null,null,null,null,null,null,null,null,null,null,null,null,null,null,null,null,null,null,null,null,null,null,null,null,null,null,null,null,null,null,null,null,null,null,null,null,null,null,null,null,null,null,null,null,null,null,null,null,null,null,null,null,null,null,null,null,521,"大手前(定","大 手 前"]
[null,null,null,null,null,null,null,null,null,null,null,null,null,null,null,null,null,null,null,null,null,null,null,null,null,null,null,null,null,null,null,null,null,null,null,null,null,null,null,null,null,null,null,null,null,null,null,null,null,null,null,null,null,null,null,null,null,null,null,null,null,null,null,null,null,null,null,null,null,null,null,null,null,null,null,null,null,null,null,null,null,null,null,null,null,null,null,null,null,null,null,null,null,null,null,null,null,null,null,null,null,null,null,null,null,null,null,null,null,null,null,null,null,null,null,null,null,null,null,null,null,null,null,null,null,null,null,null,null,null,null,null,null,null,null,null,null,null,null,null,null,null,null,null,null,null,null,null,null,null,null,null,null,null,null,null,null,null,null,null,null,null,null,null,null,null,null,null,null,null,null,null,null,null,null,null,523,"都島第二工","都島第二"]
[null,null,null,null,null,null,null,null,null,null,null,null,null,null,null,null,null,null,null,null,null,null,null,null,null,null,null,null,null,null,null,null,null,null,null,null,null,null,null,null,null,null,null,null,null,null,null,null,null,null,null,null,null,null,null,null,null,null,null,null,null,null,null,null,null,null,null,null,null,null,null,null,null,null,null,null,null,null,null,null,null,null,null,null,null,null,null,null,null,null,null,null,null,null,null,null,null,null,null,null,null,null,null,null,null,null,null,null,null,null,null,null,null,null,null,null,null,null,null,null,null,null,null,null,null,null,null,null,null,null,null,null,null,null,null,null,null,null,null,null,null,null,null,null,null,null,null,null,null,null,null,null,null,null,null,null,null,null,null,null,null,null,null,null,null,null,null,null,null,null,null,null,null,null,null,null,"525","成城","成　　城"]
[null,null,null,null,null,null,null,null,null,null,null,null,null,null,null,null,null,null,null,null,null,null,null,null,null,null,null,null,null,null,null,null,null,null,null,null,null,null,null,null,null,null,null,null,null,null,null,null,null,null,null,null,null,null,null,null,null,null,null,null,null,null,null,null,null,null,null,null,null,null,null,null,null,null,null,null,null,null,null,null,null,null,null,null,null,null,null,null,null,null,null,null,null,null,null,null,null,null,null,null,null,null,null,null,null,null,null,null,null,null,null,null,null,null,null,null,null,null,null,null,null,null,null,null,null,null,null,null,null,null,null,null,null,null,null,null,null,null,null,null,null,null,null,null,null,null,null,null,null,null,null,null,null,null,null,null,null,null,null,null,null,null,null,null,null,null,null,null,null,null,null,null,null,null,null,null,528,"今宮工科(定","今宮工科"]
[null,null,null,null,null,null,null,null,null,null,null,null,null,null,null,null,null,null,null,null,null,null,null,null,null,null,null,null,null,null,null,null,null,null,null,null,null,null,null,null,null,null,null,null,null,null,null,null,null,null,null,null,null,null,null,null,null,null,null,null,null,null,null,null,null,null,null,null,null,null,null,null,null,null,null,null,null,null,null,null,null,null,null,null,null,null,null,null,null,null,null,null,null,null,null,null,null,null,null,null,null,null,null,null,null,null,null,null,null,null,null,null,null,null,null,null,null,null,null,null,null,null,null,null,null,null,null,null,null,null,null,null,null,null,null,null,null,null,null,null,null,null,null,null,null,null,null,null,null,null,null,null,null,null,null,null,null,null,null,null,null,null,null,null,null,null,null,null,null,null,null,null,null,null,null,null,530,"西野田工科(定","西野田工"]
[null,null,null,null,null,null,null,null,null,null,null,null,null,null,null,null,null,null,null,null,null,null,null,null,null,null,null,null,null,null,null,null,null,null,null,null,null,null,null,null,null,null,null,null,null,null,null,null,null,null,null,null,null,null,null,null,null,null,null,null,null,null,null,null,null,null,null,null,null,null,null,null,null,null,null,null,null,null,null,null,null,null,null,null,null,null,null,null,null,null,null,null,null,null,null,null,null,null,null,null,null,null,null,null,null,null,null,null,null,null,null,null,null,null,null,null,null,null,null,null,null,null,null,null,null,null,null,null,null,null,null,null,null,null,null,null,null,null,null,null,null,null,null,null,null,null,null,null,null,null,null,null,null,null,null,null,null,null,null,null,null,null,null,null,null,null,null,null,null,null,null,null,null,null,null,null,531,"岸和田産業(定","岸和田産"]
[null,null,null,null,null,null,null,null,null,null,null,null,null,null,null,null,null,null,null,null,null,null,null,null,null,null,null,null,null,null,null,null,null,null,null,null,null,null,null,null,null,null,null,null,null,null,null,null,null,null,null,null,null,null,null,null,null,null,null,null,null,null,null,null,null,null,null,null,null,null,null,null,null,null,null,null,null,null,null,null,null,null,null,null,null,null,null,null,null,null,null,null,null,null,null,null,null,null,null,null,null,null,null,null,null,null,null,null,null,null,null,null,null,null,null,null,null,null,null,null,null,null,null,null,null,null,null,null,null,null,null,null,null,null,null,null,null,null,null,null,null,null,null,null,null,null,null,null,null,null,null,null,null,null,null,null,null,null,null,null,null,null,null,null,null,null,null,null,null,null,null,null,null,null,null,null,532,"堺市立堺(定","堺市立堺"]
[null,null,null,null,null,null,null,null,null,null,null,null,null,null,null,null,null,null,null,null,null,null,null,null,null,null,null,null,null,null,null,null,null,null,null,null,null,null,null,null,null,null,null,null,null,null,null,null,null,null,null,null,null,null,null,null,null,null,null,null,null,null,null,null,null,null,null,null,null,null,null,null,null,null,null,null,null,null,null,null,null,null,null,null,null,null,null,null,null,null,null,null,null,null,null,null,null,null,null,null,null,null,null,null,null,null,null,null,null,null,null,null,null,null,null,null,null,null,null,null,null,null,null,null,null,null,null,null,null,null,null,null,null,null,null,null,null,null,null,null,null,null,null,null,null,null,null,null,null,null,null,null,null,null,null,null,null,null,null,null,null,null,null,null,null,null,null,null,null,null,null,null,null,null,null,null,"534","和泉総合","和泉総合"]
[null,null,null,null,null,null,null,null,null,null,null,null,null,null,null,null,null,null,null,null,null,null,null,null,null,null,null,null,null,null,null,null,null,null,null,null,null,null,null,null,null,null,null,null,null,null,null,null,null,null,null,null,null,null,null,null,null,null,null,null,null,null,null,null,null,null,null,null,null,null,null,null,null,null,null,null,null,null,null,null,null,null,null,null,null,null,null,null,null,null,null,null,null,null,null,null,null,null,null,null,null,null,null,null,null,null,null,null,null,null,null,null,null,null,null,null,null,null,null,null,null,null,null,null,null,null,null,null,null,null,null,null,null,null,null,null,null,null,null,null,null,null,null,null,null,null,null,null,null,null,null,null,null,null,null,null,null,null,null,null,null,null,null,null,null,null,null,null,null,null,null,null,null,null,null,null,535,"佐野工科(定","佐野工科"]
[null,null,null,null,null,null,null,null,null,null,null,null,null,null,null,null,null,null,null,null,null,null,null,null,null,null,null,null,null,null,null,null,null,null,null,null,null,null,null,null,null,null,null,null,null,null,null,null,null,null,null,null,null,null,null,null,null,null,null,null,null,null,null,null,null,null,null,null,null,null,null,null,null,null,null,null,null,null,null,null,null,null,null,null,null,null,null,null,null,null,null,null,null,null,null,null,null,null,null,null,null,null,null,null,null,null,null,null,null,null,null,null,null,null,null,null,null,null,null,null,null,null,null,null,null,null,null,null,null,null,null,null,null,null,null,null,null,null,null,null,null,null,null,null,null,null,null,null,null,null,null,null,null,null,null,null,null,null,null,null,null,null,null,null,null,null,null,null,null,null,null,null,null,null,null,null,542,"日新(定","日　　新"]
[null,null,null,null,null,null,null,null,null,null,null,null,null,null,null,null,null,null,null,null,null,null,null,null,null,null,null,null,null,null,null,null,null,null,null,null,null,null,null,null,null,null,null,null,null,null,null,null,null,null,null,null,null,null,null,null,null,null,null,null,null,null,null,null,null,null,null,null,null,null,null,null,null,null,null,null,null,null,null,null,null,null,null,null,null,null,null,null,null,null,null,null,null,null,null,null,null,null,null,null,null,null,null,null,null,null,null,null,null,null,null,null,null,null,null,null,null,null,null,null,null,null,null,null,null,null,null,null,null,null,null,null,null,null,null,null,null,null,null,null,null,null,null,null,null,null,null,null,null,null,null,null,null,null,null,null,null,null,null,null,null,null,null,null,null,null,null,null,null,null,null,null,null,null,null,null,"544","桜塚(定","桜　　塚"]
[null,null,null,null,null,null,null,null,null,null,null,null,null,null,null,null,null,null,null,null,null,null,null,null,null,null,null,null,null,null,null,null,null,null,null,null,null,null,null,null,null,null,null,null,null,null,null,null,null,null,null,null,null,null,null,null,null,null,null,null,null,null,null,null,null,null,null,null,null,null,null,null,null,null,null,null,null,null,null,null,null,null,null,null,null,null,null,null,null,null,null,null,null,null,null,null,null,null,null,null,null,null,null,null,null,null,null,null,null,null,null,null,null,null,null,null,null,null,null,null,null,null,null,null,null,null,null,null,null,null,null,null,null,null,null,null,null,null,null,null,null,null,null,null,null,null,null,null,null,null,null,null,null,null,null,null,null,null,null,null,null,null,null,null,null,null,null,null,null,null,null,null,null,null,null,null,"545","春日丘(定","春 日 丘"]
[null,null,null,null,null,null,null,null,null,null,null,null,null,null,null,null,null,null,null,null,null,null,null,null,null,null,null,null,null,null,null,null,null,null,null,null,null,null,null,null,null,null,null,null,null,null,null,null,null,null,null,null,null,null,null,null,null,null,null,null,null,null,null,null,null,null,null,null,null,null,null,null,null,null,null,null,null,null,null,null,null,null,null,null,null,null,null,null,null,null,null,null,null,null,null,null,null,null,null,null,null,null,null,null,null,null,null,null,null,null,null,null,null,null,null,null,null,null,null,null,null,null,null,null,null,null,null,null,null,null,null,null,null,null,null,null,null,null,null,null,null,null,null,null,null,null,null,null,null,null,null,null,null,null,null,null,null,null,null,null,null,null,null,null,null,null,null,null,null,null,null,null,null,null,null,null,546,"科学技術学園","科学技術"]
[null,null,null,null,null,null,null,null,null,null,null,null,null,null,null,null,null,null,null,null,null,null,null,null,null,null,null,null,null,null,null,null,null,null,null,null,null,null,null,null,null,null,null,null,null,null,null,null,null,null,null,null,null,null,null,null,null,null,null,null,null,null,null,null,null,null,null,null,null,null,null,null,null,null,null,null,null,null,null,null,null,null,null,null,null,null,null,null,null,null,null,null,null,null,null,null,null,null,null,null,null,null,null,null,null,null,null,null,null,null,null,null,null,null,null,null,null,null,null,null,null,null,null,null,null,null,null,null,null,null,null,null,null,null,null,null,null,null,null,null,null,null,null,null,null,null,null,null,null,null,null,null,null,null,null,null,null,null,null,null,null,null,null,null,null,null,null,null,null,null,null,null,null,null,null,null,550,"建国","建　　国"]
[null,null,null,null,null,null,null,null,null,null,null,null,null,null,null,null,null,null,null,null,null,null,null,null,null,null,null,null,null,null,null,null,null,null,null,null,null,null,null,null,null,null,null,null,null,null,null,null,null,null,null,null,null,null,null,null,null,null,null,null,null,null,null,null,null,null,null,null,null,null,null,null,null,null,null,null,null,null,null,null,null,null,null,null,null,null,null,null,null,null,null,null,null,null,null,null,null,null,null,null,null,null,null,null,null,null,null,null,null,null,null,null,null,null,null,null,null,null,null,null,null,null,null,null,null,null,null,null,null,null,null,null,null,null,null,null,null,null,null,null,null,null,null,null,null,null,null,null,null,null,null,null,null,null,null,null,null,null,null,null,null,null,null,null,null,null,null,null,null,null,null,null,null,null,null,null,551,"能勢","能　　勢"]
[null,null,null,null,null,null,null,null,null,null,null,null,null,null,null,null,null,null,null,null,null,null,null,null,null,null,null,null,null,null,null,null,null,null,null,null,null,null,null,null,null,null,null,null,null,null,null,null,null,null,null,null,null,null,null,null,null,null,null,null,null,null,null,null,null,null,null,null,null,null,null,null,null,null,null,null,null,null,null,null,null,null,null,null,null,null,null,null,null,null,null,null,null,null,null,null,null,null,null,null,null,null,null,null,null,null,null,null,null,null,null,null,null,null,null,null,null,null,null,null,null,null,null,null,null,null,null,null,null,null,null,null,null,null,null,null,null,null,null,null,null,null,null,null,null,null,null,null,null,null,null,null,null,null,null,null,null,null,null,null,null,null,null,null,null,null,null,null,null,null,null,null,null,null,null,null,553,"藤井寺工科","藤井寺工"]
[null,null,null,null,null,null,null,null,null,null,null,null,null,null,null,null,null,null,null,null,null,null,null,null,null,null,null,null,null,null,null,null,null,null,null,null,null,null,null,null,null,null,null,null,null,null,null,null,null,null,null,null,null,null,null,null,null,null,null,null,null,null,null,null,null,null,null,null,null,null,null,null,null,null,null,null,null,null,null,null,null,null,null,null,null,null,null,null,null,null,null,null,null,null,null,null,null,null,null,null,null,null,null,null,null,null,null,null,null,null,null,null,null,null,null,null,null,null,null,null,null,null,null,null,null,null,null,null,null,null,null,null,null,null,null,null,null,null,null,null,null,null,null,null,null,null,null,null,null,null,null,null,null,null,null,null,null,null,null,null,null,null,null,null,null,null,null,null,null,null,null,null,null,null,null,null,554,"四條畷北","四條畷北"]
[null,null,null,null,null,null,null,null,null,null,null,null,null,null,null,null,null,null,null,null,null,null,null,null,null,null,null,null,null,null,null,null,null,null,null,null,null,null,null,null,null,null,null,null,null,null,null,null,null,null,null,null,null,null,null,null,null,null,null,null,null,null,null,null,null,null,null,null,null,null,null,null,null,null,null,null,null,null,null,null,null,null,null,null,null,null,null,null,null,null,null,null,null,null,null,null,null,null,null,null,null,null,null,null,null,null,null,null,null,null,null,null,null,null,null,null,null,null,null,null,null,null,null,null,null,null,null,null,null,null,null,null,null,null,null,null,null,null,null,null,null,null,null,null,null,null,null,null,null,null,null,null,null,null,null,null,null,null,null,null,null,null,null,null,null,null,null,null,null,null,null,null,null,null,null,null,555,"野崎","野　　崎"]
[null,null,null,null,null,null,null,null,null,null,null,null,null,null,null,null,null,null,null,null,null,null,null,null,null,null,null,null,null,null,null,null,null,null,null,null,null,null,null,null,null,null,null,null,null,null,null,null,null,null,null,null,null,null,null,null,null,null,null,null,null,null,null,null,null,null,null,null,null,null,null,null,null,null,null,null,null,null,null,null,null,null,null,null,null,null,null,null,null,null,null,null,null,null,null,null,null,null,null,null,null,null,null,null,null,null,null,null,null,null,null,null,null,null,null,null,null,null,null,null,null,null,null,null,null,null,null,null,null,null,null,null,null,null,null,null,null,null,null,null,null,null,null,null,null,null,null,null,null,null,null,null,null,null,null,null,null,null,null,null,null,null,null,null,null,null,null,null,null,null,null,null,null,null,null,null,556,"関西創価","関西創価"]
[null,null,null,null,null,null,null,null,null,null,null,null,null,null,null,null,null,null,null,null,null,null,null,null,null,null,null,null,null,null,null,null,null,null,null,null,null,null,null,null,null,null,null,null,null,null,null,null,null,null,null,null,null,null,null,null,null,null,null,null,null,null,null,null,null,null,null,null,null,null,null,null,null,null,null,null,null,null,null,null,null,null,null,null,null,null,null,null,null,null,null,null,null,null,null,null,null,null,null,null,null,null,null,null,null,null,null,null,null,null,null,null,null,null,null,null,null,null,null,null,null,null,null,null,null,null,null,null,null,null,null,null,null,null,null,null,null,null,null,null,null,null,null,null,null,null,null,null,null,null,null,null,null,null,null,null,null,null,null,null,null,null,null,null,null,null,null,null,null,null,null,null,null,null,null,null,557,"プール学院","プール学"]
[null,null,null,null,null,null,null,null,null,null,null,null,null,null,null,null,null,null,null,null,null,null,null,null,null,null,null,null,null,null,null,null,null,null,null,null,null,null,null,null,null,null,null,null,null,null,null,null,null,null,null,null,null,null,null,null,null,null,null,null,null,null,null,null,null,null,null,null,null,null,null,null,null,null,null,null,null,null,null,null,null,null,null,null,null,null,null,null,null,null,null,null,null,null,null,null,null,null,null,null,null,null,null,null,null,null,null,null,null,null,null,null,null,null,null,null,null,null,null,null,null,null,null,null,null,null,null,null,null,null,null,null,null,null,null,null,null,null,null,null,null,null,null,null,null,null,null,null,null,null,null,null,null,null,null,null,null,null,null,null,null,null,null,null,null,null,null,null,null,null,null,null,null,null,null,null,558,"清明学院","清明学院"]
[null,null,null,null,null,null,null,null,null,null,null,null,null,null,null,null,null,null,null,null,null,null,null,null,null,null,null,null,null,null,null,null,null,null,null,null,null,null,null,null,null,null,null,null,null,null,null,null,null,null,null,null,null,null,null,null,null,null,null,null,null,null,null,null,null,null,null,null,null,null,null,null,null,null,null,null,null,null,null,null,null,null,null,null,null,null,null,null,null,null,null,null,null,null,null,null,null,null,null,null,null,null,null,null,null,null,null,null,null,null,null,null,null,null,null,null,null,null,null,null,null,null,null,null,null,null,null,null,null,null,null,null,null,null,null,null,null,null,null,null,null,null,null,null,null,null,null,null,null,null,null,null,null,null,null,null,null,null,null,null,null,null,null,null,null,null,null,null,null,null,null,null,null,null,null,null,560,"大阪ビジネス","Ｏ Ｂ Ｆ"]
[null,null,null,null,null,null,null,null,null,null,null,null,null,null,null,null,null,null,null,null,null,null,null,null,null,null,null,null,null,null,null,null,null,null,null,null,null,null,null,null,null,null,null,null,null,null,null,null,null,null,null,null,null,null,null,null,null,null,null,null,null,null,null,null,null,null,null,null,null,null,null,null,null,null,null,null,null,null,null,null,null,null,null,null,null,null,null,null,null,null,null,null,null,null,null,null,null,null,null,null,null,null,null,null,null,null,null,null,null,null,null,null,null,null,null,null,null,null,null,null,null,null,null,null,null,null,null,null,null,null,null,null,null,null,null,null,null,null,null,null,null,null,null,null,null,null,null,null,null,null,null,null,null,null,null,null,null,null,null,null,null,null,null,null,null,null,null,null,null,null,null,null,null,null,null,null,562,"上宮太子","上宮太子"]
[null,null,null,null,null,null,null,null,null,null,null,null,null,null,null,null,null,null,null,null,null,null,null,null,null,null,null,null,null,null,null,null,null,null,null,null,null,null,null,null,null,null,null,null,null,null,null,null,null,null,null,null,null,null,null,null,null,null,null,null,null,null,null,null,null,null,null,null,null,null,null,null,null,null,null,null,null,null,null,null,null,null,null,null,null,null,null,null,null,null,null,null,null,null,null,null,null,null,null,null,null,null,null,null,null,null,null,null,null,null,null,null,null,null,null,null,null,null,null,null,null,null,null,null,null,null,null,null,null,null,null,null,null,null,null,null,null,null,null,null,null,null,null,null,null,null,null,null,null,null,null,null,null,null,null,null,null,null,null,null,null,null,null,null,null,null,null,null,null,null,null,null,null,null,null,null,563,"中央","中　　央"]
[null,null,null,null,null,null,null,null,null,null,null,null,null,null,null,null,null,null,null,null,null,null,null,null,null,null,null,null,null,null,null,null,null,null,null,null,null,null,null,null,null,null,null,null,null,null,null,null,null,null,null,null,null,null,null,null,null,null,null,null,null,null,null,null,null,null,null,null,null,null,null,null,null,null,null,null,null,null,null,null,null,null,null,null,null,null,null,null,null,null,null,null,null,null,null,null,null,null,null,null,null,null,null,null,null,null,null,null,null,null,null,null,null,null,null,null,null,null,null,null,null,null,null,null,null,null,null,null,null,null,null,null,null,null,null,null,null,null,null,null,null,null,null,null,null,null,null,null,null,null,null,null,null,null,null,null,null,null,null,null,null,null,null,null,null,null,null,null,null,null,null,null,null,null,null,null,564,"大阪学芸中等教育","学芸中等"]
[null,null,null,null,null,null,null,null,null,null,null,null,null,null,null,null,null,null,null,null,null,null,null,null,null,null,null,null,null,null,null,null,null,null,null,null,null,null,null,null,null,null,null,null,null,null,null,null,null,null,null,null,null,null,null,null,null,null,null,null,null,null,null,null,null,null,null,null,null,null,null,null,null,null,null,null,null,null,null,null,null,null,null,null,null,null,null,null,null,null,null,null,null,null,null,null,null,null,null,null,null,null,null,null,null,null,null,null,null,null,null,null,null,null,null,null,null,null,null,null,null,null,null,null,null,null,null,null,null,null,null,null,null,null,null,null,null,null,null,null,null,null,null,null,null,null,null,null,null,null,null,null,null,null,null,null,null,null,null,null,null,null,null,null,null,null,null,null,null,null,null,null,null,null,null,null,565,"鶴見商業","鶴見商業"]
[null,null,null,null,null,null,null,null,null,null,null,null,null,null,null,null,null,null,null,null,null,null,null,null,null,null,null,null,null,null,null,null,null,null,null,null,null,null,null,null,null,null,null,null,null,null,null,null,null,null,null,null,null,null,null,null,null,null,null,null,null,null,null,null,null,null,null,null,null,null,null,null,null,null,null,null,null,null,null,null,null,null,null,null,null,null,null,null,null,null,null,null,null,null,null,null,null,null,null,null,null,null,null,null,null,null,null,null,null,null,null,null,null,null,null,null,null,null,null,null,null,null,null,null,null,null,null,null,null,null,null,null,null,null,null,null,null,null,null,null,null,null,null,null,null,null,null,null,null,null,null,null,null,null,null,null,null,null,null,null,null,null,null,null,null,null,null,null,null,null,null,null,null,null,null,null,569,"東大阪大学敬愛","東大敬愛"]
[null,null,null,null,null,null,null,null,null,null,null,null,null,null,null,null,null,null,null,null,null,null,null,null,null,null,null,null,null,null,null,null,null,null,null,null,null,null,null,null,null,null,null,null,null,null,null,null,null,null,null,null,null,null,null,null,null,null,null,null,null,null,null,null,null,null,null,null,null,null,null,null,null,null,null,null,null,null,null,null,null,null,null,null,null,null,null,null,null,null,null,null,null,null,null,null,null,null,null,null,null,null,null,null,null,null,null,null,null,null,null,null,null,null,null,null,null,null,null,null,null,null,null,null,null,null,null,null,null,null,null,null,null,null,null,null,null,null,null,null,null,null,null,null,null,null,null,null,null,null,null,null,null,null,null,null,null,null,null,null,null,null,null,null,null,null,null,null,null,null,null,null,null,null,null,null,570,"科技東朋","科技東朋"]
[null,null,null,null,null,null,null,null,null,null,null,null,null,null,null,null,null,null,null,null,null,null,null,null,null,null,null,null,null,null,null,null,null,null,null,null,null,null,null,null,null,null,null,null,null,null,null,null,null,null,null,null,null,null,null,null,null,null,null,null,null,null,null,null,null,null,null,null,null,null,null,null,null,null,null,null,null,null,null,null,null,null,null,null,null,null,null,null,null,null,null,null,null,null,null,null,null,null,null,null,null,null,null,null,null,null,null,null,null,null,null,null,null,null,null,null,null,null,null,null,null,null,null,null,null,null,null,null,null,null,null,null,null,null,null,null,null,null,null,null,null,null,null,null,null,null,null,null,null,null,null,null,null,null,null,null,null,null,null,null,null,null,null,null,null,null,null,null,null,null,null,null,null,null,null,null,571,"英真学園","英真学園"]
[null,null,null,null,null,null,null,null,null,null,null,null,null,null,null,null,null,null,null,null,null,null,null,null,null,null,null,null,null,null,null,null,null,null,null,null,null,null,null,null,null,null,null,null,null,null,null,null,null,null,null,null,null,null,null,null,null,null,null,null,null,null,null,null,null,null,null,null,null,null,null,null,null,null,null,null,null,null,null,null,null,null,null,null,null,null,null,null,null,null,null,null,null,null,null,null,null,null,null,null,null,null,null,null,null,null,null,null,null,null,null,null,null,null,null,null,null,null,null,null,null,null,null,null,null,null,null,null,null,null,null,null,null,null,null,null,null,null,null,null,null,null,null,null,null,null,null,null,null,null,null,null,null,null,null,null,null,null,null,null,null,null,null,null,null,null,null,null,null,null,null,null,null,null,null,null,572,"山田","山　　田"]
[null,null,null,null,null,null,null,null,null,null,null,null,null,null,null,null,null,null,null,null,null,null,null,null,null,null,null,null,null,null,null,null,null,null,null,null,null,null,null,null,null,null,null,null,null,null,null,null,null,null,null,null,null,null,null,null,null,null,null,null,null,null,null,null,null,null,null,null,null,null,null,null,null,null,null,null,null,null,null,null,null,null,null,null,null,null,null,null,null,null,null,null,null,null,null,null,null,null,null,null,null,null,null,null,null,null,null,null,null,null,null,null,null,null,null,null,null,null,null,null,null,null,null,null,null,null,null,null,null,null,null,null,null,null,null,null,null,null,null,null,null,null,null,null,null,null,null,null,null,null,null,null,null,null,null,null,null,null,null,null,null,null,null,null,null,null,null,null,null,null,null,null,null,null,null,null,573,"向陽台天王寺","光陽台天"]
[null,null,null,null,null,null,null,null,null,null,null,null,null,null,null,null,null,null,null,null,null,null,null,null,null,null,null,null,null,null,null,null,null,null,null,null,null,null,null,null,null,null,null,null,null,null,null,null,null,null,null,null,null,null,null,null,null,null,null,null,null,null,null,null,null,null,null,null,null,null,null,null,null,null,null,null,null,null,null,null,null,null,null,null,null,null,null,null,null,null,null,null,null,null,null,null,null,null,null,null,null,null,null,null,null,null,null,null,null,null,null,null,null,null,null,null,null,null,null,null,null,null,null,null,null,null,null,null,null,null,null,null,null,null,null,null,null,null,null,null,null,null,null,null,null,null,null,null,null,null,null,null,null,null,null,null,null,null,null,null,null,null,null,null,null,null,null,null,null,null,null,null,null,null,null,null,574,"向陽台","光 陽 台"]
[null,null,null,null,null,null,null,null,null,null,null,null,null,null,null,null,null,null,null,null,null,null,null,null,null,null,null,null,null,null,null,null,null,null,null,null,null,null,null,null,null,null,null,null,null,null,null,null,null,null,null,null,null,null,null,null,null,null,null,null,null,null,null,null,null,null,null,null,null,null,null,null,null,null,null,null,null,null,null,null,null,null,null,null,null,null,null,null,null,null,null,null,null,null,null,null,null,null,null,null,null,null,null,null,null,null,null,null,null,null,null,null,null,null,null,null,null,null,null,null,null,null,null,null,null,null,null,null,null,null,null,null,null,null,null,null,null,null,null,null,null,null,null,null,null,null,null,null,null,null,null,null,null,null,null,null,null,null,null,null,null,null,null,null,null,null,null,null,null,null,null,null,null,null,null,null,575,"交野","交　　野"]
[null,null,null,null,null,null,null,null,null,null,null,null,null,null,null,null,null,null,null,null,null,null,null,null,null,null,null,null,null,null,null,null,null,null,null,null,null,null,null,null,null,null,null,null,null,null,null,null,null,null,null,null,null,null,null,null,null,null,null,null,null,null,null,null,null,null,null,null,null,null,null,null,null,null,null,null,null,null,null,null,null,null,null,null,null,null,null,null,null,null,null,null,null,null,null,null,null,null,null,null,null,null,null,null,null,null,null,null,null,null,null,null,null,null,null,null,null,null,null,null,null,null,null,null,null,null,null,null,null,null,null,null,null,null,null,null,null,null,null,null,null,null,null,null,null,null,null,null,null,null,null,null,null,null,null,null,null,null,null,null,null,null,null,null,null,null,null,null,null,null,null,null,null,null,null,null,576,"中央学園","中央学園"]
[null,null,null,null,null,null,null,null,null,null,null,null,null,null,null,null,null,null,null,null,null,null,null,null,null,null,null,null,null,null,null,null,null,null,null,null,null,null,null,null,null,null,null,null,null,null,null,null,null,null,null,null,null,null,null,null,null,null,null,null,null,null,null,null,null,null,null,null,null,null,null,null,null,null,null,null,null,null,null,null,null,null,null,null,null,null,null,null,null,null,null,null,null,null,null,null,null,null,null,null,null,null,null,null,null,null,null,null,null,null,null,null,null,null,null,null,null,null,null,null,null,null,null,null,null,null,null,null,null,null,null,null,null,null,null,null,null,null,null,null,null,null,null,null,null,null,null,null,null,null,null,null,null,null,null,null,null,null,null,null,null,null,null,null,null,null,null,null,null,null,null,null,null,null,null,null,577,"西","　 西　 "]
[null,null,null,null,null,null,null,null,null,null,null,null,null,null,null,null,null,null,null,null,null,null,null,null,null,null,null,null,null,null,null,null,null,null,null,null,null,null,null,null,null,null,null,null,null,null,null,null,null,null,null,null,null,null,null,null,null,null,null,null,null,null,null,null,null,null,null,null,null,null,null,null,null,null,null,null,null,null,null,null,null,null,null,null,null,null,null,null,null,null,null,null,null,null,null,null,null,null,null,null,null,null,null,null,null,null,null,null,null,null,null,null,null,null,null,null,null,null,null,null,null,null,null,null,null,null,null,null,null,null,null,null,null,null,null,null,null,null,null,null,null,null,null,null,null,null,null,null,null,null,null,null,null,null,null,null,null,null,null,null,null,null,null,null,null,null,null,null,null,null,null,null,null,null,null,null,578,"布施","布　　施"]
[null,null,null,null,null,null,null,null,null,null,null,null,null,null,null,null,null,null,null,null,null,null,null,null,null,null,null,null,null,null,null,null,null,null,null,null,null,null,null,null,null,null,null,null,null,null,null,null,null,null,null,null,null,null,null,null,null,null,null,null,null,null,null,null,null,null,null,null,null,null,null,null,null,null,null,null,null,null,null,null,null,null,null,null,null,null,null,null,null,null,null,null,null,null,null,null,null,null,null,null,null,null,null,null,null,null,null,null,null,null,null,null,null,null,null,null,null,null,null,null,null,null,null,null,null,null,null,null,null,null,null,null,null,null,null,null,null,null,null,null,null,null,null,null,null,null,null,null,null,null,null,null,null,null,null,null,null,null,null,null,null,null,null,null,null,null,null,null,null,null,null,null,null,null,null,null,579,"昇陽","昇　　陽"]
[null,null,null,null,null,null,null,null,null,null,null,null,null,null,null,null,null,null,null,null,null,null,null,null,null,null,null,null,null,null,null,null,null,null,null,null,null,null,null,null,null,null,null,null,null,null,null,null,null,null,null,null,null,null,null,null,null,null,null,null,null,null,null,null,null,null,null,null,null,null,null,null,null,null,null,null,null,null,null,null,null,null,null,null,null,null,null,null,null,null,null,null,null,null,null,null,null,null,null,null,null,null,null,null,null,null,null,null,null,null,null,null,null,null,null,null,null,null,null,null,null,null,null,null,null,null,null,null,null,null,null,null,null,null,null,null,null,null,null,null,null,null,null,null,null,null,null,null,null,null,null,null,null,null,null,null,null,null,null,null,null,null,null,null,null,null,null,null,null,null,null,null,null,null,null,null,580,"金光藤蔭","金光藤蔭"]
[null,null,null,null,null,null,null,null,null,null,null,null,null,null,null,null,null,null,null,null,null,null,null,null,null,null,null,null,null,null,null,null,null,null,null,null,null,null,null,null,null,null,null,null,null,null,null,null,null,null,null,null,null,null,null,null,null,null,null,null,null,null,null,null,null,null,null,null,null,null,null,null,null,null,null,null,null,null,null,null,null,null,null,null,null,null,null,null,null,null,null,null,null,null,null,null,null,null,null,null,null,null,null,null,null,null,null,null,null,null,null,null,null,null,null,null,null,null,null,null,null,null,null,null,null,null,null,null,null,null,null,null,null,null,null,null,null,null,null,null,null,null,null,null,null,null,null,null,null,null,null,null,null,null,null,null,null,null,null,null,null,null,null,null,null,null,null,null,null,null,null,null,null,null,null,null,581,"八洲学園","八洲学園"]
[null,null,null,null,null,null,null,null,null,null,null,null,null,null,null,null,null,null,null,null,null,null,null,null,null,null,null,null,null,null,null,null,null,null,null,null,null,null,null,null,null,null,null,null,null,null,null,null,null,null,null,null,null,null,null,null,null,null,null,null,null,null,null,null,null,null,null,null,null,null,null,null,null,null,null,null,null,null,null,null,null,null,null,null,null,null,null,null,null,null,null,null,null,null,null,null,null,null,null,null,null,null,null,null,null,null,null,null,null,null,null,null,null,null,null,null,null,null,null,null,null,null,null,null,null,null,null,null,null,null,null,null,null,null,null,null,null,null,null,null,null,null,null,null,null,null,null,null,null,null,null,null,null,null,null,null,null,null,null,null,null,null,null,null,null,null,null,null,null,null,null,null,null,null,null,null,582,"長尾谷","長 尾 谷"]
[null,null,null,null,null,null,null,null,null,null,null,null,null,null,null,null,null,null,null,null,null,null,null,null,null,null,null,null,null,null,null,null,null,null,null,null,null,null,null,null,null,null,null,null,null,null,null,null,null,null,null,null,null,null,null,null,null,null,null,null,null,null,null,null,null,null,null,null,null,null,null,null,null,null,null,null,null,null,null,null,null,null,null,null,null,null,null,null,null,null,null,null,null,null,null,null,null,null,null,null,null,null,null,null,null,null,null,null,null,null,null,null,null,null,null,null,null,null,null,null,null,null,null,null,null,null,null,null,null,null,null,null,null,null,null,null,null,null,null,null,null,null,null,null,null,null,null,null,null,null,null,null,null,null,null,null,null,null,null,null,null,null,null,null,null,null,null,null,null,null,null,null,null,null,null,null,583,"好文学園女子","好文学園"]
[null,null,null,null,null,null,null,null,null,null,null,null,null,null,null,null,null,null,null,null,null,null,null,null,null,null,null,null,null,null,null,null,null,null,null,null,null,null,null,null,null,null,null,null,null,null,null,null,null,null,null,null,null,null,null,null,null,null,null,null,null,null,null,null,null,null,null,null,null,null,null,null,null,null,null,null,null,null,null,null,null,null,null,null,null,null,null,null,null,null,null,null,null,null,null,null,null,null,null,null,null,null,null,null,null,null,null,null,null,null,null,null,null,null,null,null,null,null,null,null,null,null,null,null,null,null,null,null,null,null,null,null,null,null,null,null,null,null,null,null,null,null,null,null,null,null,null,null,null,null,null,null,null,null,null,null,null,null,null,null,null,null,null,null,null,null,null,null,null,null,null,null,null,null,null,null,584,"羽衣学園","羽衣学園"]
[null,null,null,null,null,null,null,null,null,null,null,null,null,null,null,null,null,null,null,null,null,null,null,null,null,null,null,null,null,null,null,null,null,null,null,null,null,null,null,null,null,null,null,null,null,null,null,null,null,null,null,null,null,null,null,null,null,null,null,null,null,null,null,null,null,null,null,null,null,null,null,null,null,null,null,null,null,null,null,null,null,null,null,null,null,null,null,null,null,null,null,null,null,null,null,null,null,null,null,null,null,null,null,null,null,null,null,null,null,null,null,null,null,null,null,null,null,null,null,null,null,null,null,null,null,null,null,null,null,null,null,null,null,null,null,null,null,null,null,null,null,null,null,null,null,null,null,null,null,null,null,null,null,null,null,null,null,null,null,null,null,null,null,null,null,null,null,null,null,null,null,null,null,null,null,null,585,"国際滝井","国際滝井"]
[null,null,null,null,null,null,null,null,null,null,null,null,null,null,null,null,null,null,null,null,null,null,null,null,null,null,null,null,null,null,null,null,null,null,null,null,null,null,null,null,null,null,null,null,null,null,null,null,null,null,null,null,null,null,null,null,null,null,null,null,null,null,null,null,null,null,null,null,null,null,null,null,null,null,null,null,null,null,null,null,null,null,null,null,null,null,null,null,null,null,null,null,null,null,null,null,null,null,null,null,null,null,null,null,null,null,null,null,null,null,null,null,null,null,null,null,null,null,null,null,null,null,null,null,null,null,null,null,null,null,null,null,null,null,null,null,null,null,null,null,null,null,null,null,null,null,null,null,null,null,null,null,null,null,null,null,null,null,null,null,null,null,null,null,null,null,null,null,null,null,null,null,null,null,null,null,586,"天王寺学館","天王寺学"]
[null,null,null,null,null,null,null,null,null,null,null,null,null,null,null,null,null,null,null,null,null,null,null,null,null,null,null,null,null,null,null,null,null,null,null,null,null,null,null,null,null,null,null,null,null,null,null,null,null,null,null,null,null,null,null,null,null,null,null,null,null,null,null,null,null,null,null,null,null,null,null,null,null,null,null,null,null,null,null,null,null,null,null,null,null,null,null,null,null,null,null,null,null,null,null,null,null,null,null,null,null,null,null,null,null,null,null,null,null,null,null,null,null,null,null,null,null,null,null,null,null,null,null,null,null,null,null,null,null,null,null,null,null,null,null,null,null,null,null,null,null,null,null,null,null,null,null,null,null,null,null,null,null,null,null,null,null,null,null,null,null,null,null,null,null,null,null,null,null,null,null,null,null,null,null,null,587,"住吉商業","住吉商業"]
[null,null,null,null,null,null,null,null,null,null,null,null,null,null,null,null,null,null,null,null,null,null,null,null,null,null,null,null,null,null,null,null,null,null,null,null,null,null,null,null,null,null,null,null,null,null,null,null,null,null,null,null,null,null,null,null,null,null,null,null,null,null,null,null,null,null,null,null,null,null,null,null,null,null,null,null,null,null,null,null,null,null,null,null,null,null,null,null,null,null,null,null,null,null,null,null,null,null,null,null,null,null,null,null,null,null,null,null,null,null,null,null,null,null,null,null,null,null,null,null,null,null,null,null,null,null,null,null,null,null,null,null,null,null,null,null,null,null,null,null,null,null,null,null,null,null,null,null,null,null,null,null,null,null,null,null,null,null,null,null,null,null,null,null,null,null,null,null,null,null,null,null,null,null,null,null,588,"大阪信愛女学院","大阪信愛"]
[null,null,null,null,null,null,null,null,null,null,null,null,null,null,null,null,null,null,null,null,null,null,null,null,null,null,null,null,null,null,null,null,null,null,null,null,null,null,null,null,null,null,null,null,null,null,null,null,null,null,null,null,null,null,null,null,null,null,null,null,null,null,null,null,null,null,null,null,null,null,null,null,null,null,null,null,null,null,null,null,null,null,null,null,null,null,null,null,null,null,null,null,null,null,null,null,null,null,null,null,null,null,null,null,null,null,null,null,null,null,null,null,null,null,null,null,null,null,null,null,null,null,null,null,null,null,null,null,null,null,null,null,null,null,null,null,null,null,null,null,null,null,null,null,null,null,null,null,null,null,null,null,null,null,null,null,null,null,null,null,null,null,null,null,null,null,null,null,null,null,null,null,null,null,null,null,589,"クラーク国際","クラーク"]
[null,null,null,null,null,null,null,null,null,null,null,null,null,null,null,null,null,null,null,null,null,null,null,null,null,null,null,null,null,null,null,null,null,null,null,null,null,null,null,null,null,null,null,null,null,null,null,null,null,null,null,null,null,null,null,null,null,null,null,null,null,null,null,null,null,null,null,null,null,null,null,null,null,null,null,null,null,null,null,null,null,null,null,null,null,null,null,null,null,null,null,null,null,null,null,null,null,null,null,null,null,null,null,null,null,null,null,null,null,null,null,null,null,null,null,null,null,null,null,null,null,null,null,null,null,null,null,null,null,null,null,null,null,null,null,null,null,null,null,null,null,null,null,null,null,null,null,null,null,null,null,null,null,null,null,null,null,null,null,null,null,null,null,null,null,null,null,null,null,null,null,null,null,null,null,null,590,"ヒュ-マンアカデミー","ヒュ-マン"]
[null,null,null,null,null,null,null,null,null,null,null,null,null,null,null,null,null,null,null,null,null,null,null,null,null,null,null,null,null,null,null,null,null,null,null,null,null,null,null,null,null,null,null,null,null,null,null,null,null,null,null,null,null,null,null,null,null,null,null,null,null,null,null,null,null,null,null,null,null,null,null,null,null,null,null,null,null,null,null,null,null,null,null,null,null,null,null,null,null,null,null,null,null,null,null,null,null,null,null,null,null,null,null,null,null,null,null,null,null,null,null,null,null,null,null,null,null,null,null,null,null,null,null,null,null,null,null,null,null,null,null,null,null,null,null,null,null,null,null,null,null,null,null,null,null,null,null,null,null,null,null,null,null,null,null,null,null,null,null,null,null,null,null,null,null,null,null,null,null,null,null,null,null,null,null,null,591,"四條畷学園","四條畷学"]
[null,null,null,null,null,null,null,null,null,null,null,null,null,null,null,null,null,null,null,null,null,null,null,null,null,null,null,null,null,null,null,null,null,null,null,null,null,null,null,null,null,null,null,null,null,null,null,null,null,null,null,null,null,null,null,null,null,null,null,null,null,null,null,null,null,null,null,null,null,null,null,null,null,null,null,null,null,null,null,null,null,null,null,null,null,null,null,null,null,null,null,null,null,null,null,null,null,null,null,null,null,null,null,null,null,null,null,null,null,null,null,null,null,null,null,null,null,null,null,null,null,null,null,null,null,null,null,null,null,null,null,null,null,null,null,null,null,null,null,null,null,null,null,null,null,null,null,null,null,null,null,null,null,null,null,null,null,null,null,null,null,null,null,null,null,null,null,null,null,null,null,null,null,null,null,null,592,"YMCA学院","ＹＭＣＡ"]
[null,null,null,null,null,null,null,null,null,null,null,null,null,null,null,null,null,null,null,null,null,null,null,null,null,null,null,null,null,null,null,null,null,null,null,null,null,null,null,null,null,null,null,null,null,null,null,null,null,null,null,null,null,null,null,null,null,null,null,null,null,null,null,null,null,null,null,null,null,null,null,null,null,null,null,null,null,null,null,null,null,null,null,null,null,null,null,null,null,null,null,null,null,null,null,null,null,null,null,null,null,null,null,null,null,null,null,null,null,null,null,null,null,null,null,null,null,null,null,null,null,null,null,null,null,null,null,null,null,null,null,null,null,null,null,null,null,null,null,null,null,null,null,null,null,null,null,null,null,null,null,null,null,null,null,null,null,null,null,null,null,null,null,null,null,null,null,null,null,null,null,null,null,null,null,null,593,"香ケ丘リベルテ","リベルテ"]
[null,null,null,null,null,null,null,null,null,null,null,null,null,null,null,null,null,null,null,null,null,null,null,null,null,null,null,null,null,null,null,null,null,null,null,null,null,null,null,null,null,null,null,null,null,null,null,null,null,null,null,null,null,null,null,null,null,null,null,null,null,null,null,null,null,null,null,null,null,null,null,null,null,null,null,null,null,null,null,null,null,null,null,null,null,null,null,null,null,null,null,null,null,null,null,null,null,null,null,null,null,null,null,null,null,null,null,null,null,null,null,null,null,null,null,null,null,null,null,null,null,null,null,null,null,null,null,null,null,null,null,null,null,null,null,null,null,null,null,null,null,null,null,null,null,null,null,null,null,null,null,null,null,null,null,null,null,null,null,null,null,null,null,null,null,null,null,null,null,null,null,null,null,null,null,null,594,"鹿島学園","鹿島学園"]
[null,null,null,null,null,null,null,null,null,null,null,null,null,null,null,null,null,null,null,null,null,null,null,null,null,null,null,null,null,null,null,null,null,null,null,null,null,null,null,null,null,null,null,null,null,null,null,null,null,null,null,null,null,null,null,null,null,null,null,null,null,null,null,null,null,null,null,null,null,null,null,null,null,null,null,null,null,null,null,null,null,null,null,null,null,null,null,null,null,null,null,null,null,null,null,null,null,null,null,null,null,null,null,null,null,null,null,null,null,null,null,null,null,null,null,null,null,null,null,null,null,null,null,null,null,null,null,null,null,null,null,null,null,null,null,null,null,null,null,null,null,null,null,null,null,null,null,null,null,null,null,null,null,null,null,null,null,null,null,null,null,null,null,null,null,null,null,null,null,null,null,null,null,null,null,null,597,"大阪朝鮮高級","朝鮮高級"]
[null,null,null,null,null,null,null,null,null,null,null,null,null,null,null,null,null,null,null,null,null,null,null,null,null,null,null,null,null,null,null,null,null,null,null,null,null,null,null,null,null,null,null,null,null,null,null,null,null,null,null,null,null,null,null,null,null,null,null,null,null,null,null,null,null,null,null,null,null,null,null,null,null,null,null,null,null,null,null,null,null,null,null,null,null,null,null,null,null,null,null,null,null,null,null,null,null,null,null,null,null,null,null,null,null,null,null,null,null,null,null,null,null,null,null,null,null,null,null,null,null,null,null,null,null,null,null,null,null,null,null,null,null,null,null,null,null,null,null,null,null,null,null,null,null,null,null,null,null,null,null,null,null,null,null,null,null,null,null,null,null,null,null,null,null,null,null,null,null,null,null,null,null,null,null,null,598,"大阪府立大工業高専","府大工専"]
[]
[]
[]
[]
[]
[]
[]
[]
[]
[]
[]
[]
[]
[]
[]
[]
[]
[]
[]
[]
[]
[]
[]
[]
[]
[]
[]
[]
[]
[]
[]
[]
[]
[]
[]
[]
[]
[]
[]
[]
[]
[]
[]
[]
[]
[]
[]
[]
[]
[]
[]
[]
[]
[]
[]
[]
[]
[]
[]
[]
[]
[]
[]
[]
[]
[]
[]
[]
[]
[]
[]
[]
[]
[]
[]
[]
[]
[]
[]
[]
[]
[]
[]
[]
[]
[]
[]
[]
[]
[]
[]
["個　人　試　合　申　込　書"]
[]
[null,null,"※抽選番号",null,null,null,null,null,null,null,null,null,null,null,null,null,null,null,null,null,null,"kg級",null,null,null,"第３６回全国高等学校柔道選手権大会大阪府予選会（一次予選）"]
[]
[null,null,"学校番号",null,null,null,"学　　　　校　　　　名",null,null,null,null,null,null,null,null,null,null,null,null,null,null,null,null,null,null,null,null,null,null,null,null,null,null,null,null,null,null,null,"監督名",null,null,null,null,null,null,null,null,null,null,null,null,"校長名"]
[null,null,null,null,null,null,{"$f":"#REF!","v":{"$error":"#REF!"}},null,null,null,null,null,null,null,null,null,null,null,null,null,null,null,null,null,null,null,null,"高等学校",null,null,null,null,null,null,null,null,null,null,{"$f":"#REF!","v":{"$error":"#REF!"}},null,null,null,null,null,null,null,null,null,null,"印",null,{"$f":"#REF!","v":{"$error":"#REF!"}},null,null,null,null,null,null,null,null,null,null,null,"印"]
[]
[]
[null,null,"ふりがな",null,null,null,null,null,null,null,null,null,null,null,null,null,null,null,null,null,null,null,null,null,null,null,null,null,null,null,null,null,null,null,null,null,null,null,"学年",null,null,"段位",null,null,"体重（kg）",null,null,null,null,"身長（cm）",null,null,null,null,"生年月日（西暦）"]
[null,null,"選手名",null,null,null,"（姓）",null,null,null,null,null,null,null,null,null,null,null,null,null,null,null,"（名）",null,null,null,null,null,null,null,null,null,null,null,null,null,null,null,null,null,null,null,null,null,null,null,null,null,null,null,null,null,null,null,null,null,null,null,"・",null,null,null,"・"]
[]
[]
[null,null,"出場選手が以下の項目に該当するときは入力してください"]
[null,null,"インターハイ予選特別枠",null,null,null,null,null,null,null,null,null,null,null,null,null,"（",null,null,null,null,null,"）kg級",null,null,null,null,null,"（",null,null,null,null,null,"）位",null,null,null,"強化選手選考会2次選考（9/5）選出者"]
[]
[null,null,"大阪総体特別枠",null,null,null,null,null,null,null,null,null,null,null,null,null,"（",null,null,null,null,null,"）kg級",null,null,null,null,null,"（",null,null,null,null,null,"）位",null,null,null,"（",null,null,null,null,null,null,null,null,null,null,null,null,"）ランク"]
[]
[]
[]
[null,null,null,null,null,null,null,null,null,null,null,null,null,null,null,null,null,null,null,null,null,null,null,null,null,null,null,null,"（","ｷ　ﾘ　ﾄ　ﾘ",null,null,null,null,null,null,null,"）"]
[]
[]
[]
["個　人　試　合　申　込　書"]
[]
[null,null,"※抽選番号",null,null,null,null,null,null,null,null,null,null,null,null,null,null,null,null,null,null,"kg級",null,null,null,"第３６回全国高等学校柔道選手権大会大阪府予選会（一次予選）"]
[]
[null,null,"学校番号",null,null,null,"学　　　　校　　　　名",null,null,null,null,null,null,null,null,null,null,null,null,null,null,null,null,null,null,null,null,null,null,null,null,null,null,null,null,null,null,null,"監督名",null,null,null,null,null,null,null,null,null,null,null,null,"校長名"]
[null,null,null,null,null,null,{"$f":"#REF!","v":{"$error":"#REF!"}},null,null,null,null,null,null,null,null,null,null,null,null,null,null,null,null,null,null,null,null,"高等学校",null,null,null,null,null,null,null,null,null,null,{"$f":"#REF!","v":{"$error":"#REF!"}},null,null,null,null,null,null,null,null,null,null,"印",null,{"$f":"#REF!","v":{"$error":"#REF!"}},null,null,null,null,null,null,null,null,null,null,null,"印"]
[]
[]
[null,null,"ふりがな",null,null,null,null,null,null,null,null,null,null,null,null,null,null,null,null,null,null,null,null,null,null,null,null,null,null,null,null,null,null,null,null,null,null,null,"学年",null,null,"段位",null,null,"体重（kg）",null,null,null,null,"身長（cm）",null,null,null,null,"生年月日（西暦）"]
[null,null,"選手名",null,null,null,"（姓）",null,null,null,null,null,null,null,null,null,null,null,null,null,null,null,"（名）",null,null,null,null,null,null,null,null,null,null,null,null,null,null,null,null,null,null,null,null,null,null,null,null,null,null,null,null,null,null,null,null,null,null,null,"・",null,null,null,"・"]
[]
[]
[null,null,"出場選手が以下の項目に該当するときは入力してください"]
[null,null,"インターハイ予選特別枠",null,null,null,null,null,null,null,null,null,null,null,null,null,"（",null,null,null,null,null,"）kg級",null,null,null,null,null,"（",null,null,null,null,null,"）位",null,null,null,"強化選手選考会2次選考（9/5）選出者"]
[]
[null,null,"大阪総体特別枠",null,null,null,null,null,null,null,null,null,null,null,null,null,"（",null,null,null,null,null,"）kg級",null,null,null,null,null,"（",null,null,null,null,null,"）位",null,null,null,"（",null,null,null,null,null,null,null,null,null,null,null,null,"）ランク"]
[]
[]
[]
[null,null,null,null,null,null,null,null,null,null,null,null,null,null,null,null,null,null,null,null,null,null,null,null,null,null,null,null,"（","ｷ　ﾘ　ﾄ　ﾘ",null,null,null,null,null,null,null,"）"]
[]
[]
[]
["個　人　試　合　申　込　書"]
[]
[null,null,"※抽選番号",null,null,null,null,null,null,null,null,null,null,null,null,null,null,null,null,null,null,"kg級",null,null,null,"第３６回全国高等学校柔道選手権大会大阪府予選会（一次予選）"]
[]
[null,null,"学校番号",null,null,null,"学　　　　校　　　　名",null,null,null,null,null,null,null,null,null,null,null,null,null,null,null,null,null,null,null,null,null,null,null,null,null,null,null,null,null,null,null,"監督名",null,null,null,null,null,null,null,null,null,null,null,null,"校長名"]
[null,null,null,null,null,null,{"$f":"#REF!","v":{"$error":"#REF!"}},null,null,null,null,null,null,null,null,null,null,null,null,null,null,null,null,null,null,null,null,"高等学校",null,null,null,null,null,null,null,null,null,null,{"$f":"#REF!","v":{"$error":"#REF!"}},null,null,null,null,null,null,null,null,null,null,"印",null,{"$f":"#REF!","v":{"$error":"#REF!"}},null,null,null,null,null,null,null,null,null,null,null,"印"]
[]
[]
[null,null,"ふりがな",null,null,null,null,null,null,null,null,null,null,null,null,null,null,null,null,null,null,null,null,null,null,null,null,null,null,null,null,null,null,null,null,null,null,null,"学年",null,null,"段位",null,null,"体重（kg）",null,null,null,null,"身長（cm）",null,null,null,null,"生年月日（西暦）"]
[null,null,"選手名",null,null,null,"（姓）",null,null,null,null,null,null,null,null,null,null,null,null,null,null,null,"（名）",null,null,null,null,null,null,null,null,null,null,null,null,null,null,null,null,null,null,null,null,null,null,null,null,null,null,null,null,null,null,null,null,null,null,null,"・",null,null,null,"・"]
[]
[]
[null,null,"出場選手が以下の項目に該当するときは入力してください"]
[null,null,"インターハイ予選特別枠",null,null,null,null,null,null,null,null,null,null,null,null,null,"（",null,null,null,null,null,"）kg級",null,null,null,null,null,"（",null,null,null,null,null,"）位",null,null,null,"強化選手選考会2次選考（9/5）選出者"]
[]
[null,null,"大阪総体特別枠",null,null,null,null,null,null,null,null,null,null,null,null,null,"（",null,null,null,null,null,"）kg級",null,null,null,null,null,"（",null,null,null,null,null,"）位",null,null,null,"（",null,null,null,null,null,null,null,null,null,null,null,null,"）ランク"]
[]
[]
[]
[null,null,null,null,null,null,null,null,null,null,null,null,null,null,null,null,null,null,null,null,null,null,null,null,null,null,null,null,"（","ｷ　ﾘ　ﾄ　ﾘ",null,null,null,null,null,null,null,"）"]
[]
[]
[]
["個　人　試　合　申　込　書"]
[]
[null,null,"※抽選番号",null,null,null,null,null,null,null,null,null,null,null,null,null,null,null,null,null,null,"kg級",null,null,null,"第３６回全国高等学校柔道選手権大会大阪府予選会（一次予選）"]
[]
[null,null,"学校番号",null,null,null,"学　　　　校　　　　名",null,null,null,null,null,null,null,null,null,null,null,null,null,null,null,null,null,null,null,null,null,null,null,null,null,null,null,null,null,null,null,"監督名",null,null,null,null,null,null,null,null,null,null,null,null,"校長名"]
[null,null,null,null,null,null,{"$f":"#REF!","v":{"$error":"#REF!"}},null,null,null,null,null,null,null,null,null,null,null,null,null,null,null,null,null,null,null,null,"高等学校",null,null,null,null,null,null,null,null,null,null,{"$f":"#REF!","v":{"$error":"#REF!"}},null,null,null,null,null,null,null,null,null,null,"印",null,{"$f":"#REF!","v":{"$error":"#REF!"}},null,null,null,null,null,null,null,null,null,null,null,"印"]
[]
[]
[null,null,"ふりがな",null,null,null,null,null,null,null,null,null,null,null,null,null,null,null,null,null,null,null,null,null,null,null,null,null,null,null,null,null,null,null,null,null,null,null,"学年",null,null,"段位",null,null,"体重（kg）",null,null,null,null,"身長（cm）",null,null,null,null,"生年月日（西暦）"]
[null,null,"選手名",null,null,null,"（姓）",null,null,null,null,null,null,null,null,null,null,null,null,null,null,null,"（名）",null,null,null,null,null,null,null,null,null,null,null,null,null,null,null,null,null,null,null,null,null,null,null,null,null,null,null,null,null,null,null,null,null,null,null,"・",null,null,null,"・"]
[]
[]
[null,null,"出場選手が以下の項目に該当するときは入力してください"]
[null,null,"インターハイ予選特別枠",null,null,null,null,null,null,null,null,null,null,null,null,null,"（",null,null,null,null,null,"）kg級",null,null,null,null,null,"（",null,null,null,null,null,"）位",null,null,null,"強化選手選考会2次選考（9/5）選出者"]
[]
[null,null,"大阪総体特別枠",null,null,null,null,null,null,null,null,null,null,null,null,null,"（",null,null,null,null,null,"）kg級",null,null,null,null,null,"（",null,null,null,null,null,"）位",null,null,null,"（",null,null,null,null,null,null,null,null,null,null,null,null,"）ランク"]
[]
[]
[]
[null,null,null,null,null,null,null,null,null,null,null,null,null,null,null,null,null,null,null,null,null,null,null,null,null,null,null,null,"（","ｷ　ﾘ　ﾄ　ﾘ",null,null,null,null,null,null,null,"）"]
[]
[]
[]
["個　人　試　合　申　込　書"]
[]
[null,null,"※抽選番号",null,null,null,null,null,null,null,null,null,null,null,null,null,null,null,null,null,null,"kg級",null,null,null,"第３６回全国高等学校柔道選手権大会大阪府予選会（一次予選）"]
[]
[null,null,"学校番号",null,null,null,"学　　　　校　　　　名",null,null,null,null,null,null,null,null,null,null,null,null,null,null,null,null,null,null,null,null,null,null,null,null,null,null,null,null,null,null,null,"監督名",null,null,null,null,null,null,null,null,null,null,null,null,"校長名"]
[null,null,null,null,null,null,{"$f":"#REF!","v":{"$error":"#REF!"}},null,null,null,null,null,null,null,null,null,null,null,null,null,null,null,null,null,null,null,null,"高等学校",null,null,null,null,null,null,null,null,null,null,{"$f":"#REF!","v":{"$error":"#REF!"}},null,null,null,null,null,null,null,null,null,null,"印",null,{"$f":"#REF!","v":{"$error":"#REF!"}},null,null,null,null,null,null,null,null,null,null,null,"印"]
[]
[]
[null,null,"ふりがな",null,null,null,null,null,null,null,null,null,null,null,null,null,null,null,null,null,null,null,null,null,null,null,null,null,null,null,null,null,null,null,null,null,null,null,"学年",null,null,"段位",null,null,"体重（kg）",null,null,null,null,"身長（cm）",null,null,null,null,"生年月日（西暦）"]
[null,null,"選手名",null,null,null,"（姓）",null,null,null,null,null,null,null,null,null,null,null,null,null,null,null,"（名）",null,null,null,null,null,null,null,null,null,null,null,null,null,null,null,null,null,null,null,null,null,null,null,null,null,null,null,null,null,null,null,null,null,null,null,"・",null,null,null,"・"]
[]
[]
[null,null,"出場選手が以下の項目に該当するときは入力してください"]
[null,null,"インターハイ予選特別枠",null,null,null,null,null,null,null,null,null,null,null,null,null,"（",null,null,null,null,null,"）kg級",null,null,null,null,null,"（",null,null,null,null,null,"）位",null,null,null,"強化選手選考会2次選考（9/5）選出者"]
[]
[null,null,"大阪総体特別枠",null,null,null,null,null,null,null,null,null,null,null,null,null,"（",null,null,null,null,null,"）kg級",null,null,null,null,null,"（",null,null,null,null,null,"）位",null,null,null,"（",null,null,null,null,null,null,null,null,null,null,null,null,"）ランク"]
[]
[]
[]
[null,null,null,null,null,null,null,null,null,null,null,null,null,null,null,null,null,null,null,null,null,null,null,null,null,null,null,null,"（","ｷ　ﾘ　ﾄ　ﾘ",null,null,null,null,null,null,null,"）"]
[]
[]
[]
["個　人　試　合　申　込　書"]
[]
[null,null,"※抽選番号",null,null,null,null,null,null,null,null,null,null,null,null,null,null,null,null,null,null,"kg級",null,null,null,"第３６回全国高等学校柔道選手権大会大阪府予選会（一次予選）"]
[]
[null,null,"学校番号",null,null,null,"学　　　　校　　　　名",null,null,null,null,null,null,null,null,null,null,null,null,null,null,null,null,null,null,null,null,null,null,null,null,null,null,null,null,null,null,null,"監督名",null,null,null,null,null,null,null,null,null,null,null,null,"校長名"]
[null,null,null,null,null,null,{"$f":"#REF!","v":{"$error":"#REF!"}},null,null,null,null,null,null,null,null,null,null,null,null,null,null,null,null,null,null,null,null,"高等学校",null,null,null,null,null,null,null,null,null,null,{"$f":"#REF!","v":{"$error":"#REF!"}},null,null,null,null,null,null,null,null,null,null,"印",null,{"$f":"#REF!","v":{"$error":"#REF!"}},null,null,null,null,null,null,null,null,null,null,null,"印"]
[]
[]
[null,null,"ふりがな",null,null,null,null,null,null,null,null,null,null,null,null,null,null,null,null,null,null,null,null,null,null,null,null,null,null,null,null,null,null,null,null,null,null,null,"学年",null,null,"段位",null,null,"体重（kg）",null,null,null,null,"身長（cm）",null,null,null,null,"生年月日（西暦）"]
[null,null,"選手名",null,null,null,"（姓）",null,null,null,null,null,null,null,null,null,null,null,null,null,null,null,"（名）",null,null,null,null,null,null,null,null,null,null,null,null,null,null,null,null,null,null,null,null,null,null,null,null,null,null,null,null,null,null,null,null,null,null,null,"・",null,null,null,"・"]
[]
[]
[null,null,"出場選手が以下の項目に該当するときは入力してください"]
[null,null,"インターハイ予選特別枠",null,null,null,null,null,null,null,null,null,null,null,null,null,"（",null,null,null,null,null,"）kg級",null,null,null,null,null,"（",null,null,null,null,null,"）位",null,null,null,"強化選手選考会2次選考（9/5）選出者"]
[]
[null,null,"大阪総体特別枠",null,null,null,null,null,null,null,null,null,null,null,null,null,"（",null,null,null,null,null,"）kg級",null,null,null,null,null,"（",null,null,null,null,null,"）位",null,null,null,"（",null,null,null,null,null,null,null,null,null,null,null,null,"）ランク"]
[]
[]
[]
[null,null,null,null,null,null,null,null,null,null,null,null,null,null,null,null,null,null,null,null,null,null,null,null,null,null,null,null,"（","ｷ　ﾘ　ﾄ　ﾘ",null,null,null,null,null,null,null,"）"]
[]
[]
[]
["個　人　試　合　申　込　書"]
[]
[null,null,"※抽選番号",null,null,null,null,null,null,null,null,null,null,null,null,null,null,null,null,null,null,"kg級",null,null,null,"第３６回全国高等学校柔道選手権大会大阪府予選会（一次予選）"]
[]
[null,null,"学校番号",null,null,null,"学　　　　校　　　　名",null,null,null,null,null,null,null,null,null,null,null,null,null,null,null,null,null,null,null,null,null,null,null,null,null,null,null,null,null,null,null,"監督名",null,null,null,null,null,null,null,null,null,null,null,null,"校長名"]
[null,null,null,null,null,null,{"$f":"#REF!","v":{"$error":"#REF!"}},null,null,null,null,null,null,null,null,null,null,null,null,null,null,null,null,null,null,null,null,"高等学校",null,null,null,null,null,null,null,null,null,null,{"$f":"#REF!","v":{"$error":"#REF!"}},null,null,null,null,null,null,null,null,null,null,"印",null,{"$f":"#REF!","v":{"$error":"#REF!"}},null,null,null,null,null,null,null,null,null,null,null,"印"]
[]
[]
[null,null,"ふりがな",null,null,null,null,null,null,null,null,null,null,null,null,null,null,null,null,null,null,null,null,null,null,null,null,null,null,null,null,null,null,null,null,null,null,null,"学年",null,null,"段位",null,null,"体重（kg）",null,null,null,null,"身長（cm）",null,null,null,null,"生年月日（西暦）"]
[null,null,"選手名",null,null,null,"（姓）",null,null,null,null,null,null,null,null,null,null,null,null,null,null,null,"（名）",null,null,null,null,null,null,null,null,null,null,null,null,null,null,null,null,null,null,null,null,null,null,null,null,null,null,null,null,null,null,null,null,null,null,null,"・",null,null,null,"・"]
[]
[]
[null,null,"出場選手が以下の項目に該当するときは入力してください"]
[null,null,"インターハイ予選特別枠",null,null,null,null,null,null,null,null,null,null,null,null,null,"（",null,null,null,null,null,"）kg級",null,null,null,null,null,"（",null,null,null,null,null,"）位",null,null,null,"強化選手選考会2次選考（9/5）選出者"]
[]
[null,null,"大阪総体特別枠",null,null,null,null,null,null,null,null,null,null,null,null,null,"（",null,null,null,null,null,"）kg級",null,null,null,null,null,"（",null,null,null,null,null,"）位",null,null,null,"（",null,null,null,null,null,null,null,null,null,null,null,null,"）ランク"]
[]
[]
[]
[null,null,null,null,null,null,null,null,null,null,null,null,null,null,null,null,null,null,null,null,null,null,null,null,null,null,null,null,"（","ｷ　ﾘ　ﾄ　ﾘ",null,null,null,null,null,null,null,"）"]
[]
[]
[]
["個　人　試　合　申　込　書"]
[]
[null,null,"※抽選番号",null,null,null,null,null,null,null,null,null,null,null,null,null,null,null,null,null,null,"kg級",null,null,null,"第３６回全国高等学校柔道選手権大会大阪府予選会（一次予選）"]
[]
[null,null,"学校番号",null,null,null,"学　　　　校　　　　名",null,null,null,null,null,null,null,null,null,null,null,null,null,null,null,null,null,null,null,null,null,null,null,null,null,null,null,null,null,null,null,"監督名",null,null,null,null,null,null,null,null,null,null,null,null,"校長名"]
[null,null,null,null,null,null,{"$f":"#REF!","v":{"$error":"#REF!"}},null,null,null,null,null,null,null,null,null,null,null,null,null,null,null,null,null,null,null,null,"高等学校",null,null,null,null,null,null,null,null,null,null,{"$f":"#REF!","v":{"$error":"#REF!"}},null,null,null,null,null,null,null,null,null,null,"印",null,{"$f":"#REF!","v":{"$error":"#REF!"}},null,null,null,null,null,null,null,null,null,null,null,"印"]
[]
[]
[null,null,"ふりがな",null,null,null,null,null,null,null,null,null,null,null,null,null,null,null,null,null,null,null,null,null,null,null,null,null,null,null,null,null,null,null,null,null,null,null,"学年",null,null,"段位",null,null,"体重（kg）",null,null,null,null,"身長（cm）",null,null,null,null,"生年月日（西暦）"]
[null,null,"選手名",null,null,null,"（姓）",null,null,null,null,null,null,null,null,null,null,null,null,null,null,null,"（名）",null,null,null,null,null,null,null,null,null,null,null,null,null,null,null,null,null,null,null,null,null,null,null,null,null,null,null,null,null,null,null,null,null,null,null,"・",null,null,null,"・"]
[]
[]
[null,null,"出場選手が以下の項目に該当するときは入力してください"]
[null,null,"インターハイ予選特別枠",null,null,null,null,null,null,null,null,null,null,null,null,null,"（",null,null,null,null,null,"）kg級",null,null,null,null,null,"（",null,null,null,null,null,"）位",null,null,null,"強化選手選考会2次選考（9/5）選出者"]
[]
[null,null,"大阪総体特別枠",null,null,null,null,null,null,null,null,null,null,null,null,null,"（",null,null,null,null,null,"）kg級",null,null,null,null,null,"（",null,null,null,null,null,"）位",null,null,null,"（",null,null,null,null,null,null,null,null,null,null,null,null,"）ランク"]
[]
[]
[]
[null,null,null,null,null,null,null,null,null,null,null,null,null,null,null,null,null,null,null,null,null,null,null,null,null,null,null,null,"（","ｷ　ﾘ　ﾄ　ﾘ",null,null,null,null,null,null,null,"）"]
[]
[]
[]
["個　人　試　合　申　込　書"]
[]
[null,null,"※抽選番号",null,null,null,null,null,null,null,null,null,null,null,null,null,null,null,null,null,null,"kg級",null,null,null,"第３６回全国高等学校柔道選手権大会大阪府予選会（一次予選）"]
[]
[null,null,"学校番号",null,null,null,"学　　　　校　　　　名",null,null,null,null,null,null,null,null,null,null,null,null,null,null,null,null,null,null,null,null,null,null,null,null,null,null,null,null,null,null,null,"監督名",null,null,null,null,null,null,null,null,null,null,null,null,"校長名"]
[null,null,null,null,null,null,{"$f":"#REF!","v":{"$error":"#REF!"}},null,null,null,null,null,null,null,null,null,null,null,null,null,null,null,null,null,null,null,null,"高等学校",null,null,null,null,null,null,null,null,null,null,{"$f":"#REF!","v":{"$error":"#REF!"}},null,null,null,null,null,null,null,null,null,null,"印",null,{"$f":"#REF!","v":{"$error":"#REF!"}},null,null,null,null,null,null,null,null,null,null,null,"印"]
[]
[]
[null,null,"ふりがな",null,null,null,null,null,null,null,null,null,null,null,null,null,null,null,null,null,null,null,null,null,null,null,null,null,null,null,null,null,null,null,null,null,null,null,"学年",null,null,"段位",null,null,"体重（kg）",null,null,null,null,"身長（cm）",null,null,null,null,"生年月日（西暦）"]
[null,null,"選手名",null,null,null,"（姓）",null,null,null,null,null,null,null,null,null,null,null,null,null,null,null,"（名）",null,null,null,null,null,null,null,null,null,null,null,null,null,null,null,null,null,null,null,null,null,null,null,null,null,null,null,null,null,null,null,null,null,null,null,"・",null,null,null,"・"]
[]
[]
[null,null,"出場選手が以下の項目に該当するときは入力してください"]
[null,null,"インターハイ予選特別枠",null,null,null,null,null,null,null,null,null,null,null,null,null,"（",null,null,null,null,null,"）kg級",null,null,null,null,null,"（",null,null,null,null,null,"）位",null,null,null,"強化選手選考会2次選考（9/5）選出者"]
[]
[null,null,"大阪総体特別枠",null,null,null,null,null,null,null,null,null,null,null,null,null,"（",null,null,null,null,null,"）kg級",null,null,null,null,null,"（",null,null,null,null,null,"）位",null,null,null,"（",null,null,null,null,null,null,null,null,null,null,null,null,"）ランク"]
[]
[]
[]
[null,null,null,null,null,null,null,null,null,null,null,null,null,null,null,null,null,null,null,null,null,null,null,null,null,null,null,null,"（","ｷ　ﾘ　ﾄ　ﾘ",null,null,null,null,null,null,null,"）"]
[]
[]
[]
["個　人　試　合　申　込　書"]
[]
[null,null,"※抽選番号",null,null,null,null,null,null,null,null,null,null,null,null,null,null,null,null,null,null,"kg級",null,null,null,"第３６回全国高等学校柔道選手権大会大阪府予選会（一次予選）"]
[]
[null,null,"学校番号",null,null,null,"学　　　　校　　　　名",null,null,null,null,null,null,null,null,null,null,null,null,null,null,null,null,null,null,null,null,null,null,null,null,null,null,null,null,null,null,null,"監督名",null,null,null,null,null,null,null,null,null,null,null,null,"校長名"]
[null,null,null,null,null,null,{"$f":"#REF!","v":{"$error":"#REF!"}},null,null,null,null,null,null,null,null,null,null,null,null,null,null,null,null,null,null,null,null,"高等学校",null,null,null,null,null,null,null,null,null,null,{"$f":"#REF!","v":{"$error":"#REF!"}},null,null,null,null,null,null,null,null,null,null,"印",null,{"$f":"#REF!","v":{"$error":"#REF!"}},null,null,null,null,null,null,null,null,null,null,null,"印"]
[]
[]
[null,null,"ふりがな",null,null,null,null,null,null,null,null,null,null,null,null,null,null,null,null,null,null,null,null,null,null,null,null,null,null,null,null,null,null,null,null,null,null,null,"学年",null,null,"段位",null,null,"体重（kg）",null,null,null,null,"身長（cm）",null,null,null,null,"生年月日（西暦）"]
[null,null,"選手名",null,null,null,"（姓）",null,null,null,null,null,null,null,null,null,null,null,null,null,null,null,"（名）",null,null,null,null,null,null,null,null,null,null,null,null,null,null,null,null,null,null,null,null,null,null,null,null,null,null,null,null,null,null,null,null,null,null,null,"・",null,null,null,"・"]
[]
[]
[null,null,"出場選手が以下の項目に該当するときは入力してください"]
[null,null,"インターハイ予選特別枠",null,null,null,null,null,null,null,null,null,null,null,null,null,"（",null,null,null,null,null,"）kg級",null,null,null,null,null,"（",null,null,null,null,null,"）位",null,null,null,"強化選手選考会2次選考（9/5）選出者"]
[]
[null,null,"大阪総体特別枠",null,null,null,null,null,null,null,null,null,null,null,null,null,"（",null,null,null,null,null,"）kg級",null,null,null,null,null,"（",null,null,null,null,null,"）位",null,null,null,"（",null,null,null,null,null,null,null,null,null,null,null,null,"）ランク"]
[]
[]
[]
[]
[null,null,null,null,null,null,null,null,null,null,null,null,null,null,null,null,null,null,null,null,null,null,null,null,null,null,null,null,"（","ｷ　ﾘ　ﾄ　ﾘ",null,null,null,null,null,null,null,"）"]
[]
[]
[]
["個　人　試　合　申　込　書"]
[]
[null,null,"※抽選番号",null,null,null,null,null,null,null,null,null,null,null,null,null,null,null,null,null,null,"kg級",null,null,null,"第３６回全国高等学校柔道選手権大会大阪府予選会（一次予選）"]
[]
[null,null,"学校番号",null,null,null,"学　　　　校　　　　名",null,null,null,null,null,null,null,null,null,null,null,null,null,null,null,null,null,null,null,null,null,null,null,null,null,null,null,null,null,null,null,"監督名",null,null,null,null,null,null,null,null,null,null,null,null,"校長名"]
[null,null,null,null,null,null,{"$f":"#REF!","v":{"$error":"#REF!"}},null,null,null,null,null,null,null,null,null,null,null,null,null,null,null,null,null,null,null,null,"高等学校",null,null,null,null,null,null,null,null,null,null,{"$f":"#REF!","v":{"$error":"#REF!"}},null,null,null,null,null,null,null,null,null,null,"印",null,{"$f":"#REF!","v":{"$error":"#REF!"}},null,null,null,null,null,null,null,null,null,null,null,"印"]
[]
[]
[null,null,"ふりがな",null,null,null,null,null,null,null,null,null,null,null,null,null,null,null,null,null,null,null,null,null,null,null,null,null,null,null,null,null,null,null,null,null,null,null,"学年",null,null,"段位",null,null,"体重（kg）",null,null,null,null,"身長（cm）",null,null,null,null,"生年月日（西暦）"]
[null,null,"選手名",null,null,null,"（姓）",null,null,null,null,null,null,null,null,null,null,null,null,null,null,null,"（名）",null,null,null,null,null,null,null,null,null,null,null,null,null,null,null,null,null,null,null,null,null,null,null,null,null,null,null,null,null,null,null,null,null,null,null,"・",null,null,null,"・"]
[]
[]
[null,null,"出場選手が以下の項目に該当するときは入力してください"]
[null,null,"インターハイ予選特別枠",null,null,null,null,null,null,null,null,null,null,null,null,null,"（",null,null,null,null,null,"）kg級",null,null,null,null,null,"（",null,null,null,null,null,"）位",null,null,null,"強化選手選考会2次選考（9/5）選出者"]
[]
[null,null,"大阪総体特別枠",null,null,null,null,null,null,null,null,null,null,null,null,null,"（",null,null,null,null,null,"）kg級",null,null,null,null,null,"（",null,null,null,null,null,"）位",null,null,null,"（",null,null,null,null,null,null,null,null,null,null,null,null,"）ランク"]
[]
[]
[]
[null,null,null,null,null,null,null,null,null,null,null,null,null,null,null,null,null,null,null,null,null,null,null,null,null,null,null,null,"（","ｷ　ﾘ　ﾄ　ﾘ",null,null,null,null,null,null,null,"）"]
[]
[]
[]
["個　人　試　合　申　込　書"]
[]
[null,null,"※抽選番号",null,null,null,null,null,null,null,null,null,null,null,null,null,null,null,null,null,null,"kg級",null,null,null,"第３６回全国高等学校柔道選手権大会大阪府予選会（一次予選）"]
[]
[null,null,"学校番号",null,null,null,"学　　　　校　　　　名",null,null,null,null,null,null,null,null,null,null,null,null,null,null,null,null,null,null,null,null,null,null,null,null,null,null,null,null,null,null,null,"監督名",null,null,null,null,null,null,null,null,null,null,null,null,"校長名"]
[null,null,null,null,null,null,{"$f":"#REF!","v":{"$error":"#REF!"}},null,null,null,null,null,null,null,null,null,null,null,null,null,null,null,null,null,null,null,null,"高等学校",null,null,null,null,null,null,null,null,null,null,{"$f":"#REF!","v":{"$error":"#REF!"}},null,null,null,null,null,null,null,null,null,null,"印",null,{"$f":"#REF!","v":{"$error":"#REF!"}},null,null,null,null,null,null,null,null,null,null,null,"印"]
[]
[]
[null,null,"ふりがな",null,null,null,null,null,null,null,null,null,null,null,null,null,null,null,null,null,null,null,null,null,null,null,null,null,null,null,null,null,null,null,null,null,null,null,"学年",null,null,"段位",null,null,"体重（kg）",null,null,null,null,"身長（cm）",null,null,null,null,"生年月日（西暦）"]
[null,null,"選手名",null,null,null,"（姓）",null,null,null,null,null,null,null,null,null,null,null,null,null,null,null,"（名）",null,null,null,null,null,null,null,null,null,null,null,null,null,null,null,null,null,null,null,null,null,null,null,null,null,null,null,null,null,null,null,null,null,null,null,"・",null,null,null,"・"]
[]
[]
[null,null,"出場選手が以下の項目に該当するときは入力してください"]
[null,null,"インターハイ予選特別枠",null,null,null,null,null,null,null,null,null,null,null,null,null,"（",null,null,null,null,null,"）kg級",null,null,null,null,null,"（",null,null,null,null,null,"）位",null,null,null,"強化選手選考会2次選考（9/5）選出者"]
[]
[null,null,"大阪総体特別枠",null,null,null,null,null,null,null,null,null,null,null,null,null,"（",null,null,null,null,null,"）kg級",null,null,null,null,null,"（",null,null,null,null,null,"）位",null,null,null,"（",null,null,null,null,null,null,null,null,null,null,null,null,"）ランク"]
[]
[]
[]
[null,null,null,null,null,null,null,null,null,null,null,null,null,null,null,null,null,null,null,null,null,null,null,null,null,null,null,null,"（","ｷ　ﾘ　ﾄ　ﾘ",null,null,null,null,null,null,null,"）"]
[]
[]
[]
["個　人　試　合　申　込　書"]
[]
[null,null,"※抽選番号",null,null,null,null,null,null,null,null,null,null,null,null,null,null,null,null,null,null,"kg級",null,null,null,"第３６回全国高等学校柔道選手権大会大阪府予選会（一次予選）"]
[]
[null,null,"学校番号",null,null,null,"学　　　　校　　　　名",null,null,null,null,null,null,null,null,null,null,null,null,null,null,null,null,null,null,null,null,null,null,null,null,null,null,null,null,null,null,null,"監督名",null,null,null,null,null,null,null,null,null,null,null,null,"校長名"]
[null,null,null,null,null,null,{"$f":"#REF!","v":{"$error":"#REF!"}},null,null,null,null,null,null,null,null,null,null,null,null,null,null,null,null,null,null,null,null,"高等学校",null,null,null,null,null,null,null,null,null,null,{"$f":"#REF!","v":{"$error":"#REF!"}},null,null,null,null,null,null,null,null,null,null,"印",null,{"$f":"#REF!","v":{"$error":"#REF!"}},null,null,null,null,null,null,null,null,null,null,null,"印"]
[]
[]
[null,null,"ふりがな",null,null,null,null,null,null,null,null,null,null,null,null,null,null,null,null,null,null,null,null,null,null,null,null,null,null,null,null,null,null,null,null,null,null,null,"学年",null,null,"段位",null,null,"体重（kg）",null,null,null,null,"身長（cm）",null,null,null,null,"生年月日（西暦）"]
[null,null,"選手名",null,null,null,"（姓）",null,null,null,null,null,null,null,null,null,null,null,null,null,null,null,"（名）",null,null,null,null,null,null,null,null,null,null,null,null,null,null,null,null,null,null,null,null,null,null,null,null,null,null,null,null,null,null,null,null,null,null,null,"・",null,null,null,"・"]
[]
[]
[null,null,"出場選手が以下の項目に該当するときは入力してください"]
[null,null,"インターハイ予選特別枠",null,null,null,null,null,null,null,null,null,null,null,null,null,"（",null,null,null,null,null,"）kg級",null,null,null,null,null,"（",null,null,null,null,null,"）位",null,null,null,"強化選手選考会2次選考（9/5）選出者"]
[]
[null,null,"大阪総体特別枠",null,null,null,null,null,null,null,null,null,null,null,null,null,"（",null,null,null,null,null,"）kg級",null,null,null,null,null,"（",null,null,null,null,null,"）位",null,null,null,"（",null,null,null,null,null,null,null,null,null,null,null,null,"）ランク"]
[]
[]
[]
[null,null,null,null,null,null,null,null,null,null,null,null,null,null,null,null,null,null,null,null,null,null,null,null,null,null,null,null,"（","ｷ　ﾘ　ﾄ　ﾘ",null,null,null,null,null,null,null,"）"]
[]
[]
[]
["個　人　試　合　申　込　書"]
[]
[null,null,"※抽選番号",null,null,null,null,null,null,null,null,null,null,null,null,null,null,null,null,null,null,"kg級",null,null,null,"第３６回全国高等学校柔道選手権大会大阪府予選会（一次予選）"]
[]
[null,null,"学校番号",null,null,null,"学　　　　校　　　　名",null,null,null,null,null,null,null,null,null,null,null,null,null,null,null,null,null,null,null,null,null,null,null,null,null,null,null,null,null,null,null,"監督名",null,null,null,null,null,null,null,null,null,null,null,null,"校長名"]
[null,null,null,null,null,null,{"$f":"#REF!","v":{"$error":"#REF!"}},null,null,null,null,null,null,null,null,null,null,null,null,null,null,null,null,null,null,null,null,"高等学校",null,null,null,null,null,null,null,null,null,null,{"$f":"#REF!","v":{"$error":"#REF!"}},null,null,null,null,null,null,null,null,null,null,"印",null,{"$f":"#REF!","v":{"$error":"#REF!"}},null,null,null,null,null,null,null,null,null,null,null,"印"]
[]
[]
[null,null,"ふりがな",null,null,null,null,null,null,null,null,null,null,null,null,null,null,null,null,null,null,null,null,null,null,null,null,null,null,null,null,null,null,null,null,null,null,null,"学年",null,null,"段位",null,null,"体重（kg）",null,null,null,null,"身長（cm）",null,null,null,null,"生年月日（西暦）"]
[null,null,"選手名",null,null,null,"（姓）",null,null,null,null,null,null,null,null,null,null,null,null,null,null,null,"（名）",null,null,null,null,null,null,null,null,null,null,null,null,null,null,null,null,null,null,null,null,null,null,null,null,null,null,null,null,null,null,null,null,null,null,null,"・",null,null,null,"・"]
[]
[]
[null,null,"出場選手が以下の項目に該当するときは入力してください"]
[null,null,"インターハイ予選特別枠",null,null,null,null,null,null,null,null,null,null,null,null,null,"（",null,null,null,null,null,"）kg級",null,null,null,null,null,"（",null,null,null,null,null,"）位",null,null,null,"強化選手選考会2次選考（9/5）選出者"]
[]
[null,null,"大阪総体特別枠",null,null,null,null,null,null,null,null,null,null,null,null,null,"（",null,null,null,null,null,"）kg級",null,null,null,null,null,"（",null,null,null,null,null,"）位",null,null,null,"（",null,null,null,null,null,null,null,null,null,null,null,null,"）ランク"]
[]
[]
[]
[null,null,null,null,null,null,null,null,null,null,null,null,null,null,null,null,null,null,null,null,null,null,null,null,null,null,null,null,"（","ｷ　ﾘ　ﾄ　ﾘ",null,null,null,null,null,null,null,"）"]
[]
[]
[]
["個　人　試　合　申　込　書"]
[]
[null,null,"※抽選番号",null,null,null,null,null,null,null,null,null,null,null,null,null,null,null,null,null,null,"kg級",null,null,null,"第３６回全国高等学校柔道選手権大会大阪府予選会（一次予選）"]
[]
[null,null,"学校番号",null,null,null,"学　　　　校　　　　名",null,null,null,null,null,null,null,null,null,null,null,null,null,null,null,null,null,null,null,null,null,null,null,null,null,null,null,null,null,null,null,"監督名",null,null,null,null,null,null,null,null,null,null,null,null,"校長名"]
[null,null,null,null,null,null,{"$f":"#REF!","v":{"$error":"#REF!"}},null,null,null,null,null,null,null,null,null,null,null,null,null,null,null,null,null,null,null,null,"高等学校",null,null,null,null,null,null,null,null,null,null,{"$f":"#REF!","v":{"$error":"#REF!"}},null,null,null,null,null,null,null,null,null,null,"印",null,{"$f":"#REF!","v":{"$error":"#REF!"}},null,null,null,null,null,null,null,null,null,null,null,"印"]
[]
[]
[null,null,"ふりがな",null,null,null,null,null,null,null,null,null,null,null,null,null,null,null,null,null,null,null,null,null,null,null,null,null,null,null,null,null,null,null,null,null,null,null,"学年",null,null,"段位",null,null,"体重（kg）",null,null,null,null,"身長（cm）",null,null,null,null,"生年月日（西暦）"]
[null,null,"選手名",null,null,null,"（姓）",null,null,null,null,null,null,null,null,null,null,null,null,null,null,null,"（名）",null,null,null,null,null,null,null,null,null,null,null,null,null,null,null,null,null,null,null,null,null,null,null,null,null,null,null,null,null,null,null,null,null,null,null,"・",null,null,null,"・"]
[]
[]
[null,null,"出場選手が以下の項目に該当するときは入力してください"]
[null,null,"インターハイ予選特別枠",null,null,null,null,null,null,null,null,null,null,null,null,null,"（",null,null,null,null,null,"）kg級",null,null,null,null,null,"（",null,null,null,null,null,"）位",null,null,null,"強化選手選考会2次選考（9/5）選出者"]
[]
[null,null,"大阪総体特別枠",null,null,null,null,null,null,null,null,null,null,null,null,null,"（",null,null,null,null,null,"）kg級",null,null,null,null,null,"（",null,null,null,null,null,"）位",null,null,null,"（",null,null,null,null,null,null,null,null,null,null,null,null,"）ランク"]
[]
[]
[]
[null,null,null,null,null,null,null,null,null,null,null,null,null,null,null,null,null,null,null,null,null,null,null,null,null,null,null,null,"（","ｷ　ﾘ　ﾄ　ﾘ",null,null,null,null,null,null,null,"）"]
[]
[]
[]
["個　人　試　合　申　込　書"]
[]
[null,null,"※抽選番号",null,null,null,null,null,null,null,null,null,null,null,null,null,null,null,null,null,null,"kg級",null,null,null,"第３６回全国高等学校柔道選手権大会大阪府予選会（一次予選）"]
[]
[null,null,"学校番号",null,null,null,"学　　　　校　　　　名",null,null,null,null,null,null,null,null,null,null,null,null,null,null,null,null,null,null,null,null,null,null,null,null,null,null,null,null,null,null,null,"監督名",null,null,null,null,null,null,null,null,null,null,null,null,"校長名"]
[null,null,null,null,null,null,{"$f":"#REF!","v":{"$error":"#REF!"}},null,null,null,null,null,null,null,null,null,null,null,null,null,null,null,null,null,null,null,null,"高等学校",null,null,null,null,null,null,null,null,null,null,{"$f":"#REF!","v":{"$error":"#REF!"}},null,null,null,null,null,null,null,null,null,null,"印",null,{"$f":"#REF!","v":{"$error":"#REF!"}},null,null,null,null,null,null,null,null,null,null,null,"印"]
[]
[]
[null,null,"ふりがな",null,null,null,null,null,null,null,null,null,null,null,null,null,null,null,null,null,null,null,null,null,null,null,null,null,null,null,null,null,null,null,null,null,null,null,"学年",null,null,"段位",null,null,"体重（kg）",null,null,null,null,"身長（cm）",null,null,null,null,"生年月日（西暦）"]
[null,null,"選手名",null,null,null,"（姓）",null,null,null,null,null,null,null,null,null,null,null,null,null,null,null,"（名）",null,null,null,null,null,null,null,null,null,null,null,null,null,null,null,null,null,null,null,null,null,null,null,null,null,null,null,null,null,null,null,null,null,null,null,"・",null,null,null,"・"]
[]
[]
[null,null,"出場選手が以下の項目に該当するときは入力してください"]
[null,null,"インターハイ予選特別枠",null,null,null,null,null,null,null,null,null,null,null,null,null,"（",null,null,null,null,null,"）kg級",null,null,null,null,null,"（",null,null,null,null,null,"）位",null,null,null,"強化選手選考会2次選考（9/5）選出者"]
[]
[null,null,"大阪総体特別枠",null,null,null,null,null,null,null,null,null,null,null,null,null,"（",null,null,null,null,null,"）kg級",null,null,null,null,null,"（",null,null,null,null,null,"）位",null,null,null,"（",null,null,null,null,null,null,null,null,null,null,null,null,"）ランク"]
[]
[]
[]
[null,null,null,null,null,null,null,null,null,null,null,null,null,null,null,null,null,null,null,null,null,null,null,null,null,null,null,null,"（","ｷ　ﾘ　ﾄ　ﾘ",null,null,null,null,null,null,null,"）"]
[]
[]
[]
["個　人　試　合　申　込　書"]
[]
[null,null,"※抽選番号",null,null,null,null,null,null,null,null,null,null,null,null,null,null,null,null,null,null,"kg級",null,null,null,"第３６回全国高等学校柔道選手権大会大阪府予選会（一次予選）"]
[]
[null,null,"学校番号",null,null,null,"学　　　　校　　　　名",null,null,null,null,null,null,null,null,null,null,null,null,null,null,null,null,null,null,null,null,null,null,null,null,null,null,null,null,null,null,null,"監督名",null,null,null,null,null,null,null,null,null,null,null,null,"校長名"]
[null,null,null,null,null,null,{"$f":"#REF!","v":{"$error":"#REF!"}},null,null,null,null,null,null,null,null,null,null,null,null,null,null,null,null,null,null,null,null,"高等学校",null,null,null,null,null,null,null,null,null,null,{"$f":"#REF!","v":{"$error":"#REF!"}},null,null,null,null,null,null,null,null,null,null,"印",null,{"$f":"#REF!","v":{"$error":"#REF!"}},null,null,null,null,null,null,null,null,null,null,null,"印"]
[]
[]
[null,null,"ふりがな",null,null,null,null,null,null,null,null,null,null,null,null,null,null,null,null,null,null,null,null,null,null,null,null,null,null,null,null,null,null,null,null,null,null,null,"学年",null,null,"段位",null,null,"体重（kg）",null,null,null,null,"身長（cm）",null,null,null,null,"生年月日（西暦）"]
[null,null,"選手名",null,null,null,"（姓）",null,null,null,null,null,null,null,null,null,null,null,null,null,null,null,"（名）",null,null,null,null,null,null,null,null,null,null,null,null,null,null,null,null,null,null,null,null,null,null,null,null,null,null,null,null,null,null,null,null,null,null,null,"・",null,null,null,"・"]
[]
[]
[null,null,"出場選手が以下の項目に該当するときは入力してください"]
[null,null,"インターハイ予選特別枠",null,null,null,null,null,null,null,null,null,null,null,null,null,"（",null,null,null,null,null,"）kg級",null,null,null,null,null,"（",null,null,null,null,null,"）位",null,null,null,"強化選手選考会2次選考（9/5）選出者"]
[]
[null,null,"大阪総体特別枠",null,null,null,null,null,null,null,null,null,null,null,null,null,"（",null,null,null,null,null,"）kg級",null,null,null,null,null,"（",null,null,null,null,null,"）位",null,null,null,"（",null,null,null,null,null,null,null,null,null,null,null,null,"）ランク"]
[]
[]
[]
[null,null,null,null,null,null,null,null,null,null,null,null,null,null,null,null,null,null,null,null,null,null,null,null,null,null,null,null,"（","ｷ　ﾘ　ﾄ　ﾘ",null,null,null,null,null,null,null,"）"]
[]
[]
[]
["個　人　試　合　申　込　書"]
[]
[null,null,"※抽選番号",null,null,null,null,null,null,null,null,null,null,null,null,null,null,null,null,null,null,"kg級",null,null,null,"第３６回全国高等学校柔道選手権大会大阪府予選会（一次予選）"]
[]
[null,null,"学校番号",null,null,null,"学　　　　校　　　　名",null,null,null,null,null,null,null,null,null,null,null,null,null,null,null,null,null,null,null,null,null,null,null,null,null,null,null,null,null,null,null,"監督名",null,null,null,null,null,null,null,null,null,null,null,null,"校長名"]
[null,null,null,null,null,null,{"$f":"#REF!","v":{"$error":"#REF!"}},null,null,null,null,null,null,null,null,null,null,null,null,null,null,null,null,null,null,null,null,"高等学校",null,null,null,null,null,null,null,null,null,null,{"$f":"#REF!","v":{"$error":"#REF!"}},null,null,null,null,null,null,null,null,null,null,"印",null,{"$f":"#REF!","v":{"$error":"#REF!"}},null,null,null,null,null,null,null,null,null,null,null,"印"]
[]
[]
[null,null,"ふりがな",null,null,null,null,null,null,null,null,null,null,null,null,null,null,null,null,null,null,null,null,null,null,null,null,null,null,null,null,null,null,null,null,null,null,null,"学年",null,null,"段位",null,null,"体重（kg）",null,null,null,null,"身長（cm）",null,null,null,null,"生年月日（西暦）"]
[null,null,"選手名",null,null,null,"（姓）",null,null,null,null,null,null,null,null,null,null,null,null,null,null,null,"（名）",null,null,null,null,null,null,null,null,null,null,null,null,null,null,null,null,null,null,null,null,null,null,null,null,null,null,null,null,null,null,null,null,null,null,null,"・",null,null,null,"・"]
[]
[]
[null,null,"出場選手が以下の項目に該当するときは入力してください"]
[null,null,"インターハイ予選特別枠",null,null,null,null,null,null,null,null,null,null,null,null,null,"（",null,null,null,null,null,"）kg級",null,null,null,null,null,"（",null,null,null,null,null,"）位",null,null,null,"強化選手選考会2次選考（9/5）選出者"]
[]
[null,null,"大阪総体特別枠",null,null,null,null,null,null,null,null,null,null,null,null,null,"（",null,null,null,null,null,"）kg級",null,null,null,null,null,"（",null,null,null,null,null,"）位",null,null,null,"（",null,null,null,null,null,null,null,null,null,null,null,null,"）ランク"]
[]
[]
[]
[null,null,null,null,null,null,null,null,null,null,null,null,null,null,null,null,null,null,null,null,null,null,null,null,null,null,null,null,"（","ｷ　ﾘ　ﾄ　ﾘ",null,null,null,null,null,null,null,"）"]
[]
[]
[]
["個　人　試　合　申　込　書"]
[]
[null,null,"※抽選番号",null,null,null,null,null,null,null,null,null,null,null,null,null,null,null,null,null,null,"kg級",null,null,null,"第３６回全国高等学校柔道選手権大会大阪府予選会（一次予選）"]
[]
[null,null,"学校番号",null,null,null,"学　　　　校　　　　名",null,null,null,null,null,null,null,null,null,null,null,null,null,null,null,null,null,null,null,null,null,null,null,null,null,null,null,null,null,null,null,"監督名",null,null,null,null,null,null,null,null,null,null,null,null,"校長名"]
[null,null,null,null,null,null,{"$f":"#REF!","v":{"$error":"#REF!"}},null,null,null,null,null,null,null,null,null,null,null,null,null,null,null,null,null,null,null,null,"高等学校",null,null,null,null,null,null,null,null,null,null,{"$f":"#REF!","v":{"$error":"#REF!"}},null,null,null,null,null,null,null,null,null,null,"印",null,{"$f":"#REF!","v":{"$error":"#REF!"}},null,null,null,null,null,null,null,null,null,null,null,"印"]
[]
[]
[null,null,"ふりがな",null,null,null,null,null,null,null,null,null,null,null,null,null,null,null,null,null,null,null,null,null,null,null,null,null,null,null,null,null,null,null,null,null,null,null,"学年",null,null,"段位",null,null,"体重（kg）",null,null,null,null,"身長（cm）",null,null,null,null,"生年月日（西暦）"]
[null,null,"選手名",null,null,null,"（姓）",null,null,null,null,null,null,null,null,null,null,null,null,null,null,null,"（名）",null,null,null,null,null,null,null,null,null,null,null,null,null,null,null,null,null,null,null,null,null,null,null,null,null,null,null,null,null,null,null,null,null,null,null,"・",null,null,null,"・"]
[]
[]
[null,null,"出場選手が以下の項目に該当するときは入力してください"]
[null,null,"インターハイ予選特別枠",null,null,null,null,null,null,null,null,null,null,null,null,null,"（",null,null,null,null,null,"）kg級",null,null,null,null,null,"（",null,null,null,null,null,"）位",null,null,null,"強化選手選考会2次選考（9/5）選出者"]
[]
[null,null,"大阪総体特別枠",null,null,null,null,null,null,null,null,null,null,null,null,null,"（",null,null,null,null,null,"）kg級",null,null,null,null,null,"（",null,null,null,null,null,"）位",null,null,null,"（",null,null,null,null,null,null,null,null,null,null,null,null,"）ランク"]
[]
[]
[]
[null,null,null,null,null,null,null,null,null,null,null,null,null,null,null,null,null,null,null,null,null,null,null,null,null,null,null,null,"（","ｷ　ﾘ　ﾄ　ﾘ",null,null,null,null,null,null,null,"）"]
[]
[]
[]
["個　人　試　合　申　込　書"]
[]
[null,null,"※抽選番号",null,null,null,null,null,null,null,null,null,null,null,null,null,null,null,null,null,null,"kg級",null,null,null,"第３６回全国高等学校柔道選手権大会大阪府予選会（一次予選）"]
[]
[null,null,"学校番号",null,null,null,"学　　　　校　　　　名",null,null,null,null,null,null,null,null,null,null,null,null,null,null,null,null,null,null,null,null,null,null,null,null,null,null,null,null,null,null,null,"監督名",null,null,null,null,null,null,null,null,null,null,null,null,"校長名"]
[null,null,null,null,null,null,{"$f":"#REF!","v":{"$error":"#REF!"}},null,null,null,null,null,null,null,null,null,null,null,null,null,null,null,null,null,null,null,null,"高等学校",null,null,null,null,null,null,null,null,null,null,{"$f":"#REF!","v":{"$error":"#REF!"}},null,null,null,null,null,null,null,null,null,null,"印",null,{"$f":"#REF!","v":{"$error":"#REF!"}},null,null,null,null,null,null,null,null,null,null,null,"印"]
[]
[]
[null,null,"ふりがな",null,null,null,null,null,null,null,null,null,null,null,null,null,null,null,null,null,null,null,null,null,null,null,null,null,null,null,null,null,null,null,null,null,null,null,"学年",null,null,"段位",null,null,"体重（kg）",null,null,null,null,"身長（cm）",null,null,null,null,"生年月日（西暦）"]
[null,null,"選手名",null,null,null,"（姓）",null,null,null,null,null,null,null,null,null,null,null,null,null,null,null,"（名）",null,null,null,null,null,null,null,null,null,null,null,null,null,null,null,null,null,null,null,null,null,null,null,null,null,null,null,null,null,null,null,null,null,null,null,"・",null,null,null,"・"]
[]
[]
[null,null,"出場選手が以下の項目に該当するときは入力してください"]
[null,null,"インターハイ予選特別枠",null,null,null,null,null,null,null,null,null,null,null,null,null,"（",null,null,null,null,null,"）kg級",null,null,null,null,null,"（",null,null,null,null,null,"）位",null,null,null,"強化選手選考会2次選考（9/5）選出者"]
[]
[null,null,"大阪総体特別枠",null,null,null,null,null,null,null,null,null,null,null,null,null,"（",null,null,null,null,null,"）kg級",null,null,null,null,null,"（",null,null,null,null,null,"）位",null,null,null,"（",null,null,null,null,null,null,null,null,null,null,null,null,"）ランク"]

{"sheet":"申込","index":2,"n_rows":847,"n_cols":64,"rows_kept":847,"cut":false,"hidden":false,"merged":[[547,6,548,7],[546,6,546,7],[562,6,563,12],[564,2,564,5],[545,24,545,37],[542,25,544,34],[545,22,545,23],[556,28,557,28],[545,49,545,53],[546,41,548,43],[545,44,545,48],[546,54,548,57],[546,58,548,58],[546,49,548,53],[568,44,568,48],[565,62,567,65],[562,25,563,65],[546,24,548,37],[568,54,568,65],[565,50,567,61],[546,63,548,65],[546,59,548,61],[565,47,567,49],[556,37,557,37],[565,2,567,5],[568,2,568,5],[568,6,568,7],[568,8,568,21],[568,24,568,37],[565,35,567,46],[546,8,548,21],[568,41,568,43],[568,38,568,40],[560,14,561,49],[556,29,557,36],[523,54,525,57],[542,35,544,46],[562,13,563,20],[545,38,545,40],[522,8,522,21],[533,29,534,36],[523,44,525,48],[546,22,546,23],[546,38,548,40],[545,54,545,65],[565,25,567,34],[493,13,494,20],[495,2,495,5],[499,22,499,23],[499,24,499,37],[510,28,511,28],[500,22,500,23],[501,22,502,23],[519,6,521,24],[519,62,521,65],[522,54,522,65],[568,22,568,23],[565,6,567,24],[564,6,564,34],[560,54,561,65],[546,2,548,5],[545,8,545,21],[564,50,564,65],[564,35,564,49],[562,21,563,24],[546,44,548,48],[547,22,548,23],[562,2,563,5],[545,41,545,43],[499,54,499,65],[499,6,499,7],[522,38,522,40],[523,38,525,40],[519,35,521,46],[524,22,525,23],[523,22,523,23],[522,22,522,23],[523,24,525,37],[493,6,494,12],[493,21,494,24],[516,6,517,12],[516,13,517,20],[516,21,517,24],[500,24,502,37],[499,44,499,48],[499,38,499,40],[541,35,541,49],[533,28,534,28],[537,14,538,49],[499,41,499,43],[499,49,499,53],[493,2,494,5],[541,2,541,5],[539,6,540,12],[542,2,544,5],[542,6,544,24],[519,2,521,5],[539,2,540,5],[523,8,525,21],[522,2,522,5],[523,2,525,5],[522,24,522,37],[539,25,540,65],[537,54,538,65],[524,6,525,7],[533,37,534,37],[523,6,523,7],[523,41,525,43],[496,2,498,5],[495,50,495,65],[496,62,498,65],[495,6,495,34],[496,47,498,49],[496,6,498,24],[496,35,498,46],[495,35,495,49],[496,50,498,61],[496,25,498,34],[499,2,499,5],[518,2,518,5],[500,2,502,5],[516,2,517,5],[500,44,502,48],[542,62,544,65],[542,50,544,61],[523,59,525,61],[523,63,525,65],[542,47,544,49],[541,50,541,65],[518,35,518,49],[500,49,502,53],[539,21,540,24],[522,6,522,7],[500,59,502,61],[523,49,525,53],[523,62,525,62],[523,58,525,58],[491,54,492,65],[477,54,479,57],[477,59,479,61],[487,28,488,28],[539,13,540,20],[541,6,541,34],[493,25,494,65],[477,58,479,58],[487,29,488,36],[487,37,488,37],[499,8,499,21],[500,6,500,7],[501,6,502,7],[518,6,518,34],[477,2,479,5],[477,6,477,7],[477,8,479,21],[464,28,465,28],[472,35,472,49],[473,25,475,34],[477,38,479,40],[477,41,479,43],[477,44,479,48],[430,2,430,5],[491,14,492,49],[432,22,433,23],[476,38,476,40],[450,47,452,49],[450,25,452,34],[454,24,456,37],[476,8,476,21],[477,22,477,23],[450,6,452,24],[454,22,454,23],[455,22,456,23],[454,38,456,40],[478,22,479,23],[478,6,479,7],[472,6,472,34],[473,6,475,24],[476,22,476,23],[476,6,476,7],[476,24,476,37],[455,6,456,7],[454,44,456,48],[476,2,476,5],[385,8,387,21],[384,24,384,37],[386,6,387,7],[407,44,407,48],[473,50,475,61],[477,63,479,65],[477,24,479,37],[473,62,475,65],[473,35,475,46],[477,62,479,62],[401,6,402,12],[431,8,433,21],[430,6,430,7],[431,38,433,40],[431,22,431,23],[431,24,433,37],[424,6,425,12],[453,24,453,37],[453,49,453,53],[472,50,472,65],[477,49,479,53],[476,49,476,53],[454,63,456,65],[454,49,456,53],[473,47,475,49],[476,54,476,65],[453,54,453,65],[453,41,453,43],[386,22,387,23],[384,41,384,43],[403,6,403,34],[454,54,456,57],[378,21,379,24],[470,2,471,5],[470,6,471,12],[464,29,465,36],[470,13,471,20],[468,14,469,49],[470,25,471,65],[453,6,453,7],[453,22,453,23],[464,37,465,37],[409,6,410,7],[409,22,410,23],[408,44,410,48],[445,54,446,65],[432,6,433,7],[449,50,449,65],[408,41,410,43],[403,50,403,65],[430,54,430,65],[408,49,410,53],[408,62,410,62],[418,37,419,37],[404,62,406,65],[427,50,429,61],[449,35,449,49],[450,50,452,61],[450,35,452,46],[450,62,452,65],[441,29,442,36],[447,25,448,65],[441,28,442,28],[384,8,384,21],[384,6,384,7],[380,35,380,49],[361,38,361,40],[361,41,361,43],[362,41,364,43],[376,54,377,65],[362,54,364,57],[385,38,387,40],[404,47,406,49],[399,14,400,49],[385,22,385,23],[403,35,403,49],[408,8,410,21],[408,22,408,23],[404,25,406,34],[408,38,410,40],[385,24,387,37],[385,62,387,62],[385,44,387,48],[380,6,380,34],[372,28,373,28],[372,29,373,36],[376,14,377,49],[408,6,408,7],[399,54,400,65],[384,22,384,23],[385,54,387,57],[381,35,383,46],[384,38,384,40],[380,50,380,65],[381,25,383,34],[378,13,379,20],[473,2,475,5],[472,2,472,5],[454,8,456,21],[427,62,429,65],[427,35,429,46],[427,47,429,49],[431,41,433,43],[430,41,430,43],[431,58,433,58],[426,2,426,5],[427,2,429,5],[427,25,429,34],[427,6,429,24],[447,2,448,5],[470,21,471,24],[430,38,430,40],[430,22,430,23],[445,14,446,49],[441,37,442,37],[431,59,433,61],[426,6,426,34],[430,24,430,37],[426,35,426,49],[447,13,448,20],[447,6,448,12],[449,6,449,34],[431,6,431,7],[430,44,430,48],[431,49,433,53],[454,62,456,62],[476,44,476,48],[453,38,453,40],[468,54,469,65],[454,41,456,43],[454,59,456,61],[476,41,476,43],[454,58,456,58],[453,44,453,48],[333,25,334,65],[331,14,332,49],[333,21,334,24],[327,29,328,36],[340,2,342,5],[340,49,342,53],[340,24,342,37],[362,58,364,58],[362,63,364,65],[362,24,364,37],[362,44,364,48],[361,8,361,21],[339,38,339,40],[339,41,339,43],[362,62,364,62],[362,59,364,61],[362,38,364,40],[362,22,362,23],[349,37,350,37],[340,44,342,48],[358,50,360,61],[358,6,360,24],[358,25,360,34],[358,2,360,5],[340,41,342,43],[362,8,364,21],[363,22,364,23],[361,24,361,37],[361,22,361,23],[363,6,364,7],[593,2,595,5],[570,6,571,7],[588,2,588,5],[586,13,587,20],[592,2,592,5],[589,2,591,5],[569,8,571,21],[584,14,585,49],[580,29,581,36],[580,37,581,37],[381,62,383,65],[422,54,423,65],[385,41,387,43],[404,35,406,46],[395,29,396,36],[401,25,402,65],[408,24,410,37],[381,50,383,61],[418,28,419,28],[407,38,407,40],[407,2,407,5],[407,6,407,7],[403,2,403,5],[407,8,407,21],[404,6,406,24],[407,22,407,23],[404,2,406,5],[381,47,383,49],[401,2,402,5],[385,2,387,5],[381,2,383,5],[401,13,402,20],[569,62,571,62],[569,38,571,40],[519,50,521,61],[401,21,402,24],[431,63,433,65],[431,54,433,57],[430,49,430,53],[384,54,384,65],[408,2,410,5],[589,50,591,61],[592,6,592,7],[592,8,592,21],[592,22,592,23],[592,41,592,43],[592,44,592,48],[592,38,592,40],[592,24,592,37],[592,49,592,53],[589,35,591,46],[589,47,591,49],[588,50,588,65],[589,62,591,65],[588,35,588,49],[404,50,406,61],[407,41,407,43],[447,21,448,24],[395,37,396,37],[395,28,396,28],[385,6,385,7],[586,6,587,12],[500,8,502,21],[453,8,453,21],[510,37,511,37],[516,25,517,65],[519,25,521,34],[569,59,571,61],[454,6,454,7],[584,54,585,65],[569,58,571,58],[340,38,342,40],[454,2,456,5],[378,2,379,5],[545,2,545,5],[545,6,545,7],[449,2,449,5],[362,6,362,7],[341,6,342,7],[431,2,433,5],[430,8,430,21],[408,63,410,65],[357,6,357,34],[431,62,433,62],[431,44,433,48],[385,49,387,53],[408,54,410,57],[500,54,502,57],[514,14,515,49],[510,29,511,36],[341,22,342,23],[362,2,364,5],[385,59,387,61],[385,58,387,58],[426,50,426,65],[422,14,423,49],[335,2,335,5],[339,2,339,5],[336,2,338,5],[339,8,339,21],[340,59,342,61],[340,54,342,57],[353,54,354,65],[340,62,342,62],[357,2,357,5],[339,22,339,23],[336,6,338,24],[355,2,356,5],[384,2,384,5],[384,44,384,48],[372,37,373,37],[353,14,354,49],[361,6,361,7],[361,44,361,48],[358,35,360,46],[355,21,356,24],[355,25,356,65],[407,49,407,53],[407,24,407,37],[424,13,425,20],[424,21,425,24],[407,54,407,65],[418,29,419,36],[381,6,383,24],[318,22,318,23],[336,35,338,46],[335,6,335,34],[317,41,317,43],[318,41,320,43],[378,6,379,12],[340,6,340,7],[340,8,342,21],[333,13,334,20],[355,6,356,12],[339,24,339,37],[331,54,332,65],[335,35,335,49],[336,47,338,49],[453,2,453,5],[450,2,452,5],[349,28,350,28],[424,25,425,65],[318,24,320,37],[318,6,318,7],[358,47,360,49],[355,13,356,20],[357,35,357,49],[358,62,360,65],[357,50,357,65],[361,54,361,65],[340,63,342,65],[340,58,342,58],[361,49,361,53],[349,29,350,36],[336,25,338,34],[340,22,340,23],[586,2,587,5],[384,49,384,53],[361,2,361,5],[380,2,380,5],[378,25,379,65],[362,49,364,53],[424,2,425,5],[339,54,339,65],[385,63,387,65],[408,58,410,58],[408,59,410,61],[339,44,339,48],[319,22,320,23],[318,38,320,40],[327,28,328,28],[318,44,320,48],[318,63,320,65],[318,58,320,58],[336,62,338,65],[318,54,320,57],[336,50,338,61],[335,50,335,65],[318,59,320,61],[318,2,320,5],[333,6,334,12],[327,37,328,37],[333,2,334,5],[319,6,320,7],[318,8,320,21],[586,25,587,65],[339,49,339,53],[339,6,339,7],[291,6,291,34],[296,41,298,43],[295,24,295,37],[297,6,298,7],[314,2,316,5],[313,2,313,5],[311,13,312,20],[309,14,310,49],[313,6,313,34],[314,47,316,49],[314,6,316,24],[311,21,312,24],[311,2,312,5],[317,2,317,5],[296,49,298,53],[295,41,295,43],[305,29,306,36],[314,25,316,34],[314,50,316,61],[313,35,313,49],[314,35,316,46],[317,8,317,21],[296,44,298,48],[295,38,295,40],[295,44,295,48],[296,24,298,37],[296,6,296,7],[295,8,295,21],[317,49,317,53],[317,38,317,40],[317,22,317,23],[274,6,274,7],[274,8,276,21],[274,49,276,53],[274,54,276,57],[274,24,276,37],[273,22,273,23],[273,38,273,40],[318,62,320,62],[292,62,294,65],[295,54,295,65],[317,44,317,48],[318,49,320,53],[252,2,254,5],[273,8,273,21],[273,24,273,37],[313,50,313,65],[305,37,306,37],[296,63,298,65],[309,54,310,65],[317,54,317,65],[314,62,316,65],[296,62,298,62],[296,58,298,58],[296,59,298,61],[296,54,298,57],[305,28,306,28],[317,24,317,37],[317,6,317,7],[295,49,295,53],[291,2,291,5],[295,22,295,23],[292,50,294,61],[253,6,254,7],[273,2,273,5],[252,6,252,7],[273,6,273,7],[267,2,268,5],[270,6,272,24],[267,6,268,12],[252,8,254,21],[265,14,266,49],[269,2,269,5],[252,24,254,37],[252,38,254,40],[252,49,254,53],[252,41,254,43],[261,28,262,28],[261,29,262,36],[270,2,272,5],[269,6,269,34],[270,25,272,34],[267,25,268,65],[273,49,273,53],[289,25,290,65],[291,50,291,65],[274,2,276,5],[273,41,273,43],[273,54,273,65],[270,47,272,49],[274,22,274,23],[274,63,276,65],[248,2,250,5],[267,13,268,20],[251,6,251,7],[261,37,262,37],[292,2,294,5],[311,6,312,12],[297,22,298,23],[296,8,298,21],[295,2,295,5],[311,25,312,65],[296,2,298,5],[296,22,296,23],[295,6,295,7],[296,38,298,40],[248,6,250,24],[251,24,251,37],[289,2,290,5],[289,13,290,20],[283,29,284,36],[275,22,276,23],[292,35,294,46],[287,54,288,65],[289,21,290,24],[292,25,294,34],[292,47,294,49],[292,6,294,24],[289,6,290,12],[287,14,288,49],[291,35,291,49],[274,59,276,61],[274,38,276,40],[273,44,273,48],[245,6,246,12],[283,37,284,37],[269,35,269,49],[248,35,250,46],[251,41,251,43],[274,44,276,48],[247,2,247,5],[252,22,252,23],[248,47,250,49],[251,8,251,21],[252,62,254,62],[252,58,254,58],[251,54,251,65],[248,62,250,65],[248,50,250,61],[252,59,254,61],[248,25,250,34],[270,50,272,61],[253,22,254,23],[269,50,269,65],[270,35,272,46],[251,38,251,40],[251,49,251,53],[251,44,251,48],[267,21,268,24],[245,13,246,20],[283,28,284,28],[247,6,247,34],[247,35,247,49],[275,6,276,7],[274,58,276,58],[251,2,251,5],[239,37,240,37],[243,14,244,49],[239,28,240,28],[243,54,244,65],[239,29,240,36],[270,62,272,65],[274,62,276,62],[274,41,276,43],[265,54,266,65],[252,63,254,65],[252,54,254,57],[252,44,254,48],[245,25,246,65],[245,21,246,24],[247,50,247,65],[251,22,251,23],[207,63,209,65],[225,2,225,5],[223,6,224,12],[207,8,209,21],[206,2,206,5],[208,22,209,23],[207,24,209,37],[202,2,202,5],[229,54,229,65],[230,24,232,37],[230,38,232,40],[230,58,232,58],[230,49,232,53],[230,44,232,48],[229,49,229,53],[229,24,229,37],[229,38,229,40],[230,62,232,62],[230,2,232,5],[230,63,232,65],[230,6,230,7],[230,41,232,43],[207,38,209,40],[226,25,228,34],[245,2,246,5],[203,35,205,46],[200,6,201,12],[200,13,201,20],[225,35,225,49],[226,35,228,46],[223,13,224,20],[226,50,228,61],[225,50,225,65],[231,22,232,23],[231,6,232,7],[230,22,230,23],[230,54,232,57],[230,8,232,21],[229,6,229,7],[207,22,207,23],[216,28,217,28],[207,62,209,62],[207,58,209,58],[223,25,224,65],[226,62,228,65],[221,54,222,65],[207,49,209,53],[202,50,202,65],[200,25,201,65],[207,6,207,7],[230,59,232,61],[229,2,229,5],[226,2,228,5],[225,6,225,34],[229,8,229,21],[229,22,229,23],[185,59,187,61],[206,44,206,48],[185,41,187,43],[185,49,187,53],[186,22,187,23],[185,38,187,40],[194,37,195,37],[194,29,195,36],[206,49,206,53],[207,44,209,48],[221,14,222,49],[207,59,209,61],[229,41,229,43],[229,44,229,48],[226,47,228,49],[226,6,228,24],[203,6,205,24],[185,24,187,37],[207,41,209,43],[206,38,206,40],[198,14,199,49],[185,22,185,23],[194,28,195,28],[206,41,206,43],[203,47,205,49],[202,6,202,34],[202,35,202,49],[203,25,205,34],[185,54,187,57],[200,21,201,24],[203,50,205,61],[185,63,187,65],[207,54,209,57],[203,62,205,65],[181,2,183,5],[184,6,184,7],[184,8,184,21],[185,2,187,5],[185,6,185,7],[184,2,184,5],[185,8,187,21],[186,6,187,7],[207,2,209,5],[223,21,224,24],[206,8,206,21],[206,22,206,23],[206,24,206,37],[223,2,224,5],[206,6,206,7],[216,37,217,37],[216,29,217,36],[208,6,209,7],[200,2,201,5],[203,2,205,5],[184,38,184,40],[185,44,187,48],[181,50,183,61],[184,22,184,23],[185,62,187,62],[198,54,199,65],[206,54,206,65],[185,58,187,58],[181,35,183,46],[181,47,183,49],[184,54,184,65],[184,41,184,43],[164,6,165,7],[184,49,184,53],[163,2,165,5],[178,21,179,24],[181,25,183,34],[184,44,184,48],[184,24,184,37],[178,25,179,65],[163,62,165,62],[163,44,165,48],[163,58,165,58],[181,6,183,24],[180,2,180,5],[163,24,165,37],[178,2,179,5],[181,62,183,65],[162,8,162,21],[172,37,173,37],[163,6,163,7],[163,8,165,21],[180,6,180,34],[172,28,173,28],[163,54,165,57],[163,38,165,40],[172,29,173,36],[180,50,180,65],[176,14,177,49],[163,49,165,53],[163,41,165,43],[164,22,165,23],[163,22,163,23],[163,63,165,65],[176,54,177,65],[163,59,165,61],[178,13,179,20],[178,6,179,12],[180,35,180,49],[141,44,143,48],[154,14,155,49],[162,22,162,23],[162,6,162,7],[162,49,162,53],[162,24,162,37],[150,28,151,28],[162,38,162,40],[140,38,140,40],[156,2,157,5],[156,25,157,65],[159,2,161,5],[159,6,161,24],[158,6,158,34],[159,25,161,34],[159,35,161,46],[158,2,158,5],[159,47,161,49],[158,50,158,65],[159,62,161,65],[159,50,161,61],[141,58,143,58],[140,22,140,23],[140,24,140,37],[140,41,140,43],[141,22,141,23],[140,44,140,48],[141,54,143,57],[141,49,143,53],[141,41,143,43],[140,2,140,5],[162,44,162,48],[137,2,139,5],[137,35,139,46],[136,6,136,34],[136,50,136,65],[137,6,139,24],[137,25,139,34],[140,49,140,53],[162,41,162,43],[162,2,162,5],[141,62,143,62],[141,38,143,40],[141,8,143,21],[162,54,162,65],[142,6,143,7],[141,6,141,7],[142,22,143,23],[156,21,157,24],[137,47,139,49],[141,63,143,65],[156,6,157,12],[156,13,157,20],[150,29,151,36],[141,24,143,37],[141,59,143,61],[154,54,155,65],[140,8,140,21],[140,54,140,65],[141,2,143,5],[150,37,151,37],[158,35,158,49],[140,6,140,7],[137,50,139,61],[137,62,139,65],[96,54,96,65],[118,54,118,65],[119,58,121,58],[119,49,121,53],[112,25,113,65],[114,50,114,65],[119,62,121,62],[118,44,118,48],[118,24,118,37],[115,25,117,34],[128,28,129,28],[128,29,129,36],[118,8,118,21],[118,38,118,40],[128,37,129,37],[119,8,121,21],[119,22,119,23],[119,24,121,37],[119,38,121,40],[119,54,121,57],[120,22,121,23],[118,49,118,53],[119,63,121,65],[119,59,121,61],[115,62,117,65],[115,50,117,61],[115,6,117,24],[134,6,135,12],[134,25,135,65],[92,2,92,5],[71,25,73,34],[68,6,69,12],[68,21,69,24],[75,6,75,7],[76,6,77,7],[90,21,91,24],[68,2,69,5],[90,13,91,20],[84,28,85,28],[93,2,95,5],[96,6,96,7],[97,24,99,37],[97,2,99,5],[112,2,113,5],[114,2,114,5],[112,13,113,20],[112,6,113,12],[110,14,111,49],[97,6,97,7],[98,6,99,7],[97,8,99,21],[97,38,99,40],[97,41,99,43],[97,22,97,23],[98,22,99,23],[106,37,107,37],[75,44,77,48],[75,2,77,5],[90,2,91,5],[74,2,74,5],[75,59,77,61],[74,54,74,65],[75,54,77,57],[16,24,16,37],[93,35,95,46],[114,35,114,49],[112,21,113,24],[106,28,107,28],[106,29,107,36]],"merged_total":1814,"flags":["merged_cut"]}
[]
[null,null,"※抽選番号",null,null,null,null,null,null,null,null,null,null,null,null,{"$f":"入力シート!P6","v":"第４１回　全国高等学校柔道選手権大会大阪府予選会"},null,null,null,null,null,null,null,null,null,null,null,null,null,null,null,null,null,null,null,null,null,null,null,null,null,null,null,null,null,null,null,null,null,null,null,null,null,null,{"$f":"NOW()","v":"2018-10-12T05:15:02.540"}]
[]
[null,null,"学校番号",null,null,null,"学　　　　校　　　　名",null,null,null,null,null,null,null,null,null,null,null,null,null,null,null,null,null,null,null,null,null,null,null,null,null,null,null,null,"監督名",null,null,null,null,null,null,null,null,null,null,null,null,null,null,"校長名"]
[null,null,{"$f":"入力シート!$C$9","v":0},null,null,null,{"$f":"入力シート!$G$9","v":{"$error":"#N/A"}},null,null,null,null,null,null,null,null,null,null,null,null,null,null,null,null,null,null,"高等学校",null,null,null,null,null,null,null,null,null,{"$f":"入力シート!$AJ$9","v":0},null,null,null,null,null,null,null,null,null,null,null,"印",null,null,{"$f":"入力シート!$AY$9","v":0},null,null,null,null,null,null,null,null,null,null,null,"印"]
[]
[]
[null,null,null,null,null,null,"選手名",null,null,null,null,null,null,null,null,null,null,null,null,null,null,null,null,null,null,null,null,null,null,null,null,null,null,null,null,null,null,null,"学年",null,null,"段位",null,null,"体重（kg）",null,null,null,null,"身長（cm）",null,null,null,null,"生年月日（西暦）"]
[null,null,"先鋒",null,null,null,"ふりがな",null,{"$f":"IF(入力シート!I13=\"\",\"\",入力シート!I13)","v":""},null,null,null,null,null,null,null,null,null,null,null,null,null,null,null,{"$f":"IF(入力シート!Y13=\"\",\"\",入力シート!Y13)","v":""},null,null,null,null,null,null,null,null,null,null,null,null,null,{"$f":"IF(入力シート!AM13=\"\",\"\",入力シート!AM13)","v":""},null,null,{"$f":"IF(入力シート!AP13=\"\",\"\",入力シート!AP13)","v":""},null,null,{"$f":"IF(入力シート!AS13=\"\",\"\",入力シート!AS13)","v":""},null,null,null,null,{"$f":"IF(入力シート!AX13=\"\",\"\",入力シート!AX13)","v":""},null,null,null,null,{"$f":"IF(入力シート!BC13=\"\",\"\",入力シート!BC13)","v":""},null,null,null,"・",{"$f":"IF(入力シート!BH13=\"\",\"\",入力シート!BH13)","v":""},null,null,"・",{"$f":"IF(入力シート!BL13=\"\",\"\",入力シート!BL13)","v":""}]
[null,null,null,null,null,null,"（姓）",null,{"$f":"IF(入力シート!I14=\"\",\"\",入力シート!I14)","v":""},null,null,null,null,null,null,null,null,null,null,null,null,null,"（名）",null,{"$f":"IF(入力シート!Y14=\"\",\"\",入力シート!Y14)","v":""}]
[]
[]
[null,null,"中堅",null,null,null,"ふりがな",null,{"$f":"IF(入力シート!I17=\"\",\"\",入力シート!I17)","v":""},null,null,null,null,null,null,null,null,null,null,null,null,null,null,null,{"$f":"IF(入力シート!Y17=\"\",\"\",入力シート!Y17)","v":""},null,null,null,null,null,null,null,null,null,null,null,null,null,{"$f":"IF(入力シート!AM17=\"\",\"\",入力シート!AM17)","v":""},null,null,{"$f":"IF(入力シート!AP17=\"\",\"\",入力シート!AP17)","v":""},null,null,{"$f":"IF(入力シート!AS17=\"\",\"\",入力シート!AS17)","v":""},null,null,null,null,{"$f":"IF(入力シート!AX17=\"\",\"\",入力シート!AX17)","v":""},null,null,null,null,{"$f":"IF(入力シート!BC17=\"\",\"\",入力シート!BC17)","v":""},null,null,null,"・",{"$f":"IF(入力シート!BH17=\"\",\"\",入力シート!BH17)","v":""},null,null,"・",{"$f":"IF(入力シート!BL17=\"\",\"\",入力シート!BL17)","v":""}]
[null,null,null,null,null,null,"（姓）",null,{"$f":"IF(入力シート!I18=\"\",\"\",入力シート!I18)","v":""},null,null,null,null,null,null,null,null,null,null,null,null,null,"（名）",null,{"$f":"IF(入力シート!Y18=\"\",\"\",入力シート!Y18)","v":""}]
[]
[]
[null,null,"大将",null,null,null,"ふりがな",null,{"$f":"IF(入力シート!I21=\"\",\"\",入力シート!I21)","v":""},null,null,null,null,null,null,null,null,null,null,null,null,null,null,null,{"$f":"IF(入力シート!Y21=\"\",\"\",入力シート!Y21)","v":""},null,null,null,null,null,null,null,null,null,null,null,null,null,{"$f":"IF(入力シート!AM21=\"\",\"\",入力シート!AM21)","v":""},null,null,{"$f":"IF(入力シート!AP21=\"\",\"\",入力シート!AP21)","v":""},null,null,{"$f":"IF(入力シート!AS21=\"\",\"\",入力シート!AS21)","v":""},null,null,null,null,{"$f":"IF(入力シート!AX21=\"\",\"\",入力シート!AX21)","v":""},null,null,null,null,{"$f":"IF(入力シート!BC21=\"\",\"\",入力シート!BC21)","v":""},null,null,null,"・",{"$f":"IF(入力シート!BH21=\"\",\"\",入力シート!BH21)","v":""},null,null,"・",{"$f":"IF(入力シート!BL21=\"\",\"\",入力シート!BL21)","v":""}]
[null,null,null,null,null,null,"（姓）",null,{"$f":"IF(入力シート!I22=\"\",\"\",入力シート!I22)","v":""},null,null,null,null,null,null,null,null,null,null,null,null,null,"（名）",null,{"$f":"IF(入力シート!Y22=\"\",\"\",入力シート!Y22)","v":""}]
[]
[]
[null,null,"補欠",null,null,null,"ふりがな",null,{"$f":"IF(入力シート!I25=\"\",\"\",入力シート!I25)","v":""},null,null,null,null,null,null,null,null,null,null,null,null,null,null,null,{"$f":"IF(入力シート!Y25=\"\",\"\",入力シート!Y25)","v":""},null,null,null,null,null,null,null,null,null,null,null,null,null,{"$f":"IF(入力シート!AM25=\"\",\"\",入力シート!AM25)","v":""},null,null,{"$f":"IF(入力シート!AP25=\"\",\"\",入力シート!AP25)","v":""},null,null,{"$f":"IF(入力シート!AS25=\"\",\"\",入力シート!AS25)","v":""},null,null,null,null,{"$f":"IF(入力シート!AX25=\"\",\"\",入力シート!AX25)","v":""},null,null,null,null,{"$f":"IF(入力シート!BC25=\"\",\"\",入力シート!BC25)","v":""},null,null,null,"・",{"$f":"IF(入力シート!BH25=\"\",\"\",入力シート!BH25)","v":""},null,null,"・",{"$f":"IF(入力シート!BL25=\"\",\"\",入力シート!BL25)","v":""}]
[null,null,null,null,null,null,"（姓）",null,{"$f":"IF(入力シート!I26=\"\",\"\",入力シート!I26)","v":""},null,null,null,null,null,null,null,null,null,null,null,null,null,"（名）",null,{"$f":"IF(入力シート!Y26=\"\",\"\",入力シート!Y26)","v":""}]
[]
[]
[null,null,"補欠",null,null,null,"ふりがな",null,{"$f":"IF(入力シート!I29=\"\",\"\",入力シート!I29)","v":""},null,null,null,null,null,null,null,null,null,null,null,null,null,null,null,{"$f":"IF(入力シート!Y29=\"\",\"\",入力シート!Y29)","v":""},null,null,null,null,null,null,null,null,null,null,null,null,null,{"$f":"IF(入力シート!AM29=\"\",\"\",入力シート!AM29)","v":""},null,null,{"$f":"IF(入力シート!AP29=\"\",\"\",入力シート!AP29)","v":""},null,null,{"$f":"IF(入力シート!AS29=\"\",\"\",入力シート!AS29)","v":""},null,null,null,null,{"$f":"IF(入力シート!AX29=\"\",\"\",入力シート!AX29)","v":""},null,null,null,null,{"$f":"IF(入力シート!BC29=\"\",\"\",入力シート!BC29)","v":""},null,null,null,"・",{"$f":"IF(入力シート!BH29=\"\",\"\",入力シート!BH29)","v":""},null,null,"・",{"$f":"IF(入力シート!BL29=\"\",\"\",入力シート!BL29)","v":""}]
[null,null,null,null,null,null,"（姓）",null,{"$f":"IF(入力シート!I30=\"\",\"\",入力シート!I30)","v":""},null,null,null,null,null,null,null,null,null,null,null,null,null,"（名）",null,{"$f":"IF(入力シート!Y30=\"\",\"\",入力シート!Y30)","v":""}]
[]
[]
[]
[]
[]
[]
[]
[]
[]
[]
[]
[]
[]
[]
[]
[]
[]
[]
[null,null,null,null,null,null,null,null,null,null,null,null,null,null,"個　人　試　合　申　込　書",null,null,null,null,null,null,null,null,null,null,null,null,null,null,null,null,null,null,null,null,null,null,null,null,null,null,null,null,null,null,null,null,null,null,null,null,null,null,null,{"$f":"NOW()","v":"2018-10-12T05:15:02.540"}]
[]
[null,null,"※抽選番号",null,null,null,null,null,null,null,null,null,null,{"$f":"IF(入力シート!C47=\"\",\"\",入力シート!C47)","v":""},null,null,null,null,null,null,null,"kg級",null,null,null,{"$f":"入力シート!O43","v":"第４１回全国高等学校柔道選手権大会大阪府予選会（一次予選）"}]
[]
[null,null,"学校番号",null,null,null,"学　　　　校　　　　名",null,null,null,null,null,null,null,null,null,null,null,null,null,null,null,null,null,null,null,null,null,null,null,null,null,null,null,null,"監督名",null,null,null,null,null,null,null,null,null,null,null,null,null,null,"校長名"]
[null,null,{"$f":"入力シート!$C$9","v":0},null,null,null,{"$f":"入力シート!$G$9","v":{"$error":"#N/A"}},null,null,null,null,null,null,null,null,null,null,null,null,null,null,null,null,null,null,"高等学校",null,null,null,null,null,null,null,null,null,{"$f":"入力シート!$AJ$9","v":0},null,null,null,null,null,null,null,null,null,null,null,"印",null,null,{"$f":"入力シート!$AY$9","v":0},null,null,null,null,null,null,null,null,null,null,null,"印"]
[]
[]
[null,null,"ふりがな",null,null,null,null,null,{"$f":"IF(入力シート!I47=\"\",\"\",入力シート!I47)","v":""},null,null,null,null,null,null,null,null,null,null,null,null,null,null,null,{"$f":"IF(入力シート!Y47=\"\",\"\",入力シート!Y47)","v":""},null,null,null,null,null,null,null,null,null,null,null,null,null,"学年",null,null,"段位",null,null,"体重（kg）",null,null,null,null,"身長（cm）",null,null,null,null,"生年月日（西暦）"]
[null,null,"選手名",null,null,null,"（姓）",null,{"$f":"IF(入力シート!I48=\"\",\"\",入力シート!I48)","v":""},null,null,null,null,null,null,null,null,null,null,null,null,null,"（名）",null,{"$f":"IF(入力シート!Y48=\"\",\"\",入力シート!Y48)","v":""},null,null,null,null,null,null,null,null,null,null,null,null,null,{"$f":"IF(入力シート!AM47=\"\",\"\",入力シート!AM47)","v":""},null,null,{"$f":"IF(入力シート!AP47=\"\",\"\",入力シート!AP47)","v":""},null,null,{"$f":"IF(入力シート!AS47=\"\",\"\",入力シート!AS47)","v":""},null,null,null,null,{"$f":"IF(入力シート!AX47=\"\",\"\",入力シート!AX47)","v":""},null,null,null,null,{"$f":"IF(入力シート!BC47=\"\",\"\",入力シート!BC47)","v":""},null,null,null,"・",{"$f":"IF(入力シート!BH47=\"\",\"\",入力シート!BH47)","v":""},null,null,"・",{"$f":"IF(入力シート!BL47=\"\",\"\",入力シート!BL47)","v":""}]
[]
[]
[]
[]
[]
[]
[]
[]
[null,null,null,null,null,null,null,null,null,null,null,null,null,null,null,null,null,null,null,null,null,null,null,null,null,null,null,null,"（","ｷ　ﾘ　ﾄ　ﾘ",null,null,null,null,null,null,null,"）"]
[]
[]
[]
[null,null,null,null,null,null,null,null,null,null,null,null,null,null,"個　人　試　合　申　込　書",null,null,null,null,null,null,null,null,null,null,null,null,null,null,null,null,null,null,null,null,null,null,null,null,null,null,null,null,null,null,null,null,null,null,null,null,null,null,null,{"$f":"NOW()","v":"2018-10-12T05:15:02.540"}]
[]
[null,null,"※抽選番号",null,null,null,null,null,null,null,null,null,null,{"$f":"IF(入力シート!C51=\"\",\"\",入力シート!C51)","v":""},null,null,null,null,null,null,null,"kg級",null,null,null,{"$f":"入力シート!O43","v":"第４１回全国高等学校柔道選手権大会大阪府予選会（一次予選）"}]
[]
[null,null,"学校番号",null,null,null,"学　　　　校　　　　名",null,null,null,null,null,null,null,null,null,null,null,null,null,null,null,null,null,null,null,null,null,null,null,null,null,null,null,null,"監督名",null,null,null,null,null,null,null,null,null,null,null,null,null,null,"校長名"]
[null,null,{"$f":"入力シート!$C$9","v":0},null,null,null,{"$f":"入力シート!$G$9","v":{"$error":"#N/A"}},null,null,null,null,null,null,null,null,null,null,null,null,null,null,null,null,null,null,"高等学校",null,null,null,null,null,null,null,null,null,{"$f":"入力シート!$AJ$9","v":0},null,null,null,null,null,null,null,null,null,null,null,"印",null,null,{"$f":"入力シート!$AY$9","v":0},null,null,null,null,null,null,null,null,null,null,null,"印"]
[]
[]
[null,null,"ふりがな",null,null,null,null,null,{"$f":"IF(入力シート!I51=\"\",\"\",入力シート!I51)","v":""},null,null,null,null,null,null,null,null,null,null,null,null,null,null,null,{"$f":"IF(入力シート!Y51=\"\",\"\",入力シート!Y51)","v":""},null,null,null,null,null,null,null,null,null,null,null,null,null,"学年",null,null,"段位",null,null,"体重（kg）",null,null,null,null,"身長（cm）",null,null,null,null,"生年月日（西暦）"]
[null,null,"選手名",null,null,null,"（姓）",null,{"$f":"IF(入力シート!I52=\"\",\"\",入力シート!I52)","v":""},null,null,null,null,null,null,null,null,null,null,null,null,null,"（名）",null,{"$f":"IF(入力シート!Y52=\"\",\"\",入力シート!Y52)","v":""},null,null,null,null,null,null,null,null,null,null,null,null,null,{"$f":"IF(入力シート!AM51=\"\",\"\",入力シート!AM51)","v":""},null,null,{"$f":"IF(入力シート!AP51=\"\",\"\",入力シート!AP51)","v":""},null,null,{"$f":"IF(入力シート!AS51=\"\",\"\",入力シート!AS51)","v":""},null,null,null,null,{"$f":"IF(入力シート!AX51=\"\",\"\",入力シート!AX51)","v":""},null,null,null,null,{"$f":"IF(入力シート!BC51=\"\",\"\",入力シート!BC51)","v":""},null,null,null,"・",{"$f":"IF(入力シート!BH51=\"\",\"\",入力シート!BH51)","v":""},null,null,"・",{"$f":"IF(入力シート!BL51=\"\",\"\",入力シート!BL51)","v":""}]
[]
[]
[]
[]
[]
[]
[]
[]
[]
[]
[]
[]
[null,null,null,null,null,null,null,null,null,null,null,null,null,null,"個　人　試　合　申　込　書",null,null,null,null,null,null,null,null,null,null,null,null,null,null,null,null,null,null,null,null,null,null,null,null,null,null,null,null,null,null,null,null,null,null,null,null,null,null,null,{"$f":"NOW()","v":"2018-10-12T05:15:02.540"}]
[]
[null,null,"※抽選番号",null,null,null,null,null,null,null,null,null,null,{"$f":"IF(入力シート!C55=\"\",\"\",入力シート!C55)","v":""},null,null,null,null,null,null,null,"kg級",null,null,null,{"$f":"入力シート!O43","v":"第４１回全国高等学校柔道選手権大会大阪府予選会（一次予選）"}]
[]
[null,null,"学校番号",null,null,null,"学　　　　校　　　　名",null,null,null,null,null,null,null,null,null,null,null,null,null,null,null,null,null,null,null,null,null,null,null,null,null,null,null,null,"監督名",null,null,null,null,null,null,null,null,null,null,null,null,null,null,"校長名"]
[null,null,{"$f":"入力シート!$C$9","v":0},null,null,null,{"$f":"入力シート!$G$9","v":{"$error":"#N/A"}},null,null,null,null,null,null,null,null,null,null,null,null,null,null,null,null,null,null,"高等学校",null,null,null,null,null,null,null,null,null,{"$f":"入力シート!$AJ$9","v":0},null,null,null,null,null,null,null,null,null,null,null,"印",null,null,{"$f":"入力シート!$AY$9","v":0},null,null,null,null,null,null,null,null,null,null,null,"印"]
[]
[]
[null,null,"ふりがな",null,null,null,null,null,{"$f":"IF(入力シート!I55=\"\",\"\",入力シート!I55)","v":""},null,null,null,null,null,null,null,null,null,null,null,null,null,null,null,{"$f":"IF(入力シート!Y55=\"\",\"\",入力シート!Y55)","v":""},null,null,null,null,null,null,null,null,null,null,null,null,null,"学年",null,null,"段位",null,null,"体重（kg）",null,null,null,null,"身長（cm）",null,null,null,null,"生年月日（西暦）"]
[null,null,"選手名",null,null,null,"（姓）",null,{"$f":"IF(入力シート!I56=\"\",\"\",入力シート!I56)","v":""},null,null,null,null,null,null,null,null,null,null,null,null,null,"（名）",null,{"$f":"IF(入力シート!Y56=\"\",\"\",入力シート!Y56)","v":""},null,null,null,null,null,null,null,null,null,null,null,null,null,{"$f":"IF(入力シート!AM55=\"\",\"\",入力シート!AM55)","v":""},null,null,{"$f":"IF(入力シート!AP55=\"\",\"\",入力シート!AP55)","v":""},null,null,{"$f":"IF(入力シート!AS55=\"\",\"\",入力シート!AS55)","v":""},null,null,null,null,{"$f":"IF(入力シート!AX55=\"\",\"\",入力シート!AX55)","v":""},null,null,null,null,{"$f":"IF(入力シート!BC55=\"\",\"\",入力シート!BC55)","v":""},null,null,null,"・",{"$f":"IF(入力シート!BH55=\"\",\"\",入力シート!BH55)","v":""},null,null,"・",{"$f":"IF(入力シート!BL55=\"\",\"\",入力シート!BL55)","v":""}]
[]
[]
[]
[]
[]
[]
[]
[]
[null,null,null,null,null,null,null,null,null,null,null,null,null,null,null,null,null,null,null,null,null,null,null,null,null,null,null,null,"（","ｷ　ﾘ　ﾄ　ﾘ",null,null,null,null,null,null,null,"）"]
[]
[]
[]
[null,null,null,null,null,null,null,null,null,null,null,null,null,null,"個　人　試　合　申　込　書",null,null,null,null,null,null,null,null,null,null,null,null,null,null,null,null,null,null,null,null,null,null,null,null,null,null,null,null,null,null,null,null,null,null,null,null,null,null,null,{"$f":"NOW()","v":"2018-10-12T05:15:02.540"}]
[]
[null,null,"※抽選番号",null,null,null,null,null,null,null,null,null,null,{"$f":"IF(入力シート!C59=\"\",\"\",入力シート!C59)","v":""},null,null,null,null,null,null,null,"kg級",null,null,null,{"$f":"入力シート!O43","v":"第４１回全国高等学校柔道選手権大会大阪府予選会（一次予選）"}]
[]
[null,null,"学校番号",null,null,null,"学　　　　校　　　　名",null,null,null,null,null,null,null,null,null,null,null,null,null,null,null,null,null,null,null,null,null,null,null,null,null,null,null,null,"監督名",null,null,null,null,null,null,null,null,null,null,null,null,null,null,"校長名"]
[null,null,{"$f":"入力シート!$C$9","v":0},null,null,null,{"$f":"入力シート!$G$9","v":{"$error":"#N/A"}},null,null,null,null,null,null,null,null,null,null,null,null,null,null,null,null,null,null,"高等学校",null,null,null,null,null,null,null,null,null,{"$f":"入力シート!$AJ$9","v":0},null,null,null,null,null,null,null,null,null,null,null,"印",null,null,{"$f":"入力シート!$AY$9","v":0},null,null,null,null,null,null,null,null,null,null,null,"印"]
[]
[]
[null,null,"ふりがな",null,null,null,null,null,{"$f":"IF(入力シート!I59=\"\",\"\",入力シート!I59)","v":""},null,null,null,null,null,null,null,null,null,null,null,null,null,null,null,{"$f":"IF(入力シート!Y59=\"\",\"\",入力シート!Y59)","v":""},null,null,null,null,null,null,null,null,null,null,null,null,null,"学年",null,null,"段位",null,null,"体重（kg）",null,null,null,null,"身長（cm）",null,null,null,null,"生年月日（西暦）"]
[null,null,"選手名",null,null,null,"（姓）",null,{"$f":"IF(入力シート!I60=\"\",\"\",入力シート!I60)","v":""},null,null,null,null,null,null,null,null,null,null,null,null,null,"（名）",null,{"$f":"IF(入力シート!Y60=\"\",\"\",入力シート!Y60)","v":""},null,null,null,null,null,null,null,null,null,null,null,null,null,{"$f":"IF(入力シート!AM59=\"\",\"\",入力シート!AM59)","v":""},null,null,{"$f":"IF(入力シート!AP59=\"\",\"\",入力シート!AP59)","v":""},null,null,{"$f":"IF(入力シート!AS59=\"\",\"\",入力シート!AS59)","v":""},null,null,null,null,{"$f":"IF(入力シート!AX59=\"\",\"\",入力シート!AX59)","v":""},null,null,null,null,{"$f":"IF(入力シート!BC59=\"\",\"\",入力シート!BC59)","v":""},null,null,null,"・",{"$f":"IF(入力シート!BH59=\"\",\"\",入力シート!BH59)","v":""},null,null,"・",{"$f":"IF(入力シート!BL59=\"\",\"\",入力シート!BL59)","v":""}]
[]
[]
[]
[]
[]
[]
[]
[]
[]
[]
[]
[]
[null,null,null,null,null,null,null,null,null,null,null,null,null,null,"個　人　試　合　申　込　書",null,null,null,null,null,null,null,null,null,null,null,null,null,null,null,null,null,null,null,null,null,null,null,null,null,null,null,null,null,null,null,null,null,null,null,null,null,null,null,{"$f":"NOW()","v":"2018-10-12T05:15:02.540"}]
[]
[null,null,"※抽選番号",null,null,null,null,null,null,null,null,null,null,{"$f":"IF(入力シート!C63=\"\",\"\",入力シート!C63)","v":""},null,null,null,null,null,null,null,"kg級",null,null,null,{"$f":"入力シート!O43","v":"第４１回全国高等学校柔道選手権大会大阪府予選会（一次予選）"}]
[]
[null,null,"学校番号",null,null,null,"学　　　　校　　　　名",null,null,null,null,null,null,null,null,null,null,null,null,null,null,null,null,null,null,null,null,null,null,null,null,null,null,null,null,"監督名",null,null,null,null,null,null,null,null,null,null,null,null,null,null,"校長名"]
[null,null,{"$f":"入力シート!$C$9","v":0},null,null,null,{"$f":"入力シート!$G$9","v":{"$error":"#N/A"}},null,null,null,null,null,null,null,null,null,null,null,null,null,null,null,null,null,null,"高等学校",null,null,null,null,null,null,null,null,null,{"$f":"入力シート!$AJ$9","v":0},null,null,null,null,null,null,null,null,null,null,null,"印",null,null,{"$f":"入力シート!$AY$9","v":0},null,null,null,null,null,null,null,null,null,null,null,"印"]
[]
[]
[null,null,"ふりがな",null,null,null,null,null,{"$f":"IF(入力シート!I63=\"\",\"\",入力シート!I63)","v":""},null,null,null,null,null,null,null,null,null,null,null,null,null,null,null,{"$f":"IF(入力シート!Y63=\"\",\"\",入力シート!Y63)","v":""},null,null,null,null,null,null,null,null,null,null,null,null,null,"学年",null,null,"段位",null,null,"体重（kg）",null,null,null,null,"身長（cm）",null,null,null,null,"生年月日（西暦）"]
[null,null,"選手名",null,null,null,"（姓）",null,{"$f":"IF(入力シート!I64=\"\",\"\",入力シート!I64)","v":""},null,null,null,null,null,null,null,null,null,null,null,null,null,"（名）",null,{"$f":"IF(入力シート!Y64=\"\",\"\",入力シート!Y64)","v":""},null,null,null,null,null,null,null,null,null,null,null,null,null,{"$f":"IF(入力シート!AM63=\"\",\"\",入力シート!AM63)","v":""},null,null,{"$f":"IF(入力シート!AP63=\"\",\"\",入力シート!AP63)","v":""},null,null,{"$f":"IF(入力シート!AS63=\"\",\"\",入力シート!AS63)","v":""},null,null,null,null,{"$f":"IF(入力シート!AX63=\"\",\"\",入力シート!AX63)","v":""},null,null,null,null,{"$f":"IF(入力シート!BC63=\"\",\"\",入力シート!BC63)","v":""},null,null,null,"・",{"$f":"IF(入力シート!BH63=\"\",\"\",入力シート!BH63)","v":""},null,null,"・",{"$f":"IF(入力シート!BL63=\"\",\"\",入力シート!BL63)","v":""}]
[]
[]
[]
[]
[]
[]
[]
[]
[null,null,null,null,null,null,null,null,null,null,null,null,null,null,null,null,null,null,null,null,null,null,null,null,null,null,null,null,"（","ｷ　ﾘ　ﾄ　ﾘ",null,null,null,null,null,null,null,"）"]
[]
[]
[]
[null,null,null,null,null,null,null,null,null,null,null,null,null,null,"個　人　試　合　申　込　書",null,null,null,null,null,null,null,null,null,null,null,null,null,null,null,null,null,null,null,null,null,null,null,null,null,null,null,null,null,null,null,null,null,null,null,null,null,null,null,{"$f":"NOW()","v":"2018-10-12T05:15:02.540"}]
[]
[null,null,"※抽選番号",null,null,null,null,null,null,null,null,null,null,{"$f":"IF(入力シート!C67=\"\",\"\",入力シート!C67)","v":""},null,null,null,null,null,null,null,"kg級",null,null,null,{"$f":"入力シート!O43","v":"第４１回全国高等学校柔道選手権大会大阪府予選会（一次予選）"}]
[]
[null,null,"学校番号",null,null,null,"学　　　　校　　　　名",null,null,null,null,null,null,null,null,null,null,null,null,null,null,null,null,null,null,null,null,null,null,null,null,null,null,null,null,"監督名",null,null,null,null,null,null,null,null,null,null,null,null,null,null,"校長名"]
[null,null,{"$f":"入力シート!$C$9","v":0},null,null,null,{"$f":"入力シート!$G$9","v":{"$error":"#N/A"}},null,null,null,null,null,null,null,null,null,null,null,null,null,null,null,null,null,null,"高等学校",null,null,null,null,null,null,null,null,null,{"$f":"入力シート!$AJ$9","v":0},null,null,null,null,null,null,null,null,null,null,null,"印",null,null,{"$f":"入力シート!$AY$9","v":0},null,null,null,null,null,null,null,null,null,null,null,"印"]
[]
[]
[null,null,"ふりがな",null,null,null,null,null,{"$f":"IF(入力シート!I67=\"\",\"\",入力シート!I67)","v":""},null,null,null,null,null,null,null,null,null,null,null,null,null,null,null,{"$f":"IF(入力シート!Y67=\"\",\"\",入力シート!Y67)","v":""},null,null,null,null,null,null,null,null,null,null,null,null,null,"学年",null,null,"段位",null,null,"体重（kg）",null,null,null,null,"身長（cm）",null,null,null,null,"生年月日（西暦）"]
[null,null,"選手名",null,null,null,"（姓）",null,{"$f":"IF(入力シート!I68=\"\",\"\",入力シート!I68)","v":""},null,null,null,null,null,null,null,null,null,null,null,null,null,"（名）",null,{"$f":"IF(入力シート!Y68=\"\",\"\",入力シート!Y68)","v":""},null,null,null,null,null,null,null,null,null,null,null,null,null,{"$f":"IF(入力シート!AM67=\"\",\"\",入力シート!AM67)","v":""},null,null,{"$f":"IF(入力シート!AP67=\"\",\"\",入力シート!AP67)","v":""},null,null,{"$f":"IF(入力シート!AS67=\"\",\"\",入力シート!AS67)","v":""},null,null,null,null,{"$f":"IF(入力シート!AX67=\"\",\"\",入力シート!AX67)","v":""},null,null,null,null,{"$f":"IF(入力シート!BC67=\"\",\"\",入力シート!BC67)","v":""},null,null,null,"・",{"$f":"IF(入力シート!BH67=\"\",\"\",入力シート!BH67)","v":""},null,null,"・",{"$f":"IF(入力シート!BL67=\"\",\"\",入力シート!BL67)","v":""}]
[]
[]
[]
[]
[]
[]
[]
[]
[]
[]
[]
[]
[null,null,null,null,null,null,null,null,null,null,null,null,null,null,"個　人　試　合　申　込　書",null,null,null,null,null,null,null,null,null,null,null,null,null,null,null,null,null,null,null,null,null,null,null,null,null,null,null,null,null,null,null,null,null,null,null,null,null,null,null,{"$f":"NOW()","v":"2018-10-12T05:15:02.540"}]
[]
[null,null,"※抽選番号",null,null,null,null,null,null,null,null,null,null,{"$f":"IF(入力シート!C71=\"\",\"\",入力シート!C71)","v":""},null,null,null,null,null,null,null,"kg級",null,null,null,{"$f":"入力シート!O43","v":"第４１回全国高等学校柔道選手権大会大阪府予選会（一次予選）"}]
[]
[null,null,"学校番号",null,null,null,"学　　　　校　　　　名",null,null,null,null,null,null,null,null,null,null,null,null,null,null,null,null,null,null,null,null,null,null,null,null,null,null,null,null,"監督名",null,null,null,null,null,null,null,null,null,null,null,null,null,null,"校長名"]
[null,null,{"$f":"入力シート!$C$9","v":0},null,null,null,{"$f":"入力シート!$G$9","v":{"$error":"#N/A"}},null,null,null,null,null,null,null,null,null,null,null,null,null,null,null,null,null,null,"高等学校",null,null,null,null,null,null,null,null,null,{"$f":"入力シート!$AJ$9","v":0},null,null,null,null,null,null,null,null,null,null,null,"印",null,null,{"$f":"入力シート!$AY$9","v":0},null,null,null,null,null,null,null,null,null,null,null,"印"]
[]
[]
[null,null,"ふりがな",null,null,null,null,null,{"$f":"IF(入力シート!I71=\"\",\"\",入力シート!I71)","v":""},null,null,null,null,null,null,null,null,null,null,null,null,null,null,null,{"$f":"IF(入力シート!Y71=\"\",\"\",入力シート!Y71)","v":""},null,null,null,null,null,null,null,null,null,null,null,null,null,"学年",null,null,"段位",null,null,"体重（kg）",null,null,null,null,"身長（cm）",null,null,null,null,"生年月日（西暦）"]
[null,null,"選手名",null,null,null,"（姓）",null,{"$f":"IF(入力シート!I72=\"\",\"\",入力シート!I72)","v":""},null,null,null,null,null,null,null,null,null,null,null,null,null,"（名）",null,{"$f":"IF(入力シート!Y72=\"\",\"\",入力シート!Y72)","v":""},null,null,null,null,null,null,null,null,null,null,null,null,null,{"$f":"IF(入力シート!AM71=\"\",\"\",入力シート!AM71)","v":""},null,null,{"$f":"IF(入力シート!AP71=\"\",\"\",入力シート!AP71)","v":""},null,null,{"$f":"IF(入力シート!AS71=\"\",\"\",入力シート!AS71)","v":""},null,null,null,null,{"$f":"IF(入力シート!AX71=\"\",\"\",入力シート!AX71)","v":""},null,null,null,null,{"$f":"IF(入力シート!BC71=\"\",\"\",入力シート!BC71)","v":""},null,null,null,"・",{"$f":"IF(入力シート!BH71=\"\",\"\",入力シート!BH71)","v":""},null,null,"・",{"$f":"IF(入力シート!BL71=\"\",\"\",入力シート!BL71)","v":""}]
[]
[]
[]
[]
[]
[]
[]
[]
[null,null,null,null,null,null,null,null,null,null,null,null,null,null,null,null,null,null,null,null,null,null,null,null,null,null,null,null,"（","ｷ　ﾘ　ﾄ　ﾘ",null,null,null,null,null,null,null,"）"]
[]
[]
[]
[null,null,null,null,null,null,null,null,null,null,null,null,null,null,"個　人　試　合　申　込　書",null,null,null,null,null,null,null,null,null,null,null,null,null,null,null,null,null,null,null,null,null,null,null,null,null,null,null,null,null,null,null,null,null,null,null,null,null,null,null,{"$f":"NOW()","v":"2018-10-12T05:15:02.540"}]
[]
[null,null,"※抽選番号",null,null,null,null,null,null,null,null,null,null,{"$f":"IF(入力シート!C75=\"\",\"\",入力シート!C75)","v":""},null,null,null,null,null,null,null,"kg級",null,null,null,{"$f":"入力シート!O43","v":"第４１回全国高等学校柔道選手権大会大阪府予選会（一次予選）"}]
[]
[null,null,"学校番号",null,null,null,"学　　　　校　　　　名",null,null,null,null,null,null,null,null,null,null,null,null,null,null,null,null,null,null,null,null,null,null,null,null,null,null,null,null,"監督名",null,null,null,null,null,null,null,null,null,null,null,null,null,null,"校長名"]
[null,null,{"$f":"入力シート!$C$9","v":0},null,null,null,{"$f":"入力シート!$G$9","v":{"$error":"#N/A"}},null,null,null,null,null,null,null,null,null,null,null,null,null,null,null,null,null,null,"高等学校",null,null,null,null,null,null,null,null,null,{"$f":"入力シート!$AJ$9","v":0},null,null,null,null,null,null,null,null,null,null,null,"印",null,null,{"$f":"入力シート!$AY$9","v":0},null,null,null,null,null,null,null,null,null,null,null,"印"]
[]
[]
[null,null,"ふりがな",null,null,null,null,null,{"$f":"IF(入力シート!I75=\"\",\"\",入力シート!I75)","v":""},null,null,null,null,null,null,null,null,null,null,null,null,null,null,null,{"$f":"IF(入力シート!Y75=\"\",\"\",入力シート!Y75)","v":""},null,null,null,null,null,null,null,null,null,null,null,null,null,"学年",null,null,"段位",null,null,"体重（kg）",null,null,null,null,"身長（cm）",null,null,null,null,"生年月日（西暦）"]
[null,null,"選手名",null,null,null,"（姓）",null,{"$f":"IF(入力シート!I76=\"\",\"\",入力シート!I76)","v":""},null,null,null,null,null,null,null,null,null,null,null,null,null,"（名）",null,{"$f":"IF(入力シート!Y76=\"\",\"\",入力シート!Y76)","v":""},null,null,null,null,null,null,null,null,null,null,null,null,null,{"$f":"IF(入力シート!AM75=\"\",\"\",入力シート!AM75)","v":""},null,null,{"$f":"IF(入力シート!AP75=\"\",\"\",入力シート!AP75)","v":""},null,null,{"$f":"IF(入力シート!AS75=\"\",\"\",入力シート!AS75)","v":""},null,null,null,null,{"$f":"IF(入力シート!AX75=\"\",\"\",入力シート!AX75)","v":""},null,null,null,null,{"$f":"IF(入力シート!BC75=\"\",\"\",入力シート!BC75)","v":""},null,null,null,"・",{"$f":"IF(入力シート!BH75=\"\",\"\",入力シート!BH75)","v":""},null,null,"・",{"$f":"IF(入力シート!BL75=\"\",\"\",入力シート!BL75)","v":""}]
[]
[]
[]
[]
[]
[]
[]
[]
[]
[]
[]
[]
[]
[null,null,null,null,null,null,null,null,null,null,null,null,null,null,"個　人　試　合　申　込　書",null,null,null,null,null,null,null,null,null,null,null,null,null,null,null,null,null,null,null,null,null,null,null,null,null,null,null,null,null,null,null,null,null,null,null,null,null,null,null,{"$f":"NOW()","v":"2018-10-12T05:15:02.540"}]
[]
[null,null,"※抽選番号",null,null,null,null,null,null,null,null,null,null,{"$f":"IF(入力シート!C79=\"\",\"\",入力シート!C79)","v":""},null,null,null,null,null,null,null,"kg級",null,null,null,{"$f":"入力シート!O43","v":"第４１回全国高等学校柔道選手権大会大阪府予選会（一次予選）"}]
[]
[null,null,"学校番号",null,null,null,"学　　　　校　　　　名",null,null,null,null,null,null,null,null,null,null,null,null,null,null,null,null,null,null,null,null,null,null,null,null,null,null,null,null,"監督名",null,null,null,null,null,null,null,null,null,null,null,null,null,null,"校長名"]
[null,null,{"$f":"入力シート!$C$9","v":0},null,null,null,{"$f":"入力シート!$G$9","v":{"$error":"#N/A"}},null,null,null,null,null,null,null,null,null,null,null,null,null,null,null,null,null,null,"高等学校",null,null,null,null,null,null,null,null,null,{"$f":"入力シート!$AJ$9","v":0},null,null,null,null,null,null,null,null,null,null,null,"印",null,null,{"$f":"入力シート!$AY$9","v":0},null,null,null,null,null,null,null,null,null,null,null,"印"]
[]
[]
[null,null,"ふりがな",null,null,null,null,null,{"$f":"IF(入力シート!I79=\"\",\"\",入力シート!I79)","v":""},null,null,null,null,null,null,null,null,null,null,null,null,null,null,null,{"$f":"IF(入力シート!Y79=\"\",\"\",入力シート!Y79)","v":""},null,null,null,null,null,null,null,null,null,null,null,null,null,"学年",null,null,"段位",null,null,"体重（kg）",null,null,null,null,"身長（cm）",null,null,null,null,"生年月日（西暦）"]
[null,null,"選手名",null,null,null,"（姓）",null,{"$f":"IF(入力シート!I80=\"\",\"\",入力シート!I80)","v":""},null,null,null,null,null,null,null,null,null,null,null,null,null,"（名）",null,{"$f":"IF(入力シート!Y80=\"\",\"\",入力シート!Y80)","v":""},null,null,null,null,null,null,null,null,null,null,null,null,null,{"$f":"IF(入力シート!AM79=\"\",\"\",入力シート!AM79)","v":""},null,null,{"$f":"IF(入力シート!AP79=\"\",\"\",入力シート!AP79)","v":""},null,null,{"$f":"IF(入力シート!AS79=\"\",\"\",入力シート!AS79)","v":""},null,null,null,null,{"$f":"IF(入力シート!AX79=\"\",\"\",入力シート!AX79)","v":""},null,null,null,null,{"$f":"IF(入力シート!BC79=\"\",\"\",入力シート!BC79)","v":""},null,null,null,"・",{"$f":"IF(入力シート!BH79=\"\",\"\",入力シート!BH79)","v":""},null,null,"・",{"$f":"IF(入力シート!BL79=\"\",\"\",入力シート!BL79)","v":""}]
[]
[]
[]
[]
[]
[]
[]
[]
[null,null,null,null,null,null,null,null,null,null,null,null,null,null,null,null,null,null,null,null,null,null,null,null,null,null,null,null,"（","ｷ　ﾘ　ﾄ　ﾘ",null,null,null,null,null,null,null,"）"]
[]
[]
[]
[null,null,null,null,null,null,null,null,null,null,null,null,null,null,"個　人　試　合　申　込　書",null,null,null,null,null,null,null,null,null,null,null,null,null,null,null,null,null,null,null,null,null,null,null,null,null,null,null,null,null,null,null,null,null,null,null,null,null,null,null,{"$f":"NOW()","v":"2018-10-12T05:15:02.540"}]
[]
[null,null,"※抽選番号",null,null,null,null,null,null,null,null,null,null,{"$f":"IF(入力シート!C83=\"\",\"\",入力シート!C83)","v":""},null,null,null,null,null,null,null,"kg級",null,null,null,{"$f":"入力シート!O43","v":"第４１回全国高等学校柔道選手権大会大阪府予選会（一次予選）"}]
[]
[null,null,"学校番号",null,null,null,"学　　　　校　　　　名",null,null,null,null,null,null,null,null,null,null,null,null,null,null,null,null,null,null,null,null,null,null,null,null,null,null,null,null,"監督名",null,null,null,null,null,null,null,null,null,null,null,null,null,null,"校長名"]
[null,null,{"$f":"入力シート!$C$9","v":0},null,null,null,{"$f":"入力シート!$G$9","v":{"$error":"#N/A"}},null,null,null,null,null,null,null,null,null,null,null,null,null,null,null,null,null,null,"高等学校",null,null,null,null,null,null,null,null,null,{"$f":"入力シート!$AJ$9","v":0},null,null,null,null,null,null,null,null,null,null,null,"印",null,null,{"$f":"入力シート!$AY$9","v":0},null,null,null,null,null,null,null,null,null,null,null,"印"]
[]
[]
[null,null,"ふりがな",null,null,null,null,null,{"$f":"IF(入力シート!I83=\"\",\"\",入力シート!I83)","v":""},null,null,null,null,null,null,null,null,null,null,null,null,null,null,null,{"$f":"IF(入力シート!Y83=\"\",\"\",入力シート!Y83)","v":""},null,null,null,null,null,null,null,null,null,null,null,null,null,"学年",null,null,"段位",null,null,"体重（kg）",null,null,null,null,"身長（cm）",null,null,null,null,"生年月日（西暦）"]
[null,null,"選手名",null,null,null,"（姓）",null,{"$f":"IF(入力シート!I84=\"\",\"\",入力シート!I84)","v":""},null,null,null,null,null,null,null,null,null,null,null,null,null,"（名）",null,{"$f":"IF(入力シート!Y84=\"\",\"\",入力シート!Y84)","v":""},null,null,null,null,null,null,null,null,null,null,null,null,null,{"$f":"IF(入力シート!AM83=\"\",\"\",入力シート!AM83)","v":""},null,null,{"$f":"IF(入力シート!AP83=\"\",\"\",入力シート!AP83)","v":""},null,null,{"$f":"IF(入力シート!AS83=\"\",\"\",入力シート!AS83)","v":""},null,null,null,null,{"$f":"IF(入力シート!AX83=\"\",\"\",入力シート!AX83)","v":""},null,null,null,null,{"$f":"IF(入力シート!BC83=\"\",\"\",入力シート!BC83)","v":""},null,null,null,"・",{"$f":"IF(入力シート!BH83=\"\",\"\",入力シート!BH83)","v":""},null,null,"・",{"$f":"IF(入力シート!BL83=\"\",\"\",入力シート!BL83)","v":""}]
[]
[]
[]
[]
[]
[]
[]
[]
[]
[]
[]
[]
[null,null,null,null,null,null,null,null,null,null,null,null,null,null,"個　人　試　合　申　込　書",null,null,null,null,null,null,null,null,null,null,null,null,null,null,null,null,null,null,null,null,null,null,null,null,null,null,null,null,null,null,null,null,null,null,null,null,null,null,null,{"$f":"NOW()","v":"2018-10-12T05:15:02.540"}]
[]
[null,null,"※抽選番号",null,null,null,null,null,null,null,null,null,null,{"$f":"IF(入力シート!C87=\"\",\"\",入力シート!C87)","v":""},null,null,null,null,null,null,null,"kg級",null,null,null,{"$f":"入力シート!O43","v":"第４１回全国高等学校柔道選手権大会大阪府予選会（一次予選）"}]
[]
[null,null,"学校番号",null,null,null,"学　　　　校　　　　名",null,null,null,null,null,null,null,null,null,null,null,null,null,null,null,null,null,null,null,null,null,null,null,null,null,null,null,null,"監督名",null,null,null,null,null,null,null,null,null,null,null,null,null,null,"校長名"]
[null,null,{"$f":"入力シート!$C$9","v":0},null,null,null,{"$f":"入力シート!$G$9","v":{"$error":"#N/A"}},null,null,null,null,null,null,null,null,null,null,null,null,null,null,null,null,null,null,"高等学校",null,null,null,null,null,null,null,null,null,{"$f":"入力シート!$AJ$9","v":0},null,null,null,null,null,null,null,null,null,null,null,"印",null,null,{"$f":"入力シート!$AY$9","v":0},null,null,null,null,null,null,null,null,null,null,null,"印"]
[]
[]
[null,null,"ふりがな",null,null,null,null,null,{"$f":"IF(入力シート!I87=\"\",\"\",入力シート!I87)","v":""},null,null,null,null,null,null,null,null,null,null,null,null,null,null,null,{"$f":"IF(入力シート!Y87=\"\",\"\",入力シート!Y87)","v":""},null,null,null,null,null,null,null,null,null,null,null,null,null,"学年",null,null,"段位",null,null,"体重（kg）",null,null,null,null,"身長（cm）",null,null,null,null,"生年月日（西暦）"]
[null,null,"選手名",null,null,null,"（姓）",null,{"$f":"IF(入力シート!I88=\"\",\"\",入力シート!I88)","v":""},null,null,null,null,null,null,null,null,null,null,null,null,null,"（名）",null,{"$f":"IF(入力シート!Y88=\"\",\"\",入力シート!Y88)","v":""},null,null,null,null,null,null,null,null,null,null,null,null,null,{"$f":"IF(入力シート!AM87=\"\",\"\",入力シート!AM87)","v":""},null,null,{"$f":"IF(入力シート!AP87=\"\",\"\",入力シート!AP87)","v":""},null,null,{"$f":"IF(入力シート!AS87=\"\",\"\",入力シート!AS87)","v":""},null,null,null,null,{"$f":"IF(入力シート!AX87=\"\",\"\",入力シート!AX87)","v":""},null,null,null,null,{"$f":"IF(入力シート!BC87=\"\",\"\",入力シート!BC87)","v":""},null,null,null,"・",{"$f":"IF(入力シート!BH87=\"\",\"\",入力シート!BH87)","v":""},null,null,"・",{"$f":"IF(入力シート!BL87=\"\",\"\",入力シート!BL87)","v":""}]
[]
[]
[]
[]
[]
[]
[]
[]
[null,null,null,null,null,null,null,null,null,null,null,null,null,null,null,null,null,null,null,null,null,null,null,null,null,null,null,null,"（","ｷ　ﾘ　ﾄ　ﾘ",null,null,null,null,null,null,null,"）"]
[]
[]
[]
[null,null,null,null,null,null,null,null,null,null,null,null,null,null,"個　人　試　合　申　込　書",null,null,null,null,null,null,null,null,null,null,null,null,null,null,null,null,null,null,null,null,null,null,null,null,null,null,null,null,null,null,null,null,null,null,null,null,null,null,null,{"$f":"NOW()","v":"2018-10-12T05:15:02.540"}]
[]
[null,null,"※抽選番号",null,null,null,null,null,null,null,null,null,null,{"$f":"IF(入力シート!C91=\"\",\"\",入力シート!C91)","v":""},null,null,null,null,null,null,null,"kg級",null,null,null,{"$f":"入力シート!O43","v":"第４１回全国高等学校柔道選手権大会大阪府予選会（一次予選）"}]
[]
[null,null,"学校番号",null,null,null,"学　　　　校　　　　名",null,null,null,null,null,null,null,null,null,null,null,null,null,null,null,null,null,null,null,null,null,null,null,null,null,null,null,null,"監督名",null,null,null,null,null,null,null,null,null,null,null,null,null,null,"校長名"]
[null,null,{"$f":"入力シート!$C$9","v":0},null,null,null,{"$f":"入力シート!$G$9","v":{"$error":"#N/A"}},null,null,null,null,null,null,null,null,null,null,null,null,null,null,null,null,null,null,"高等学校",null,null,null,null,null,null,null,null,null,{"$f":"入力シート!$AJ$9","v":0},null,null,null,null,null,null,null,null,null,null,null,"印",null,null,{"$f":"入力シート!$AY$9","v":0},null,null,null,null,null,null,null,null,null,null,null,"印"]
[]
[]
[null,null,"ふりがな",null,null,null,null,null,{"$f":"IF(入力シート!I91=\"\",\"\",入力シート!I91)","v":""},null,null,null,null,null,null,null,null,null,null,null,null,null,null,null,{"$f":"IF(入力シート!Y91=\"\",\"\",入力シート!Y91)","v":""},null,null,null,null,null,null,null,null,null,null,null,null,null,"学年",null,null,"段位",null,null,"体重（kg）",null,null,null,null,"身長（cm）",null,null,null,null,"生年月日（西暦）"]
[null,null,"選手名",null,null,null,"（姓）",null,{"$f":"IF(入力シート!I92=\"\",\"\",入力シート!I92)","v":""},null,null,null,null,null,null,null,null,null,null,null,null,null,"（名）",null,{"$f":"IF(入力シート!Y92=\"\",\"\",入力シート!Y92)","v":""},null,null,null,null,null,null,null,null,null,null,null,null,null,{"$f":"IF(入力シート!AM91=\"\",\"\",入力シート!AM91)","v":""},null,null,{"$f":"IF(入力シート!AP91=\"\",\"\",入力シート!AP91)","v":""},null,null,{"$f":"IF(入力シート!AS91=\"\",\"\",入力シート!AS91)","v":""},null,null,null,null,{"$f":"IF(入力シート!AX91=\"\",\"\",入力シート!AX91)","v":""},null,null,null,null,{"$f":"IF(入力シート!BC91=\"\",\"\",入力シート!BC91)","v":""},null,null,null,"・",{"$f":"IF(入力シート!BH91=\"\",\"\",入力シート!BH91)","v":""},null,null,"・",{"$f":"IF(入力シート!BL91=\"\",\"\",入力シート!BL91)","v":""}]
[]
[]
[]
[]
[]
[]
[]
[]
[]
[]
[]
[]
[null,null,null,null,null,null,null,null,null,null,null,null,null,null,"個　人　試　合　申　込　書",null,null,null,null,null,null,null,null,null,null,null,null,null,null,null,null,null,null,null,null,null,null,null,null,null,null,null,null,null,null,null,null,null,null,null,null,null,null,null,{"$f":"NOW()","v":"2018-10-12T05:15:02.540"}]
[]
[null,null,"※抽選番号",null,null,null,null,null,null,null,null,null,null,{"$f":"IF(入力シート!C95=\"\",\"\",入力シート!C95)","v":""},null,null,null,null,null,null,null,"kg級",null,null,null,{"$f":"入力シート!O43","v":"第４１回全国高等学校柔道選手権大会大阪府予選会（一次予選）"}]
[]
[null,null,"学校番号",null,null,null,"学　　　　校　　　　名",null,null,null,null,null,null,null,null,null,null,null,null,null,null,null,null,null,null,null,null,null,null,null,null,null,null,null,null,"監督名",null,null,null,null,null,null,null,null,null,null,null,null,null,null,"校長名"]
[null,null,{"$f":"入力シート!$C$9","v":0},null,null,null,{"$f":"入力シート!$G$9","v":{"$error":"#N/A"}},null,null,null,null,null,null,null,null,null,null,null,null,null,null,null,null,null,null,"高等学校",null,null,null,null,null,null,null,null,null,{"$f":"入力シート!$AJ$9","v":0},null,null,null,null,null,null,null,null,null,null,null,"印",null,null,{"$f":"入力シート!$AY$9","v":0},null,null,null,null,null,null,null,null,null,null,null,"印"]
[]
[]
[null,null,"ふりがな",null,null,null,null,null,{"$f":"IF(入力シート!I95=\"\",\"\",入力シート!I95)","v":""},null,null,null,null,null,null,null,null,null,null,null,null,null,null,null,{"$f":"IF(入力シート!Y95=\"\",\"\",入力シート!Y95)","v":""},null,null,null,null,null,null,null,null,null,null,null,null,null,"学年",null,null,"段位",null,null,"体重（kg）",null,null,null,null,"身長（cm）",null,null,null,null,"生年月日（西暦）"]
[null,null,"選手名",null,null,null,"（姓）",null,{"$f":"IF(入力シート!I96=\"\",\"\",入力シート!I96)","v":""},null,null,null,null,null,null,null,null,null,null,null,null,null,"（名）",null,{"$f":"IF(入力シート!Y96=\"\",\"\",入力シート!Y96)","v":""},null,null,null,null,null,null,null,null,null,null,null,null,null,{"$f":"IF(入力シート!AM95=\"\",\"\",入力シート!AM95)","v":""},null,null,{"$f":"IF(入力シート!AP95=\"\",\"\",入力シート!AP95)","v":""},null,null,{"$f":"IF(入力シート!AS95=\"\",\"\",入力シート!AS95)","v":""},null,null,null,null,{"$f":"IF(入力シート!AX95=\"\",\"\",入力シート!AX95)","v":""},null,null,null,null,{"$f":"IF(入力シート!BC95=\"\",\"\",入力シート!BC95)","v":""},null,null,null,"・",{"$f":"IF(入力シート!BH95=\"\",\"\",入力シート!BH95)","v":""},null,null,"・",{"$f":"IF(入力シート!BL95=\"\",\"\",入力シート!BL95)","v":""}]
[]
[]
[]
[]
[]
[]
[]
[]
[null,null,null,null,null,null,null,null,null,null,null,null,null,null,null,null,null,null,null,null,null,null,null,null,null,null,null,null,"（","ｷ　ﾘ　ﾄ　ﾘ",null,null,null,null,null,null,null,"）"]
[]
[]
[]
[null,null,null,null,null,null,null,null,null,null,null,null,null,null,"個　人　試　合　申　込　書",null,null,null,null,null,null,null,null,null,null,null,null,null,null,null,null,null,null,null,null,null,null,null,null,null,null,null,null,null,null,null,null,null,null,null,null,null,null,null,{"$f":"NOW()","v":"2018-10-12T05:15:02.540"}]
[]
[null,null,"※抽選番号",null,null,null,null,null,null,null,null,null,null,{"$f":"IF(入力シート!C99=\"\",\"\",入力シート!C99)","v":""},null,null,null,null,null,null,null,"kg級",null,null,null,{"$f":"入力シート!O43","v":"第４１回全国高等学校柔道選手権大会大阪府予選会（一次予選）"}]
[]
[null,null,"学校番号",null,null,null,"学　　　　校　　　　名",null,null,null,null,null,null,null,null,null,null,null,null,null,null,null,null,null,null,null,null,null,null,null,null,null,null,null,null,"監督名",null,null,null,null,null,null,null,null,null,null,null,null,null,null,"校長名"]
[null,null,{"$f":"入力シート!$C$9","v":0},null,null,null,{"$f":"入力シート!$G$9","v":{"$error":"#N/A"}},null,null,null,null,null,null,null,null,null,null,null,null,null,null,null,null,null,null,"高等学校",null,null,null,null,null,null,null,null,null,{"$f":"入力シート!$AJ$9","v":0},null,null,null,null,null,null,null,null,null,null,null,"印",null,null,{"$f":"入力シート!$AY$9","v":0},null,null,null,null,null,null,null,null,null,null,null,"印"]
[]
[]
[null,null,"ふりがな",null,null,null,null,null,{"$f":"IF(入力シート!I99=\"\",\"\",入力シート!I99)","v":""},null,null,null,null,null,null,null,null,null,null,null,null,null,null,null,{"$f":"IF(入力シート!Y99=\"\",\"\",入力シート!Y99)","v":""},null,null,null,null,null,null,null,null,null,null,null,null,null,"学年",null,null,"段位",null,null,"体重（kg）",null,null,null,null,"身長（cm）",null,null,null,null,"生年月日（西暦）"]
[null,null,"選手名",null,null,null,"（姓）",null,{"$f":"IF(入力シート!I100=\"\",\"\",入力シート!I100)","v":""},null,null,null,null,null,null,null,null,null,null,null,null,null,"（名）",null,{"$f":"IF(入力シート!Y100=\"\",\"\",入力シート!Y100)","v":""},null,null,null,null,null,null,null,null,null,null,null,null,null,{"$f":"IF(入力シート!AM99=\"\",\"\",入力シート!AM99)","v":""},null,null,{"$f":"IF(入力シート!AP99=\"\",\"\",入力シート!AP99)","v":""},null,null,{"$f":"IF(入力シート!AS99=\"\",\"\",入力シート!AS99)","v":""},null,null,null,null,{"$f":"IF(入力シート!AX99=\"\",\"\",入力シート!AX99)","v":""},null,null,null,null,{"$f":"IF(入力シート!BC99=\"\",\"\",入力シート!BC99)","v":""},null,null,null,"・",{"$f":"IF(入力シート!BH99=\"\",\"\",入力シート!BH99)","v":""},null,null,"・",{"$f":"IF(入力シート!BL99=\"\",\"\",入力シート!BL99)","v":""}]
[]
[]
[]
[]
[]
[]
[]
[]
[]
[]
[]
[]
[null,null,null,null,null,null,null,null,null,null,null,null,null,null,"個　人　試　合　申　込　書",null,null,null,null,null,null,null,null,null,null,null,null,null,null,null,null,null,null,null,null,null,null,null,null,null,null,null,null,null,null,null,null,null,null,null,null,null,null,null,{"$f":"NOW()","v":"2018-10-12T05:15:02.540"}]
[]
[null,null,"※抽選番号",null,null,null,null,null,null,null,null,null,null,{"$f":"IF(入力シート!C103=\"\",\"\",入力シート!C103)","v":""},null,null,null,null,null,null,null,"kg級",null,null,null,{"$f":"入力シート!$O$43","v":"第４１回全国高等学校柔道選手権大会大阪府予選会（一次予選）"}]
[]
[null,null,"学校番号",null,null,null,"学　　　　校　　　　名",null,null,null,null,null,null,null,null,null,null,null,null,null,null,null,null,null,null,null,null,null,null,null,null,null,null,null,null,"監督名",null,null,null,null,null,null,null,null,null,null,null,null,null,null,"校長名"]
[null,null,{"$f":"入力シート!$C$9","v":0},null,null,null,{"$f":"入力シート!$G$9","v":{"$error":"#N/A"}},null,null,null,null,null,null,null,null,null,null,null,null,null,null,null,null,null,null,"高等学校",null,null,null,null,null,null,null,null,null,{"$f":"入力シート!$AJ$9","v":0},null,null,null,null,null,null,null,null,null,null,null,"印",null,null,{"$f":"入力シート!$AY$9","v":0},null,null,null,null,null,null,null,null,null,null,null,"印"]
[]
[]
[null,null,"ふりがな",null,null,null,null,null,{"$f":"IF(入力シート!I103=\"\",\"\",入力シート!I103)","v":""},null,null,null,null,null,null,null,null,null,null,null,null,null,null,null,{"$f":"IF(入力シート!Y103=\"\",\"\",入力シート!Y103)","v":""},null,null,null,null,null,null,null,null,null,null,null,null,null,"学年",null,null,"段位",null,null,"体重（kg）",null,null,null,null,"身長（cm）",null,null,null,null,"生年月日（西暦）"]
[null,null,"選手名",null,null,null,"（姓）",null,{"$f":"IF(入力シート!I104=\"\",\"\",入力シート!I104)","v":""},null,null,null,null,null,null,null,null,null,null,null,null,null,"（名）",null,{"$f":"IF(入力シート!Y104=\"\",\"\",入力シート!Y104)","v":""},null,null,null,null,null,null,null,null,null,null,null,null,null,{"$f":"IF(入力シート!AM103=\"\",\"\",入力シート!AM103)","v":""},null,null,{"$f":"IF(入力シート!AP103=\"\",\"\",入力シート!AP103)","v":""},null,null,{"$f":"IF(入力シート!AS103=\"\",\"\",入力シート!AS103)","v":""},null,null,null,null,{"$f":"IF(入力シート!AX103=\"\",\"\",入力シート!AX103)","v":""},null,null,null,null,{"$f":"IF(入力シート!BC103=\"\",\"\",入力シート!BC103)","v":""},null,null,null,"・",{"$f":"IF(入力シート!BH103=\"\",\"\",入力シート!BH103)","v":""},null,null,"・",{"$f":"IF(入力シート!BL103=\"\",\"\",入力シート!BL103)","v":""}]
[]
[]
[]
[]
[]
[]
[]
[]
[]
[null,null,null,null,null,null,null,null,null,null,null,null,null,null,null,null,null,null,null,null,null,null,null,null,null,null,null,null,"（","ｷ　ﾘ　ﾄ　ﾘ",null,null,null,null,null,null,null,"）"]
[]
[]
[]
[null,null,null,null,null,null,null,null,null,null,null,null,null,null,"個　人　試　合　申　込　書",null,null,null,null,null,null,null,null,null,null,null,null,null,null,null,null,null,null,null,null,null,null,null,null,null,null,null,null,null,null,null,null,null,null,null,null,null,null,null,{"$f":"NOW()","v":"2018-10-12T05:15:02.540"}]
[]
[null,null,"※抽選番号",null,null,null,null,null,null,null,null,null,null,{"$f":"IF(入力シート!C107=\"\",\"\",入力シート!C107)","v":""},null,null,null,null,null,null,null,"kg級",null,null,null,{"$f":"入力シート!$O$43","v":"第４１回全国高等学校柔道選手権大会大阪府予選会（一次予選）"}]
[]
[null,null,"学校番号",null,null,null,"学　　　　校　　　　名",null,null,null,null,null,null,null,null,null,null,null,null,null,null,null,null,null,null,null,null,null,null,null,null,null,null,null,null,"監督名",null,null,null,null,null,null,null,null,null,null,null,null,null,null,"校長名"]
[null,null,{"$f":"入力シート!$C$9","v":0},null,null,null,{"$f":"入力シート!$G$9","v":{"$error":"#N/A"}},null,null,null,null,null,null,null,null,null,null,null,null,null,null,null,null,null,null,"高等学校",null,null,null,null,null,null,null,null,null,{"$f":"入力シート!$AJ$9","v":0},null,null,null,null,null,null,null,null,null,null,null,"印",null,null,{"$f":"入力シート!$AY$9","v":0},null,null,null,null,null,null,null,null,null,null,null,"印"]
[]
[]
[null,null,"ふりがな",null,null,null,null,null,{"$f":"IF(入力シート!I107=\"\",\"\",入力シート!I107)","v":""},null,null,null,null,null,null,null,null,null,null,null,null,null,null,null,{"$f":"IF(入力シート!Y107=\"\",\"\",入力シート!Y107)","v":""},null,null,null,null,null,null,null,null,null,null,null,null,null,"学年",null,null,"段位",null,null,"体重（kg）",null,null,null,null,"身長（cm）",null,null,null,null,"生年月日（西暦）"]
[null,null,"選手名",null,null,null,"（姓）",null,{"$f":"IF(入力シート!I108=\"\",\"\",入力シート!I108)","v":""},null,null,null,null,null,null,null,null,null,null,null,null,null,"（名）",null,{"$f":"IF(入力シート!Y108=\"\",\"\",入力シート!Y108)","v":""},null,null,null,null,null,null,null,null,null,null,null,null,null,{"$f":"IF(入力シート!AM107=\"\",\"\",入力シート!AM107)","v":""},null,null,{"$f":"IF(入力シート!AP107=\"\",\"\",入力シート!AP107)","v":""},null,null,{"$f":"IF(入力シート!AS107=\"\",\"\",入力シート!AS107)","v":""},null,null,null,null,{"$f":"IF(入力シート!AX107=\"\",\"\",入力シート!AX107)","v":""},null,null,null,null,{"$f":"IF(入力シート!BC107=\"\",\"\",入力シート!BC107)","v":""},null,null,null,"・",{"$f":"IF(入力シート!BH107=\"\",\"\",入力シート!BH107)","v":""},null,null,"・",{"$f":"IF(入力シート!BL107=\"\",\"\",入力シート!BL107)","v":""}]
[]
[]
[]
[]
[]
[]
[]
[]
[]
[]
[]
[]
[]
[null,null,null,null,null,null,null,null,null,null,null,null,null,null,"個　人　試　合　申　込　書",null,null,null,null,null,null,null,null,null,null,null,null,null,null,null,null,null,null,null,null,null,null,null,null,null,null,null,null,null,null,null,null,null,null,null,null,null,null,null,{"$f":"NOW()","v":"2018-10-12T05:15:02.540"}]
[]
[null,null,"※抽選番号",null,null,null,null,null,null,null,null,null,null,{"$f":"IF(入力シート!C111=\"\",\"\",入力シート!C111)","v":""},null,null,null,null,null,null,null,"kg級",null,null,null,{"$f":"入力シート!$O$43","v":"第４１回全国高等学校柔道選手権大会大阪府予選会（一次予選）"}]
[]
[null,null,"学校番号",null,null,null,"学　　　　校　　　　名",null,null,null,null,null,null,null,null,null,null,null,null,null,null,null,null,null,null,null,null,null,null,null,null,null,null,null,null,"監督名",null,null,null,null,null,null,null,null,null,null,null,null,null,null,"校長名"]
[null,null,{"$f":"入力シート!$C$9","v":0},null,null,null,{"$f":"入力シート!$G$9","v":{"$error":"#N/A"}},null,null,null,null,null,null,null,null,null,null,null,null,null,null,null,null,null,null,"高等学校",null,null,null,null,null,null,null,null,null,{"$f":"入力シート!$AJ$9","v":0},null,null,null,null,null,null,null,null,null,null,null,"印",null,null,{"$f":"入力シート!$AY$9","v":0},null,null,null,null,null,null,null,null,null,null,null,"印"]
[]
[]
[null,null,"ふりがな",null,null,null,null,null,{"$f":"IF(入力シート!I111=\"\",\"\",入力シート!I111)","v":""},null,null,null,null,null,null,null,null,null,null,null,null,null,null,null,{"$f":"IF(入力シート!Y111=\"\",\"\",入力シート!Y111)","v":""},null,null,null,null,null,null,null,null,null,null,null,null,null,"学年",null,null,"段位",null,null,"体重（kg）",null,null,null,null,"身長（cm）",null,null,null,null,"生年月日（西暦）"]
[null,null,"選手名",null,null,null,"（姓）",null,{"$f":"IF(入力シート!I112=\"\",\"\",入力シート!I112)","v":""},null,null,null,null,null,null,null,null,null,null,null,null,null,"（名）",null,{"$f":"IF(入力シート!Y112=\"\",\"\",入力シート!Y112)","v":""},null,null,null,null,null,null,null,null,null,null,null,null,null,{"$f":"IF(入力シート!AM111=\"\",\"\",入力シート!AM111)","v":""},null,null,{"$f":"IF(入力シート!AP111=\"\",\"\",入力シート!AP111)","v":""},null,null,{"$f":"IF(入力シート!AS111=\"\",\"\",入力シート!AS111)","v":""},null,null,null,null,{"$f":"IF(入力シート!AX111=\"\",\"\",入力シート!AX111)","v":""},null,null,null,null,{"$f":"IF(入力シート!BC111=\"\",\"\",入力シート!BC111)","v":""},null,null,null,"・",{"$f":"IF(入力シート!BH111=\"\",\"\",入力シート!BH111)","v":""},null,null,"・",{"$f":"IF(入力シート!BL111=\"\",\"\",入力シート!BL111)","v":""}]
[]
[]
[]
[]
[]
[]
[]
[]
[]
[null,null,null,null,null,null,null,null,null,null,null,null,null,null,null,null,null,null,null,null,null,null,null,null,null,null,null,null,"（","ｷ　ﾘ　ﾄ　ﾘ",null,null,null,null,null,null,null,"）"]
[]
[]
[]
[null,null,null,null,null,null,null,null,null,null,null,null,null,null,"個　人　試　合　申　込　書",null,null,null,null,null,null,null,null,null,null,null,null,null,null,null,null,null,null,null,null,null,null,null,null,null,null,null,null,null,null,null,null,null,null,null,null,null,null,null,{"$f":"NOW()","v":"2018-10-12T05:15:02.540"}]
[]
[null,null,"※抽選番号",null,null,null,null,null,null,null,null,null,null,{"$f":"IF(入力シート!C115=\"\",\"\",入力シート!C115)","v":""},null,null,null,null,null,null,null,"kg級",null,null,null,{"$f":"入力シート!$O$43","v":"第４１回全国高等学校柔道選手権大会大阪府予選会（一次予選）"}]
[]
[null,null,"学校番号",null,null,null,"学　　　　校　　　　名",null,null,null,null,null,null,null,null,null,null,null,null,null,null,null,null,null,null,null,null,null,null,null,null,null,null,null,null,"監督名",null,null,null,null,null,null,null,null,null,null,null,null,null,null,"校長名"]
[null,null,{"$f":"入力シート!$C$9","v":0},null,null,null,{"$f":"入力シート!$G$9","v":{"$error":"#N/A"}},null,null,null,null,null,null,null,null,null,null,null,null,null,null,null,null,null,null,"高等学校",null,null,null,null,null,null,null,null,null,{"$f":"入力シート!$AJ$9","v":0},null,null,null,null,null,null,null,null,null,null,null,"印",null,null,{"$f":"入力シート!$AY$9","v":0},null,null,null,null,null,null,null,null,null,null,null,"印"]
[]
[]
[null,null,"ふりがな",null,null,null,null,null,{"$f":"IF(入力シート!I115=\"\",\"\",入力シート!I115)","v":""},null,null,null,null,null,null,null,null,null,null,null,null,null,null,null,{"$f":"IF(入力シート!Y115=\"\",\"\",入力シート!Y115)","v":""},null,null,null,null,null,null,null,null,null,null,null,null,null,"学年",null,null,"段位",null,null,"体重（kg）",null,null,null,null,"身長（cm）",null,null,null,null,"生年月日（西暦）"]
[null,null,"選手名",null,null,null,"（姓）",null,{"$f":"IF(入力シート!I116=\"\",\"\",入力シート!I116)","v":""},null,null,null,null,null,null,null,null,null,null,null,null,null,"（名）",null,{"$f":"IF(入力シート!Y116=\"\",\"\",入力シート!Y116)","v":""},null,null,null,null,null,null,null,null,null,null,null,null,null,{"$f":"IF(入力シート!AM115=\"\",\"\",入力シート!AM115)","v":""},null,null,{"$f":"IF(入力シート!AP115=\"\",\"\",入力シート!AP115)","v":""},null,null,{"$f":"IF(入力シート!AS115=\"\",\"\",入力シート!AS115)","v":""},null,null,null,null,{"$f":"IF(入力シート!AX115=\"\",\"\",入力シート!AX115)","v":""},null,null,null,null,{"$f":"IF(入力シート!BC115=\"\",\"\",入力シート!BC115)","v":""},null,null,null,"・",{"$f":"IF(入力シート!BH115=\"\",\"\",入力シート!BH115)","v":""},null,null,"・",{"$f":"IF(入力シート!BL115=\"\",\"\",入力シート!BL115)","v":""}]
[]
[]
[]
[]
[]
[]
[]
[]
[]
[]
[]
[]
[]
[null,null,null,null,null,null,null,null,null,null,null,null,null,null,"個　人　試　合　申　込　書",null,null,null,null,null,null,null,null,null,null,null,null,null,null,null,null,null,null,null,null,null,null,null,null,null,null,null,null,null,null,null,null,null,null,null,null,null,null,null,{"$f":"NOW()","v":"2018-10-12T05:15:02.540"}]
[]
[null,null,"※抽選番号",null,null,null,null,null,null,null,null,null,null,{"$f":"IF(入力シート!C119=\"\",\"\",入力シート!C119)","v":""},null,null,null,null,null,null,null,"kg級",null,null,null,{"$f":"入力シート!$O$43","v":"第４１回全国高等学校柔道選手権大会大阪府予選会（一次予選）"}]
[]
[null,null,"学校番号",null,null,null,"学　　　　校　　　　名",null,null,null,null,null,null,null,null,null,null,null,null,null,null,null,null,null,null,null,null,null,null,null,null,null,null,null,null,"監督名",null,null,null,null,null,null,null,null,null,null,null,null,null,null,"校長名"]
[null,null,{"$f":"入力シート!$C$9","v":0},null,null,null,{"$f":"入力シート!$G$9","v":{"$error":"#N/A"}},null,null,null,null,null,null,null,null,null,null,null,null,null,null,null,null,null,null,"高等学校",null,null,null,null,null,null,null,null,null,{"$f":"入力シート!$AJ$9","v":0},null,null,null,null,null,null,null,null,null,null,null,"印",null,null,{"$f":"入力シート!$AY$9","v":0},null,null,null,null,null,null,null,null,null,null,null,"印"]
[]
[]
[null,null,"ふりがな",null,null,null,null,null,{"$f":"IF(入力シート!I119=\"\",\"\",入力シート!I119)","v":""},null,null,null,null,null,null,null,null,null,null,null,null,null,null,null,{"$f":"IF(入力シート!Y119=\"\",\"\",入力シート!Y119)","v":""},null,null,null,null,null,null,null,null,null,null,null,null,null,"学年",null,null,"段位",null,null,"体重（kg）",null,null,null,null,"身長（cm）",null,null,null,null,"生年月日（西暦）"]
[null,null,"選手名",null,null,null,"（姓）",null,{"$f":"IF(入力シート!I120=\"\",\"\",入力シート!I120)","v":""},null,null,null,null,null,null,null,null,null,null,null,null,null,"（名）",null,{"$f":"IF(入力シート!Y120=\"\",\"\",入力シート!Y120)","v":""},null,null,null,null,null,null,null,null,null,null,null,null,null,{"$f":"IF(入力シート!AM119=\"\",\"\",入力シート!AM119)","v":""},null,null,{"$f":"IF(入力シート!AP119=\"\",\"\",入力シート!AP119)","v":""},null,null,{"$f":"IF(入力シート!AS119=\"\",\"\",入力シート!AS119)","v":""},null,null,null,null,{"$f":"IF(入力シート!AX119=\"\",\"\",入力シート!AX119)","v":""},null,null,null,null,{"$f":"IF(入力シート!BC119=\"\",\"\",入力シート!BC119)","v":""},null,null,null,"・",{"$f":"IF(入力シート!BH119=\"\",\"\",入力シート!BH119)","v":""},null,null,"・",{"$f":"IF(入力シート!BL119=\"\",\"\",入力シート!BL119)","v":""}]
[]
[]
[]
[]
[]
[]
[]
[]
[]
[null,null,null,null,null,null,null,null,null,null,null,null,null,null,null,null,null,null,null,null,null,null,null,null,null,null,null,null,"（","ｷ　ﾘ　ﾄ　ﾘ",null,null,null,null,null,null,null,"）"]
[]
[]
[]
[null,null,null,null,null,null,null,null,null,null,null,null,null,null,"個　人　試　合　申　込　書",null,null,null,null,null,null,null,null,null,null,null,null,null,null,null,null,null,null,null,null,null,null,null,null,null,null,null,null,null,null,null,null,null,null,null,null,null,null,null,{"$f":"NOW()","v":"2018-10-12T05:15:02.540"}]
[]
[null,null,"※抽選番号",null,null,null,null,null,null,null,null,null,null,{"$f":"IF(入力シート!C123=\"\",\"\",入力シート!C123)","v":""},null,null,null,null,null,null,null,"kg級",null,null,null,{"$f":"入力シート!$O$43","v":"第４１回全国高等学校柔道選手権大会大阪府予選会（一次予選）"}]
[]
[null,null,"学校番号",null,null,null,"学　　　　校　　　　名",null,null,null,null,null,null,null,null,null,null,null,null,null,null,null,null,null,null,null,null,null,null,null,null,null,null,null,null,"監督名",null,null,null,null,null,null,null,null,null,null,null,null,null,null,"校長名"]
[null,null,{"$f":"入力シート!$C$9","v":0},null,null,null,{"$f":"入力シート!$G$9","v":{"$error":"#N/A"}},null,null,null,null,null,null,null,null,null,null,null,null,null,null,null,null,null,null,"高等学校",null,null,null,null,null,null,null,null,null,{"$f":"入力シート!$AJ$9","v":0},null,null,null,null,null,null,null,null,null,null,null,"印",null,null,{"$f":"入力シート!$AY$9","v":0},null,null,null,null,null,null,null,null,null,null,null,"印"]
[]
[]
[null,null,"ふりがな",null,null,null,null,null,{"$f":"IF(入力シート!I123=\"\",\"\",入力シート!I123)","v":""},null,null,null,null,null,null,null,null,null,null,null,null,null,null,null,{"$f":"IF(入力シート!Y123=\"\",\"\",入力シート!Y123)","v":""},null,null,null,null,null,null,null,null,null,null,null,null,null,"学年",null,null,"段位",null,null,"体重（kg）",null,null,null,null,"身長（cm）",null,null,null,null,"生年月日（西暦）"]
[null,null,"選手名",null,null,null,"（姓）",null,{"$f":"IF(入力シート!I124=\"\",\"\",入力シート!I124)","v":""},null,null,null,null,null,null,null,null,null,null,null,null,null,"（名）",null,{"$f":"IF(入力シート!Y124=\"\",\"\",入力シート!Y124)","v":""},null,null,null,null,null,null,null,null,null,null,null,null,null,{"$f":"IF(入力シート!AM123=\"\",\"\",入力シート!AM123)","v":""},null,null,{"$f":"IF(入力シート!AP123=\"\",\"\",入力シート!AP123)","v":""},null,null,{"$f":"IF(入力シート!AS123=\"\",\"\",入力シート!AS123)","v":""},null,null,null,null,{"$f":"IF(入力シート!AX123=\"\",\"\",入力シート!AX123)","v":""},null,null,null,null,{"$f":"IF(入力シート!BC123=\"\",\"\",入力シート!BC123)","v":""},null,null,null,"・",{"$f":"IF(入力シート!BH123=\"\",\"\",入力シート!BH123)","v":""},null,null,"・",{"$f":"IF(入力シート!BL123=\"\",\"\",入力シート!BL123)","v":""}]
[]
[]
[]
[]
[]
[]
[]
[]
[]
[]
[]
[]
[]
[null,null,null,null,null,null,null,null,null,null,null,null,null,null,"個　人　試　合　申　込　書",null,null,null,null,null,null,null,null,null,null,null,null,null,null,null,null,null,null,null,null,null,null,null,null,null,null,null,null,null,null,null,null,null,null,null,null,null,null,null,{"$f":"NOW()","v":"2018-10-12T05:15:02.540"}]
[]
[null,null,"※抽選番号",null,null,null,null,null,null,null,null,null,null,{"$f":"IF(入力シート!C127=\"\",\"\",入力シート!C127)","v":""},null,null,null,null,null,null,null,"kg級",null,null,null,{"$f":"入力シート!$O$43","v":"第４１回全国高等学校柔道選手権大会大阪府予選会（一次予選）"}]
[]
[null,null,"学校番号",null,null,null,"学　　　　校　　　　名",null,null,null,null,null,null,null,null,null,null,null,null,null,null,null,null,null,null,null,null,null,null,null,null,null,null,null,null,"監督名",null,null,null,null,null,null,null,null,null,null,null,null,null,null,"校長名"]
[null,null,{"$f":"入力シート!$C$9","v":0},null,null,null,{"$f":"入力シート!$G$9","v":{"$error":"#N/A"}},null,null,null,null,null,null,null,null,null,null,null,null,null,null,null,null,null,null,"高等学校",null,null,null,null,null,null,null,null,null,{"$f":"入力シート!$AJ$9","v":0},null,null,null,null,null,null,null,null,null,null,null,"印",null,null,{"$f":"入力シート!$AY$9","v":0},null,null,null,null,null,null,null,null,null,null,null,"印"]
[]
[]
[null,null,"ふりがな",null,null,null,null,null,{"$f":"IF(入力シート!I127=\"\",\"\",入力シート!I127)","v":""},null,null,null,null,null,null,null,null,null,null,null,null,null,null,null,{"$f":"IF(入力シート!Y127=\"\",\"\",入力シート!Y127)","v":""},null,null,null,null,null,null,null,null,null,null,null,null,null,"学年",null,null,"段位",null,null,"体重（kg）",null,null,null,null,"身長（cm）",null,null,null,null,"生年月日（西暦）"]
[null,null,"選手名",null,null,null,"（姓）",null,{"$f":"IF(入力シート!I128=\"\",\"\",入力シート!I128)","v":""},null,null,null,null,null,null,null,null,null,null,null,null,null,"（名）",null,{"$f":"IF(入力シート!Y128=\"\",\"\",入力シート!Y128)","v":""},null,null,null,null,null,null,null,null,null,null,null,null,null,{"$f":"IF(入力シート!AM127=\"\",\"\",入力シート!AM127)","v":""},null,null,{"$f":"IF(入力シート!AP127=\"\",\"\",入力シート!AP127)","v":""},null,null,{"$f":"IF(入力シート!AS127=\"\",\"\",入力シート!AS127)","v":""},null,null,null,null,{"$f":"IF(入力シート!AX127=\"\",\"\",入力シート!AX127)","v":""},null,null,null,null,{"$f":"IF(入力シート!BC127=\"\",\"\",入力シート!BC127)","v":""},null,null,null,"・",{"$f":"IF(入力シート!BH127=\"\",\"\",入力シート!BH127)","v":""},null,null,"・",{"$f":"IF(入力シート!BL127=\"\",\"\",入力シート!BL127)","v":""}]
[]
[]
[]
[]
[]
[]
[]
[]
[]
[null,null,null,null,null,null,null,null,null,null,null,null,null,null,null,null,null,null,null,null,null,null,null,null,null,null,null,null,"（","ｷ　ﾘ　ﾄ　ﾘ",null,null,null,null,null,null,null,"）"]
[]
[]
[]
[null,null,null,null,null,null,null,null,null,null,null,null,null,null,"個　人　試　合　申　込　書",null,null,null,null,null,null,null,null,null,null,null,null,null,null,null,null,null,null,null,null,null,null,null,null,null,null,null,null,null,null,null,null,null,null,null,null,null,null,null,{"$f":"NOW()","v":"2018-10-12T05:15:02.540"}]
[]
[null,null,"※抽選番号",null,null,null,null,null,null,null,null,null,null,{"$f":"IF(入力シート!C131=\"\",\"\",入力シート!C131)","v":""},null,null,null,null,null,null,null,"kg級",null,null,null,{"$f":"入力シート!$O$43","v":"第４１回全国高等学校柔道選手権大会大阪府予選会（一次予選）"}]
[]
[null,null,"学校番号",null,null,null,"学　　　　校　　　　名",null,null,null,null,null,null,null,null,null,null,null,null,null,null,null,null,null,null,null,null,null,null,null,null,null,null,null,null,"監督名",null,null,null,null,null,null,null,null,null,null,null,null,null,null,"校長名"]
[null,null,{"$f":"入力シート!$C$9","v":0},null,null,null,{"$f":"入力シート!$G$9","v":{"$error":"#N/A"}},null,null,null,null,null,null,null,null,null,null,null,null,null,null,null,null,null,null,"高等学校",null,null,null,null,null,null,null,null,null,{"$f":"入力シート!$AJ$9","v":0},null,null,null,null,null,null,null,null,null,null,null,"印",null,null,{"$f":"入力シート!$AY$9","v":0},null,null,null,null,null,null,null,null,null,null,null,"印"]
[]
[]
[null,null,"ふりがな",null,null,null,null,null,{"$f":"IF(入力シート!I131=\"\",\"\",入力シート!I131)","v":""},null,null,null,null,null,null,null,null,null,null,null,null,null,null,null,{"$f":"IF(入力シート!Y131=\"\",\"\",入力シート!Y131)","v":""},null,null,null,null,null,null,null,null,null,null,null,null,null,"学年",null,null,"段位",null,null,"体重（kg）",null,null,null,null,"身長（cm）",null,null,null,null,"生年月日（西暦）"]
[null,null,"選手名",null,null,null,"（姓）",null,{"$f":"IF(入力シート!I132=\"\",\"\",入力シート!I132)","v":""},null,null,null,null,null,null,null,null,null,null,null,null,null,"（名）",null,{"$f":"IF(入力シート!Y132=\"\",\"\",入力シート!Y132)","v":""},null,null,null,null,null,null,null,null,null,null,null,null,null,{"$f":"IF(入力シート!AM131=\"\",\"\",入力シート!AM131)","v":""},null,null,{"$f":"IF(入力シート!AP131=\"\",\"\",入力シート!AP131)","v":""},null,null,{"$f":"IF(入力シート!AS131=\"\",\"\",入力シート!AS131)","v":""},null,null,null,null,{"$f":"IF(入力シート!AX131=\"\",\"\",入力シート!AX131)","v":""},null,null,null,null,{"$f":"IF(入力シート!BC131=\"\",\"\",入力シート!BC131)","v":""},null,null,null,"・",{"$f":"IF(入力シート!BH131=\"\",\"\",入力シート!BH131)","v":""},null,null,"・",{"$f":"IF(入力シート!BL131=\"\",\"\",入力シート!BL131)","v":""}]
[]
[]
[]
[]
[]
[]
[]
[]
[]
[]
[]
[]
[]
[null,null,null,null,null,null,null,null,null,null,null,null,null,null,"個　人　試　合　申　込　書",null,null,null,null,null,null,null,null,null,null,null,null,null,null,null,null,null,null,null,null,null,null,null,null,null,null,null,null,null,null,null,null,null,null,null,null,null,null,null,{"$f":"NOW()","v":"2018-10-12T05:15:02.540"}]
[]
[null,null,"※抽選番号",null,null,null,null,null,null,null,null,null,null,{"$f":"IF(入力シート!C135=\"\",\"\",入力シート!C135)","v":""},null,null,null,null,null,null,null,"kg級",null,null,null,{"$f":"入力シート!$O$43","v":"第４１回全国高等学校柔道選手権大会大阪府予選会（一次予選）"}]
[]
[null,null,"学校番号",null,null,null,"学　　　　校　　　　名",null,null,null,null,null,null,null,null,null,null,null,null,null,null,null,null,null,null,null,null,null,null,null,null,null,null,null,null,"監督名",null,null,null,null,null,null,null,null,null,null,null,null,null,null,"校長名"]
[null,null,{"$f":"入力シート!$C$9","v":0},null,null,null,{"$f":"入力シート!$G$9","v":{"$error":"#N/A"}},null,null,null,null,null,null,null,null,null,null,null,null,null,null,null,null,null,null,"高等学校",null,null,null,null,null,null,null,null,null,{"$f":"入力シート!$AJ$9","v":0},null,null,null,null,null,null,null,null,null,null,null,"印",null,null,{"$f":"入力シート!$AY$9","v":0},null,null,null,null,null,null,null,null,null,null,null,"印"]
[]
[]
[null,null,"ふりがな",null,null,null,null,null,{"$f":"IF(入力シート!I135=\"\",\"\",入力シート!I135)","v":""},null,null,null,null,null,null,null,null,null,null,null,null,null,null,null,{"$f":"IF(入力シート!Y135=\"\",\"\",入力シート!Y135)","v":""},null,null,null,null,null,null,null,null,null,null,null,null,null,"学年",null,null,"段位",null,null,"体重（kg）",null,null,null,null,"身長（cm）",null,null,null,null,"生年月日（西暦）"]
[null,null,"選手名",null,null,null,"（姓）",null,{"$f":"IF(入力シート!I136=\"\",\"\",入力シート!I136)","v":""},null,null,null,null,null,null,null,null,null,null,null,null,null,"（名）",null,{"$f":"IF(入力シート!Y136=\"\",\"\",入力シート!Y136)","v":""},null,null,null,null,null,null,null,null,null,null,null,null,null,{"$f":"IF(入力シート!AM135=\"\",\"\",入力シート!AM135)","v":""},null,null,{"$f":"IF(入力シート!AP135=\"\",\"\",入力シート!AP135)","v":""},null,null,{"$f":"IF(入力シート!AS135=\"\",\"\",入力シート!AS135)","v":""},null,null,null,null,{"$f":"IF(入力シート!AX135=\"\",\"\",入力シート!AX135)","v":""},null,null,null,null,{"$f":"IF(入力シート!BC135=\"\",\"\",入力シート!BC135)","v":""},null,null,null,"・",{"$f":"IF(入力シート!BH135=\"\",\"\",入力シート!BH135)","v":""},null,null,"・",{"$f":"IF(入力シート!BL135=\"\",\"\",入力シート!BL135)","v":""}]
[]
[]
[]
[]
[]
[]
[]
[]
[]
[null,null,null,null,null,null,null,null,null,null,null,null,null,null,null,null,null,null,null,null,null,null,null,null,null,null,null,null,"（","ｷ　ﾘ　ﾄ　ﾘ",null,null,null,null,null,null,null,"）"]
[]
[]
[]
[null,null,null,null,null,null,null,null,null,null,null,null,null,null,"個　人　試　合　申　込　書",null,null,null,null,null,null,null,null,null,null,null,null,null,null,null,null,null,null,null,null,null,null,null,null,null,null,null,null,null,null,null,null,null,null,null,null,null,null,null,{"$f":"NOW()","v":"2018-10-12T05:15:02.540"}]
[]
[null,null,"※抽選番号",null,null,null,null,null,null,null,null,null,null,{"$f":"IF(入力シート!C139=\"\",\"\",入力シート!C139)","v":""},null,null,null,null,null,null,null,"kg級",null,null,null,{"$f":"入力シート!$O$43","v":"第４１回全国高等学校柔道選手権大会大阪府予選会（一次予選）"}]
[]
[null,null,"学校番号",null,null,null,"学　　　　校　　　　名",null,null,null,null,null,null,null,null,null,null,null,null,null,null,null,null,null,null,null,null,null,null,null,null,null,null,null,null,"監督名",null,null,null,null,null,null,null,null,null,null,null,null,null,null,"校長名"]
[null,null,{"$f":"入力シート!$C$9","v":0},null,null,null,{"$f":"入力シート!$G$9","v":{"$error":"#N/A"}},null,null,null,null,null,null,null,null,null,null,null,null,null,null,null,null,null,null,"高等学校",null,null,null,null,null,null,null,null,null,{"$f":"入力シート!$AJ$9","v":0},null,null,null,null,null,null,null,null,null,null,null,"印",null,null,{"$f":"入力シート!$AY$9","v":0},null,null,null,null,null,null,null,null,null,null,null,"印"]
[]
[]
[null,null,"ふりがな",null,null,null,null,null,{"$f":"IF(入力シート!I139=\"\",\"\",入力シート!I139)","v":""},null,null,null,null,null,null,null,null,null,null,null,null,null,null,null,{"$f":"IF(入力シート!Y139=\"\",\"\",入力シート!Y139)","v":""},null,null,null,null,null,null,null,null,null,null,null,null,null,"学年",null,null,"段位",null,null,"体重（kg）",null,null,null,null,"身長（cm）",null,null,null,null,"生年月日（西暦）"]
[null,null,"選手名",null,null,null,"（姓）",null,{"$f":"IF(入力シート!I140=\"\",\"\",入力シート!I140)","v":""},null,null,null,null,null,null,null,null,null,null,null,null,null,"（名）",null,{"$f":"IF(入力シート!Y140=\"\",\"\",入力シート!Y140)","v":""},null,null,null,null,null,null,null,null,null,null,null,null,null,{"$f":"IF(入力シート!AM139=\"\",\"\",入力シート!AM139)","v":""},null,null,{"$f":"IF(入力シート!AP139=\"\",\"\",入力シート!AP139)","v":""},null,null,{"$f":"IF(入力シート!AS139=\"\",\"\",入力シート!AS139)","v":""},null,null,null,null,{"$f":"IF(入力シート!AX139=\"\",\"\",入力シート!AX139)","v":""},null,null,null,null,{"$f":"IF(入力シート!BC139=\"\",\"\",入力シート!BC139)","v":""},null,null,null,"・",{"$f":"IF(入力シート!BH139=\"\",\"\",入力シート!BH139)","v":""},null,null,"・",{"$f":"IF(入力シート!BL139=\"\",\"\",入力シート!BL139)","v":""}]
[]
[]
[]
[]
[]
[]
[]
[]
[]
[]
[]
[]
[]
[]
[null,null,null,null,null,null,null,null,null,null,null,null,null,null,"個　人　試　合　申　込　書",null,null,null,null,null,null,null,null,null,null,null,null,null,null,null,null,null,null,null,null,null,null,null,null,null,null,null,null,null,null,null,null,null,null,null,null,null,null,null,{"$f":"NOW()","v":"2018-10-12T05:15:02.540"}]
[]
[null,null,"※抽選番号",null,null,null,null,null,null,null,null,null,null,{"$f":"IF(入力シート!C143=\"\",\"\",入力シート!C143)","v":""},null,null,null,null,null,null,null,"kg級",null,null,null,{"$f":"入力シート!$O$43","v":"第４１回全国高等学校柔道選手権大会大阪府予選会（一次予選）"}]
[]
[null,null,"学校番号",null,null,null,"学　　　　校　　　　名",null,null,null,null,null,null,null,null,null,null,null,null,null,null,null,null,null,null,null,null,null,null,null,null,null,null,null,null,"監督名",null,null,null,null,null,null,null,null,null,null,null,null,null,null,"校長名"]
[null,null,{"$f":"入力シート!$C$9","v":0},null,null,null,{"$f":"入力シート!$G$9","v":{"$error":"#N/A"}},null,null,null,null,null,null,null,null,null,null,null,null,null,null,null,null,null,null,"高等学校",null,null,null,null,null,null,null,null,null,{"$f":"入力シート!$AJ$9","v":0},null,null,null,null,null,null,null,null,null,null,null,"印",null,null,{"$f":"入力シート!$AY$9","v":0},null,null,null,null,null,null,null,null,null,null,null,"印"]
[]
[]
[null,null,"ふりがな",null,null,null,null,null,{"$f":"IF(入力シート!I143=\"\",\"\",入力シート!I143)","v":""},null,null,null,null,null,null,null,null,null,null,null,null,null,null,null,{"$f":"IF(入力シート!Y143=\"\",\"\",入力シート!Y143)","v":""},null,null,null,null,null,null,null,null,null,null,null,null,null,"学年",null,null,"段位",null,null,"体重（kg）",null,null,null,null,"身長（cm）",null,null,null,null,"生年月日（西暦）"]
[null,null,"選手名",null,null,null,"（姓）",null,{"$f":"IF(入力シート!I144=\"\",\"\",入力シート!I144)","v":""},null,null,null,null,null,null,null,null,null,null,null,null,null,"（名）",null,{"$f":"IF(入力シート!Y144=\"\",\"\",入力シート!Y144)","v":""},null,null,null,null,null,null,null,null,null,null,null,null,null,{"$f":"IF(入力シート!AM143=\"\",\"\",入力シート!AM143)","v":""},null,null,{"$f":"IF(入力シート!AP143=\"\",\"\",入力シート!AP143)","v":""},null,null,{"$f":"IF(入力シート!AS143=\"\",\"\",入力シート!AS143)","v":""},null,null,null,null,{"$f":"IF(入力シート!AX143=\"\",\"\",入力シート!AX143)","v":""},null,null,null,null,{"$f":"IF(入力シート!BC143=\"\",\"\",入力シート!BC143)","v":""},null,null,null,"・",{"$f":"IF(入力シート!BH143=\"\",\"\",入力シート!BH143)","v":""},null,null,"・",{"$f":"IF(入力シート!BL143=\"\",\"\",入力シート!BL143)","v":""}]
[]
[]
[]
[]
[]
[]
[]
[]
[]
[null,null,null,null,null,null,null,null,null,null,null,null,null,null,null,null,null,null,null,null,null,null,null,null,null,null,null,null,"（","ｷ　ﾘ　ﾄ　ﾘ",null,null,null,null,null,null,null,"）"]
[]
[]
[]
[null,null,null,null,null,null,null,null,null,null,null,null,null,null,"個　人　試　合　申　込　書",null,null,null,null,null,null,null,null,null,null,null,null,null,null,null,null,null,null,null,null,null,null,null,null,null,null,null,null,null,null,null,null,null,null,null,null,null,null,null,{"$f":"NOW()","v":"2018-10-12T05:15:02.540"}]
[]
[null,null,"※抽選番号",null,null,null,null,null,null,null,null,null,null,{"$f":"IF(入力シート!C147=\"\",\"\",入力シート!C147)","v":""},null,null,null,null,null,null,null,"kg級",null,null,null,{"$f":"入力シート!$O$43","v":"第４１回全国高等学校柔道選手権大会大阪府予選会（一次予選）"}]
[]
[null,null,"学校番号",null,null,null,"学　　　　校　　　　名",null,null,null,null,null,null,null,null,null,null,null,null,null,null,null,null,null,null,null,null,null,null,null,null,null,null,null,null,"監督名",null,null,null,null,null,null,null,null,null,null,null,null,null,null,"校長名"]
[null,null,{"$f":"入力シート!$C$9","v":0},null,null,null,{"$f":"入力シート!$G$9","v":{"$error":"#N/A"}},null,null,null,null,null,null,null,null,null,null,null,null,null,null,null,null,null,null,"高等学校",null,null,null,null,null,null,null,null,null,{"$f":"入力シート!$AJ$9","v":0},null,null,null,null,null,null,null,null,null,null,null,"印",null,null,{"$f":"入力シート!$AY$9","v":0},null,null,null,null,null,null,null,null,null,null,null,"印"]
[]
[]
[null,null,"ふりがな",null,null,null,null,null,{"$f":"IF(入力シート!I147=\"\",\"\",入力シート!I147)","v":""},null,null,null,null,null,null,null,null,null,null,null,null,null,null,null,{"$f":"IF(入力シート!Y147=\"\",\"\",入力シート!Y147)","v":""},null,null,null,null,null,null,null,null,null,null,null,null,null,"学年",null,null,"段位",null,null,"体重（kg）",null,null,null,null,"身長（cm）",null,null,null,null,"生年月日（西暦）"]
[null,null,"選手名",null,null,null,"（姓）",null,{"$f":"IF(入力シート!I148=\"\",\"\",入力シート!I148)","v":""},null,null,null,null,null,null,null,null,null,null,null,null,null,"（名）",null,{"$f":"IF(入力シート!Y148=\"\",\"\",入力シート!Y148)","v":""},null,null,null,null,null,null,null,null,null,null,null,null,null,{"$f":"IF(入力シート!AM147=\"\",\"\",入力シート!AM147)","v":""},null,null,{"$f":"IF(入力シート!AP147=\"\",\"\",入力シート!AP147)","v":""},null,null,{"$f":"IF(入力シート!AS147=\"\",\"\",入力シート!AS147)","v":""},null,null,null,null,{"$f":"IF(入力シート!AX147=\"\",\"\",入力シート!AX147)","v":""},null,null,null,null,{"$f":"IF(入力シート!BC147=\"\",\"\",入力シート!BC147)","v":""},null,null,null,"・",{"$f":"IF(入力シート!BH147=\"\",\"\",入力シート!BH147)","v":""},null,null,"・",{"$f":"IF(入力シート!BL147=\"\",\"\",入力シート!BL147)","v":""}]
[]
[]
[]
[]
[]
[]
[]
[]
[]
[]
[]
[]
[]
[null,null,null,null,null,null,null,null,null,null,null,null,null,null,"個　人　試　合　申　込　書",null,null,null,null,null,null,null,null,null,null,null,null,null,null,null,null,null,null,null,null,null,null,null,null,null,null,null,null,null,null,null,null,null,null,null,null,null,null,null,{"$f":"NOW()","v":"2018-10-12T05:15:02.540"}]
[]
[null,null,"※抽選番号",null,null,null,null,null,null,null,null,null,null,{"$f":"IF(入力シート!C151=\"\",\"\",入力シート!C151)","v":""},null,null,null,null,null,null,null,"kg級",null,null,null,{"$f":"入力シート!$O$43","v":"第４１回全国高等学校柔道選手権大会大阪府予選会（一次予選）"}]
[]
[null,null,"学校番号",null,null,null,"学　　　　校　　　　名",null,null,null,null,null,null,null,null,null,null,null,null,null,null,null,null,null,null,null,null,null,null,null,null,null,null,null,null,"監督名",null,null,null,null,null,null,null,null,null,null,null,null,null,null,"校長名"]
[null,null,{"$f":"入力シート!$C$9","v":0},null,null,null,{"$f":"入力シート!$G$9","v":{"$error":"#N/A"}},null,null,null,null,null,null,null,null,null,null,null,null,null,null,null,null,null,null,"高等学校",null,null,null,null,null,null,null,null,null,{"$f":"入力シート!$AJ$9","v":0},null,null,null,null,null,null,null,null,null,null,null,"印",null,null,{"$f":"入力シート!$AY$9","v":0},null,null,null,null,null,null,null,null,null,null,null,"印"]
[]
[]
[null,null,"ふりがな",null,null,null,null,null,{"$f":"IF(入力シート!I151=\"\",\"\",入力シート!I151)","v":""},null,null,null,null,null,null,null,null,null,null,null,null,null,null,null,{"$f":"IF(入力シート!Y151=\"\",\"\",入力シート!Y151)","v":""},null,null,null,null,null,null,null,null,null,null,null,null,null,"学年",null,null,"段位",null,null,"体重（kg）",null,null,null,null,"身長（cm）",null,null,null,null,"生年月日（西暦）"]
[null,null,"選手名",null,null,null,"（姓）",null,{"$f":"IF(入力シート!I152=\"\",\"\",入力シート!I152)","v":""},null,null,null,null,null,null,null,null,null,null,null,null,null,"（名）",null,{"$f":"IF(入力シート!Y152=\"\",\"\",入力シート!Y152)","v":""},null,null,null,null,null,null,null,null,null,null,null,null,null,{"$f":"IF(入力シート!AM151=\"\",\"\",入力シート!AM151)","v":""},null,null,{"$f":"IF(入力シート!AP151=\"\",\"\",入力シート!AP151)","v":""},null,null,{"$f":"IF(入力シート!AS151=\"\",\"\",入力シート!AS151)","v":""},null,null,null,null,{"$f":"IF(入力シート!AX151=\"\",\"\",入力シート!AX151)","v":""},null,null,null,null,{"$f":"IF(入力シート!BC151=\"\",\"\",入力シート!BC151)","v":""},null,null,null,"・",{"$f":"IF(入力シート!BH151=\"\",\"\",入力シート!BH151)","v":""},null,null,"・",{"$f":"IF(入力シート!BL151=\"\",\"\",入力シート!BL151)","v":""}]
[]
[]
[]
[]
[]
[]
[]
[]
[]
[null,null,null,null,null,null,null,null,null,null,null,null,null,null,null,null,null,null,null,null,null,null,null,null,null,null,null,null,"（","ｷ　ﾘ　ﾄ　ﾘ",null,null,null,null,null,null,null,"）"]
[]
[]
[]
[null,null,null,null,null,null,null,null,null,null,null,null,null,null,"個　人　試　合　申　込　書",null,null,null,null,null,null,null,null,null,null,null,null,null,null,null,null,null,null,null,null,null,null,null,null,null,null,null,null,null,null,null,null,null,null,null,null,null,null,null,{"$f":"NOW()","v":"2018-10-12T05:15:02.540"}]
[]
[null,null,"※抽選番号",null,null,null,null,null,null,null,null,null,null,{"$f":"IF(入力シート!C155=\"\",\"\",入力シート!C155)","v":""},null,null,null,null,null,null,null,"kg級",null,null,null,{"$f":"入力シート!$O$43","v":"第４１回全国高等学校柔道選手権大会大阪府予選会（一次予選）"}]
[]
[null,null,"学校番号",null,null,null,"学　　　　校　　　　名",null,null,null,null,null,null,null,null,null,null,null,null,null,null,null,null,null,null,null,null,null,null,null,null,null,null,null,null,"監督名",null,null,null,null,null,null,null,null,null,null,null,null,null,null,"校長名"]
[null,null,{"$f":"入力シート!$C$9","v":0},null,null,null,{"$f":"入力シート!$G$9","v":{"$error":"#N/A"}},null,null,null,null,null,null,null,null,null,null,null,null,null,null,null,null,null,null,"高等学校",null,null,null,null,null,null,null,null,null,{"$f":"入力シート!$AJ$9","v":0},null,null,null,null,null,null,null,null,null,null,null,"印",null,null,{"$f":"入力シート!$AY$9","v":0},null,null,null,null,null,null,null,null,null,null,null,"印"]
[]
[]
[null,null,"ふりがな",null,null,null,null,null,{"$f":"IF(入力シート!I155=\"\",\"\",入力シート!I155)","v":""},null,null,null,null,null,null,null,null,null,null,null,null,null,null,null,{"$f":"IF(入力シート!Y155=\"\",\"\",入力シート!Y155)","v":""},null,null,null,null,null,null,null,null,null,null,null,null,null,"学年",null,null,"段位",null,null,"体重（kg）",null,null,null,null,"身長（cm）",null,null,null,null,"生年月日（西暦）"]
[null,null,"選手名",null,null,null,"（姓）",null,{"$f":"IF(入力シート!I156=\"\",\"\",入力シート!I156)","v":""},null,null,null,null,null,null,null,null,null,null,null,null,null,"（名）",null,{"$f":"IF(入力シート!Y156=\"\",\"\",入力シート!Y156)","v":""},null,null,null,null,null,null,null,null,null,null,null,null,null,{"$f":"IF(入力シート!AM155=\"\",\"\",入力シート!AM155)","v":""},null,null,{"$f":"IF(入力シート!AP155=\"\",\"\",入力シート!AP155)","v":""},null,null,{"$f":"IF(入力シート!AS155=\"\",\"\",入力シート!AS155)","v":""},null,null,null,null,{"$f":"IF(入力シート!AX155=\"\",\"\",入力シート!AX155)","v":""},null,null,null,null,{"$f":"IF(入力シート!BC155=\"\",\"\",入力シート!BC155)","v":""},null,null,null,"・",{"$f":"IF(入力シート!BH155=\"\",\"\",入力シート!BH155)","v":""},null,null,"・",{"$f":"IF(入力シート!BL155=\"\",\"\",入力シート!BL155)","v":""}]
[]
[]
[]
[]
[]
[]
[]
[]
[]
[]
[]
[]
[]
[null,null,null,null,null,null,null,null,null,null,null,null,null,null,"個　人　試　合　申　込　書",null,null,null,null,null,null,null,null,null,null,null,null,null,null,null,null,null,null,null,null,null,null,null,null,null,null,null,null,null,null,null,null,null,null,null,null,null,null,null,{"$f":"NOW()","v":"2018-10-12T05:15:02.540"}]
[]
[null,null,"※抽選番号",null,null,null,null,null,null,null,null,null,null,{"$f":"IF(入力シート!C159=\"\",\"\",入力シート!C159)","v":""},null,null,null,null,null,null,null,"kg級",null,null,null,{"$f":"入力シート!$O$43","v":"第４１回全国高等学校柔道選手権大会大阪府予選会（一次予選）"}]
[]
[null,null,"学校番号",null,null,null,"学　　　　校　　　　名",null,null,null,null,null,null,null,null,null,null,null,null,null,null,null,null,null,null,null,null,null,null,null,null,null,null,null,null,"監督名",null,null,null,null,null,null,null,null,null,null,null,null,null,null,"校長名"]
[null,null,{"$f":"入力シート!$C$9","v":0},null,null,null,{"$f":"入力シート!$G$9","v":{"$error":"#N/A"}},null,null,null,null,null,null,null,null,null,null,null,null,null,null,null,null,null,null,"高等学校",null,null,null,null,null,null,null,null,null,{"$f":"入力シート!$AJ$9","v":0},null,null,null,null,null,null,null,null,null,null,null,"印",null,null,{"$f":"入力シート!$AY$9","v":0},null,null,null,null,null,null,null,null,null,null,null,"印"]
[]
[]
[null,null,"ふりがな",null,null,null,null,null,{"$f":"IF(入力シート!I159=\"\",\"\",入力シート!I159)","v":""},null,null,null,null,null,null,null,null,null,null,null,null,null,null,null,{"$f":"IF(入力シート!Y159=\"\",\"\",入力シート!Y159)","v":""},null,null,null,null,null,null,null,null,null,null,null,null,null,"学年",null,null,"段位",null,null,"体重（kg）",null,null,null,null,"身長（cm）",null,null,null,null,"生年月日（西暦）"]
[null,null,"選手名",null,null,null,"（姓）",null,{"$f":"IF(入力シート!I160=\"\",\"\",入力シート!I160)","v":""},null,null,null,null,null,null,null,null,null,null,null,null,null,"（名）",null,{"$f":"IF(入力シート!Y160=\"\",\"\",入力シート!Y160)","v":""},null,null,null,null,null,null,null,null,null,null,null,null,null,{"$f":"IF(入力シート!AM159=\"\",\"\",入力シート!AM159)","v":""},null,null,{"$f":"IF(入力シート!AP159=\"\",\"\",入力シート!AP159)","v":""},null,null,{"$f":"IF(入力シート!AS159=\"\",\"\",入力シート!AS159)","v":""},null,null,null,null,{"$f":"IF(入力シート!AX159=\"\",\"\",入力シート!AX159)","v":""},null,null,null,null,{"$f":"IF(入力シート!BC159=\"\",\"\",入力シート!BC159)","v":""},null,null,null,"・",{"$f":"IF(入力シート!BH159=\"\",\"\",入力シート!BH159)","v":""},null,null,"・",{"$f":"IF(入力シート!BL159=\"\",\"\",入力シート!BL159)","v":""}]
[]
[]
[]
[]
[]
[]
[]
[]
[]
[null,null,null,null,null,null,null,null,null,null,null,null,null,null,null,null,null,null,null,null,null,null,null,null,null,null,null,null,"（","ｷ　ﾘ　ﾄ　ﾘ",null,null,null,null,null,null,null,"）"]
[]
[]
[]
[null,null,null,null,null,null,null,null,null,null,null,null,null,null,"個　人　試　合　申　込　書",null,null,null,null,null,null,null,null,null,null,null,null,null,null,null,null,null,null,null,null,null,null,null,null,null,null,null,null,null,null,null,null,null,null,null,null,null,null,null,{"$f":"NOW()","v":"2018-10-12T05:15:02.540"}]
[]
[null,null,"※抽選番号",null,null,null,null,null,null,null,null,null,null,{"$f":"IF(入力シート!C163=\"\",\"\",入力シート!C163)","v":""},null,null,null,null,null,null,null,"kg級",null,null,null,{"$f":"入力シート!$O$43","v":"第４１回全国高等学校柔道選手権大会大阪府予選会（一次予選）"}]
[]
[null,null,"学校番号",null,null,null,"学　　　　校　　　　名",null,null,null,null,null,null,null,null,null,null,null,null,null,null,null,null,null,null,null,null,null,null,null,null,null,null,null,null,"監督名",null,null,null,null,null,null,null,null,null,null,null,null,null,null,"校長名"]
[null,null,{"$f":"入力シート!$C$9","v":0},null,null,null,{"$f":"入力シート!$G$9","v":{"$error":"#N/A"}},null,null,null,null,null,null,null,null,null,null,null,null,null,null,null,null,null,null,"高等学校",null,null,null,null,null,null,null,null,null,{"$f":"入力シート!$AJ$9","v":0},null,null,null,null,null,null,null,null,null,null,null,"印",null,null,{"$f":"入力シート!$AY$9","v":0},null,null,null,null,null,null,null,null,null,null,null,"印"]
[]
[]
[null,null,"ふりがな",null,null,null,null,null,{"$f":"IF(入力シート!I163=\"\",\"\",入力シート!I163)","v":""},null,null,null,null,null,null,null,null,null,null,null,null,null,null,null,{"$f":"IF(入力シート!Y163=\"\",\"\",入力シート!Y163)","v":""},null,null,null,null,null,null,null,null,null,null,null,null,null,"学年",null,null,"段位",null,null,"体重（kg）",null,null,null,null,"身長（cm）",null,null,null,null,"生年月日（西暦）"]
[null,null,"選手名",null,null,null,"（姓）",null,{"$f":"IF(入力シート!I164=\"\",\"\",入力シート!I164)","v":""},null,null,null,null,null,null,null,null,null,null,null,null,null,"（名）",null,{"$f":"IF(入力シート!Y164=\"\",\"\",入力シート!Y164)","v":""},null,null,null,null,null,null,null,null,null,null,null,null,null,{"$f":"IF(入力シート!AM163=\"\",\"\",入力シート!AM163)","v":""},null,null,{"$f":"IF(入力シート!AP163=\"\",\"\",入力シート!AP163)","v":""},null,null,{"$f":"IF(入力シート!AS163=\"\",\"\",入力シート!AS163)","v":""},null,null,null,null,{"$f":"IF(入力シート!AX163=\"\",\"\",入力シート!AX163)","v":""},null,null,null,null,{"$f":"IF(入力シート!BC163=\"\",\"\",入力シート!BC163)","v":""},null,null,null,"・",{"$f":"IF(入力シート!BH163=\"\",\"\",入力シート!BH163)","v":""},null,null,"・",{"$f":"IF(入力シート!BL163=\"\",\"\",入力シート!BL163)","v":""}]
[]
[]
[]
[]
[]
[]
[]
[]
[]
[]
[]
[]
[]
[null,null,null,null,null,null,null,null,null,null,null,null,null,null,"個　人　試　合　申　込　書",null,null,null,null,null,null,null,null,null,null,null,null,null,null,null,null,null,null,null,null,null,null,null,null,null,null,null,null,null,null,null,null,null,null,null,null,null,null,null,{"$f":"NOW()","v":"2018-10-12T05:15:02.540"}]
[]
[null,null,"※抽選番号",null,null,null,null,null,null,null,null,null,null,{"$f":"IF(入力シート!C167=\"\",\"\",入力シート!C167)","v":""},null,null,null,null,null,null,null,"kg級",null,null,null,{"$f":"入力シート!$O$43","v":"第４１回全国高等学校柔道選手権大会大阪府予選会（一次予選）"}]
[]
[null,null,"学校番号",null,null,null,"学　　　　校　　　　名",null,null,null,null,null,null,null,null,null,null,null,null,null,null,null,null,null,null,null,null,null,null,null,null,null,null,null,null,"監督名",null,null,null,null,null,null,null,null,null,null,null,null,null,null,"校長名"]
[null,null,{"$f":"入力シート!$C$9","v":0},null,null,null,{"$f":"入力シート!$G$9","v":{"$error":"#N/A"}},null,null,null,null,null,null,null,null,null,null,null,null,null,null,null,null,null,null,"高等学校",null,null,null,null,null,null,null,null,null,{"$f":"入力シート!$AJ$9","v":0},null,null,null,null,null,null,null,null,null,null,null,"印",null,null,{"$f":"入力シート!$AY$9","v":0},null,null,null,null,null,null,null,null,null,null,null,"印"]
[]
[]
[null,null,"ふりがな",null,null,null,null,null,{"$f":"IF(入力シート!I167=\"\",\"\",入力シート!I167)","v":""},null,null,null,null,null,null,null,null,null,null,null,null,null,null,null,{"$f":"IF(入力シート!Y167=\"\",\"\",入力シート!Y167)","v":""},null,null,null,null,null,null,null,null,null,null,null,null,null,"学年",null,null,"段位",null,null,"体重（kg）",null,null,null,null,"身長（cm）",null,null,null,null,"生年月日（西暦）"]
[null,null,"選手名",null,null,null,"（姓）",null,{"$f":"IF(入力シート!I168=\"\",\"\",入力シート!I168)","v":""},null,null,null,null,null,null,null,null,null,null,null,null,null,"（名）",null,{"$f":"IF(入力シート!Y168=\"\",\"\",入力シート!Y168)","v":""},null,null,null,null,null,null,null,null,null,null,null,null,null,{"$f":"IF(入力シート!AM167=\"\",\"\",入力シート!AM167)","v":""},null,null,{"$f":"IF(入力シート!AP167=\"\",\"\",入力シート!AP167)","v":""},null,null,{"$f":"IF(入力シート!AS167=\"\",\"\",入力シート!AS167)","v":""},null,null,null,null,{"$f":"IF(入力シート!AX167=\"\",\"\",入力シート!AX167)","v":""},null,null,null,null,{"$f":"IF(入力シート!BC167=\"\",\"\",入力シート!BC167)","v":""},null,null,null,"・",{"$f":"IF(入力シート!BH167=\"\",\"\",入力シート!BH167)","v":""},null,null,"・",{"$f":"IF(入力シート!BL167=\"\",\"\",入力シート!BL167)","v":""}]
[]
[]
[]
[]
[]
[]
[]
[]
[]
[null,null,null,null,null,null,null,null,null,null,null,null,null,null,null,null,null,null,null,null,null,null,null,null,null,null,null,null,"（","ｷ　ﾘ　ﾄ　ﾘ",null,null,null,null,null,null,null,"）"]
[]
[]
[]
[null,null,null,null,null,null,null,null,null,null,null,null,null,null,"個　人　試　合　申　込　書",null,null,null,null,null,null,null,null,null,null,null,null,null,null,null,null,null,null,null,null,null,null,null,null,null,null,null,null,null,null,null,null,null,null,null,null,null,null,null,{"$f":"NOW()","v":"2018-10-12T05:15:02.540"}]
[]
[null,null,"※抽選番号",null,null,null,null,null,null,null,null,null,null,{"$f":"IF(入力シート!C171=\"\",\"\",入力シート!C171)","v":""},null,null,null,null,null,null,null,"kg級",null,null,null,{"$f":"入力シート!$O$43","v":"第４１回全国高等学校柔道選手権大会大阪府予選会（一次予選）"}]
[]
[null,null,"学校番号",null,null,null,"学　　　　校　　　　名",null,null,null,null,null,null,null,null,null,null,null,null,null,null,null,null,null,null,null,null,null,null,null,null,null,null,null,null,"監督名",null,null,null,null,null,null,null,null,null,null,null,null,null,null,"校長名"]
[null,null,{"$f":"入力シート!$C$9","v":0},null,null,null,{"$f":"入力シート!$G$9","v":{"$error":"#N/A"}},null,null,null,null,null,null,null,null,null,null,null,null,null,null,null,null,null,null,"高等学校",null,null,null,null,null,null,null,null,null,{"$f":"入力シート!$AJ$9","v":0},null,null,null,null,null,null,null,null,null,null,null,"印",null,null,{"$f":"入力シート!$AY$9","v":0},null,null,null,null,null,null,null,null,null,null,null,"印"]
[]
[]
[null,null,"ふりがな",null,null,null,null,null,{"$f":"IF(入力シート!I171=\"\",\"\",入力シート!I171)","v":""},null,null,null,null,null,null,null,null,null,null,null,null,null,null,null,{"$f":"IF(入力シート!Y171=\"\",\"\",入力シート!Y171)","v":""},null,null,null,null,null,null,null,null,null,null,null,null,null,"学年",null,null,"段位",null,null,"体重（kg）",null,null,null,null,"身長（cm）",null,null,null,null,"生年月日（西暦）"]
[null,null,"選手名",null,null,null,"（姓）",null,{"$f":"IF(入力シート!I172=\"\",\"\",入力シート!I172)","v":""},null,null,null,null,null,null,null,null,null,null,null,null,null,"（名）",null,{"$f":"IF(入力シート!Y172=\"\",\"\",入力シート!Y172)","v":""},null,null,null,null,null,null,null,null,null,null,null,null,null,{"$f":"IF(入力シート!AM171=\"\",\"\",入力シート!AM171)","v":""},null,null,{"$f":"IF(入力シート!AP171=\"\",\"\",入力シート!AP171)","v":""},null,null,{"$f":"IF(入力シート!AS171=\"\",\"\",入力シート!AS171)","v":""},null,null,null,null,{"$f":"IF(入力シート!AX171=\"\",\"\",入力シート!AX171)","v":""},null,null,null,null,{"$f":"IF(入力シート!BC171=\"\",\"\",入力シート!BC171)","v":""},null,null,null,"・",{"$f":"IF(入力シート!BH171=\"\",\"\",入力シート!BH171)","v":""},null,null,"・",{"$f":"IF(入力シート!BL171=\"\",\"\",入力シート!BL171)","v":""}]
[]
[]
[]
[]
[]
[]
[]
[]
[]
[]
[]
[]
[]
[null,null,null,null,null,null,null,null,null,null,null,null,null,null,"個　人　試　合　申　込　書",null,null,null,null,null,null,null,null,null,null,null,null,null,null,null,null,null,null,null,null,null,null,null,null,null,null,null,null,null,null,null,null,null,null,null,null,null,null,null,{"$f":"NOW()","v":"2018-10-12T05:15:02.540"}]
[]
[null,null,"※抽選番号",null,null,null,null,null,null,null,null,null,null,{"$f":"IF(入力シート!C175=\"\",\"\",入力シート!C175)","v":""},null,null,null,null,null,null,null,"kg級",null,null,null,{"$f":"入力シート!$O$43","v":"第４１回全国高等学校柔道選手権大会大阪府予選会（一次予選）"}]
[]
[null,null,"学校番号",null,null,null,"学　　　　校　　　　名",null,null,null,null,null,null,null,null,null,null,null,null,null,null,null,null,null,null,null,null,null,null,null,null,null,null,null,null,"監督名",null,null,null,null,null,null,null,null,null,null,null,null,null,null,"校長名"]
[null,null,{"$f":"入力シート!$C$9","v":0},null,null,null,{"$f":"入力シート!$G$9","v":{"$error":"#N/A"}},null,null,null,null,null,null,null,null,null,null,null,null,null,null,null,null,null,null,"高等学校",null,null,null,null,null,null,null,null,null,{"$f":"入力シート!$AJ$9","v":0},null,null,null,null,null,null,null,null,null,null,null,"印",null,null,{"$f":"入力シート!$AY$9","v":0},null,null,null,null,null,null,null,null,null,null,null,"印"]
[]
[]
[null,null,"ふりがな",null,null,null,null,null,{"$f":"IF(入力シート!I175=\"\",\"\",入力シート!I175)","v":""},null,null,null,null,null,null,null,null,null,null,null,null,null,null,null,{"$f":"IF(入力シート!Y175=\"\",\"\",入力シート!Y175)","v":""},null,null,null,null,null,null,null,null,null,null,null,null,null,"学年",null,null,"段位",null,null,"体重（kg）",null,null,null,null,"身長（cm）",null,null,null,null,"生年月日（西暦）"]
[null,null,"選手名",null,null,null,"（姓）",null,{"$f":"IF(入力シート!I176=\"\",\"\",入力シート!I176)","v":""},null,null,null,null,null,null,null,null,null,null,null,null,null,"（名）",null,{"$f":"IF(入力シート!Y176=\"\",\"\",入力シート!Y176)","v":""},null,null,null,null,null,null,null,null,null,null,null,null,null,{"$f":"IF(入力シート!AM175=\"\",\"\",入力シート!AM175)","v":""},null,null,{"$f":"IF(入力シート!AP175=\"\",\"\",入力シート!AP175)","v":""},null,null,{"$f":"IF(入力シート!AS175=\"\",\"\",入力シート!AS175)","v":""},null,null,null,null,{"$f":"IF(入力シート!AX175=\"\",\"\",入力シート!AX175)","v":""},null,null,null,null,{"$f":"IF(入力シート!BC175=\"\",\"\",入力シート!BC175)","v":""},null,null,null,"・",{"$f":"IF(入力シート!BH175=\"\",\"\",入力シート!BH175)","v":""},null,null,"・",{"$f":"IF(入力シート!BL175=\"\",\"\",入力シート!BL175)","v":""}]
[]
[]
[]
[]
[]
[]
[]
[]
[]
[null,null,null,null,null,null,null,null,null,null,null,null,null,null,null,null,null,null,null,null,null,null,null,null,null,null,null,null,"（","ｷ　ﾘ　ﾄ　ﾘ",null,null,null,null,null,null,null,"）"]
[]
[]
[]
[null,null,null,null,null,null,null,null,null,null,null,null,null,null,"個　人　試　合　申　込　書",null,null,null,null,null,null,null,null,null,null,null,null,null,null,null,null,null,null,null,null,null,null,null,null,null,null,null,null,null,null,null,null,null,null,null,null,null,null,null,{"$f":"NOW()","v":"2018-10-12T05:15:02.540"}]
[]
[null,null,"※抽選番号",null,null,null,null,null,null,null,null,null,null,{"$f":"IF(入力シート!C179=\"\",\"\",入力シート!C179)","v":""},null,null,null,null,null,null,null,"kg級",null,null,null,{"$f":"入力シート!$O$43","v":"第４１回全国高等学校柔道選手権大会大阪府予選会（一次予選）"}]
[]
[null,null,"学校番号",null,null,null,"学　　　　校　　　　名",null,null,null,null,null,null,null,null,null,null,null,null,null,null,null,null,null,null,null,null,null,null,null,null,null,null,null,null,"監督名",null,null,null,null,null,null,null,null,null,null,null,null,null,null,"校長名"]
[null,null,{"$f":"入力シート!$C$9","v":0},null,null,null,{"$f":"入力シート!$G$9","v":{"$error":"#N/A"}},null,null,null,null,null,null,null,null,null,null,null,null,null,null,null,null,null,null,"高等学校",null,null,null,null,null,null,null,null,null,{"$f":"入力シート!$AJ$9","v":0},null,null,null,null,null,null,null,null,null,null,null,"印",null,null,{"$f":"入力シート!$AY$9","v":0},null,null,null,null,null,null,null,null,null,null,null,"印"]
[]
[]
[null,null,"ふりがな",null,null,null,null,null,{"$f":"IF(入力シート!I179=\"\",\"\",入力シート!I179)","v":""},null,null,null,null,null,null,null,null,null,null,null,null,null,null,null,{"$f":"IF(入力シート!Y179=\"\",\"\",入力シート!Y179)","v":""},null,null,null,null,null,null,null,null,null,null,null,null,null,"学年",null,null,"段位",null,null,"体重（kg）",null,null,null,null,"身長（cm）",null,null,null,null,"生年月日（西暦）"]
[null,null,"選手名",null,null,null,"（姓）",null,{"$f":"IF(入力シート!I180=\"\",\"\",入力シート!I180)","v":""},null,null,null,null,null,null,null,null,null,null,null,null,null,"（名）",null,{"$f":"IF(入力シート!Y180=\"\",\"\",入力シート!Y180)","v":""},null,null,null,null,null,null,null,null,null,null,null,null,null,{"$f":"IF(入力シート!AM179=\"\",\"\",入力シート!AM179)","v":""},null,null,{"$f":"IF(入力シート!AP179=\"\",\"\",入力シート!AP179)","v":""},null,null,{"$f":"IF(入力シート!AS179=\"\",\"\",入力シート!AS179)","v":""},null,null,null,null,{"$f":"IF(入力シート!AX179=\"\",\"\",入力シート!AX179)","v":""},null,null,null,null,{"$f":"IF(入力シート!BC179=\"\",\"\",入力シート!BC179)","v":""},null,null,null,"・",{"$f":"IF(入力シート!BH179=\"\",\"\",入力シート!BH179)","v":""},null,null,"・",{"$f":"IF(入力シート!BL179=\"\",\"\",入力シート!BL179)","v":""}]
[]
[]
[]
[]
[]
[]
[]
[]
[]
[]
[]
[]
[]
[null,null,null,null,null,null,null,null,null,null,null,null,null,null,"個　人　試　合　申　込　書",null,null,null,null,null,null,null,null,null,null,null,null,null,null,null,null,null,null,null,null,null,null,null,null,null,null,null,null,null,null,null,null,null,null,null,null,null,null,null,{"$f":"NOW()","v":"2018-10-12T05:15:02.540"}]
[]
[null,null,"※抽選番号",null,null,null,null,null,null,null,null,null,null,{"$f":"IF(入力シート!C183=\"\",\"\",入力シート!C183)","v":""},null,null,null,null,null,null,null,"kg級",null,null,null,{"$f":"入力シート!$O$43","v":"第４１回全国高等学校柔道選手権大会大阪府予選会（一次予選）"}]
[]
[null,null,"学校番号",null,null,null,"学　　　　校　　　　名",null,null,null,null,null,null,null,null,null,null,null,null,null,null,null,null,null,null,null,null,null,null,null,null,null,null,null,null,"監督名",null,null,null,null,null,null,null,null,null,null,null,null,null,null,"校長名"]
[null,null,{"$f":"入力シート!$C$9","v":0},null,null,null,{"$f":"入力シート!$G$9","v":{"$error":"#N/A"}},null,null,null,null,null,null,null,null,null,null,null,null,null,null,null,null,null,null,"高等学校",null,null,null,null,null,null,null,null,null,{"$f":"入力シート!$AJ$9","v":0},null,null,null,null,null,null,null,null,null,null,null,"印",null,null,{"$f":"入力シート!$AY$9","v":0},null,null,null,null,null,null,null,null,null,null,null,"印"]
[]
[]
[null,null,"ふりがな",null,null,null,null,null,{"$f":"IF(入力シート!I183=\"\",\"\",入力シート!I183)","v":""},null,null,null,null,null,null,null,null,null,null,null,null,null,null,null,{"$f":"IF(入力シート!Y183=\"\",\"\",入力シート!Y183)","v":""},null,null,null,null,null,null,null,null,null,null,null,null,null,"学年",null,null,"段位",null,null,"体重（kg）",null,null,null,null,"身長（cm）",null,null,null,null,"生年月日（西暦）"]
[null,null,"選手名",null,null,null,"（姓）",null,{"$f":"IF(入力シート!I184=\"\",\"\",入力シート!I184)","v":""},null,null,null,null,null,null,null,null,null,null,null,null,null,"（名）",null,{"$f":"IF(入力シート!Y184=\"\",\"\",入力シート!Y184)","v":""},null,null,null,null,null,null,null,null,null,null,null,null,null,{"$f":"IF(入力シート!AM183=\"\",\"\",入力シート!AM183)","v":""},null,null,{"$f":"IF(入力シート!AP183=\"\",\"\",入力シート!AP183)","v":""},null,null,{"$f":"IF(入力シート!AS183=\"\",\"\",入力シート!AS183)","v":""},null,null,null,null,{"$f":"IF(入力シート!AX183=\"\",\"\",入力シート!AX183)","v":""},null,null,null,null,{"$f":"IF(入力シート!BC183=\"\",\"\",入力シート!BC183)","v":""},null,null,null,"・",{"$f":"IF(入力シート!BH183=\"\",\"\",入力シート!BH183)","v":""},null,null,"・",{"$f":"IF(入力シート!BL183=\"\",\"\",入力シート!BL183)","v":""}]
[]
[]
[]
[]
[]
[]
[]
[]
[]
[null,null,null,null,null,null,null,null,null,null,null,null,null,null,null,null,null,null,null,null,null,null,null,null,null,null,null,null,"（","ｷ　ﾘ　ﾄ　ﾘ",null,null,null,null,null,null,null,"）"]
[]
[]
[]
[null,null,null,null,null,null,null,null,null,null,null,null,null,null,"個　人　試　合　申　込　書",null,null,null,null,null,null,null,null,null,null,null,null,null,null,null,null,null,null,null,null,null,null,null,null,null,null,null,null,null,null,null,null,null,null,null,null,null,null,null,{"$f":"NOW()","v":"2018-10-12T05:15:02.540"}]
[]
[null,null,"※抽選番号",null,null,null,null,null,null,null,null,null,null,{"$f":"IF(入力シート!C187=\"\",\"\",入力シート!C187)","v":""},null,null,null,null,null,null,null,"kg級",null,null,null,{"$f":"入力シート!$O$43","v":"第４１回全国高等学校柔道選手権大会大阪府予選会（一次予選）"}]
[]
[null,null,"学校番号",null,null,null,"学　　　　校　　　　名",null,null,null,null,null,null,null,null,null,null,null,null,null,null,null,null,null,null,null,null,null,null,null,null,null,null,null,null,"監督名",null,null,null,null,null,null,null,null,null,null,null,null,null,null,"校長名"]
[null,null,{"$f":"入力シート!$C$9","v":0},null,null,null,{"$f":"入力シート!$G$9","v":{"$error":"#N/A"}},null,null,null,null,null,null,null,null,null,null,null,null,null,null,null,null,null,null,"高等学校",null,null,null,null,null,null,null,null,null,{"$f":"入力シート!$AJ$9","v":0},null,null,null,null,null,null,null,null,null,null,null,"印",null,null,{"$f":"入力シート!$AY$9","v":0},null,null,null,null,null,null,null,null,null,null,null,"印"]
[]
[]
[null,null,"ふりがな",null,null,null,null,null,{"$f":"IF(入力シート!I187=\"\",\"\",入力シート!I187)","v":""},null,null,null,null,null,null,null,null,null,null,null,null,null,null,null,{"$f":"IF(入力シート!Y187=\"\",\"\",入力シート!Y187)","v":""},null,null,null,null,null,null,null,null,null,null,null,null,null,"学年",null,null,"段位",null,null,"体重（kg）",null,null,null,null,"身長（cm）",null,null,null,null,"生年月日（西暦）"]
[null,null,"選手名",null,null,null,"（姓）",null,{"$f":"IF(入力シート!I188=\"\",\"\",入力シート!I188)","v":""},null,null,null,null,null,null,null,null,null,null,null,null,null,"（名）",null,{"$f":"IF(入力シート!Y188=\"\",\"\",入力シート!Y188)","v":""},null,null,null,null,null,null,null,null,null,null,null,null,null,{"$f":"IF(入力シート!AM187=\"\",\"\",入力シート!AM187)","v":""},null,null,{"$f":"IF(入力シート!AP187=\"\",\"\",入力シート!AP187)","v":""},null,null,{"$f":"IF(入力シート!AS187=\"\",\"\",入力シート!AS187)","v":""},null,null,null,null,{"$f":"IF(入力シート!AX187=\"\",\"\",入力シート!AX187)","v":""},null,null,null,null,{"$f":"IF(入力シート!BC187=\"\",\"\",入力シート!BC187)","v":""},null,null,null,"・",{"$f":"IF(入力シート!BH187=\"\",\"\",入力シート!BH187)","v":""},null,null,"・",{"$f":"IF(入力シート!BL187=\"\",\"\",入力シート!BL187)","v":""}]

{"sheet":"プログラム女子","index":3,"n_rows":7,"n_cols":9,"rows_kept":7,"cut":false,"hidden":false,"merged":[[1,2,1,4],[1,5,1,8],[6,2,6,5],[4,2,4,5],[2,2,2,5],[3,2,3,5],[5,2,5,5]]}
[]
[null,{"$f":"入力シート!G6","v":0},{"$f":"入力シート!L2","v":{"$error":"#N/A"}},null,null,{"$f":"入力シート!AJ9","v":0}]
[null,"先",{"$f":"IF(入力シート!I14=\"\",\"\",入力シート!I14&\"　\"&入力シート!Y14)","v":""},null,null,null,{"$f":"IF(入力シート!AM13=\"\",\"\",入力シート!AM13)","v":""},{"$f":"IF(入力シート!AP13=\"\",\"\",入力シート!AP13)","v":""},{"$f":"IF(入力シート!AS13=\"\",\"\",入力シート!AS13)","v":""}]
[null,"中",{"$f":"IF(入力シート!I18=\"\",\"\",入力シート!I18&\"　\"&入力シート!Y18)","v":""},null,null,null,{"$f":"IF(入力シート!AM17=\"\",\"\",入力シート!AM17)","v":""},{"$f":"IF(入力シート!AP17=\"\",\"\",入力シート!AP17)","v":""},{"$f":"IF(入力シート!AS17=\"\",\"\",入力シート!AS17)","v":""}]
[null,"大",{"$f":"IF(入力シート!I22=\"\",\"\",入力シート!I22&\"　\"&入力シート!Y22)","v":""},null,null,null,{"$f":"IF(入力シート!AM21=\"\",\"\",入力シート!AM21)","v":""},{"$f":"IF(入力シート!AP21=\"\",\"\",入力シート!AP21)","v":""},{"$f":"IF(入力シート!AS21=\"\",\"\",入力シート!AS21)","v":""}]
[null,"補",{"$f":"IF(入力シート!I26=\"\",\"\",入力シート!I26&\"　\"&入力シート!Y26)","v":""},null,null,null,{"$f":"IF(入力シート!AM25=\"\",\"\",入力シート!AM25)","v":""},{"$f":"IF(入力シート!AP25=\"\",\"\",入力シート!AP25)","v":""},{"$f":"IF(入力シート!AS25=\"\",\"\",入力シート!AS25)","v":""}]
[null,"補",{"$f":"IF(入力シート!I30=\"\",\"\",入力シート!I30&\"　\"&入力シート!Y30)","v":""},null,null,null,{"$f":"IF(入力シート!AM29=\"\",\"\",入力シート!AM29)","v":""},{"$f":"IF(入力シート!AP29=\"\",\"\",入力シート!AP29)","v":""},{"$f":"IF(入力シート!AS29=\"\",\"\",入力シート!AS29)","v":""}]

{"sheet":"入力規則","index":4,"n_rows":198,"n_cols":19,"rows_kept":198,"cut":false,"hidden":true,"merged":[]}
["順序","学年","段位","西暦","月","日","個人戦年度","ランク","男子階級","入賞","女子階級","登録番号","校名",null,null,null,null,"大会名（女子）","大会名（男子）"]
["先鋒",1,"無",1996,1,1,25,"A",60,1,48,331,"桜宮",null,null,null,null,"全国大会大阪府予選会女子団体戦","全国大会大阪府予選会男子団体戦"]
["次鋒",2,"初",1997,2,2,26,"B",66,2,52,332,"汎愛",null,null,null,null,"全国大会大阪府予選会女子個人戦","全国大会大阪府予選会男子個人戦"]
["中堅",3,"弐",1998,3,3,27,"C",73,3,57,333,"東",null,null,null,null,"大阪高等学校女子体重別選手権大会","大阪高等学校総合体育大会柔道の部（男子団体戦）"]
["副将",4,"参",1999,4,4,28,"D",81,null,63,334,"南",null,null,null,null,"全国高等学校柔道選手権大会大阪府予選会","大阪高等学校総合体育大会柔道の部（男子個人戦）"]
["大将",null,null,2000,5,5,29,null,90,null,70,335,"生野工業",null,null,null,null,"全国高等学校柔道選手権大会女子個人試合大阪府一次予選会","全国高等学校柔道選手権大会大阪府予選会"]
["補欠1",null,null,2001,6,6,30,null,100,null,78,336,"都島工業",null,null,null,null,"全国高等学校柔道選手権大会男女個人試合大阪府予選会","全国高等学校柔道選手権大会男女個人試合大阪府予選会"]
["補欠2",null,null,2002,7,7,31,null,"+100",null,"+78",337,"東商"]
["補欠3",null,null,2003,8,8,32,null,55,null,44,338,"常翔学園"]
[null,null,null,2004,9,9,33,null,null,null,null,339,"大阪産業大学附属"]
[null,null,null,2005,10,10,34,null,null,null,null,340,"追手門大手前"]
[null,null,null,2006,11,11,35,null,null,null,null,341,"常翔啓光"]
[null,null,null,2007,12,12,36,null,null,null,null,342,"大阪偕星学園"]
[null,null,null,2008,null,13,37,null,null,null,null,343,"太成学院大学"]
[null,null,null,2009,null,14,38,null,null,null,null,344,"電通大"]
[null,null,null,2010,null,15,39,null,null,null,null,345,"同志社香里"]
[null,null,null,2011,null,16,40,null,null,null,null,346,"開明"]
[null,null,null,2012,null,17,41,null,null,null,null,347,"東海大学付属仰星"]
[null,null,null,2013,null,18,42,null,null,null,null,348,"泉尾"]
[null,null,null,2014,null,19,43,null,null,null,null,349,"和泉"]
[null,null,null,2015,null,20,44,null,null,null,null,350,"泉大津"]
[null,null,null,2016,null,21,45,null,null,null,null,351,"泉鳥取"]
[null,null,null,2017,null,22,46,null,null,null,null,352,"市岡"]
[null,null,null,2018,null,23,47,null,null,null,null,353,"今宮"]
[null,null,null,2019,null,24,48,null,null,null,null,354,"鳳"]
[null,null,null,2020,null,25,49,null,null,null,null,355,"貝塚"]
[null,null,null,null,null,26,50,null,null,null,null,356,"貝塚南"]
[null,null,null,null,null,27,51,null,null,null,null,357,"金岡"]
[null,null,null,null,null,28,52,null,null,null,null,358,"岸和田"]
[null,null,null,null,null,29,53,null,null,null,null,359,"港南造形"]
[null,null,null,null,null,30,54,null,null,null,null,360,"久米田"]
[null,null,null,null,null,31,55,null,null,null,null,361,"堺上"]
[null,null,null,null,null,null,null,null,null,null,null,362,"堺西"]
[null,null,null,null,null,null,null,null,null,null,null,363,"堺東"]
[null,null,null,null,null,null,null,null,null,null,null,364,"佐野"]
[null,null,null,null,null,null,null,null,null,null,null,365,"狭山"]
[null,null,null,null,null,null,null,null,null,null,null,366,"信太"]
[null,null,null,null,null,null,null,null,null,null,null,367,"咲洲"]
[null,null,null,null,null,null,null,null,null,null,null,368,"りんくう翔南"]
[null,null,null,null,null,null,null,null,null,null,null,369,"泉北"]
[null,null,null,null,null,null,null,null,null,null,null,370,"泉陽"]
[null,null,null,null,null,null,null,null,null,null,null,371,"大正"]
[null,null,null,null,null,null,null,null,null,null,null,372,"高石"]
[null,null,null,null,null,null,null,null,null,null,null,373,"登美丘"]
[null,null,null,null,null,null,null,null,null,null,null,374,"西成"]
[null,null,null,null,null,null,null,null,null,null,null,376,"伯太"]
[null,null,null,null,null,null,null,null,null,null,null,377,"阪南大学"]
[null,null,null,null,null,null,null,null,null,null,null,378,"東百舌鳥"]
[null,null,null,null,null,null,null,null,null,null,null,379,"福泉"]
[null,null,null,null,null,null,null,null,null,null,null,380,"成美"]
[null,null,null,null,null,null,null,null,null,null,null,381,"三国丘"]
[null,null,null,null,null,null,null,null,null,null,null,382,"岬"]
[null,null,null,null,null,null,null,null,null,null,null,383,"港"]
[null,null,null,null,null,null,null,null,null,null,null,384,"大和川"]
[null,null,null,null,null,null,null,null,null,null,null,385,"横山"]
[null,null,null,null,null,null,null,null,null,null,null,386,"和泉総合"]
[null,null,null,null,null,null,null,null,null,null,null,387,"今宮工科"]
[null,null,null,null,null,null,null,null,null,null,null,388,"堺工科"]
[null,null,null,null,null,null,null,null,null,null,null,389,"佐野工科"]
[null,null,null,null,null,null,null,null,null,null,null,390,"西野田工科"]
[null,null,null,null,null,null,null,null,null,null,null,391,"日根野"]
[null,null,null,null,null,null,null,null,null,null,null,392,"扇町"]
[null,null,null,null,null,null,null,null,null,null,null,393,"堺市商"]
[null,null,null,null,null,null,null,null,null,null,null,394,"泉尾工業"]
[null,null,null,null,null,null,null,null,null,null,null,395,"岸和田市立産業"]
[null,null,null,null,null,null,null,null,null,null,null,396,"咲くやこの花"]
[null,null,null,null,null,null,null,null,null,null,null,397,"堺市立堺"]
[null,null,null,null,null,null,null,null,null,null,null,398,"大阪商業大学堺　"]
[null,null,null,null,null,null,null,null,null,null,null,399,"大阪学芸"]
[null,null,null,null,null,null,null,null,null,null,null,400,"清教学園"]
[null,null,null,null,null,null,null,null,null,null,null,401,"浪速"]
[null,null,null,null,null,null,null,null,null,null,null,402,"初芝立命館"]
[null,null,null,null,null,null,null,null,null,null,null,404,"帝塚山泉ヶ丘"]
[null,null,null,null,null,null,null,null,null,null,null,405,"金剛学園"]
[null,null,null,null,null,null,null,null,null,null,null,406,"大体大浪商"]
[null,null,null,null,null,null,null,null,null,null,null,407,"教育大天王寺"]
[null,null,null,null,null,null,null,null,null,null,null,408,"教育大附平野"]
[null,null,null,null,null,null,null,null,null,null,null,409,"阿倍野"]
[null,null,null,null,null,null,null,null,null,null,null,410,"生野"]
[null,null,null,null,null,null,null,null,null,null,null,411,"池島"]
[null,null,null,null,null,null,null,null,null,null,null,412,"大塚"]
[null,null,null,null,null,null,null,null,null,null,null,413,"柏原東"]
[null,null,null,null,null,null,null,null,null,null,null,414,"河南"]
[null,null,null,null,null,null,null,null,null,null,null,416,"金剛"]
[null,null,null,null,null,null,null,null,null,null,null,417,"住吉"]
[null,null,null,null,null,null,null,null,null,null,null,418,"清友"]
[null,null,null,null,null,null,null,null,null,null,null,419,"天王寺"]
[null,null,null,null,null,null,null,null,null,null,null,420,"富田林"]
[null,null,null,null,null,null,null,null,null,null,null,421,"長野"]
[null,null,null,null,null,null,null,null,null,null,null,422,"長野北"]
[null,null,null,null,null,null,null,null,null,null,null,423,"長吉"]
[null,null,null,null,null,null,null,null,null,null,null,424,"西浦"]
[null,null,null,null,null,null,null,null,null,null,null,425,"花園"]
[null,null,null,null,null,null,null,null,null,null,null,426,"懐風館"]
[null,null,null,null,null,null,null,null,null,null,null,427,"東住吉"]
[null,null,null,null,null,null,null,null,null,null,null,428,"平野"]
[null,null,null,null,null,null,null,null,null,null,null,429,"藤井寺"]
[null,null,null,null,null,null,null,null,null,null,null,430,"布施"]
[null,null,null,null,null,null,null,null,null,null,null,431,"布施北"]
[null,null,null,null,null,null,null,null,null,null,null,432,"松原"]
[null,null,null,null,null,null,null,null,null,null,null,433,"美原"]
[null,null,null,null,null,null,null,null,null,null,null,434,"八尾"]
[null,null,null,null,null,null,null,null,null,null,null,435,"八尾北"]
[null,null,null,null,null,null,null,null,null,null,null,436,"八尾翠翔"]
[null,null,null,null,null,null,null,null,null,null,null,438,"山本"]
[null,null,null,null,null,null,null,null,null,null,null,439,"牧岡樟風"]
[null,null,null,null,null,null,null,null,null,null,null,440,"農芸"]
[null,null,null,null,null,null,null,null,null,null,null,441,"東住吉総"]
[null,null,null,null,null,null,null,null,null,null,null,442,"藤井寺工科"]
[null,null,null,null,null,null,null,null,null,null,null,443,"布施工科"]
[null,null,null,null,null,null,null,null,null,null,null,445,"日新"]
[null,null,null,null,null,null,null,null,null,null,null,446,"上宮"]
[null,null,null,null,null,null,null,null,null,null,null,447,"金光八尾"]
[null,null,null,null,null,null,null,null,null,null,null,448,"阪南大学"]
[null,null,null,null,null,null,null,null,null,null,null,449,"大阪商業大学"]
[null,null,null,null,null,null,null,null,null,null,null,450,"東大阪大学柏原"]
[null,null,null,null,null,null,null,null,null,null,null,451,"近畿大学附属"]
[null,null,null,null,null,null,null,null,null,null,null,452,"興國"]
[null,null,null,null,null,null,null,null,null,null,null,453,"四天王寺羽曳丘"]
[null,null,null,null,null,null,null,null,null,null,null,454,"大阪星光学園"]
[null,null,null,null,null,null,null,null,null,null,null,455,"清風"]
[null,null,null,null,null,null,null,null,null,null,null,456,"ＰＬ学園"]
[null,null,null,null,null,null,null,null,null,null,null,457,"桃山学院"]
[null,null,null,null,null,null,null,null,null,null,null,458,"芥川"]
[null,null,null,null,null,null,null,null,null,null,null,459,"阿武野"]
[null,null,null,null,null,null,null,null,null,null,null,460,"池田"]
[null,null,null,null,null,null,null,null,null,null,null,461,"池田北"]
[null,null,null,null,null,null,null,null,null,null,null,462,"茨木"]
[null,null,null,null,null,null,null,null,null,null,null,463,"茨木西"]
[null,null,null,null,null,null,null,null,null,null,null,464,"茨木東"]
[null,null,null,null,null,null,null,null,null,null,null,465,"園芸"]
[null,null,null,null,null,null,null,null,null,null,null,466,"春日丘"]
[null,null,null,null,null,null,null,null,null,null,null,467,"北千里"]
[null,null,null,null,null,null,null,null,null,null,null,468,"北野"]
[null,null,null,null,null,null,null,null,null,null,null,469,"柴島"]
[null,null,null,null,null,null,null,null,null,null,null,470,"桜塚"]
[null,null,null,null,null,null,null,null,null,null,null,471,"渋谷"]
[null,null,null,null,null,null,null,null,null,null,null,472,"少路"]
[null,null,null,null,null,null,null,null,null,null,null,473,"規の木"]
[null,null,null,null,null,null,null,null,null,null,null,474,"島本"]
[null,null,null,null,null,null,null,null,null,null,null,475,"城山"]
[null,null,null,null,null,null,null,null,null,null,null,476,"吹田"]
[null,null,null,null,null,null,null,null,null,null,null,477,"吹田東"]
[null,null,null,null,null,null,null,null,null,null,null,478,"摂津"]
[null,null,null,null,null,null,null,null,null,null,null,479,"千里"]
[null,null,null,null,null,null,null,null,null,null,null,481,"高槻北"]
[null,null,null,null,null,null,null,null,null,null,null,482,"豊島"]
[null,null,null,null,null,null,null,null,null,null,null,483,"豊中"]
[null,null,null,null,null,null,null,null,null,null,null,484,"鳥飼"]
[null,null,null,null,null,null,null,null,null,null,null,485,"西淀川"]
[null,null,null,null,null,null,null,null,null,null,null,486,"東豊中"]
[null,null,null,null,null,null,null,null,null,null,null,487,"東淀川"]
[null,null,null,null,null,null,null,null,null,null,null,488,"福井"]
[null,null,null,null,null,null,null,null,null,null,null,489,"三島"]
[null,null,null,null,null,null,null,null,null,null,null,490,"箕面"]
[null,null,null,null,null,null,null,null,null,null,null,491,"箕面東"]
[null,null,null,null,null,null,null,null,null,null,null,492,"茨木工科"]
[null,null,null,null,null,null,null,null,null,null,null,493,"大冠"]
[null,null,null,null,null,null,null,null,null,null,null,494,"北淀"]
[null,null,null,null,null,null,null,null,null,null,null,495,"淀商"]
[null,null,null,null,null,null,null,null,null,null,null,496,"東淀工業"]
[null,null,null,null,null,null,null,null,null,null,null,497,"大阪学院"]
[null,null,null,null,null,null,null,null,null,null,null,498,"大阪"]
[null,null,null,null,null,null,null,null,null,null,null,499,"大商学園"]
[null,null,null,null,null,null,null,null,null,null,null,500,"追手門学院"]
[null,null,null,null,null,null,null,null,null,null,null,501,"関西大倉"]
[null,null,null,null,null,null,null,null,null,null,null,502,"関大一"]
[null,null,null,null,null,null,null,null,null,null,null,503,"金光大阪"]
[null,null,null,null,null,null,null,null,null,null,null,504,"高槻"]
[null,null,null,null,null,null,null,null,null,null,null,505,"星翔"]
[null,null,null,null,null,null,null,null,null,null,null,506,"履正社"]
[null,null,null,null,null,null,null,null,null,null,null,507,"関大北陽"]
[null,null,null,null,null,null,null,null,null,null,null,508,"箕面学園"]
[null,null,null,null,null,null,null,null,null,null,null,509,"箕面自由学園"]
[null,null,null,null,null,null,null,null,null,null,null,550,"建国"]
[null,null,null,null,null,null,null,null,null,null,null,551,"能勢"]
[null,null,null,null,null,null,null,null,null,null,null,554,"四條畷北"]
[null,null,null,null,null,null,null,null,null,null,null,555,"野崎"]
[null,null,null,null,null,null,null,null,null,null,null,556,"関西創価"]
[null,null,null,null,null,null,null,null,null,null,null,557,"プール学院"]
[null,null,null,null,null,null,null,null,null,null,null,558,"清明学院"]
[null,null,null,null,null,null,null,null,null,null,null,562,"上宮太子"]
[null,null,null,null,null,null,null,null,null,null,null,564,"南寝屋川"]
[null,null,null,null,null,null,null,null,null,null,null,565,"鶴見商業"]
[null,null,null,null,null,null,null,null,null,null,null,569,"東大阪大学敬愛"]
[null,null,null,null,null,null,null,null,null,null,null,571,"英真学園"]
[null,null,null,null,null,null,null,null,null,null,null,597,"大阪朝鮮高級"]
[null,null,null,null,null,null,null,null,null,null,null,403,"清風南海"]
[null,null,null,null,null,null,null,null,null,null,null,560,"天王寺商業"]
[null,null,null,null,null,null,null,null,null,null,null,572,"山田"]
[null,null,null,null,null,null,null,null,null,null,null,575,"交野"]
[null,null,null,null,null,null,null,null,null,null,null,577,"西"]
[null,null,null,null,null,null,null,null,null,null,null,580,"金光藤蔭"]
[null,null,null,null,null,null,null,null,null,null,null,583,"福島女子"]
[null,null,null,null,null,null,null,null,null,null,null,584,"羽衣学園"]
[null,null,null,null,null,null,null,null,null,null,null,585,"国際滝井"]
[null,null,null,null,null,null,null,null,null,null,null,598,"大阪府立大工業高専"]
[null,null,null,null,null,null,null,null,null,null,null,587,"住吉商業"]

{"sheet":"申込選手一覧（個人）","index":5,"n_rows":37,"n_cols":7,"rows_kept":37,"cut":false,"hidden":false,"merged":[]}
[null,"階級","姓","名","ふりがな",null,"学年"]
[1,{"$f":"入力シート!C47","v":0},{"$f":"入力シート!I48","v":0},{"$f":"入力シート!Y48","v":0},{"$f":"入力シート!I47&\"　\"&入力シート!Y47","v":"　"},{"$f":"IF(C2=\"\",\"\",\"（\"&入力シート!$L$2&\"）\")","v":{"$error":"#N/A"}},{"$f":"入力シート!AM47","v":0}]
[2,{"$f":"入力シート!C51","v":0},{"$f":"入力シート!I52","v":0},{"$f":"入力シート!Y52","v":0},{"$f":"入力シート!I51&\"　\"&入力シート!Y51","v":"　"},{"$f":"IF(C3=\"\",\"\",\"（\"&入力シート!$L$2&\"）\")","v":{"$error":"#N/A"}},{"$f":"入力シート!AM51","v":0}]
[3,{"$f":"入力シート!C55","v":0},{"$f":"入力シート!I56","v":0},{"$f":"入力シート!Y56","v":0},{"$f":"入力シート!I55&\"　\"&入力シート!Y55","v":"　"},{"$f":"IF(C4=\"\",\"\",\"（\"&入力シート!$L$2&\"）\")","v":{"$error":"#N/A"}},{"$f":"入力シート!AM55","v":0}]
[4,{"$f":"入力シート!C59","v":0},{"$f":"入力シート!I60","v":0},{"$f":"入力シート!Y60","v":0},{"$f":"入力シート!I59&\"　\"&入力シート!Y59","v":"　"},{"$f":"IF(C5=\"\",\"\",\"（\"&入力シート!$L$2&\"）\")","v":{"$error":"#N/A"}},{"$f":"入力シート!AM59","v":0}]
[5,{"$f":"入力シート!C63","v":0},{"$f":"入力シート!I64","v":0},{"$f":"入力シート!Y64","v":0},{"$f":"入力シート!I63&\"　\"&入力シート!Y63","v":"　"},{"$f":"IF(C6=\"\",\"\",\"（\"&入力シート!$L$2&\"）\")","v":{"$error":"#N/A"}},{"$f":"入力シート!AM63","v":0}]
[6,{"$f":"入力シート!C67","v":0},{"$f":"入力シート!I68","v":0},{"$f":"入力シート!Y68","v":0},{"$f":"入力シート!I67&\"　\"&入力シート!Y67","v":"　"},{"$f":"IF(C7=\"\",\"\",\"（\"&入力シート!$L$2&\"）\")","v":{"$error":"#N/A"}},{"$f":"入力シート!AM67","v":0}]
[7,{"$f":"入力シート!C71","v":0},{"$f":"入力シート!I72","v":0},{"$f":"入力シート!Y72","v":0},{"$f":"入力シート!I71&\"　\"&入力シート!Y71","v":"　"},{"$f":"IF(C8=\"\",\"\",\"（\"&入力シート!$L$2&\"）\")","v":{"$error":"#N/A"}},{"$f":"入力シート!AM71","v":0}]
[8,{"$f":"入力シート!C75","v":0},{"$f":"入力シート!I76","v":0},{"$f":"入力シート!Y76","v":0},{"$f":"入力シート!I75&\"　\"&入力シート!Y75","v":"　"},{"$f":"IF(C9=\"\",\"\",\"（\"&入力シート!$L$2&\"）\")","v":{"$error":"#N/A"}},{"$f":"入力シート!AM75","v":0}]
[9,{"$f":"入力シート!C79","v":0},{"$f":"入力シート!I80","v":0},{"$f":"入力シート!Y80","v":0},{"$f":"入力シート!I79&\"　\"&入力シート!Y79","v":"　"},{"$f":"IF(C10=\"\",\"\",\"（\"&入力シート!$L$2&\"）\")","v":{"$error":"#N/A"}},{"$f":"入力シート!AM79","v":0}]
[10,{"$f":"入力シート!C83","v":0},{"$f":"入力シート!I84","v":0},{"$f":"入力シート!Y84","v":0},{"$f":"入力シート!I83&\"　\"&入力シート!Y83","v":"　"},{"$f":"IF(C11=\"\",\"\",\"（\"&入力シート!$L$2&\"）\")","v":{"$error":"#N/A"}},{"$f":"入力シート!AM83","v":0}]
[11,{"$f":"入力シート!C87","v":0},{"$f":"入力シート!I88","v":0},{"$f":"入力シート!Y88","v":0},{"$f":"入力シート!I87&\"　\"&入力シート!Y87","v":"　"},{"$f":"IF(C12=\"\",\"\",\"（\"&入力シート!$L$2&\"）\")","v":{"$error":"#N/A"}},{"$f":"入力シート!AM87","v":0}]
[12,{"$f":"入力シート!C91","v":0},{"$f":"入力シート!I92","v":0},{"$f":"入力シート!Y92","v":0},{"$f":"入力シート!I91&\"　\"&入力シート!Y91","v":"　"},{"$f":"IF(C13=\"\",\"\",\"（\"&入力シート!$L$2&\"）\")","v":{"$error":"#N/A"}},{"$f":"入力シート!AM91","v":0}]
[13,{"$f":"入力シート!C95","v":0},{"$f":"入力シート!I96","v":0},{"$f":"入力シート!Y96","v":0},{"$f":"入力シート!I95&\"　\"&入力シート!Y95","v":"　"},{"$f":"IF(C14=\"\",\"\",\"（\"&入力シート!$L$2&\"）\")","v":{"$error":"#N/A"}},{"$f":"入力シート!AM95","v":0}]
[14,{"$f":"入力シート!C99","v":0},{"$f":"入力シート!I100","v":0},{"$f":"入力シート!Y100","v":0},{"$f":"入力シート!I99&\"　\"&入力シート!Y99","v":"　"},{"$f":"IF(C15=\"\",\"\",\"（\"&入力シート!$L$2&\"）\")","v":{"$error":"#N/A"}},{"$f":"入力シート!AM99","v":0}]
[15,{"$f":"入力シート!C103","v":0},{"$f":"入力シート!I104","v":0},{"$f":"入力シート!Y104","v":0},{"$f":"入力シート!I103&\"　\"&入力シート!Y103","v":"　"},{"$f":"IF(C16=\"\",\"\",\"（\"&入力シート!$L$2&\"）\")","v":{"$error":"#N/A"}},{"$f":"入力シート!AM103","v":0}]
[16,{"$f":"入力シート!C107","v":0},{"$f":"入力シート!I108","v":0},{"$f":"入力シート!Y108","v":0},{"$f":"入力シート!I107&\"　\"&入力シート!Y107","v":"　"},{"$f":"IF(C17=\"\",\"\",\"（\"&入力シート!$L$2&\"）\")","v":{"$error":"#N/A"}},{"$f":"入力シート!AM107","v":0}]
[17,{"$f":"入力シート!C111","v":0},{"$f":"入力シート!I112","v":0},{"$f":"入力シート!Y112","v":0},{"$f":"入力シート!I111&\"　\"&入力シート!Y111","v":"　"},{"$f":"IF(C18=\"\",\"\",\"（\"&入力シート!$L$2&\"）\")","v":{"$error":"#N/A"}},{"$f":"入力シート!AM111","v":0}]
[18,{"$f":"入力シート!C115","v":0},{"$f":"入力シート!I116","v":0},{"$f":"入力シート!Y116","v":0},{"$f":"入力シート!I115&\"　\"&入力シート!Y115","v":"　"},{"$f":"IF(C19=\"\",\"\",\"（\"&入力シート!$L$2&\"）\")","v":{"$error":"#N/A"}},{"$f":"入力シート!AM115","v":0}]
[19,{"$f":"入力シート!C119","v":0},{"$f":"入力シート!I120","v":0},{"$f":"入力シート!Y120","v":0},{"$f":"入力シート!I119&\"　\"&入力シート!Y119","v":"　"},{"$f":"IF(C20=\"\",\"\",\"（\"&入力シート!$L$2&\"）\")","v":{"$error":"#N/A"}},{"$f":"入力シート!AM119","v":0}]
[20,{"$f":"入力シート!C123","v":0},{"$f":"入力シート!I124","v":0},{"$f":"入力シート!Y124","v":0},{"$f":"入力シート!I123&\"　\"&入力シート!Y123","v":"　"},{"$f":"IF(C21=\"\",\"\",\"（\"&入力シート!$L$2&\"）\")","v":{"$error":"#N/A"}},{"$f":"入力シート!AM123","v":0}]
[21,{"$f":"入力シート!C127","v":0},{"$f":"入力シート!I128","v":0},{"$f":"入力シート!Y128","v":0},{"$f":"入力シート!I127&\"　\"&入力シート!Y127","v":"　"},{"$f":"IF(C22=\"\",\"\",\"（\"&入力シート!$L$2&\"）\")","v":{"$error":"#N/A"}},{"$f":"入力シート!AM127","v":0}]
[22,{"$f":"入力シート!C131","v":0},{"$f":"入力シート!I132","v":0},{"$f":"入力シート!Y132","v":0},{"$f":"入力シート!I131&\"　\"&入力シート!Y131","v":"　"},{"$f":"IF(C23=\"\",\"\",\"（\"&入力シート!$L$2&\"）\")","v":{"$error":"#N/A"}},{"$f":"入力シート!AM131","v":0}]
[23,{"$f":"入力シート!C135","v":0},{"$f":"入力シート!I136","v":0},{"$f":"入力シート!Y136","v":0},{"$f":"入力シート!I135&\"　\"&入力シート!Y135","v":"　"},{"$f":"IF(C24=\"\",\"\",\"（\"&入力シート!$L$2&\"）\")","v":{"$error":"#N/A"}},{"$f":"入力シート!AM135","v":0}]
[24,{"$f":"入力シート!C139","v":0},{"$f":"入力シート!I140","v":0},{"$f":"入力シート!Y140","v":0},{"$f":"入力シート!I139&\"　\"&入力シート!Y139","v":"　"},{"$f":"IF(C25=\"\",\"\",\"（\"&入力シート!$L$2&\"）\")","v":{"$error":"#N/A"}},{"$f":"入力シート!AM139","v":0}]
[25,{"$f":"入力シート!C143","v":0},{"$f":"入力シート!I144","v":0},{"$f":"入力シート!Y144","v":0},{"$f":"入力シート!I143&\"　\"&入力シート!Y143","v":"　"},{"$f":"IF(C26=\"\",\"\",\"（\"&入力シート!$L$2&\"）\")","v":{"$error":"#N/A"}},{"$f":"入力シート!AM143","v":0}]
[26,{"$f":"入力シート!C147","v":0},{"$f":"入力シート!I148","v":0},{"$f":"入力シート!Y148","v":0},{"$f":"入力シート!I147&\"　\"&入力シート!Y147","v":"　"},{"$f":"IF(C27=\"\",\"\",\"（\"&入力シート!$L$2&\"）\")","v":{"$error":"#N/A"}},{"$f":"入力シート!AM147","v":0}]
[27,{"$f":"入力シート!C151","v":0},{"$f":"入力シート!I152","v":0},{"$f":"入力シート!Y152","v":0},{"$f":"入力シート!I151&\"　\"&入力シート!Y151","v":"　"},{"$f":"IF(C28=\"\",\"\",\"（\"&入力シート!$L$2&\"）\")","v":{"$error":"#N/A"}},{"$f":"入力シート!AM151","v":0}]
[28,{"$f":"入力シート!C155","v":0},{"$f":"入力シート!I156","v":0},{"$f":"入力シート!Y156","v":0},{"$f":"入力シート!I155&\"　\"&入力シート!Y155","v":"　"},{"$f":"IF(C29=\"\",\"\",\"（\"&入力シート!$L$2&\"）\")","v":{"$error":"#N/A"}},{"$f":"入力シート!AM155","v":0}]
[29,{"$f":"入力シート!C159","v":0},{"$f":"入力シート!I160","v":0},{"$f":"入力シート!Y160","v":0},{"$f":"入力シート!I159&\"　\"&入力シート!Y159","v":"　"},{"$f":"IF(C30=\"\",\"\",\"（\"&入力シート!$L$2&\"）\")","v":{"$error":"#N/A"}},{"$f":"入力シート!AM159","v":0}]
[30,{"$f":"入力シート!C163","v":0},{"$f":"入力シート!I164","v":0},{"$f":"入力シート!Y164","v":0},{"$f":"入力シート!I163&\"　\"&入力シート!Y163","v":"　"},{"$f":"IF(C31=\"\",\"\",\"（\"&入力シート!$L$2&\"）\")","v":{"$error":"#N/A"}},{"$f":"入力シート!AM163","v":0}]
[31,{"$f":"入力シート!C167","v":0},{"$f":"入力シート!I168","v":0},{"$f":"入力シート!Y168","v":0},{"$f":"入力シート!I167&\"　\"&入力シート!Y167","v":"　"},{"$f":"IF(C32=\"\",\"\",\"（\"&入力シート!$L$2&\"）\")","v":{"$error":"#N/A"}},{"$f":"入力シート!AM167","v":0}]
[32,{"$f":"入力シート!C171","v":0},{"$f":"入力シート!I172","v":0},{"$f":"入力シート!Y172","v":0},{"$f":"入力シート!I171&\"　\"&入力シート!Y171","v":"　"},{"$f":"IF(C33=\"\",\"\",\"（\"&入力シート!$L$2&\"）\")","v":{"$error":"#N/A"}},{"$f":"入力シート!AM171","v":0}]
[33,{"$f":"入力シート!C175","v":0},{"$f":"入力シート!I176","v":0},{"$f":"入力シート!Y176","v":0},{"$f":"入力シート!I175&\"　\"&入力シート!Y175","v":"　"},{"$f":"IF(C34=\"\",\"\",\"（\"&入力シート!$L$2&\"）\")","v":{"$error":"#N/A"}},{"$f":"入力シート!AM175","v":0}]
[34,{"$f":"入力シート!C179","v":0},{"$f":"入力シート!I180","v":0},{"$f":"入力シート!Y180","v":0},{"$f":"入力シート!I179&\"　\"&入力シート!Y179","v":"　"},{"$f":"IF(C35=\"\",\"\",\"（\"&入力シート!$L$2&\"）\")","v":{"$error":"#N/A"}},{"$f":"入力シート!AM179","v":0}]
[35,{"$f":"入力シート!C183","v":0},{"$f":"入力シート!I184","v":0},{"$f":"入力シート!Y184","v":0},{"$f":"入力シート!I183&\"　\"&入力シート!Y183","v":"　"},{"$f":"IF(C36=\"\",\"\",\"（\"&入力シート!$L$2&\"）\")","v":{"$error":"#N/A"}},{"$f":"入力シート!AM183","v":0}]
[36,{"$f":"入力シート!C187","v":0},{"$f":"入力シート!I188","v":0},{"$f":"入力シート!Y188","v":0},{"$f":"入力シート!I187&\"　\"&入力シート!Y187","v":"　"},{"$f":"IF(C37=\"\",\"\",\"（\"&入力シート!$L$2&\"）\")","v":{"$error":"#N/A"}},{"$f":"入力シート!AM187","v":0}]